Workbook

Sheet Abertura
D3: UNIVERSIDADE FEDERAL DO PARANÁ / SETOR DE CIÊNCIAS AGRÁRIAS
D4: DEPARTAMENTO DE SOLOS E ENGENHARIA AGRÍCOLA
D6: LAMOSA - LABORATÓRIO DE MODELAGEM DE SISTEMAS AMBIENTAIS
C8: PLATAFORMA MORETTI: MÓDULO - VALOR PROVÁVEL DECENDIAL DAS COMPONENTES HÍDRICAS (SOJA E MILHO), TEMPERATURAS DO AR E RADIAÇÃO SOLAR INCIDENTE, PARA O ESTADO DO PARANÁ.
C13: Autores:
C14: Orientador: Jorge Luiz Moretti de Souza (LAMOSA / DSEA / SCA / UFPR)
C15: Pós-Graduando: Bruno César Gurski (Pós-Graduação em Ciência do Solo / DSEA / SCA / UFPR)
C16: Co-Orientador: Alexandre Cândido Xavier (DER / UFES)
B18: Endereço:
B19: Rua dos Funcionários, 1540 - Curitiba, PR
B20: CEP: 80035-050
B21: Telefone: (041) 3350-5689 Celular: (041) 99938-0155
B22: e-mail: jmoretti@ufpr.br | H22: Versão: 2024/1.0
B23: Site: http://www.moretti.agrarias.ufpr.br/

Sheet ValorProvável
S1: =AC2 -> -51.125 | T1: =AD2 -> -25.625 | W1: Cultura (23) | X1: Componente hídrica (24) | Y1: Local (25) | Z1: fdp (26) | AA1: Probabilidade (27) | AB1: 28 | AC1: Longitude (29) | AD1: Latitude (30) | AE1: 31 | AF1: 32 | AG1: 33
C2: VALOR PROVÁVEL DECENDIAL DAS COMPONENTES HÍDRICAS (SOJA E MILHO), TEMPERATURAS DO AR E RADIAÇÃO SOLAR INCIDENTE, PARA O ESTADO DO PARANÁ | W2: 2 | X2: 5 | Y2: 226 | Z2: 1 | AA2: 25 | AC2: -51.125 | AD2: -25.625
W3: Soja | X3: Precipitação (P ; mm / decêndio) | Y3: P.001 : -22,625 S; -52,125 W | Z3: fdp planilha | AA3: Prob. 1% | AC3: -52.125 | AD3: -22.625
C4: Figura 1 – Principais cidades no Estado do Paraná, e suas macrorregiões. | I4: Figura 2 – Mapa espacializado do Estado do Paraná, contendo os pontos interpolados. | O4: Figura 3 – Valores prováveis obtidos para a componente hídrica, conforme fdp e nível de probabilidade escolhido. | W4: Milho | X4: Evapotranspiração de referência (ETo ; mm / decêndio) | Y4: P.002 : -22,625 S; -52,625 W | Z4: Exponencial | AA4: Prob. 2% | AC4: -52.625 | AD4: -22.625
C5: Decêndio | D5: Parâmetros das fdp's | K5: Dmax Tabela-do 5% | L5: Dmax | M5: Melhor fdp (1) | N5: P(X = 0) | O5: Valor x | P5: P(X ³ x) | Q5: Número de | R5: Amostra | S5: Amostra | T5: P(X = 0) | W5: Melhor | X5: Evapotranspiração da cultura (ETc ; mm / decêndio) | Y5: P.003 : -22,625 S; -52,875 W | Z5: Gama | AA5: Prob. 3% | AC5: -52.875 | AD5: -22.625
D6: Menor valor | E6: Maior valor | F6: Média | G6: Des. Pad. | H6: Moda | I6: Alfa | J6: Beta | L6: calculado (ad.) | N6: ( % ) | O6: =IF(X2<=7,"(mm / decêndio)",IF(X2<=10,"(graus celsius)","(MJ / m^2 decêndio)")) -> (mm / decêndio) | P6: (%) | Q6: decêndios (unidade) | R6: dados (unidade) | S6: zeros (unidade) | T6: (%) | W6: fdp (1) | X6: Armazenamento de água no solo (S ; mm / decêndio) | Y6: P.004 : -22,875 S; -50,875 W | Z6: Normal | AA6: Prob. 4% | AC6: -50.875 | AD6: -22.875
C7: 1 | D7: 24.79999924 | E7: 48.90000153 | F7: 35.10881805 | G7: 5.54323852 | H7: 34.84166718 | I7: 42.89179611 | J7: 0.818543911 | K7: 0.2349530607 | L7: 0.03430998325 | M7: G | N7: 0 | O7: 38.56084715 | P7: =(1-((N7/100)+(1-(N7/100))*GAMMADIST(O7,I7,J7,TRUE)))*100 -> 24.99999779 | Q7: 34 | R7: 34 | S7: 0 | T7: 0 | W7: G | X7: Evapotranspiração de real (ETr ; mm / decêndio) | Y7: P.005 : -22,875 S; -51,125 W | Z7: Triangular | AA7: Prob. 5% | AC7: -51.125 | AD7: -22.875
C8: 2 | D8: 20.60000038 | E8: 46.90000153 | F8: 34.05293655 | G8: 5.727511006 | H8: 35.94166946 | I8: 33.97219849 | J8: 1.002376556 | K8: 0.2349530607 | L8: 0.01705949008 | M8: N | N8: 0 | O8: 37.91608417 | P8: =(1-((N8/100)+(1-(N8/100))*NORMDIST(O8,F8,G8,TRUE)))*100 -> 24.99999916 | Q8: 34 | R8: 34 | S8: 0 | T8: 0 | W8: N | X8: Deficiência hídrica (Def ; mm / decêndio) | Y8: P.006 : -22,875 S; -51,375 W | Z8: Uniforme | AA8: Prob. 6% | AC8: -51.375 | AD8: -22.875
C9: 3 | D9: 9.699999809 | E9: 45.29999924 | F9: 33.26764679 | G9: 7.119657421 | H9: 36.40000153 | I9: 14.99283218 | J9: 2.218903542 | K9: 0.2349530607 | L9: 0.09936719388 | M9: N | N9: 0 | O9: 38.06977756 | P9: =(1-((N9/100)+(1-(N9/100))*NORMDIST(O9,F9,G9,TRUE)))*100 -> 25.00002316 | Q9: 34 | R9: 34 | S9: 0 | T9: 0 | W9: N | X9: Excedente hídrico (Exc ; mm / decêndio) | Y9: P.007 : -22,875 S; -51,625 W | AA9: Prob. 7% | AC9: -51.625 | AD9: -22.875
C10: 4 | D10: 14.19999981 | E10: 45.59999847 | F10: 33.00294113 | G10: 6.46259579 | H10: 32.51666641 | I10: 20.9804821 | J10: 1.573030591 | K10: 0.2349530607 | L10: 0.09361772239 | M10: N | N10: 0 | O10: 37.36186162 | P10: =(1-((N10/100)+(1-(N10/100))*NORMDIST(O10,F10,G10,TRUE)))*100 -> 25.00016783 | Q10: 34 | R10: 34 | S10: 0 | T10: 0 | W10: N | X10: Temperatura mínima do ar (Tmin ; graus celsius) | Y10: P.008 : -22,875 S; -51,875 W | AA10: Prob. 8% | AC10: -51.875 | AD10: -22.875
C11: 5 | D11: 13.19999981 | E11: 40.79999924 | F11: 31.70000076 | G11: 6.125604405 | H11: 38.5 | I11: 22.83912277 | J11: 1.387969255 | K11: 0.2349530607 | L11: 0.06524860859 | M11: N | N11: 0 | O11: 35.83161817 | P11: =(1-((N11/100)+(1-(N11/100))*NORMDIST(O11,F11,G11,TRUE)))*100 -> 25.00020737 | Q11: 34 | R11: 34 | S11: 0 | T11: 0 | W11: N | X11: Temperatura máxima do ar (Tmax ; graus celsius) | Y11: P.009 : -22,875 S; -52,125 W | Z11: fdp planilha | AA11: Prob. 9% | AC11: -52.125 | AD11: -22.875
C12: 6 | D12: 15.10000038 | E12: 43.40000153 | F12: 31.67058563 | G12: 5.838302276 | H12: 36.32500076 | I12: 24.29552269 | J12: 1.303556442 | K12: 0.2349530607 | L12: 0.09331865609 | M12: N | N12: 0 | O12: 35.60838749 | P12: =(1-((N12/100)+(1-(N12/100))*NORMDIST(O12,F12,G12,TRUE)))*100 -> 25.00039835 | Q12: 34 | R12: 34 | S12: 0 | T12: 0 | W12: N | X12: Temperatura média do ar (Tmed ; graus celsius) | Y12: P.010 : -22,875 S; -52,375 W | AA12: Prob. 10% | AC12: -52.375 | AD12: -22.875
C13: 7 | D13: 8 | E13: 41.40000153 | F13: 30.10882568 | G13: 7.234654464 | H13: 33.05000305 | I13: 11.82477379 | J13: 2.546249628 | K13: 0.2349530607 | L13: 0.09406010807 | M13: N | N13: 0 | O13: 34.98856886 | P13: =(1-((N13/100)+(1-(N13/100))*NORMDIST(O13,F13,G13,TRUE)))*100 -> 24.9998116 | Q13: 34 | R13: 34 | S13: 0 | T13: 0 | W13: N | X13: Radiação solar incidente (Rs ; MJ / m^2 decêndio) | Y13: P.011 : -22,875 S; -52,625 W | AA13: Prob. 11% | AC13: -52.625 | AD13: -22.875
C14: 8 | D14: 6.5 | E14: 39.29999924 | F14: 26.31764603 | G14: 7.300538542 | H14: 25.63333321 | I14: 10.17784023 | J14: 2.585778952 | K14: 0.2349530607 | L14: 0.06001937389 | M14: N | N14: 0 | O14: 31.24180483 | P14: =(1-((N14/100)+(1-(N14/100))*NORMDIST(O14,F14,G14,TRUE)))*100 -> 24.99991126 | Q14: 34 | R14: 34 | S14: 0 | T14: 0 | W14: N | Y14: P.012 : -22,875 S; -52,875 W | AA14: Prob. 12% | AC14: -52.875 | AD14: -22.875
C15: 9 | D15: 10.80000019 | E15: 39.5 | F15: 23.17941093 | G15: 6.25865581 | H15: 27.54166603 | I15: 12.63989544 | J15: 1.833829284 | K15: 0.2349530607 | L15: 0.1159090996 | M15: N | N15: 0 | O15: 27.40082042 | P15: =(1-((N15/100)+(1-(N15/100))*NORMDIST(O15,F15,G15,TRUE)))*100 -> 24.99994773 | Q15: 34 | R15: 34 | S15: 0 | T15: 0 | W15: N | Y15: P.013 : -22,875 S; -53,125 W | AA15: Prob. 13% | AC15: -53.125 | AD15: -22.875
C16: 10 | D16: 8.800000191 | E16: 31.79999924 | F16: 22.40294075 | G16: 5.645458401 | H16: 22.21666718 | I16: 13.20150375 | J16: 1.696999192 | K16: 0.2349530607 | L16: 0.04914873838 | M16: N | N16: 0 | O16: 26.2107457 | P16: =(1-((N16/100)+(1-(N16/100))*NORMDIST(O16,F16,G16,TRUE)))*100 -> 24.99999367 | Q16: 34 | R16: 34 | S16: 0 | T16: 0 | W16: N | Y16: P.014 : -22,875 S; -53,375 W | AA16: Prob. 14% | AC16: -53.375 | AD16: -22.875
C17: 11 | D17: 12.39999962 | E17: 30 | F17: 20.19705963 | G17: 4.758818421 | H17: 22.66666603 | I17: 18.40052986 | J17: 1.097634673 | K17: 0.2349530607 | L17: 0.05113577843 | M17: N | N17: 0 | O17: 23.40683412 | P17: =(1-((N17/100)+(1-(N17/100))*NORMDIST(O17,F17,G17,TRUE)))*100 -> 24.9999984 | Q17: 34 | R17: 34 | S17: 0 | T17: 0 | W17: N | Y17: P.015 : -23,125 S; -49,875 W | AA17: Prob. 15% | AC17: -49.875 | AD17: -23.125
C18: 12 | D18: 8 | E18: 25.89999962 | F18: 17.95293999 | G18: 4.326817945 | H18: 21.42499924 | I18: 14.97985172 | J18: 1.1984725 | K18: 0.2349530607 | L18: 0.0806100145 | M18: T | N18: 0 | O18: 21.42500179 | P18: =(1-((N18/100)+(1-(N18/100))*IF(O18<=H18,(O18-D18)^2/((E18-D18)*(H18-D18)),((H18-D18)/(E18-D18))-((E18-O18)^2/((E18-D18)*(E18-H18)))+((E18-H18)/(E18-D18)))))*100 -> 24.99997411 | Q18: 34 | R18: 34 | S18: 0 | T18: 0 | W18: T | Y18: P.016 : -23,125 S; -50,125 W | AA18: Prob. 16% | AC18: -50.125 | AD18: -23.125
C19: 13 | D19: 4.199999809 | E19: 22.70000076 | F19: 15.18823624 | G19: 4.739375429 | H19: 18.07500076 | I19: 7.674407482 | J19: 1.979076028 | K19: 0.2349530607 | L19: 0.051198259 | M19: T | N19: 0 | O19: 18.0750034 | P19: =(1-((N19/100)+(1-(N19/100))*IF(O19<=H19,(O19-D19)^2/((E19-D19)*(H19-D19)),((H19-D19)/(E19-D19))-((E19-O19)^2/((E19-D19)*(E19-H19)))+((E19-H19)/(E19-D19)))))*100 -> 24.99997024 | Q19: 34 | R19: 34 | S19: 0 | T19: 0 | W19: T | Y19: P.017 : -23,125 S; -50,375 W | AA19: Prob. 17% | AC19: -50.375 | AD19: -23.125
C20: 14 | D20: 2.799999952 | E20: 21 | F20: 13.7264719 | G20: 4.624657696 | H20: 13.41666603 | I20: 5.643316269 | J20: 2.432341337 | K20: 0.2349530607 | L20: 0.1062464565 | M20: N | N20: 0 | O20: 16.84587481 | P20: =(1-((N20/100)+(1-(N20/100))*NORMDIST(O20,F20,G20,TRUE)))*100 -> 24.99918438 | Q20: 34 | R20: 34 | S20: 0 | T20: 0 | W20: N | Y20: P.018 : -23,125 S; -50,625 W | AA20: Prob. 18% | AC20: -50.625 | AD20: -23.125
C21: 15 | D21: 4.099999905 | E21: 21.29999924 | F21: 13.6294117 | G21: 3.608452221 | H21: 14.13333321 | I21: 11.14720249 | J21: 1.222675562 | K21: 0.2349530607 | L21: 0.04230764508 | M21: N | N21: 0 | O21: 16.06327948 | P21: =(1-((N21/100)+(1-(N21/100))*NORMDIST(O21,F21,G21,TRUE)))*100 -> 24.999967 | Q21: 34 | R21: 34 | S21: 0 | T21: 0 | W21: N | Y21: P.019 : -23,125 S; -50,875 W | AA21: Prob. 19% | AC21: -50.875 | AD21: -23.125
C22: 16 | D22: 3.700000048 | E22: 19.79999924 | F22: 12.44705868 | G22: 3.312898144 | H22: 13.09166622 | I22: 11.15645123 | J22: 1.115682602 | K22: 0.2349530607 | L22: 0.0668784976 | M22: N | N22: 0 | O22: 14.68157844 | P22: =(1-((N22/100)+(1-(N22/100))*NORMDIST(O22,F22,G22,TRUE)))*100 -> 24.99996237 | Q22: 34 | R22: 34 | S22: 0 | T22: 0 | W22: N | Y22: P.020 : -23,125 S; -51,125 W | AA22: Prob. 20% | AC22: -51.125 | AD22: -23.125
C23: 17 | D23: 5.699999809 | E23: 18.10000038 | F23: 12.46764851 | G23: 2.438295479 | H23: 12.9333334 | I23: 24.40153694 | J23: 0.5109370351 | K23: 0.2349530607 | L23: 0.06593316793 | M23: N | N23: 0 | O23: 14.11224067 | P23: =(1-((N23/100)+(1-(N23/100))*NORMDIST(O23,F23,G23,TRUE)))*100 -> 25.00017137 | Q23: 34 | R23: 34 | S23: 0 | T23: 0 | W23: N | Y23: P.021 : -23,125 S; -51,375 W | AA23: Prob. 21% | AC23: -51.375 | AD23: -23.125
C24: 18 | D24: 6.900000095 | E24: 19.20000076 | F24: 12.77941132 | G24: 2.814333339 | H24: 14.07500076 | I24: 19.56610298 | J24: 0.6531403661 | K24: 0.2349530607 | L24: 0.03570205718 | M24: N | N24: 0 | O24: 14.67764959 | P24: =(1-((N24/100)+(1-(N24/100))*NORMDIST(O24,F24,G24,TRUE)))*100 -> 25.00000808 | Q24: 34 | R24: 34 | S24: 0 | T24: 0 | W24: N | Y24: P.022 : -23,125 S; -51,625 W | AA24: Prob. 22% | AC24: -51.625 | AD24: -23.125
C25: 19 | D25: 4.300000191 | E25: 21.10000038 | F25: 13.63235188 | G25: 3.351139069 | H25: 14.10000038 | I25: 13.65516376 | J25: 0.9983294606 | K25: 0.2349530607 | L25: 0.04013169557 | M25: N | N25: 0 | O25: 15.89276216 | P25: =(1-((N25/100)+(1-(N25/100))*NORMDIST(O25,F25,G25,TRUE)))*100 -> 24.99903908 | Q25: 34 | R25: 34 | S25: 0 | T25: 0 | W25: N | Y25: P.023 : -23,125 S; -51,875 W | AA25: Prob. 23% | AC25: -51.875 | AD25: -23.125
C26: 20 | D26: 4.5 | E26: 22.60000038 | F26: 13.63529682 | G26: 3.112426947 | H26: 15.0583334 | I26: 16.29909134 | J26: 0.8365679383 | K26: 0.2349530607 | L26: 0.06637561321 | M26: N | N26: 0 | O26: 15.73466197 | P26: =(1-((N26/100)+(1-(N26/100))*NORMDIST(O26,F26,G26,TRUE)))*100 -> 24.99933565 | Q26: 34 | R26: 34 | S26: 0 | T26: 0 | W26: N | Y26: P.024 : -23,125 S; -52,125 W | AA26: Prob. 24% | AC26: -52.125 | AD26: -23.125
C27: 21 | D27: 6.199999809 | E27: 25.70000076 | F27: 14.5735302 | G27: 4.206654935 | H27: 14.32500076 | I27: 11.97691536 | J27: 1.216801643 | K27: 0.2349530607 | L27: 0.04868173599 | M27: G | N27: 0 | O27: 17.15107364 | P27: =(1-((N27/100)+(1-(N27/100))*GAMMADIST(O27,I27,J27,TRUE)))*100 -> 25.00000707 | Q27: 34 | R27: 34 | S27: 0 | T27: 0 | W27: G | Y27: P.025 : -23,125 S; -52,375 W | AA27: Prob. 25% | AC27: -52.375 | AD27: -23.125
C28: 22 | D28: 4.099999905 | E28: 22.79999924 | F28: 14.57941246 | G28: 3.591301391 | H28: 15.00833321 | I28: 13.44584656 | J28: 1.084306002 | K28: 0.2349530607 | L28: 0.09403118491 | M28: N | N28: 0 | O28: 17.00170864 | P28: =(1-((N28/100)+(1-(N28/100))*NORMDIST(O28,F28,G28,TRUE)))*100 -> 24.99999821 | Q28: 34 | R28: 34 | S28: 0 | T28: 0 | W28: N | Y28: P.026 : -23,125 S; -52,625 W | AA28: Prob. 26% | AC28: -52.625 | AD28: -23.125
C29: 23 | D29: 4.5 | E29: 20.39999962 | F29: 14.17940998 | G29: 4.100020869 | H29: 16.42499924 | I29: 9.789395332 | J29: 1.448445916 | K29: 0.2349530607 | L29: 0.09259259701 | M29: T | N29: 0 | O29: 16.42500176 | P29: =(1-((N29/100)+(1-(N29/100))*IF(O29<=H29,(O29-D29)^2/((E29-D29)*(H29-D29)),((H29-D29)/(E29-D29))-((E29-O29)^2/((E29-D29)*(E29-H29)))+((E29-H29)/(E29-D29)))))*100 -> 24.99997128 | Q29: 34 | R29: 34 | S29: 0 | T29: 0 | W29: T | Y29: P.027 : -23,125 S; -52,875 W | AA29: Prob. 27% | AC29: -52.875 | AD29: -23.125
C30: 24 | D30: 4.199999809 | E30: 22.70000076 | F30: 12.5411768 | G30: 5.053958422 | H30: 14.99166679 | I30: 5.571917057 | J30: 2.250783205 | K30: 0.2349530607 | L30: 0.1018797457 | M30: N | N30: 0 | O30: 15.95001943 | P30: =(1-((N30/100)+(1-(N30/100))*NORMDIST(O30,F30,G30,TRUE)))*100 -> 25.00000324 | Q30: 34 | R30: 34 | S30: 0 | T30: 0 | W30: N | Y30: P.028 : -23,125 S; -53,125 W | AA30: Prob. 28% | AC30: -53.125 | AD30: -23.125
C31: 25 | D31: 3.200000048 | E31: 23.70000076 | F31: 13.19117832 | G31: 5.32252938 | H31: 15.15833378 | I31: 4.895827293 | J31: 2.6943717 | K31: 0.2349530607 | L31: 0.08197015524 | M31: N | N31: 0 | O31: 16.78116929 | P31: =(1-((N31/100)+(1-(N31/100))*NORMDIST(O31,F31,G31,TRUE)))*100 -> 25.00000327 | Q31: 34 | R31: 34 | S31: 0 | T31: 0 | W31: N | Y31: P.029 : -23,125 S; -53,375 W | AA31: Prob. 29% | AC31: -53.375 | AD31: -23.125
C32: 26 | D32: 4.300000191 | E32: 23.89999962 | F32: 14.29411793 | G32: 4.931404697 | H32: 15.73333359 | I32: 6.545316696 | J32: 2.1838696 | K32: 0.2349530607 | L32: 0.08546337485 | M32: N | N32: 0 | O32: 17.62045062 | P32: =(1-((N32/100)+(1-(N32/100))*NORMDIST(O32,F32,G32,TRUE)))*100 -> 24.99902849 | Q32: 34 | R32: 34 | S32: 0 | T32: 0 | W32: N | Y32: P.030 : -23,125 S; -53,625 W | AA32: Prob. 30% | AC32: -53.625 | AD32: -23.125
C33: 27 | D33: 6.400000095 | E33: 20.70000076 | F33: 15.49411774 | G33: 2.858580265 | H33: 14.74166679 | I33: 25.09800148 | J33: 0.6173446774 | K33: 0.2349530607 | L33: 0.05168654025 | M33: N | N33: 0 | O33: 17.42216535 | P33: =(1-((N33/100)+(1-(N33/100))*NORMDIST(O33,F33,G33,TRUE)))*100 -> 25.00039432 | Q33: 34 | R33: 34 | S33: 0 | T33: 0 | W33: N | Y33: P.031 : -23,375 S; -49,875 W | AA33: Prob. 31% | AC33: -49.875 | AD33: -23.375
C34: 28 | D34: 6.099999905 | E34: 24.39999962 | F34: 14.31470585 | G34: 4.894655949 | H34: 13.72499943 | I34: 8.146761894 | J34: 1.757103801 | K34: 0.2349530607 | L34: 0.03738671541 | M34: G | N34: 0 | O34: 17.30565621 | P34: =(1-((N34/100)+(1-(N34/100))*GAMMADIST(O34,I34,J34,TRUE)))*100 -> 25.00006656 | Q34: 34 | R34: 34 | S34: 0 | T34: 0 | W34: G | Y34: P.032 : -23,375 S; -50,125 W | AA34: Prob. 32% | AC34: -50.125 | AD34: -23.375
C35: 29 | D35: 3.099999905 | E35: 27.60000038 | F35: 11.77058887 | G35: 7.146413915 | H35: 5.141666412 | I35: 2.756233454 | J35: 4.270534039 | K35: 0.2349530607 | L35: 0.1080400348 | M35: E | N35: 0 | O35: 16.31748649 | P35: =(1-((N35/100)+(1-(N35/100))* (1-(1/(EXP(O35/F35))))))*100 -> 25.00003078 | Q35: 34 | R35: 34 | S35: 0 | T35: 0 | W35: E | Y35: P.033 : -23,375 S; -50,375 W | AA35: Prob. 33% | AC35: -50.375 | AD35: -23.375
C36: 30 | D36: 2.200000048 | E36: 24.70000076 | F36: 10.05294037 | G36: 7.239170537 | H36: 4.074999809 | I36: 2.094027996 | J36: 4.800766945 | K36: 0.2349530607 | L36: 0.08754390478 | M36: E | N36: 0 | O36: 13.93632217 | P36: =(1-((N36/100)+(1-(N36/100))* (1-(1/(EXP(O36/F36))))))*100 -> 25.00003078 | Q36: 34 | R36: 34 | S36: 0 | T36: 0 | W36: E | Y36: P.034 : -23,375 S; -50,625 W | AA36: Prob. 34% | AC36: -50.625 | AD36: -23.375
C37: 31 | D37: 2.099999905 | E37: 21.79999924 | F37: 8.505882263 | G37: 5.836091761 | H37: 3.741666555 | I37: 2.54245615 | J37: 3.345537424 | K37: 0.2349530607 | L37: 0.06968349218 | M37: E | N37: 0 | O37: 11.79164615 | P37: =(1-((N37/100)+(1-(N37/100))* (1-(1/(EXP(O37/F37))))))*100 -> 25.00003078 | Q37: 34 | R37: 34 | S37: 0 | T37: 0 | W37: E | Y37: P.035 : -23,375 S; -50,875 W | AA37: Prob. 35% | AC37: -50.875 | AD37: -23.375
C38: 32 | D38: 2.200000048 | E38: 14.5 | F38: 6.47647047 | G38: 3.557839005 | H38: 3.224999905 | I38: 3.78097558 | J38: 1.712909937 | K38: 0.2349530607 | L38: 0.0701726675 | M38: G | N38: 0 | O38: 8.310017467 | P38: =(1-((N38/100)+(1-(N38/100))*GAMMADIST(O38,I38,J38,TRUE)))*100 -> 24.99999867 | Q38: 34 | R38: 34 | S38: 0 | T38: 0 | W38: G | Y38: P.036 : -23,375 S; -51,125 W | AA38: Prob. 36% | AC38: -51.125 | AD38: -23.375
C39: 33 | D39: 2 | E39: 14 | F39: 5.794116974 | G39: 2.604418221 | H39: 7 | I39: 5.580457211 | J39: 1.038287163 | K39: 0.2349530607 | L39: 0.05517786741 | M39: G | N39: 0 | O39: 7.208460628 | P39: =(1-((N39/100)+(1-(N39/100))*GAMMADIST(O39,I39,J39,TRUE)))*100 -> 25.00031744 | Q39: 34 | R39: 34 | S39: 0 | T39: 0 | W39: G | Y39: P.037 : -23,375 S; -51,375 W | AA39: Prob. 37% | AC39: -51.375 | AD39: -23.375
C40: 34 | D40: 2.400000095 | E40: 12.69999981 | F40: 5.358822823 | G40: 2.321979065 | H40: 3.258333445 | I40: 6.623466015 | J40: 0.809066236 | K40: 0.2349530607 | L40: 0.07994773984 | M40: G | N40: 0 | O40: 6.579383348 | P40: =(1-((N40/100)+(1-(N40/100))*GAMMADIST(O40,I40,J40,TRUE)))*100 -> 25.00016468 | Q40: 34 | R40: 34 | S40: 0 | T40: 0 | W40: G | Y40: P.038 : -23,375 S; -51,625 W | AA40: Prob. 38% | AC40: -51.625 | AD40: -23.375
C41: 35 | D41: 2.099999905 | E41: 12.5 | F41: 4.688235283 | G41: 2.007978737 | H41: 2.966666698 | I41: 7.307927608 | J41: 0.6415273547 | K41: 0.2349530607 | L41: 0.0381180346 | M41: G | N41: 0 | O41: 5.713517584 | P41: =(1-((N41/100)+(1-(N41/100))*GAMMADIST(O41,I41,J41,TRUE)))*100 -> 25.000109 | Q41: 34 | R41: 34 | S41: 0 | T41: 0 | W41: G | Y41: P.039 : -23,375 S; -51,875 W | AA41: Prob. 39% | AC41: -51.875 | AD41: -23.375
C42: 36 | D42: 2.799999952 | E42: 10.10000038 | F42: 5.647058487 | G42: 1.83901084 | H42: 4.625 | I42: 10.19164944 | J42: 0.5540868044 | K42: 0.2349530607 | L42: 0.08293420076 | M42: G | N42: 0 | O42: 6.718953885 | P42: =(1-((N42/100)+(1-(N42/100))*GAMMADIST(O42,I42,J42,TRUE)))*100 -> 25.00002035 | Q42: 34 | R42: 34 | S42: 0 | T42: 0 | W42: G | Y42: P.040 : -23,375 S; -52,125 W | AA42: Prob. 40% | AC42: -52.125 | AD42: -23.375
B43: * | C43: 37 | D43: 9 | E43: 18.10000038 | F43: 12.60606003 | G43: 2.106231721 | H43: 12.79166698 | I43: 37.3119812 | J43: 0.3378555477 | K43: 0.2384863943 | L43: 0.05122128129 | M43: N | N43: 0 | O43: 14.0266918 | P43: =(1-((N43/100)+(1-(N43/100))*NORMDIST(O43,F43,G43,TRUE)))*100 -> 24.99999907 | Q43: 33 | R43: 33 | S43: 0 | T43: 0 | W43: N | Y43: P.041 : -23,375 S; -52,375 W | AA43: Prob. 41% | AC43: -52.375 | AD43: -23.375
C44: ( 1 ) E - exponencial; G - gama; N - normal; T - triangular; U - uniforme | L44: * Valor provável da variável X, correspondente aos 5 ou 6 (ano bissexto) últimos dias de cada ano. | Y44: P.042 : -23,375 S; -52,625 W | AA44: Prob. 42% | AC44: -52.625 | AD44: -23.375
S45: -54.375 | T45: -26.625 | Y45: P.043 : -23,375 S; -52,875 W | AA45: Prob. 43% | AC45: -52.875 | AD45: -23.375
S46: -48.375 | T46: -22.625 | Y46: P.044 : -23,375 S; -53,125 W | AA46: Prob. 44% | AC46: -53.125 | AD46: -23.375
Y47: P.045 : -23,375 S; -53,375 W | AA47: Prob. 45% | AC47: -53.375 | AD47: -23.375
Y48: P.046 : -23,375 S; -53,625 W | AA48: Prob. 46% | AC48: -53.625 | AD48: -23.375
Y49: P.047 : -23,625 S; -49,625 W | AA49: Prob. 47% | AC49: -49.625 | AD49: -23.625
Y50: P.048 : -23,625 S; -49,875 W | AA50: Prob. 48% | AC50: -49.875 | AD50: -23.625
Y51: P.049 : -23,625 S; -50,125 W | AA51: Prob. 49% | AC51: -50.125 | AD51: -23.625
Y52: P.050 : -23,625 S; -50,375 W | AA52: Prob. 50% | AC52: -50.375 | AD52: -23.625
Y53: P.051 : -23,625 S; -50,625 W | AA53: Prob. 51% | AC53: -50.625 | AD53: -23.625
Y54: P.052 : -23,625 S; -50,875 W | AA54: Prob. 52% | AC54: -50.875 | AD54: -23.625
Y55: P.053 : -23,625 S; -51,125 W | AA55: Prob. 53% | AC55: -51.125 | AD55: -23.625
Y56: P.054 : -23,625 S; -51,375 W | AA56: Prob. 54% | AC56: -51.375 | AD56: -23.625
Y57: P.055 : -23,625 S; -51,625 W | AA57: Prob. 55% | AC57: -51.625 | AD57: -23.625
Y58: P.056 : -23,625 S; -51,875 W | AA58: Prob. 56% | AC58: -51.875 | AD58: -23.625
Y59: P.057 : -23,625 S; -52,125 W | AA59: Prob. 57% | AC59: -52.125 | AD59: -23.625
Y60: P.058 : -23,625 S; -52,375 W | AA60: Prob. 58% | AC60: -52.375 | AD60: -23.625
Y61: P.059 : -23,625 S; -52,625 W | AA61: Prob. 59% | AC61: -52.625 | AD61: -23.625
Y62: P.060 : -23,625 S; -52,875 W | AA62: Prob. 60% | AC62: -52.875 | AD62: -23.625
Y63: P.061 : -23,625 S; -53,125 W | AA63: Prob. 61% | AC63: -53.125 | AD63: -23.625
Y64: P.062 : -23,625 S; -53,375 W | AA64: Prob. 62% | AC64: -53.375 | AD64: -23.625
Y65: P.063 : -23,625 S; -53,625 W | AA65: Prob. 63% | AC65: -53.625 | AD65: -23.625
Y66: P.064 : -23,625 S; -53,875 W | AA66: Prob. 64% | AC66: -53.875 | AD66: -23.625
Y67: P.065 : -23,875 S; -49,625 W | AA67: Prob. 65% | AC67: -49.625 | AD67: -23.875
Y68: P.066 : -23,875 S; -49,875 W | AA68: Prob. 66% | AC68: -49.875 | AD68: -23.875
Y69: P.067 : -23,875 S; -50,125 W | AA69: Prob. 67% | AC69: -50.125 | AD69: -23.875
Y70: P.068 : -23,875 S; -50,375 W | AA70: Prob. 68% | AC70: -50.375 | AD70: -23.875
Y71: P.069 : -23,875 S; -50,625 W | AA71: Prob. 69% | AC71: -50.625 | AD71: -23.875
Y72: P.070 : -23,875 S; -50,875 W | AA72: Prob. 70% | AC72: -50.875 | AD72: -23.875
Y73: P.071 : -23,875 S; -51,125 W | AA73: Prob. 71% | AC73: -51.125 | AD73: -23.875
Y74: P.072 : -23,875 S; -51,375 W | AA74: Prob. 72% | AC74: -51.375 | AD74: -23.875
Y75: P.073 : -23,875 S; -51,625 W | AA75: Prob. 73% | AC75: -51.625 | AD75: -23.875
Y76: P.074 : -23,875 S; -51,875 W | AA76: Prob. 74% | AC76: -51.875 | AD76: -23.875
Y77: P.075 : -23,875 S; -52,125 W | AA77: Prob. 75% | AC77: -52.125 | AD77: -23.875
Y78: P.076 : -23,875 S; -52,375 W | AA78: Prob. 76% | AC78: -52.375 | AD78: -23.875
Y79: P.077 : -23,875 S; -52,625 W | AA79: Prob. 77% | AC79: -52.625 | AD79: -23.875
Y80: P.078 : -23,875 S; -52,875 W | AA80: Prob. 78% | AC80: -52.875 | AD80: -23.875
Y81: P.079 : -23,875 S; -53,125 W | AA81: Prob. 79% | AC81: -53.125 | AD81: -23.875
Y82: P.080 : -23,875 S; -53,375 W | AA82: Prob. 80% | AC82: -53.375 | AD82: -23.875
Y83: P.081 : -23,875 S; -53,625 W | AA83: Prob. 81% | AC83: -53.625 | AD83: -23.875
Y84: P.082 : -23,875 S; -53,875 W | AA84: Prob. 82% | AC84: -53.875 | AD84: -23.875
Y85: P.083 : -24,125 S; -49,375 W | AA85: Prob. 83% | AC85: -49.375 | AD85: -24.125
Y86: P.084 : -24,125 S; -49,625 W | AA86: Prob. 84% | AC86: -49.625 | AD86: -24.125
Y87: P.085 : -24,125 S; -49,875 W | AA87: Prob. 85% | AC87: -49.875 | AD87: -24.125
Y88: P.086 : -24,125 S; -50,125 W | AA88: Prob. 86% | AC88: -50.125 | AD88: -24.125
Y89: P.087 : -24,125 S; -50,375 W | AA89: Prob. 87% | AC89: -50.375 | AD89: -24.125
Y90: P.088 : -24,125 S; -50,625 W | AA90: Prob. 88% | AC90: -50.625 | AD90: -24.125
Y91: P.089 : -24,125 S; -50,875 W | AA91: Prob. 89% | AC91: -50.875 | AD91: -24.125
Y92: P.090 : -24,125 S; -51,125 W | AA92: Prob. 90% | AC92: -51.125 | AD92: -24.125
Y93: P.091 : -24,125 S; -51,375 W | AA93: Prob. 91% | AC93: -51.375 | AD93: -24.125
Y94: P.092 : -24,125 S; -51,625 W | AA94: Prob. 92% | AC94: -51.625 | AD94: -24.125
Y95: P.093 : -24,125 S; -51,875 W | AA95: Prob. 93% | AC95: -51.875 | AD95: -24.125
Y96: P.094 : -24,125 S; -52,125 W | AA96: Prob. 94% | AC96: -52.125 | AD96: -24.125
Y97: P.095 : -24,125 S; -52,375 W | AA97: Prob. 95% | AC97: -52.375 | AD97: -24.125
Y98: P.096 : -24,125 S; -52,625 W | AA98: Prob. 96% | AC98: -52.625 | AD98: -24.125
Y99: P.097 : -24,125 S; -52,875 W | AA99: Prob. 97% | AC99: -52.875 | AD99: -24.125
Y100: P.098 : -24,125 S; -53,125 W | AA100: Prob. 98% | AC100: -53.125 | AD100: -24.125
Y101: P.099 : -24,125 S; -53,375 W | AA101: Prob. 99% | AC101: -53.375 | AD101: -24.125
Y102: P.100 : -24,125 S; -53,625 W | AC102: -53.625 | AD102: -24.125
Y103: P.101 : -24,125 S; -53,875 W | AC103: -53.875 | AD103: -24.125
Y104: P.102 : -24,125 S; -54,125 W | AC104: -54.125 | AD104: -24.125
Y105: P.103 : -24,375 S; -49,375 W | AC105: -49.375 | AD105: -24.375
Y106: P.104 : -24,375 S; -49,625 W | AC106: -49.625 | AD106: -24.375
Y107: P.105 : -24,375 S; -49,875 W | AC107: -49.875 | AD107: -24.375
Y108: P.106 : -24,375 S; -50,125 W | AC108: -50.125 | AD108: -24.375
Y109: P.107 : -24,375 S; -50,375 W | AC109: -50.375 | AD109: -24.375
Y110: P.108 : -24,375 S; -50,625 W | AC110: -50.625 | AD110: -24.375
Y111: P.109 : -24,375 S; -50,875 W | AC111: -50.875 | AD111: -24.375
Y112: P.110 : -24,375 S; -51,125 W | AC112: -51.125 | AD112: -24.375
Y113: P.111 : -24,375 S; -51,375 W | AC113: -51.375 | AD113: -24.375
Y114: P.112 : -24,375 S; -51,625 W | AC114: -51.625 | AD114: -24.375
Y115: P.113 : -24,375 S; -51,875 W | AC115: -51.875 | AD115: -24.375
Y116: P.114 : -24,375 S; -52,125 W | AC116: -52.125 | AD116: -24.375
Y117: P.115 : -24,375 S; -52,375 W | AC117: -52.375 | AD117: -24.375
Y118: P.116 : -24,375 S; -52,625 W | AC118: -52.625 | AD118: -24.375
Y119: P.117 : -24,375 S; -52,875 W | AC119: -52.875 | AD119: -24.375
Y120: P.118 : -24,375 S; -53,125 W | AC120: -53.125 | AD120: -24.375
Y121: P.119 : -24,375 S; -53,375 W | AC121: -53.375 | AD121: -24.375
Y122: P.120 : -24,375 S; -53,625 W | AC122: -53.625 | AD122: -24.375
Y123: P.121 : -24,375 S; -53,875 W | AC123: -53.875 | AD123: -24.375
Y124: P.122 : -24,375 S; -54,125 W | AC124: -54.125 | AD124: -24.375
Y125: P.123 : -24,625 S; -49,375 W | AC125: -49.375 | AD125: -24.625
Y126: P.124 : -24,625 S; -49,625 W | AC126: -49.625 | AD126: -24.625
Y127: P.125 : -24,625 S; -49,875 W | AC127: -49.875 | AD127: -24.625
Y128: P.126 : -24,625 S; -50,125 W | AC128: -50.125 | AD128: -24.625
Y129: P.127 : -24,625 S; -50,375 W | AC129: -50.375 | AD129: -24.625
Y130: P.128 : -24,625 S; -50,625 W | AC130: -50.625 | AD130: -24.625
Y131: P.129 : -24,625 S; -50,875 W | AC131: -50.875 | AD131: -24.625
Y132: P.130 : -24,625 S; -51,125 W | AC132: -51.125 | AD132: -24.625
Y133: P.131 : -24,625 S; -51,375 W | AC133: -51.375 | AD133: -24.625
Y134: P.132 : -24,625 S; -51,625 W | AC134: -51.625 | AD134: -24.625
Y135: P.133 : -24,625 S; -51,875 W | AC135: -51.875 | AD135: -24.625
Y136: P.134 : -24,625 S; -52,125 W | AC136: -52.125 | AD136: -24.625
Y137: P.135 : -24,625 S; -52,375 W | AC137: -52.375 | AD137: -24.625
Y138: P.136 : -24,625 S; -52,625 W | AC138: -52.625 | AD138: -24.625
Y139: P.137 : -24,625 S; -52,875 W | AC139: -52.875 | AD139: -24.625
Y140: P.138 : -24,625 S; -53,125 W | AC140: -53.125 | AD140: -24.625
Y141: P.139 : -24,625 S; -53,375 W | AC141: -53.375 | AD141: -24.625
Y142: P.140 : -24,625 S; -53,625 W | AC142: -53.625 | AD142: -24.625
Y143: P.141 : -24,625 S; -53,875 W | AC143: -53.875 | AD143: -24.625
Y144: P.142 : -24,625 S; -54,125 W | AC144: -54.125 | AD144: -24.625
Y145: P.143 : -24,875 S; -48,625 W | AC145: -48.625 | AD145: -24.875
Y146: P.144 : -24,875 S; -48,875 W | AC146: -48.875 | AD146: -24.875
Y147: P.145 : -24,875 S; -49,125 W | AC147: -49.125 | AD147: -24.875
Y148: P.146 : -24,875 S; -49,375 W | AC148: -49.375 | AD148: -24.875
Y149: P.147 : -24,875 S; -49,625 W | AC149: -49.625 | AD149: -24.875
Y150: P.148 : -24,875 S; -49,875 W | AC150: -49.875 | AD150: -24.875
Y151: P.149 : -24,875 S; -50,125 W | AC151: -50.125 | AD151: -24.875
Y152: P.150 : -24,875 S; -50,375 W | AC152: -50.375 | AD152: -24.875
Y153: P.151 : -24,875 S; -50,625 W | AC153: -50.625 | AD153: -24.875
Y154: P.152 : -24,875 S; -50,875 W | AC154: -50.875 | AD154: -24.875
Y155: P.153 : -24,875 S; -51,125 W | AC155: -51.125 | AD155: -24.875
Y156: P.154 : -24,875 S; -51,375 W | AC156: -51.375 | AD156: -24.875
Y157: P.155 : -24,875 S; -51,625 W | AC157: -51.625 | AD157: -24.875
Y158: P.156 : -24,875 S; -51,875 W | AC158: -51.875 | AD158: -24.875
Y159: P.157 : -24,875 S; -52,125 W | AC159: -52.125 | AD159: -24.875
Y160: P.158 : -24,875 S; -52,375 W | AC160: -52.375 | AD160: -24.875
Y161: P.159 : -24,875 S; -52,625 W | AC161: -52.625 | AD161: -24.875
Y162: P.160 : -24,875 S; -52,875 W | AC162: -52.875 | AD162: -24.875
Y163: P.161 : -24,875 S; -53,125 W | AC163: -53.125 | AD163: -24.875
Y164: P.162 : -24,875 S; -53,375 W | AC164: -53.375 | AD164: -24.875
Y165: P.163 : -24,875 S; -53,625 W | AC165: -53.625 | AD165: -24.875
Y166: P.164 : -24,875 S; -53,875 W | AC166: -53.875 | AD166: -24.875
Y167: P.165 : -24,875 S; -54,125 W | AC167: -54.125 | AD167: -24.875
Y168: P.166 : -24,875 S; -54,375 W | AC168: -54.375 | AD168: -24.875
Y169: P.167 : -25,125 S; -48,375 W | AC169: -48.375 | AD169: -25.125
Y170: P.168 : -25,125 S; -48,625 W | AC170: -48.625 | AD170: -25.125
Y171: P.169 : -25,125 S; -48,875 W | AC171: -48.875 | AD171: -25.125
Y172: P.170 : -25,125 S; -49,125 W | AC172: -49.125 | AD172: -25.125
Y173: P.171 : -25,125 S; -49,375 W | AC173: -49.375 | AD173: -25.125
Y174: P.172 : -25,125 S; -49,625 W | AC174: -49.625 | AD174: -25.125
Y175: P.173 : -25,125 S; -49,875 W | AC175: -49.875 | AD175: -25.125
Y176: P.174 : -25,125 S; -50,125 W | AC176: -50.125 | AD176: -25.125
Y177: P.175 : -25,125 S; -50,375 W | AC177: -50.375 | AD177: -25.125
Y178: P.176 : -25,125 S; -50,625 W | AC178: -50.625 | AD178: -25.125
Y179: P.177 : -25,125 S; -50,875 W | AC179: -50.875 | AD179: -25.125
Y180: P.178 : -25,125 S; -51,125 W | AC180: -51.125 | AD180: -25.125
Y181: P.179 : -25,125 S; -51,375 W | AC181: -51.375 | AD181: -25.125
Y182: P.180 : -25,125 S; -51,625 W | AC182: -51.625 | AD182: -25.125
Y183: P.181 : -25,125 S; -51,875 W | AC183: -51.875 | AD183: -25.125
Y184: P.182 : -25,125 S; -52,125 W | AC184: -52.125 | AD184: -25.125
Y185: P.183 : -25,125 S; -52,375 W | AC185: -52.375 | AD185: -25.125
Y186: P.184 : -25,125 S; -52,625 W | AC186: -52.625 | AD186: -25.125
Y187: P.185 : -25,125 S; -52,875 W | AC187: -52.875 | AD187: -25.125
Y188: P.186 : -25,125 S; -53,125 W | AC188: -53.125 | AD188: -25.125
Y189: P.187 : -25,125 S; -53,375 W | AC189: -53.375 | AD189: -25.125
Y190: P.188 : -25,125 S; -53,625 W | AC190: -53.625 | AD190: -25.125
Y191: P.189 : -25,125 S; -53,875 W | AC191: -53.875 | AD191: -25.125
Y192: P.190 : -25,125 S; -54,125 W | AC192: -54.125 | AD192: -25.125
Y193: P.191 : -25,125 S; -54,375 W | AC193: -54.375 | AD193: -25.125
Y194: P.192 : -25,375 S; -48,625 W | AC194: -48.625 | AD194: -25.375
Y195: P.193 : -25,375 S; -48,875 W | AC195: -48.875 | AD195: -25.375
Y196: P.194 : -25,375 S; -49,125 W | AC196: -49.125 | AD196: -25.375
Y197: P.195 : -25,375 S; -49,375 W | AC197: -49.375 | AD197: -25.375
Y198: P.196 : -25,375 S; -49,625 W | AC198: -49.625 | AD198: -25.375
Y199: P.197 : -25,375 S; -49,875 W | AC199: -49.875 | AD199: -25.375
Y200: P.198 : -25,375 S; -50,125 W | AC200: -50.125 | AD200: -25.375
... 83 more rows

Sheet fdp_soja (hidden)
A1: 1 | B1: =A1+1 -> 2 | C1: =B1+1 -> 3 | D1: 4 | E1: 5 | F1: 6 | G1: 7 | H1: 8 | I1: 9 | J1: 10 | K1: 11 | L1: 12 | M1: 13 | N1: 14 | O1: 15 | P1: 16 | Q1: 17 | R1: 18 | S1: 19 | T1: 20 | U1: 21 | V1: 22 | W1: 23 | X1: 24 | Y1: 25 | Z1: 26 | AA1: 27 | AB1: 28 | AC1: 29 | AD1: 30 | AE1: 31 | AF1: 32 | AG1: 33 | AH1: 34 | AI1: 35 | AJ1: 36 | AK1: 37 | AL1: 38 | AM1: 39 | AN1: 40 | AO1: 41 | AP1: 42 | AQ1: 43 | AR1: 44 | AS1: 45 | AT1: 46 | AU1: 47 | AV1: 48 | AW1: 49 | AX1: 50 | AY1: 51 | AZ1: 52 | BA1: 53 | BB1: 54 | BC1: 55 | BD1: 56 | BE1: 57 | BF1: 58 | BG1: 59 | BH1: 60 | BI1: 61 | BJ1: 62 | BK1: 63 | BL1: 64 | BM1: 65 | BN1: 66 | BO1: =BN1+1 -> 67 | BP1: 68 | BQ1: 69 | BR1: 70 | BS1: 71 | BT1: 72 | BU1: 73 | BV1: 74 | BW1: 75 | BX1: 76 | BY1: 77 | BZ1: 78 | CA1: 79 | CB1: 80 | CC1: 81 | CD1: 82 | CE1: 83 | CF1: 84 | CG1: 85 | CH1: 86 | CI1: 87 | CJ1: 88 | CK1: 89 | CL1: 90 | CM1: 91 | CN1: 92 | CO1: 93 | CP1: 94 | CQ1: 95 | CR1: 96 | CS1: 97 | CT1: 98 | CU1: 99 | CV1: 100 | CW1: 101 | CX1: 102 | CY1: 103 | CZ1: 104 | DA1: 105 | DB1: 106 | DC1: 107 | DD1: 108 | DE1: =DD1+1 -> 109 | DF1: 110 | DG1: 111 | DH1: 112 | DI1: 113 | DJ1: 114 | DK1: 115 | DL1: 116 | DM1: 117 | DN1: 118 | DO1: 119 | DP1: 120 | DQ1: 121 | DR1: 122 | DS1: 123 | DT1: 124 | DU1: 125 | DV1: 126 | DW1: 127 | DX1: 128 | DY1: 129 | DZ1: 130 | EA1: 131 | EB1: 132 | EC1: 133 | ED1: 134 | EE1: 135 | EF1: 136 | EG1: 137 | EH1: 138 | EI1: 139 | EJ1: 140 | EK1: =EJ1+1 -> 141 | EL1: 142 | EM1: 143 | EN1: 144 | EO1: 145 | EP1: 146 | EQ1: 147 | ER1: 148 | ES1: 149 | ET1: 150 | EU1: 151 | EV1: 152 | EW1: 153 | EX1: 154 | EY1: 155 | EZ1: 156 | FA1: 157 | FB1: 158 | FC1: 159 | FD1: 160 | FE1: 161 | FF1: 162 | FG1: 163 | FH1: 164 | FI1: 165 | FJ1: 166 | FK1: 167 | FL1: 168 | FM1: 169 | FN1: 170 | FO1: 171 | FP1: 172 | FQ1: =FP1+1 -> 173 | FR1: 174 | FS1: 175 | FT1: 176 | FU1: 177 | FV1: 178 | FW1: 179 | FX1: 180 | FY1: =FX1+1 -> 181 | FZ1: 182 | GA1: 183 | GB1: 184 | GC1: 185 | GD1: 186 | GE1: 187 | GF1: 188 | GG1: 189 | GH1: 190 | GI1: 191 | GJ1: 192 | GK1: 193 | GL1: 194 | GM1: 195 | GN1: 196 | GO1: 197 | GP1: 198
A2: Decêndio | B2: Menor | C2: Maior | D2: Média | E2: Des. Pad. | F2: Moda | G2: Parâmetros | I2: Dmax | J2: Dmax | K2: Melhor | L2: P(X = 0) | M2: Valor x | N2: P(X ³ x) | O2: Número de | P2: Tamanho | Q2: Amostra | R2: P(X = 0) | S2: Decêndio | T2: Menor | U2: Maior | V2: Média | W2: Des. Pad. | X2: Moda | Y2: Parâmetros | AA2: Dmax | AB2: Dmax | AC2: Melhor | AD2: P(X = 0) | AE2: Valor x | AF2: P(X ³ x) | AG2: Número de | AH2: Tamanho | AI2: Amostra | AJ2: P(X = 0) | AK2: Decêndio | AL2: Menor | AM2: Maior | AN2: Média | AO2: Des. Pad. | AP2: Moda | AQ2: Parâmetros | AS2: Dmax | AT2: Dmax | AU2: Melhor | AV2: P(X = 0) | AW2: Valor x | AX2: P(X ³ x) | AY2: Número de | AZ2: Tamanho | BA2: Amostra | BB2: P(X = 0) | BC2: Decêndio | BD2: Menor | BE2: Maior | BF2: Média | BG2: Des. Pad. | BH2: Moda | BI2: Parâmetros | BK2: Dmax | BL2: Dmax | BM2: Melhor | BN2: P(X = 0) | BO2: Valor x | BP2: P(X ³ x) | BQ2: Número de | BR2: Tamanho | BS2: Amostra | BT2: P(X = 0) | BU2: Decêndio | BV2: Menor | BW2: Maior | BX2: Média | BY2: Des. Pad. | BZ2: Moda | CA2: Parâmetros | CC2: Dmax | CD2: Dmax | CE2: Melhor | CF2: P(X = 0) | CG2: Valor x | CH2: P(X ³ x) | CI2: Número de | CJ2: Tamanho | CK2: Amostra | CL2: P(X = 0) | CM2: Decêndio | CN2: Menor | CO2: Maior | CP2: Média | CQ2: Des. Pad. | CR2: Moda | CS2: Parâmetros | CU2: Dmax | CV2: Dmax | CW2: Melhor | CX2: P(X = 0) | CY2: Valor x | CZ2: P(X ³ x) | DA2: Número de | DB2: Tamanho | DC2: Amostra | DD2: P(X = 0) | DE2: Decêndio | DF2: Menor | DG2: Maior | DH2: Média | DI2: Des. Pad. | DJ2: Moda | DK2: Parâmetros | DM2: Dmax | DN2: Dmax | DO2: Melhor | DP2: P(X = 0) | DQ2: Valor x | DR2: P(X ³ x) | DS2: Número de | DT2: Tamanho | DU2: Amostra | DV2: P(X = 0) | DW2: Decêndio | DX2: Menor | DY2: Maior | DZ2: Média | EA2: Des. Pad. | EB2: Moda | EC2: Parâmetros | EE2: Dmax | EF2: Dmax | EG2: Melhor | EH2: P(X = 0) | EI2: Valor x | EJ2: P(X ³ x) | EK2: Número de | EL2: Tamanho | EM2: Amostra | EN2: P(X = 0) | EO2: Decêndio | EP2: Menor | EQ2: Maior | ER2: Média | ES2: Des. Pad. | ET2: Moda | EU2: Parâmetros | EW2: Dmax | EX2: Dmax | EY2: Melhor | EZ2: P(X = 0) | FA2: Valor x | FB2: P(X ³ x) | FC2: Número de | FD2: Tamanho | FE2: Amostra | FF2: P(X = 0) | FG2: Decêndio | FH2: Menor | FI2: Maior | FJ2: Média | FK2: Des. Pad. | FL2: Moda | FM2: Parâmetros | FO2: Dmax | FP2: Dmax | FQ2: Melhor | FR2: P(X = 0) | FS2: Valor x | FT2: P(X ³ x) | FU2: Número de | FV2: Tamanho | FW2: Amostra | FX2: P(X = 0) | FY2: Decêndio | FZ2: Menor | GA2: Maior | GB2: Média | GC2: Des. Pad. | GD2: Moda | GE2: Parâmetros | GG2: Dmax | GH2: Dmax | GI2: Melhor | GJ2: P(X = 0) | GK2: Valor x | GL2: P(X ³ x) | GM2: Número de | GN2: Tamanho | GO2: Amostra | GP2: P(X = 0)
B3: valor | C3: valor | G3: Alfa | H3: Beta | I3: Tab. 5% | J3: Calculado | K3: fdp (1) | L3: ( % ) | M3: (unidade) | N3: (%) | O3: Decêndios | P3: Amostra | Q3: Zeros | R3: (%) | T3: valor | U3: valor | Y3: Alfa | Z3: Beta | AA3: Tab. 5% | AB3: Calculado | AC3: fdp (1) | AD3: ( % ) | AE3: (unidade) | AF3: (%) | AG3: Decêndios | AH3: Amostra | AI3: Zeros | AJ3: (%) | AL3: valor | AM3: valor | AQ3: Alfa | AR3: Beta | AS3: Tab. 5% | AT3: Calculado | AU3: fdp (1) | AV3: ( % ) | AW3: (unidade) | AX3: (%) | AY3: Decêndios | AZ3: Amostra | BA3: Zeros | BB3: (%) | BD3: valor | BE3: valor | BI3: Alfa | BJ3: Beta | BK3: Tab. 5% | BL3: Calculado | BM3: fdp (1) | BN3: ( % ) | BO3: (unidade) | BP3: (%) | BQ3: Decêndios | BR3: Amostra | BS3: Zeros | BT3: (%) | BV3: valor | BW3: valor | CA3: Alfa | CB3: Beta | CC3: Tab. 5% | CD3: Calculado | CE3: fdp (1) | CF3: ( % ) | CG3: (unidade) | CH3: (%) | CI3: Decêndios | CJ3: Amostra | CK3: Zeros | CL3: (%) | CN3: valor | CO3: valor | CS3: Alfa | CT3: Beta | CU3: Tab. 5% | CV3: Calculado | CW3: fdp (1) | CX3: ( % ) | CY3: (unidade) | CZ3: (%) | DA3: Decêndios | DB3: Amostra | DC3: Zeros | DD3: (%) | DF3: valor | DG3: valor | DK3: Alfa | DL3: Beta | DM3: Tab. 5% | DN3: Calculado | DO3: fdp (1) | DP3: ( % ) | DQ3: (unidade) | DR3: (%) | DS3: Decêndios | DT3: Amostra | DU3: Zeros | DV3: (%) | DX3: valor | DY3: valor | EC3: Alfa | ED3: Beta | EE3: Tab. 5% | EF3: Calculado | EG3: fdp (1) | EH3: ( % ) | EI3: (unidade) | EJ3: (%) | EK3: Decêndios | EL3: Amostra | EM3: Zeros | EN3: (%) | EP3: valor | EQ3: valor | EU3: Alfa | EV3: Beta | EW3: Tab. 5% | EX3: Calculado | EY3: fdp (1) | EZ3: ( % ) | FA3: (unidade) | FB3: (%) | FC3: Decêndios | FD3: Amostra | FE3: Zeros | FF3: (%) | FH3: valor | FI3: valor | FM3: Alfa | FN3: Beta | FO3: Tab. 5% | FP3: Calculado | FQ3: fdp (1) | FR3: ( % ) | FS3: (unidade) | FT3: (%) | FU3: Decêndios | FV3: Amostra | FW3: Zeros | FX3: (%) | FZ3: valor | GA3: valor | GE3: Alfa | GF3: Beta | GG3: Tab. 5% | GH3: Calculado | GI3: fdp (1) | GJ3: ( % ) | GK3: (unidade) | GL3: (%) | GM3: Decêndios | GN3: Amostra | GO3: Zeros | GP3: (%)
A4: Ponto: | B4: 1 | C4: Componente hídrica: | G4: Precipitação (P) | L4: P.001 : -22,625 S; -52,125 W | S4: Ponto: | T4: 1 | U4: Componente hídrica: | Y4: Evapotranspiração de referência (ETo) | AD4: P.001 : -22,625 S; -52,125 W | AK4: Ponto: | AL4: 1 | AM4: Componente hídrica: | AQ4: Evapotranspiração da cultura (ETc) | AV4: P.001 : -22,625 S; -52,125 W | BC4: Ponto: | BD4: 1 | BE4: Componente hídrica: | BI4: Armazenamento da água no solo (S) | BN4: P.001 : -22,625 S; -52,125 W | BU4: Ponto: | BV4: 1 | BW4: Componente hídrica: | CA4: Evapotranspiração Real (ETr) | CF4: P.001 : -22,625 S; -52,125 W | CM4: Ponto: | CN4: 1 | CO4: Componente hídrica: | CS4: Deficiência hídrica (Def) | CX4: P.001 : -22,625 S; -52,125 W | DE4: Ponto: | DF4: 1 | DG4: Componente hídrica: | DK4: Excedente hídrico (Exc) | DP4: P.001 : -22,625 S; -52,125 W | DW4: Ponto: | DX4: 1 | DY4: Componente hídrica: | EC4: Temperatura mínima (Tmin) | EH4: P.001 : -22,625 S; -52,125 W | EO4: Ponto: | EP4: 1 | EQ4: Componente hídrica: | EU4: Temperatura máxima (Tmax) | EZ4: P.001 : -22,625 S; -52,125 W | FG4: Ponto: | FH4: 1 | FI4: Componente hídrica: | FM4: Temperatura média (Tmed) | FR4: P.001 : -22,625 S; -52,125 W | FY4: Ponto: | FZ4: 1 | GA4: Componente hídrica: | GE4: Radiação Solar Incidente (Rs) | GJ4: P.001 : -22,625 S; -52,125 W
A5: 1 | B5: 7.199999809 | C5: 227.3000031 | D5: 59.92058563 | E5: 48.47612623 | F5: 25.54166794 | G5: 2.060823202 | H5: 29.07604408 | I5: 0.2349530607 | J5: 0.04699027538 | K5: G | L5: 0 | M5: 50.55640533 | N5: 50.0003347 | O5: 34 | P5: 34 | Q5: 0 | R5: 0 | S5: 1 | T5: 29.6055603 | U5: 58.93069458 | V5: 44.39367676 | W5: 6.828955419 | X5: 46.71188736 | Y5: 39.37473297 | Z5: 1.127466083 | AA5: 0.2349530607 | AB5: 0.08386360109 | AC5: N | AD5: 0 | AE5: 44.39363106 | AF5: 50.00026694 | AG5: 34 | AH5: 34 | AI5: 0 | AJ5: 0 | AK5: 1 | AL5: 22.89999962 | AM5: 54.20000076 | AN5: 41.40293884 | AO5: 8.06141123 | AP5: 46.375 | AQ5: 23.26331139 | AR5: 1.779752612 | AS5: 0.2349530607 | AT5: 0.06862741709 | AU5: T | AV5: 0 | AW5: 49.25100325 | AX5: 10.00013191 | AY5: 34 | AZ5: 34 | BA5: 0 | BB5: 0 | BC5: 1 | BD5: 147.775 | BE5: 225.1600098 | BF5: 182.3272705 | BG5: 21.20944291 | BH5: 192.9162598 | BI5: 3.795996475 | BJ5: 48.03146362 | BK5: 0.01192431971 | BL5: 0.004377833009 | BM5: N | BN5: 0 | BO5: 182.3273132 | BP5: 49.99991962 | BQ5: 33 | BR5: 33 | BS5: 0 | BT5: 0 | BU5: 1 | BV5: 16.29999924 | BW5: 51.29999924 | BX5: 35.0558815 | BY5: 9.293405094 | BZ5: 42.54999924 | CA5: 12.71135902 | CB5: 2.757838964 | CC5: 0.2349530607 | CD5: 0.08070737123 | CE5: N | CF5: 0 | CG5: 46.96582375 | CH5: 10.00006722 | CI5: 34 | CJ5: 34 | CK5: 0 | CL5: 0 | CM5: 1 | CN5: 0.1000000015 | CO5: 33.59999847 | CP5: 7.707142353 | CQ5: 7.463488142 | CR5: 3.449999809 | CS5: 0.9174646735 | CT5: 8.400478363 | CU5: 0.2589056492 | CV5: 0.06831938028 | CW5: E | CX5: 17.14285714 | CY5: 16.29700134 | CZ5: 10.00000576 | DA5: 34 | DB5: 34 | DC5: 6 | DD5: 17.14285714 | DE5: 1 | DF5: 5.900000095 | DG5: 88.90000153 | DH5: 38.47692108 | DI5: 23.37748697 | DJ5: 47.40000153 | DK5: 2.284716129 | DL5: 16.84100723 | DM5: 0.3584900796 | DN5: 0.08393192291 | DO5: N | DP5: 60 | DQ5: 0 | DR5: 38.0042981 | DS5: 34 | DT5: 34 | DU5: 21 | DV5: 60 | DW5: 1 | DX5: 18 | DY5: 22.63000031 | DZ5: 20.74882507 | EA5: 1.043507366 | EB5: 20.70083313 | EC5: 40.01318665 | ED5: 0.5185496807 | EE5: 0.02349530607 | EF5: 0.002719032764 | EG5: N | EH5: 0 | EI5: 20.74882507 | EJ5: 49.99999995 | EK5: 34 | EL5: 34 | EM5: 0 | EN5: 0 | EO5: 1 | EP5: 27.37000122 | EQ5: 33.48999939 | ER5: 30.54646301 | ES5: 1.492540759 | ET5: 30.93999939 | EU5: 42.78764038 | EV5: 0.7139085531 | EW5: 0.02349530607 | EX5: 0.004621815681 | EY5: T | EZ5: 0 | FA5: 30.67517748 | FB5: 50.00000457 | FC5: 34 | FD5: 34 | FE5: 0 | FF5: 0 | FG5: 1 | FH5: 23.46999969 | FI5: 27.63999939 | FJ5: 25.64823608 | FK5: 1.086385362 | FL5: 25.20749969 | FM5: 56.97581177 | FN5: 0.4501600862 | FO5: 0.02349530607 | FP5: 0.003597155958 | FQ5: G | FR5: 0 | FS5: 25.63323331 | FT5: 49.99997227 | FU5: 34 | FV5: 34 | FW5: 0 | FX5: 0 | FY5: 1 | FZ5: 146 | GA5: 261 | GB5: 214.5294189 | GC5: 30.74650641 | GD5: 232.25 | GE5: 45.22586441 | GF5: 4.743511677 | GG5: 0.2349530607 | GH5: 0.09599378705 | GI5: N | GJ5: 0 | GK5: 193.7912216 | GL5: 74.99999371 | GM5: 34 | GN5: 34 | GO5: 0 | GP5: 0
A6: 2 | B6: 6.099999905 | C6: 197.3999939 | D6: 68.07575989 | E6: 54.8243689 | F6: 22.04166603 | G6: 1.286121607 | H6: 52.93104553 | I6: 0.2384863943 | J6: 0.08245456219 | K6: G | L6: 2.857142857 | M6: 49.62393417 | N6: 50.00051809 | O6: 33 | P6: 34 | Q6: 1 | R6: 2.857142857 | S6: 2 | T6: 32.36660767 | U6: 58.04805756 | V6: 43.91062164 | W6: 6.660645945 | X6: 38.78696823 | Y6: 45.61718369 | Z6: 0.9625895023 | AA6: 0.2349530607 | AB6: 0.04606479406 | AC6: G | AD6: 0 | AE6: 43.59017902 | AF6: 50.00000071 | AG6: 34 | AH6: 34 | AI6: 0 | AJ6: 0 | AK6: 2 | AL6: 16.39999962 | AM6: 53.79999924 | AN6: 34.86176682 | AO6: 7.179221519 | AP6: 31.98333168 | AQ6: 23.19595909 | AR6: 1.502924085 | AS6: 0.2349530607 | AT6: 0.01881754398 | AU6: N | AV6: 0 | AW6: 44.06195473 | AX6: 10.00086702 | AY6: 34 | AZ6: 34 | BA6: 0 | BB6: 0 | BC6: 2 | BD6: 150.3550049 | BE6: 232.9050049 | BF6: 189.7159424 | BG6: 22.83479476 | BH6: 198.5091675 | BI6: 3.474045944 | BJ6: 54.60950851 | BK6: 0.01192431971 | BL6: 0.002727793902 | BM6: G | BN6: 0 | BO6: 188.8065776 | BP6: 49.99997515 | BQ6: 33 | BR6: 33 | BS6: 0 | BT6: 0 | BU6: 2 | BV6: 14.19999981 | BW6: 43.90000153 | BX6: 27.69117737 | BY6: 7.348773423 | BZ6: 26.57500076 | CA6: 14.05333519 | CB6: 1.970434546 | CC6: 0.2349530607 | CD6: 0.02521294355 | CE6: G | CF6: 0 | CG6: 37.47873503 | CH6: 9.999910775 | CI6: 34 | CJ6: 34 | CK6: 0 | CL6: 0 | CM6: 2 | CN6: 0.1000000015 | CO6: 32.29999924 | CP6: 7.170588493 | CQ6: 7.558079208 | CR6: 2.783333063 | CS6: 0.8369749188 | CT6: 8.567268372 | CU6: 0.2349530607 | CV6: 0.02538281679 | CW6: G | CX6: 0 | CY6: 17.24621952 | CZ6: 10.00004329 | DA6: 34 | DB6: 34 | DC6: 0 | DD6: 0 | DE6: 2 | DF6: 1.799999952 | DG6: 137.3999939 | DH6: 54.77894974 | DI6: 49.63359645 | DJ6: 15.35999966 | DK6: 0.8351154923 | DL6: 65.59445953 | DM6: 0.3142995536 | DN6: 0.09334594011 | DO6: E | DP6: 42.85714286 | DQ6: 7.314829966 | DR6: 49.99988999 | DS6: 34 | DT6: 34 | DU6: 15 | DV6: 42.85714286 | DW6: 2 | DX6: 18.96999969 | DY6: 22.26000061 | DZ6: 20.875 | EA6: 0.8772521327 | EB6: 21.4375 | EC6: 57.07858887 | ED6: 0.3657238185 | EE6: 0.02349530607 | EF6: 0.008060997725 | EG6: T | EH6: 0 | EI6: 20.9847023 | EJ6: 50.00015456 | EK6: 34 | EL6: 34 | EM6: 0 | EN6: 0 | EO6: 2 | EP6: 28.62000122 | EQ6: 33.83999939 | ER6: 30.74559021 | ES6: 1.290910371 | ET6: 29.925 | EU6: 59.11744995 | EV6: 0.5200763941 | EW6: 0.02349530607 | EX6: 0.006318071485 | EY6: T | EZ6: 0 | FA6: 30.64341853 | FB6: 49.99992352 | FC6: 34 | FD6: 34 | FE6: 0 | FF6: 0 | FG6: 2 | FH6: 23.85 | FI6: 27.97999878 | FJ6: 25.81058655 | FK6: 0.927704687 | FL6: 25.57083282 | FM6: 80.28753052 | FN6: 0.3214769065 | FO6: 0.02349530607 | FP6: 0.003091317415 | FQ6: N | FR6: 0 | FS6: 25.81058607 | FT6: 50.0000206 | FU6: 34 | FV6: 34 | FW6: 0 | FX6: 0 | FY6: 2 | FZ6: 162 | GA6: 275 | GB6: 212.2941132 | GC6: 31.34706021 | GD6: 190.25 | GE6: 47.50615692 | GF6: 4.468770504 | GG6: 0.2349530607 | GH6: 0.07805383205 | GI6: N | GJ6: 0 | GK6: 191.1508486 | GL6: 74.99999368 | GM6: 34 | GN6: 34 | GO6: 0 | GP6: 0
A7: 3 | B7: 3.599999905 | C7: 245.1000061 | D7: 58.23939896 | E7: 46.94728801 | F7: 63.97499847 | G7: 1.621265292 | H7: 35.92218781 | I7: 0.2384863943 | J7: 0.076074332 | K7: G | L7: 2.857142857 | M7: 45.33806263 | N7: 50.00006977 | O7: 33 | P7: 34 | Q7: 1 | R7: 2.857142857 | S7: 3 | T7: 31.46040726 | U7: 56.03185654 | V7: 42.64692307 | W7: 6.267706547 | X7: 45.79375458 | Y7: 47.74784851 | Z7: 0.8931695223 | AA7: 0.2349530607 | AB7: 0.04487067461 | AC7: G | AD7: 0 | AE7: 42.3495721 | AF7: 50.00000065 | AG7: 34 | AH7: 34 | AI7: 0 | AJ7: 0 | AK7: 3 | AL7: 20.60000038 | AM7: 48.20000076 | AN7: 27.82727242 | AO7: 6.262002331 | AP7: 27.5 | AQ7: 23.52514458 | AR7: 1.182873607 | AS7: 0.2384863943 | AT7: 0.07021814585 | AU7: G | AV7: 0 | AW7: 35.38641117 | AX7: 10.00000414 | AY7: 33 | AZ7: 33 | BA7: 0 | BB7: 0 | BC7: 3 | BD7: 141.7550049 | BE7: 198.1449951 | BF7: 174.7787476 | BG7: 16.55852488 | BH7: 184.0474976 | BI7: 5.513201523 | BJ7: 31.70186043 | BK7: 0.01210920364 | BL7: 0.005960649997 | BM7: T | BN7: 0 | BO7: 176.2864177 | BP7: 50.00076106 | BQ7: 32 | BR7: 32 | BS7: 0 | BT7: 0 | BU7: 3 | BV7: 11.60000038 | BW7: 36.70000076 | BX7: 20.05454254 | BY7: 5.536249175 | BZ7: 17.875 | CA7: 14.39537716 | CB7: 1.393123746 | CC7: 0.2384863943 | CD7: 0.0508082062 | CE7: N | CF7: 0 | CG7: 27.14947337 | CH7: 10.00018376 | CI7: 33 | CJ7: 33 | CK7: 0 | CL7: 0 | CM7: 3 | CN7: 0.1000000015 | CO7: 28.5 | CP7: 8.609089851 | CQ7: 6.953559776 | CR7: 2.46666646 | CS7: 1.198675513 | CT7: 7.182168961 | CU7: 0.2384863943 | CV7: 0.06868225336 | CW7: G | CX7: 0 | CY7: 18.95563484 | CZ7: 10.00001207 | DA7: 34 | DB7: 34 | DC7: 0 | DD7: 0 | DE7: 3 | DF7: 5.699999809 | DG7: 213.8000031 | DH7: 51.85000229 | DI7: 50.83416234 | DJ7: 26.50999832 | DK7: 1.99417305 | DL7: 26.0007534 | DM7: 0.322912097 | DN7: 0.0549826622 | DO7: E | DP7: 41.17647059 | DQ7: 8.426640634 | DR7: 49.99996744 | DS7: 33 | DT7: 33 | DU7: 14 | DV7: 41.17647059 | DW7: 3 | DX7: 18.96999969 | DY7: 22.96000061 | DZ7: 20.91588135 | EA7: 0.8213482115 | EB7: 21.29750061 | EC7: 66.53395996 | ED7: 0.3143639863 | EE7: 0.02349530607 | EF7: 0.002800112963 | EG7: N | EH7: 0 | EI7: 20.91588273 | EJ7: 49.99993283 | EK7: 34 | EL7: 34 | EM7: 0 | EN7: 0 | EO7: 3 | EP7: 26.4 | EQ7: 33.62999878 | ER7: 30.45117493 | ES7: 1.602843619 | ET7: 30.61749878 | EU7: 36.85728455 | EV7: 0.8261914849 | EW7: 0.02349530607 | EX7: 0.002525830269 | EY7: G | EZ7: 0 | FA7: 30.4236485 | FB7: 49.99977012 | FC7: 34 | FD7: 34 | FE7: 0 | FF7: 0 | FG7: 3 | FH7: 22.8 | FI7: 28.16000061 | FJ7: 25.68117676 | FK7: 1.09916704 | FL7: 25.03333435 | FM7: 55.89234009 | FN7: 0.4594757855 | FO7: 0.02349530607 | FP7: 0.003494835645 | FQ7: N | FR7: 0 | FS7: 25.68117591 | FT7: 50.00003079 | FU7: 34 | FV7: 34 | FW7: 0 | FX7: 0 | FY7: 3 | FZ7: 148 | GA7: 255 | GB7: 205 | GC7: 27.62300261 | GD7: 210.4166718 | GE7: 55.10377121 | GF7: 3.720253468 | GG7: 0.2349530607 | GH7: 0.03117883205 | GI7: N | GJ7: 0 | GK7: 186.3685733 | GL7: 74.99999379 | GM7: 34 | GN7: 34 | GO7: 0 | GP7: 0
A8: 4 | B8: 1.100000024 | C8: 133.1000061 | D8: 50.67353058 | E8: 34.93669638 | F8: 56.1000061 | G8: 1.364871025 | H8: 37.1269722 | I8: 0.2349530607 | J8: 0.07167710364 | K8: N | L8: 0 | M8: 50.6731004 | N8: 50.00049122 | O8: 34 | P8: 34 | Q8: 0 | R8: 0 | S8: 4 | T8: 31.31889725 | U8: 59.8729744 | V8: 42.87609863 | W8: 6.096113324 | X8: 38.45741653 | Y8: 51.73074722 | Z8: 0.8288319707 | AA8: 0.2349530607 | AB8: 0.05950543284 | AC8: G | AD8: 0 | AE8: 42.60013848 | AF8: 50.00000054 | AG8: 34 | AH8: 34 | AI8: 0 | AJ8: 0 | AK8: 4 | AL8: 34.5 | AM8: 65.80000305 | AN8: 47.27575684 | AO8: 6.779013269 | AP8: 42.32500076 | AQ8: 50.68019104 | AR8: 0.9328251481 | AS8: 0.2384863943 | AT8: 0.04660511017 | AU8: G | AV8: 0 | AW8: 55.9609315 | AX8: 10.0000024 | AY8: 33 | AZ8: 33 | BA8: 0 | BB8: 0 | BC8: 4 | BD8: 98.99000244 | BE8: 133.3849976 | BF8: 110.0657837 | BG8: 8.99311097 | BH8: 107.5887573 | BI8: 8.023096466 | BJ8: 13.71861649 | BK8: 0.01210920364 | BL8: 0.006396389008 | BM8: G | BN8: 0 | BO8: 109.8372845 | BP8: 49.99972411 | BQ8: 32 | BR8: 32 | BS8: 0 | BT8: 0 | BU8: 4 | BV8: 3.599999905 | BW8: 41.20000076 | BX8: 28.22727203 | BY8: 10.978054 | BZ8: 31.80000114 | CA8: 3.770059109 | CB8: 7.487222672 | CC8: 0.2384863943 | CD8: 0.1853070557 | CE8: N | CF8: 0 | CG8: 42.29620817 | CH8: 10.00000984 | CI8: 33 | CJ8: 33 | CK8: 0 | CL8: 0 | CM8: 4 | CN8: 2 | CO8: 62.20000076 | CP8: 18.90882301 | CQ8: 15.21443356 | CR8: 7.016666889 | CS8: 1.80371666 | CT8: 10.48325539 | CU8: 0.2349530607 | CV8: 0.03670316935 | CW8: E | CX8: 0 | CY8: 43.53785818 | CZ8: 10.0006959 | DA8: 34 | DB8: 34 | DC8: 0 | DD8: 0 | DE8: 4 | DF8: 0.3000000119 | DG8: 105.4000015 | DH8: 27.58000183 | DI8: 25.27013357 | DJ8: 31.82999992 | DK8: 0.9782905579 | DL8: 28.19203568 | DM8: 0.3063413203 | DN8: 0.1210874319 | DO8: N | DP8: 38.23529412 | DQ8: 5.439761839 | DR8: 49.99999546 | DS8: 33 | DT8: 33 | DU8: 13 | DV8: 38.23529412 | DW8: 4 | DX8: 19.23999939 | DY8: 23.18000031 | DZ8: 20.77499695 | EA8: 0.9353342497 | EB8: 20.225 | EC8: 51.53967285 | ED8: 0.4030874968 | EE8: 0.02349530607 | EF8: 0.006092059612 | EG8: G | EH8: 0 | EI8: 20.76156306 | EJ8: 49.99999787 | EK8: 34 | EL8: 34 | EM8: 0 | EN8: 0 | EO8: 4 | EP8: 27.18999939 | EQ8: 34.7 | ER8: 30.68912048 | ES8: 1.772008562 | ET8: 30.31916504 | EU8: 30.77781677 | EV8: 0.997118175 | EW8: 0.02349530607 | EX8: 0.003066134453 | EY8: N | EZ8: 0 | FA8: 30.6891223 | FB8: 49.99995907 | FC8: 34 | FD8: 34 | FE8: 0 | FF8: 0 | FG8: 4 | FH8: 23.2 | FI8: 28.47000122 | FJ8: 25.73117676 | FK8: 1.22197746 | FL8: 25.39583435 | FM8: 45.753125 | FN8: 0.5623916984 | FO8: 0.02349530607 | FP8: 0.006074753404 | FQ8: G | FR8: 0 | FS8: 25.71243482 | FT8: 49.99996329 | FU8: 34 | FV8: 34 | FW8: 0 | FX8: 0 | FY8: 4 | FZ8: 155 | GA8: 264 | GB8: 208.5294189 | GC8: 26.46236641 | GD8: 236.75 | GE8: 63.4367485 | GF8: 3.28720212 | GG8: 0.2349530607 | GH8: 0.0678704381 | GI8: G | GJ8: 0 | GK8: 190.3243519 | GL8: 74.99999897 | GM8: 34 | GN8: 34 | GO8: 0 | GP8: 0
A9: 5 | B9: 1.200000048 | C9: 169.5 | D9: 57.16470337 | E9: 43.29978732 | F9: 15.22499943 | G9: 1.449808955 | H9: 39.42912674 | I9: 0.2349530607 | J9: 0.05245655775 | K9: G | L9: 0 | M9: 44.69137433 | N9: 50.00011317 | O9: 34 | P9: 34 | Q9: 0 | R9: 0 | S9: 5 | T9: 31.44041252 | U9: 51.86117935 | V9: 41.08804321 | W9: 5.615255265 | X9: 39.94906616 | Y9: 55.06298828 | Z9: 0.7462007403 | AA9: 0.2349530607 | AB9: 0.04846513271 | AC9: N | AD9: 0 | AE9: 41.0880088 | AF9: 50.00024448 | AG9: 34 | AH9: 34 | AI9: 0 | AJ9: 0 | AK9: 5 | AL9: 34.59999847 | AM9: 57.09999847 | AN9: 45.22726822 | AO9: 6.258557679 | AP9: 43.97499847 | AQ9: 53.67750549 | AR9: 0.8425739408 | AS9: 0.2384863943 | AT9: 0.03971791267 | AU9: N | AV9: 0 | AW9: 53.24766826 | AX9: 10.0007413 | AY9: 33 | AZ9: 33 | BA9: 0 | BB9: 0 | BC9: 5 | BD9: 98.09000244 | BE9: 144.025 | BF9: 118.7040649 | BG9: 13.69652742 | BH9: 132.5412476 | BI9: 3.871747589 | BJ9: 30.65904045 | BK9: 0.01210920364 | BL9: 0.004439875484 | BM9: G | BN9: 0 | BO9: 118.1937086 | BP9: 49.99930705 | BQ9: 32 | BR9: 32 | BS9: 0 | BT9: 0 | BU9: 5 | BV9: 3.099999905 | BW9: 43.20000076 | BX9: 30.18182373 | BY9: 10.55948754 | BZ9: 33.17499924 | CA9: 4.50376606 | CB9: 6.701463699 | CC9: 0.2384863943 | CD9: 0.1100834906 | CE9: N | CF9: 0 | CG9: 43.71432207 | CH9: 10.00004894 | CI9: 33 | CJ9: 33 | CK9: 0 | CL9: 0 | CM9: 5 | CN9: 0.3000000119 | CO9: 54 | CP9: 14.61176491 | CQ9: 14.68767246 | CR9: 4.775000095 | CS9: 1.005462885 | CT9: 14.53237629 | CU9: 0.2349530607 | CV9: 0.06506580114 | CW9: G | CX9: 0 | CY9: 33.59951354 | CZ9: 10.00011838 | DA9: 34 | DB9: 34 | DC9: 0 | DD9: 0 | DE9: 5 | DF9: 0.1000000015 | DG9: 98.5 | DH9: 31.73499489 | DI9: 28.29452598 | DJ9: 29.62000084 | DK9: 0.7593548298 | DL9: 41.79204941 | DM9: 0.3063413203 | DN9: 0.0953746438 | DO9: E | DP9: 38.23529412 | DQ9: 6.705889692 | DR9: 50.00000522 | DS9: 33 | DT9: 33 | DU9: 13 | DV9: 38.23529412 | DW9: 5 | DX9: 17.86999969 | DY9: 21.96000061 | DZ9: 20.60294342 | EA9: 0.805065521 | EB9: 20.9375 | EC9: 65.40249634 | ED9: 0.3150177002 | EE9: 0.02349530607 | EF9: 0.004827445745 | EG9: G | EH9: 0 | EI9: 20.59246116 | EJ9: 49.99916725 | EK9: 34 | EL9: 34 | EM9: 0 | EN9: 0 | EO9: 5 | EP9: 27.08999939 | EQ9: 34.05 | ER9: 30.32617493 | ES9: 1.490794046 | ET9: 31.15 | EU9: 42.72573547 | EV9: 0.7097870708 | EW9: 0.02349530607 | EX9: 0.002473932505 | EY9: G | EZ9: 0 | FA9: 30.30252534 | FB9: 49.99980974 | FC9: 34 | FD9: 34 | FE9: 0 | FF9: 0 | FG9: 5 | FH9: 22.48000031 | FI9: 27.62999878 | FJ9: 25.46588135 | FK9: 1.013323715 | FL9: 25.48416595 | FM9: 64.11637573 | FN9: 0.3971821666 | FO9: 0.02349530607 | FP9: 0.003233510256 | FQ9: N | FR9: 0 | FS9: 25.46588068 | FT9: 50.00002639 | FU9: 34 | FV9: 34 | FW9: 0 | FX9: 0 | FY9: 5 | FZ9: 150 | GA9: 256 | GB9: 201.6176453 | GC9: 26.37378737 | GD9: 194.1666718 | GE9: 59.56079102 | GF9: 3.385073423 | GG9: 0.2349530607 | GH9: 0.03448045254 | GI9: N | GJ9: 0 | GK9: 183.8288011 | GL9: 74.99999382 | GM9: 34 | GN9: 34 | GO9: 0 | GP9: 0
A10: 6 | B10: 1.299999952 | C10: 201.3000031 | D10: 55.5212059 | E10: 38.35728418 | F10: 51.29999924 | G10: 2.120968819 | H10: 26.17728615 | I10: 0.2384863943 | J10: 0.03942716122 | K10: N | L10: 0 | M10: 55.52070538 | N10: 50.00052057 | O10: 34 | P10: 34 | Q10: 0 | R10: 0 | S10: 6 | T10: 29.1706295 | U10: 48.48571777 | V10: 40.64409256 | W10: 5.120743822 | X10: 40.43776321 | Y10: 61.12330246 | Z10: 0.6649525166 | AA10: 0.2349530607 | AB10: 0.05139344931 | AC10: N | AD10: 0 | AE10: 40.64406323 | AF10: 50.00022853 | AG10: 34 | AH10: 34 | AI10: 0 | AJ10: 0 | AK10: 6 | AL10: 32.09999847 | AM10: 53.29999924 | AN10: 44.59393692 | AO10: 5.695389526 | AP10: 44.46666718 | AQ10: 59.70855713 | AR10: 0.7468600869 | AS10: 0.2384863943 | AT10: 0.05419784784 | AU10: N | AV10: 0 | AW10: 51.89264148 | AX10: 10.00071121 | AY10: 33 | AZ10: 33 | BA10: 0 | BB10: 0 | BC10: 6 | BD10: 97.85999756 | BE10: 182.0650024 | BF10: 129.9179688 | BG10: 19.91812146 | BH10: 118.9112549 | BI10: 2.258968353 | BJ10: 57.51208115 | BK10: 0.01210920364 | BL10: 0.001592187583 | BM10: G | BN10: 0 | BO10: 128.9609008 | BP10: 49.99959201 | BQ10: 32 | BR10: 32 | BS10: 0 | BT10: 0 | BU10: 6 | BV10: 3.099999905 | BW10: 45.70000076 | BX10: 31.87272835 | BY10: 9.86449598 | BZ10: 35.05000305 | CA10: 5.475884438 | CB10: 5.82056284 | CC10: 0.2384863943 | CD10: 0.1153385341 | CE10: N | CF10: 0 | CG10: 44.51457828 | CH10: 10.00001839 | CI10: 33 | CJ10: 33 | CK10: 0 | CL10: 0 | CM10: 6 | CN10: 1.100000024 | CO10: 50.20000076 | CP10: 12.43823624 | CQ10: 11.86433462 | CR10: 5.191666603 | CS10: 1.409726858 | CT10: 8.823153496 | CU10: 0.2349530607 | CV10: 0.09384393692 | CW10: G | CX10: 0 | CY10: 26.31498184 | CZ10: 10.00000222 | DA10: 34 | DB10: 34 | DC10: 0 | DD10: 0 | DE10: 6 | DF10: 0.400000006 | DG10: 140.3000031 | DH10: 31.34090614 | DI10: 34.0535933 | DJ10: 14.39000034 | DK10: 0.9600776434 | DL10: 32.64413834 | DM10: 0.2920849919 | DN10: 0.03722250462 | DO10: G | DP10: 32.35294118 | DQ10: 9.095375378 | DR10: 49.99981379 | DS10: 33 | DT10: 33 | DU10: 11 | DV10: 32.35294118 | DW10: 6 | DX10: 18.56000061 | DY10: 23.08999939 | DZ10: 20.79264832 | EA10: 1.094134001 | EB10: 21.20249939 | EC10: 36.60786743 | ED10: 0.5679830313 | EE10: 0.02349530607 | EF10: 0.006735110283 | EG10: N | EH10: 0 | EI10: 20.79264881 | EJ10: 49.99998213 | EK10: 34 | EL10: 34 | EM10: 0 | EN10: 0 | EO10: 6 | EP10: 27.36000061 | EQ10: 34.2 | ER10: 30.78353271 | ES10: 1.542363212 | ET10: 31.35 | EU10: 40.70418091 | EV10: 0.7562744617 | EW10: 0.02349530607 | EX10: 0.003854414821 | EY10: N | EZ10: 0 | FA10: 30.78353399 | FB10: 49.99996694 | FC10: 34 | FD10: 34 | FE10: 0 | FF10: 0 | FG10: 6 | FH10: 23.21999969 | FI10: 28.33999939 | FJ10: 25.78441467 | FK10: 1.20898955 | FL10: 25.35333252 | FM10: 46.54694519 | FN10: 0.5539442897 | FO10: 0.02349530607 | FP10: 0.002986492217 | FQ10: N | FR10: 0 | FS10: 25.78441357 | FT10: 50.00003648 | FU10: 34 | FV10: 34 | FW10: 0 | FX10: 0 | FY10: 6 | FZ10: 139 | GA10: 230 | GB10: 197.8529358 | GC10: 22.0304632 | GD10: 207.25 | GE10: 76.72236633 | GF10: 2.578816891 | GG10: 0.2349530607 | GH10: 0.0792748034 | GI10: N | GJ10: 0 | GK10: 182.9936183 | GL10: 74.99999406 | GM10: 34 | GN10: 34 | GO10: 0 | GP10: 0
A11: 7 | B11: 1.299999952 | C11: 136.8999939 | D11: 40.15294647 | E11: 32.16017879 | F11: 12.59999943 | G11: 1.230257392 | H11: 32.63784027 | I11: 0.2349530607 | J11: 0.08844846487 | K11: E | L11: 0 | M11: 27.8318993 | N11: 50.00000291 | O11: 34 | P11: 34 | Q11: 0 | R11: 0 | S11: 7 | T11: 30.87976074 | U11: 55.35599899 | V11: 41.99097443 | W11: 5.991616114 | X11: 45.15756607 | Y11: 49.28322601 | Z11: 0.8520337939 | AA11: 0.2349530607 | AB11: 0.05953776836 | AC11: N | AD11: 0 | AE11: 41.99093646 | AF11: 50.00025278 | AG11: 34 | AH11: 34 | AI11: 0 | AJ11: 0 | AK11: 7 | AL11: 33.79999924 | AM11: 60.90000153 | AN11: 46.10606384 | AO11: 6.68084671 | AP11: 49.60833359 | AQ11: 47.92936707 | AR11: 0.9619585276 | AS11: 0.2384863943 | AT11: 0.06233691424 | AU11: N | AV11: 0 | AW11: 54.66762492 | AX11: 10.00075784 | AY11: 33 | AZ11: 33 | BA11: 0 | BB11: 0 | BC11: 7 | BD11: 98.41500244 | BE11: 193.4300049 | BF11: 135.0596802 | BG11: 20.80843616 | BH11: 138.0045898 | BI11: 2.207899475 | BJ11: 61.17111969 | BK11: 0.01210920364 | BL11: 0.001369915903 | BM11: N | BN11: 0 | BO11: 135.0596734 | BP11: 50.00001295 | BQ11: 32 | BR11: 32 | BS11: 0 | BT11: 0 | BU11: 7 | BV11: 7.800000191 | BW11: 41.29999924 | BX11: 27.48484993 | BY11: 8.337157885 | BZ11: 32.92499924 | CA11: 7.855002403 | CB11: 3.499025106 | CC11: 0.2384863943 | CD11: 0.0774410367 | CE11: T | CF11: 0 | CG11: 36.00312287 | CH11: 10.0002317 | CI11: 33 | CJ11: 33 | CK11: 0 | CL11: 0 | CM11: 7 | CN11: 1.299999952 | CO11: 44.70000076 | CP11: 18.17353249 | CQ11: 12.40894817 | CR11: 19.38333321 | CS11: 1.598982096 | CT11: 11.36568832 | CU11: 0.2349530607 | CV11: 0.07009369135 | CW11: N | CX11: 0 | CY11: 34.07623383 | CZ11: 10.00000792 | DA11: 34 | DB11: 34 | DC11: 0 | DD11: 0 | DE11: 7 | DF11: 0.3000000119 | DG11: 85.30000305 | DH11: 18.97777748 | DI11: 19.63003456 | DJ11: 8.800000191 | DK11: 1.083289027 | DL11: 17.51866531 | DM11: 0.322912097 | DN11: 0.04954570532 | DO11: G | DP11: 44.11764706 | DQ11: 2.423755904 | DR11: 49.99986551 | DS11: 33 | DT11: 33 | DU11: 15 | DV11: 44.11764706 | DW11: 7 | DX11: 17.66000061 | DY11: 22.8 | DZ11: 20.50970459 | EA11: 1.088088409 | EB11: 20.65833435 | EC11: 35.87285461 | ED11: 0.5717332959 | EE11: 0.02349530607 | EF11: 0.009897351265 | EG11: N | EH11: 0 | EI11: 20.50970368 | EJ11: 50.00003332 | EK11: 34 | EL11: 34 | EM11: 0 | EN11: 0 | EO11: 7 | EP11: 27.07999878 | EQ11: 33.78999939 | ER11: 30.88352966 | ES11: 1.900095485 | ET11: 33.23083191 | EU11: 26.90401611 | EV11: 1.147915244 | EW11: 0.02349530607 | EX11: 0.006479263306 | EY11: G | EZ11: 0 | FA11: 30.84528684 | FB11: 49.99974518 | FC11: 34 | FD11: 34 | FE11: 0 | FF11: 0 | FG11: 7 | FH11: 22.4 | FI11: 28.28999939 | FJ11: 25.70176392 | FK11: 1.368800722 | FL11: 26.81749878 | FM11: 35.80062866 | FN11: 0.7179137468 | FO11: 0.02349530607 | FP11: 0.003517180681 | FQ11: G | FR11: 0 | FS11: 25.67783862 | FT11: 49.99995162 | FU11: 34 | FV11: 34 | FW11: 0 | FX11: 0 | FY11: 7 | FZ11: 137 | GA11: 247 | GB11: 204.7352905 | GC11: 26.59951006 | GD11: 219.5 | GE11: 57.44553757 | GF11: 3.563989401 | GG11: 0.2349530607 | GH11: 0.1220045388 | GI11: T | GJ11: 0 | GK11: 184.6314425 | GL11: 74.99995246 | GM11: 34 | GN11: 34 | GO11: 0 | GP11: 0
A12: 8 | B12: 2 | C12: 118 | D12: 44.33940506 | E12: 29.17604876 | F12: 11.66666698 | G12: 1.750386834 | H12: 25.33120346 | I12: 0.2384863943 | J12: 0.06060606241 | K12: T | L12: 2.857142857 | M12: 38.32110351 | N12: 50.00000847 | O12: 33 | P12: 34 | Q12: 1 | R12: 2.857142857 | S12: 8 | T12: 27.31803322 | U12: 46.67523575 | V12: 38.74401855 | W12: 4.850191227 | X12: 41.83593369 | Y12: 63.43552399 | Z12: 0.6107621789 | AA12: 0.2349530607 | AB12: 0.06535953283 | AC12: T | AD12: 0 | AE12: 39.17185001 | AF12: 49.999999 | AG12: 34 | AH12: 34 | AI12: 0 | AJ12: 0 | AK12: 8 | AL12: 33.20000076 | AM12: 51.40000153 | AN12: 43.00909042 | AO12: 4.932061012 | AP12: 40.78333282 | AQ12: 77.63751984 | AR12: 0.5539730191 | AS12: 0.2384863943 | AT12: 0.0495275557 | AU12: N | AV12: 0 | AW12: 49.32959316 | AX12: 10.00066819 | AY12: 33 | AZ12: 33 | BA12: 0 | BB12: 0 | BC12: 8 | BD12: 101.7349976 | BE12: 198.7 | BF12: 140.5989136 | BG12: 21.65208834 | BH12: 142.137085 | BI12: 2.149772835 | BJ12: 65.40175629 | BK12: 0.01210920364 | BL12: 0.003915387392 | BM12: N | BN12: 0 | BO12: 140.5989126 | BP12: 50.00000186 | BQ12: 32 | BR12: 32 | BS12: 0 | BT12: 0 | BU12: 8 | BV12: 4.400000095 | BW12: 42.59999847 | BX12: 25.70909119 | BY12: 8.875082526 | BZ12: 26.68333244 | CA12: 6.498541832 | CB12: 3.956132174 | CC12: 0.2384863943 | CD12: 0.01950939 | CE12: N | CF12: 0 | CG12: 37.08282262 | CH12: 10.00028569 | CI12: 33 | CJ12: 33 | CK12: 0 | CL12: 0 | CM12: 8 | CN12: 0.3000000119 | CO12: 42 | CP12: 16.80000114 | CQ12: 11.6522331 | CR12: 3.774999857 | CS12: 1.515212536 | CT12: 11.08755398 | CU12: 0.2349530607 | CV12: 0.0748757869 | CW12: N | CX12: 0 | CY12: 31.73285253 | CZ12: 10.0001298 | DA12: 34 | DB12: 34 | DC12: 0 | DD12: 0 | DE12: 8 | DF12: 1.299999952 | DG12: 85.80000305 | DH12: 31.44000053 | DI12: 27.1895406 | DJ12: 9.750000954 | DK12: 1.1595186 | DL12: 27.11470222 | DM12: 0.3243176043 | DN12: 0.1232092381 | DO12: N | DP12: 52.94117647 | DQ12: 0 | DR12: 41.23417837 | DS12: 33 | DT12: 33 | DU12: 18 | DV12: 52.94117647 | DW12: 8 | DX12: 16.83999939 | DY12: 22.66000061 | DZ12: 20.03235321 | EA12: 1.205701255 | EB12: 20.23500061 | EC12: 27.48142395 | ED12: 0.7289416194 | EE12: 0.02349530607 | EF12: 0.004886424541 | EG12: N | EH12: 0 | EI12: 20.03235238 | EJ12: 50.00002732 | EK12: 34 | EL12: 34 | EM12: 0 | EN12: 0 | EO12: 8 | EP12: 26.86000061 | EQ12: 34.25 | ER12: 30.18588257 | ES12: 1.521154088 | ET12: 29.93916626 | EU12: 40.92145386 | EV12: 0.7376542091 | EW12: 0.02349530607 | EX12: 0.004340195656 | EY12: G | EZ12: 0 | FA12: 30.1613053 | FB12: 49.99979874 | FC12: 34 | FD12: 34 | FE12: 0 | FF12: 0 | FG12: 8 | FH12: 21.85 | FI12: 28.42999878 | FJ12: 25.10735321 | FK12: 1.263255401 | FL12: 24.59166565 | FM12: 40.62540588 | FN12: 0.6180209517 | FO12: 0.02349530607 | FP12: 0.008002781868 | FQ12: N | FR12: 0 | FS12: 25.10735191 | FT12: 50.00004095 | FU12: 34 | FV12: 34 | FW12: 0 | FX12: 0 | FY12: 8 | FZ12: 119 | GA12: 230 | GB12: 190 | GC12: 21.52095536 | GD12: 202.25 | GE12: 73.15596771 | GF12: 2.597190619 | GG12: 0.2349530607 | GH12: 0.0450617373 | GI12: N | GJ12: 0 | GK12: 175.4843402 | GL12: 74.99999403 | GM12: 34 | GN12: 34 | GO12: 0 | GP12: 0
A13: 9 | B13: 1.200000048 | C13: 131.8999939 | D13: 37.9593811 | E13: 34.22542743 | F13: 12.09166622 | G13: 1.044921994 | H13: 36.3274765 | I13: 0.2421840727 | J13: 0.05093336105 | K13: E | L13: 5.714285714 | M13: 24.07786213 | N13: 50.00003543 | O13: 32 | P13: 34 | Q13: 2 | R13: 5.714285714 | S13: 9 | T13: 30.15377617 | U13: 44.51881409 | V13: 37.6475029 | W13: 4.174025078 | X13: 33.74503708 | Y13: 82.73731232 | Z13: 0.4550244808 | AA13: 0.2349530607 | AB13: 0.04901971668 | AC13: U | AD13: 0 | AE13: 37.33629513 | AF13: 50 | AG13: 34 | AH13: 34 | AI13: 0 | AJ13: 0 | AK13: 9 | AL13: 33.20000076 | AM13: 48.79999924 | AN13: 41.34848022 | AO13: 4.636480362 | AP13: 37.09999847 | AQ13: 81.0364151 | AR13: 0.5102456808 | AS13: 0.2384863943 | AT13: 0.0454544574 | AU13: U | AV13: 0 | AW13: 47.23999939 | AX13: 10 | AY13: 33 | AZ13: 33 | BA13: 0 | BB13: 0 | BC13: 9 | BD13: 103.7099976 | BE13: 186.6 | BF13: 145.9762573 | BG13: 22.30545319 | BH13: 152.0625 | BI13: 2.177878189 | BJ13: 67.02682495 | BK13: 0.01210920364 | BL13: 0.00357015729 | BM13: G | BN13: 0 | BO13: 144.8606805 | BP13: 49.99999726 | BQ13: 32 | BR13: 32 | BS13: 0 | BT13: 0 | BU13: 9 | BV13: 8.399999619 | BW13: 37 | BX13: 24.43636131 | BY13: 8.023707548 | BZ13: 29.85000038 | CA13: 7.899620533 | CB13: 3.093358994 | CC13: 0.2384863943 | CD13: 0.09700143337 | CE13: N | CF13: 0 | CG13: 34.71913483 | CH13: 10.00004691 | CI13: 33 | CJ13: 33 | CK13: 0 | CL13: 0 | CM13: 9 | CN13: 1.100000024 | CO13: 38.90000153 | CP13: 16.62647057 | CQ13: 11.02801691 | CR13: 4.25 | CS13: 1.820498347 | CT13: 9.132922173 | CU13: 0.2349530607 | CV13: 0.08819699287 | CW13: G | CX13: 0 | CY13: 33.06445605 | CZ13: 10.00000667 | DA13: 34 | DB13: 34 | DC13: 0 | DD13: 0 | DE13: 9 | DF13: 0.200000003 | DG13: 88.09999847 | DH13: 21.77499962 | DI13: 23.24788271 | DJ13: 8.989999771 | DK13: 0.8678772449 | DL13: 25.08995247 | DM13: 0.3063413203 | DN13: 0.0268381238 | DO13: G | DP13: 38.23529412 | DQ13: 3.796194185 | DR13: 49.99967124 | DS13: 33 | DT13: 33 | DU13: 13 | DV13: 38.23529412 | DW13: 9 | DX13: 17.31000061 | DY13: 22.5 | DZ13: 19.75852966 | EA13: 1.302147661 | EB13: 20.3375 | EC13: 23.52761078 | ED13: 0.8398017883 | EE13: 0.02349530607 | EF13: 0.00394526422 | EG13: N | EH13: 0 | EI13: 19.75852964 | EJ13: 50.00000059 | EK13: 34 | EL13: 34 | EM13: 0 | EN13: 0 | EO13: 9 | EP13: 27.91000061 | EQ13: 33.47999878 | ER13: 30.1605896 | ES13: 1.236135019 | ET13: 29.30249939 | EU13: 62.0550354 | EV13: 0.4860296845 | EW13: 0.02349530607 | EX13: 0.003921598196 | EY13: T | EZ13: 0 | FA13: 30.06908808 | FB13: 49.99991324 | FC13: 34 | FD13: 34 | FE13: 0 | FF13: 0 | FG13: 9 | FH13: 22.96999969 | FI13: 27.97000122 | FJ13: 24.95970764 | FK13: 1.129109316 | FL13: 25.88666687 | FM13: 51.06138916 | FN13: 0.4888176322 | FO13: 0.02349530607 | FP13: 0.002986857295 | FQ13: N | FR13: 0 | FS13: 24.95970667 | FT13: 50.00003423 | FU13: 34 | FV13: 34 | FW13: 0 | FX13: 0 | FY13: 9 | FZ13: 147 | GA13: 231 | GB13: 186.9705811 | GC13: 20.10802127 | GD13: 182 | GE13: 86.87985992 | GF13: 2.152059078 | GG13: 0.2349530607 | GH13: 0.03793258965 | GI13: N | GJ13: 0 | GK13: 173.4079305 | GL13: 74.99999411 | GM13: 34 | GN13: 34 | GO13: 0 | GP13: 0
A14: 10 | B14: 1.100000024 | C14: 98.90000153 | D14: 30.50689316 | E14: 22.56009972 | F14: 30.43999863 | G14: 2.064225674 | H14: 14.77885532 | I14: 0.2544026077 | J14: 0.06062352657 | K14: N | L14: 11.42857143 | M14: 26.84218914 | N14: 50.00043463 | O14: 30 | P14: 34 | Q14: 4 | R14: 11.42857143 | S14: 10 | T14: 26.51909256 | U14: 42.45763779 | V14: 36.2074585 | W14: 4.496325794 | X14: 41.12942505 | Y14: 63.98581314 | Z14: 0.5658669472 | AA14: 0.2349530607 | AB14: 0.07555299997 | AC14: N | AD14: 0 | AE14: 36.20743306 | AF14: 50.00022566 | AG14: 34 | AH14: 34 | AI14: 0 | AJ14: 0 | AK14: 10 | AL14: 29.79999924 | AM14: 46.59999847 | AN14: 40.14545822 | AO14: 4.626627249 | AP14: 45.20000076 | AQ14: 75.09788513 | AR14: 0.5345751047 | AS14: 0.2384863943 | AT14: 0.06060613692 | AU14: T | AV14: 0 | AW14: 45.0593557 | AX14: 10.0000204 | AY14: 33 | AZ14: 33 | BA14: 0 | BB14: 0 | BC14: 10 | BD14: 104.0349976 | BE14: 196.1050049 | BF14: 149.5775146 | BG14: 24.26079335 | BH14: 142.3974976 | BI14: 1.956190681 | BJ14: 76.46366882 | BK14: 0.01210920364 | BL14: 0.001803487167 | BM14: N | BN14: 0 | BO14: 149.5774421 | BP14: 50.00011922 | BQ14: 32 | BR14: 32 | BS14: 0 | BT14: 0 | BU14: 10 | BV14: 5.599999905 | BW14: 32.20000076 | BX14: 20.56969643 | BY14: 6.390201769 | BZ14: 21.11666679 | CA14: 8.0427351 | CB14: 2.557549953 | CC14: 0.2384863943 | CD14: 0.07546889782 | CE14: N | CF14: 0 | CG14: 28.75906622 | CH14: 10.00000903 | CI14: 33 | CJ14: 33 | CK14: 0 | CL14: 0 | CM14: 10 | CN14: 2.5 | CO14: 40.09999847 | CP14: 19.08235359 | CQ14: 9.581088082 | CR14: 24.43333244 | CS14: 3.13459301 | CT14: 6.087665558 | CU14: 0.2349530607 | CV14: 0.03709840775 | CW14: N | CX14: 0 | CY14: 31.36097031 | CZ14: 10.0000764 | DA14: 34 | DB14: 34 | DC14: 0 | DD14: 0 | DE14: 10 | DF14: 0.1000000015 | DG14: 64.5 | DH14: 18.16111183 | DI14: 17.7506963 | DJ14: 6.539999962 | DK14: 0.6205514669 | DL14: 29.26608467 | DM14: 0.322912097 | DN14: 0.04301893711 | DO14: E | DP14: 44.11764706 | DQ14: 2.01998253 | DR14: 49.99999633 | DS14: 33 | DT14: 33 | DU14: 15 | DV14: 44.11764706 | DW14: 10 | DX14: 15.83000031 | DY14: 22.1 | DZ14: 19.15205688 | EA14: 1.572351512 | EB14: 18.44250031 | EC14: 15.04692535 | ED14: 1.272821903 | EE14: 0.02349530607 | EF14: 0.006812095642 | EG14: G | EH14: 0 | EI14: 19.10964546 | EJ14: 50.00000163 | EK14: 34 | EL14: 34 | EM14: 0 | EN14: 0 | EO14: 10 | EP14: 26.21000061 | EQ14: 32.95 | ER14: 29.7341217 | ES14: 1.85499665 | ET14: 31.26499939 | EU14: 26.29851379 | EV14: 1.130638838 | EW14: 0.02349530607 | EX14: 0.007843144983 | EY14: U | EZ14: 0 | FA14: 29.58000031 | FB14: 50 | FC14: 34 | FD14: 34 | FE14: 0 | FF14: 0 | FG14: 10 | FH14: 21.01999969 | FI14: 27.52999878 | FJ14: 24.4458847 | FK14: 1.613571402 | FL14: 23.73249969 | FM14: 23.50894623 | FN14: 1.039854527 | FO14: 0.02349530607 | FP14: 0.00376791954 | FQ14: N | FR14: 0 | FS14: 24.44588456 | FT14: 50.00000363 | FU14: 34 | FV14: 34 | FW14: 0 | FX14: 0 | FY14: 10 | FZ14: 129 | GA14: 211 | GB14: 181.7647095 | GC14: 20.60752841 | GD14: 190.5 | GE14: 74.4697876 | GF14: 2.440784693 | GG14: 0.2349530607 | GH14: 0.09698325396 | GI14: N | GJ14: 0 | GK14: 167.8651467 | GL14: 74.99999403 | GM14: 34 | GN14: 34 | GO14: 0 | GP14: 0
A15: 11 | B15: 2.299999952 | C15: 120.1999969 | D15: 43.33792496 | E15: 31.60727119 | F15: 14.09000015 | G15: 1.457398772 | H15: 29.73649025 | I15: 0.2544026077 | J15: 0.07432949543 | K15: T | L15: 14.28571429 | M15: 34.77323662 | N15: 50.0001133 | O15: 29 | P15: 34 | Q15: 5 | R15: 14.28571429 | S15: 11 | T15: 25.09450722 | U15: 44.14435196 | V15: 33.2286377 | W15: 4.793283118 | X15: 33.03194427 | Y15: 50.89891815 | Z15: 0.6528358459 | AA15: 0.2349530607 | AB15: 0.03452062607 | AC15: N | AD15: 0 | AE15: 33.22860707 | AF15: 50.00025486 | AG15: 34 | AH15: 34 | AI15: 0 | AJ15: 0 | AK15: 11 | AL15: 27.60000038 | AM15: 48.40000153 | AN15: 36.51211929 | AO15: 5.330616835 | AP15: 36.26666641 | AQ15: 49.72351837 | AR15: 0.7343028188 | AS15: 0.2384863943 | AT15: 0.03603199124 | AU15: N | AV15: 0 | AW15: 43.34334866 | AX15: 10.0007605 | AY15: 33 | AZ15: 33 | BA15: 0 | BB15: 0 | BC15: 11 | BD15: 101.7650024 | BE15: 197.2650024 | BF15: 152.2507812 | BG15: 24.64850243 | BH15: 157.4733398 | BI15: 1.914230728 | BJ15: 79.53627777 | BK15: 0.01210920364 | BL15: 0.002533426136 | BM15: G | BN15: 0 | BO15: 150.9274697 | BP15: 49.99964815 | BQ15: 32 | BR15: 32 | BS15: 0 | BT15: 0 | BU15: 11 | BV15: 4.599999905 | BW15: 30.10000038 | BX15: 18.31212044 | BY15: 7.640588803 | BZ15: 23.72500038 | CA15: 4.34514904 | CB15: 4.214382648 | CC15: 0.2384863943 | CD15: 0.1188031435 | CE15: N | CF15: 0 | CG15: 28.10390572 | CH15: 10.00005343 | CI15: 33 | CJ15: 33 | CK15: 0 | CL15: 0 | CM15: 11 | CN15: 3.700000048 | CO15: 42.90000153 | CP15: 17.77352905 | CQ15: 11.81689371 | CR15: 6.966667175 | CS15: 2.302332163 | CT15: 7.719793797 | CU15: 0.2349530607 | CV15: 0.09332698584 | CW15: G | CX15: 0 | CY15: 33.45428958 | CZ15: 10.00000422 | DA15: 34 | DB15: 34 | DC15: 0 | DD15: 0 | DE15: 11 | DF15: 0.400000006 | DG15: 101.0999985 | DH15: 32.25263214 | DI15: 28.13825642 | DJ15: 10.46999931 | DK15: 1.054453969 | DL15: 30.58704567 | DM15: 0.3142995536 | DN15: 0.04191961884 | DO15: G | DP15: 41.17647059 | DQ15: 5.656998799 | DR15: 49.99962182 | DS15: 33 | DT15: 33 | DU15: 14 | DV15: 41.17647059 | DW15: 11 | DX15: 13.68999939 | DY15: 21.8 | DZ15: 18.2567627 | EA15: 1.833315947 | EB15: 18.42083282 | EC15: 9.797931671 | ED15: 1.863328218 | EE15: 0.02349530607 | EF15: 0.0079179883 | EG15: G | EH15: 0 | EI15: 18.19469227 | EJ15: 49.99993625 | EK15: 34 | EL15: 34 | EM15: 0 | EN15: 0 | EO15: 11 | EP15: 25.08000031 | EQ15: 34.22999878 | ER15: 28.92058716 | ES15: 2.112235618 | ET15: 27.36749878 | EU15: 19.56704102 | EV15: 1.478025556 | EW15: 0.02349530607 | EX15: 0.004901957512 | EY15: T | EZ15: 0 | FA15: 28.62674426 | FB15: 50.00084234 | FC15: 34 | FD15: 34 | FE15: 0 | FF15: 0 | FG15: 11 | FH15: 19.38999939 | FI15: 28.01000061 | FJ15: 23.58911896 | FK15: 1.871302262 | FL15: 22.98166656 | FM15: 16.29394836 | FN15: 1.447722673 | FO15: 0.02349530607 | FP15: 0.002745097876 | FQ15: T | FR15: 0 | FS15: 23.35466818 | FT15: 49.99999353 | FU15: 34 | FV15: 34 | FW15: 0 | FX15: 0 | FY15: 11 | FZ15: 138 | GA15: 209 | GB15: 168.1764679 | GC15: 17.76525481 | GD15: 167.5833282 | GE15: 92.87136078 | GF15: 1.810853958 | GG15: 0.2349530607 | GH15: 0.04475516081 | GI15: G | GJ15: 0 | GK15: 156.1001805 | GL15: 74.99999854 | GM15: 34 | GN15: 34 | GO15: 0 | GP15: 0
A16: 12 | B16: 2.299999952 | C16: 134.1000061 | D16: 40.05199814 | E16: 38.29212377 | F16: 15.4800005 | G16: 1.145149231 | H16: 34.97535324 | I16: 0.273999989 | J16: 0.05357772112 | K16: E | L16: 25.71428571 | M16: 15.85635106 | N16: 50.00007623 | O16: 25 | P16: 34 | Q16: 9 | R16: 25.71428571 | S16: 12 | T16: 20.96498108 | U16: 40.55720139 | V16: 30.23338699 | W16: 4.645476506 | X16: 32.39377594 | Y16: 41.79377747 | Z16: 0.7233944535 | AA16: 0.2349530607 | AB16: 0.04986292124 | AC16: N | AD16: 0 | AE16: 30.23335593 | AF16: 50.00026673 | AG16: 34 | AH16: 34 | AI16: 0 | AJ16: 0 | AK16: 12 | AL16: 23.10000038 | AM16: 44.59999847 | AN16: 33.1090889 | AO16: 5.095792583 | AP16: 35.64166641 | AQ16: 41.83564377 | AR16: 0.7914085984 | AS16: 0.2384863943 | AT16: 0.04941755533 | AU16: N | AV16: 0 | AW16: 39.63938376 | AX16: 10.0007787 | AY16: 33 | AZ16: 33 | BA16: 0 | BB16: 0 | BC16: 12 | BD16: 111.3650024 | BE16: 210.8050049 | BF16: 159.0614014 | BG16: 23.85846286 | BH16: 169.3716675 | BI16: 2.229652596 | BJ16: 71.33909607 | BK16: 0.01210920364 | BL16: 0.001822687313 | BM16: N | BN16: 0 | BO16: 159.0608053 | BP16: 50.00099666 | BQ16: 32 | BR16: 32 | BS16: 0 | BT16: 0 | BU16: 12 | BV16: 2.900000095 | BW16: 29.79999924 | BX16: 17.71514893 | BY16: 6.380592137 | BZ16: 18.59166527 | CA16: 5.662742138 | CB16: 3.128369331 | CC16: 0.2384863943 | CD16: 0.08812236786 | CE16: N | CF16: 0 | CG16: 25.89218716 | CH16: 10.00005393 | CI16: 33 | CJ16: 33 | CK16: 0 | CL16: 0 | CM16: 12 | CN16: 0.6999999881 | CO16: 37.20000076 | CP16: 15.36764717 | CQ16: 9.561973009 | CR16: 9.824999809 | CS16: 1.971514106 | CT16: 7.794845104 | CU16: 0.2349530607 | CV16: 0.04746890068 | CW16: G | CX16: 0 | CY16: 29.98898903 | CZ16: 10.00005189 | DA16: 34 | DB16: 34 | DC16: 0 | DD16: 0 | DE16: 12 | DF16: 0.200000003 | DG16: 100.9000015 | DH16: 28.31764603 | DI16: 30.72475979 | DJ16: 10.2699995 | DK16: 0.5477933884 | DL16: 51.69402695 | DM16: 0.3322738111 | DN16: 0.0410246253 | DO16: E | DP16: 44.11764706 | DQ16: 3.149648592 | DR16: 49.99999924 | DS16: 33 | DT16: 33 | DU16: 15 | DV16: 44.11764706 | DW16: 12 | DX16: 14.83000031 | DY16: 20.76000061 | DZ16: 17.71500244 | EA16: 1.639614272 | EB16: 18.28916779 | EC16: 12.05733032 | ED16: 1.46923089 | EE16: 0.02349530607 | EF16: 0.003446060419 | EG16: G | EH16: 0 | EI16: 17.66605206 | EJ16: 49.99999711 | EK16: 34 | EL16: 34 | EM16: 0 | EN16: 0 | EO16: 12 | EP16: 24.63999939 | EQ16: 32.96000061 | ER16: 28.15059204 | ES16: 1.822154714 | ET16: 29.49333496 | EU16: 24.83898621 | EV16: 1.133322954 | EW16: 0.02349530607 | EX16: 0.004935753345 | EY16: N | EZ16: 0 | FA16: 28.15059408 | FB16: 49.99995539 | FC16: 34 | FD16: 34 | FE16: 0 | FF16: 0 | FG16: 12 | FH16: 19.93999939 | FI16: 26.82999878 | FJ16: 22.93087921 | FK16: 1.580909469 | FL16: 21.6625 | FM16: 21.99829865 | FN16: 1.042393327 | FO16: 0.02349530607 | FP16: 0.004915547371 | FQ16: G | FR16: 0 | FS16: 22.89614306 | FT16: 49.99998908 | FU16: 34 | FV16: 34 | FW16: 0 | FX16: 0 | FY16: 12 | FZ16: 109 | GA16: 187 | GB16: 158.5294189 | GC16: 22.0347328 | GD16: 180.5 | GE16: 49.62174606 | GF16: 3.194756985 | GG16: 0.2349530607 | GH16: 0.08467023075 | GI16: T | GJ16: 0 | GK16: 146.3396925 | GL16: 74.99995269 | GM16: 34 | GN16: 34 | GO16: 0 | GP16: 0
A17: 13 | B17: 1.200000048 | C17: 141 | D17: 30.59999657 | E17: 34.10545958 | F17: 15.17999935 | G17: 0.9120180607 | H17: 33.55196381 | I17: 0.2686791122 | J17: 0.03384363651 | K17: G | L17: 22.85714286 | M17: 12.38443091 | N17: 50.00053801 | O17: 26 | P17: 34 | Q17: 8 | R17: 22.85714286 | S17: 13 | T17: 19.54335022 | U17: 33.65093231 | V17: 26.89642143 | W17: 4.056729488 | X17: 27.77277374 | Y17: 43.94106674 | Z17: 0.6121021509 | AA17: 0.2349530607 | AB17: 0.05882352591 | AC17: U | AD17: 0 | AE17: 26.59714127 | AF17: 50 | AG17: 34 | AH17: 34 | AI17: 0 | AJ17: 0 | AK17: 13 | AL17: 21.5 | AM17: 37 | AN17: 29.36363411 | AO17: 4.360677982 | AP17: 30.54166603 | AQ17: 45.49051285 | AR17: 0.6454891562 | AS17: 0.2384863943 | AT17: 0.04545457661 | AU17: U | AV17: 0 | AW17: 35.45 | AX17: 10 | AY17: 33 | AZ17: 33 | BA17: 0 | BB17: 0 | BC17: 13 | BD17: 114.3300049 | BE17: 219.8949951 | BF17: 162.6046753 | BG17: 23.87704671 | BH17: 175.9095825 | BI17: 2.325707245 | BJ17: 69.91622925 | BK17: 0.01210920364 | BL17: 0.0046148628 | BM17: N | BN17: 0 | BO17: 162.6047396 | BP17: 49.99989262 | BQ17: 32 | BR17: 32 | BS17: 0 | BT17: 0 | BU17: 13 | BV17: 3 | BW17: 24.10000038 | BX17: 14.03333282 | BY17: 6.391725926 | BZ17: 18.82500076 | CA17: 3.658042192 | CB17: 3.836296082 | CC17: 0.2384863943 | CD17: 0.09090906382 | CE17: U | CF17: 0 | CG17: 21.99000034 | CH17: 10 | CI17: 33 | CJ17: 33 | CK17: 0 | CL17: 0 | CM17: 13 | CN17: 1.299999952 | CO17: 30.89999962 | CP17: 15.83030415 | CQ17: 8.921059165 | CR17: 18.56666756 | CS17: 2.359188795 | CT17: 6.710062504 | CU17: 0.2384863943 | CV17: 0.06060606241 | CW17: U | CX17: 2.857142857 | CY17: 27.85294083 | CZ17: 10 | DA17: 34 | DB17: 34 | DC17: 1 | DD17: 2.857142857 | DE17: 13 | DF17: 0.3000000119 | DG17: 107.1999969 | DH17: 33.52857208 | DI17: 30.37700028 | DJ17: 10.98999977 | DK17: 0.7529330254 | DL17: 44.53061676 | DM17: 0.340793103 | DN17: 0.06059604883 | DO17: E | DP17: 55.88235294 | DQ17: 0 | DR17: 44.11764706 | DS17: 33 | DT17: 33 | DU17: 19 | DV17: 55.88235294 | DW17: 13 | DX17: 11.5 | DY17: 18.71000061 | DZ17: 15.71235504 | EA17: 1.846308309 | EB17: 16.90749969 | EC17: 7.139626312 | ED17: 2.200725079 | EE17: 0.02349530607 | EF17: 0.008212792873 | EG17: N | EH17: 0 | EI17: 15.71235504 | EJ17: 49.99999997 | EK17: 34 | EL17: 34 | EM17: 0 | EN17: 0 | EO17: 13 | EP17: 22.68999939 | EQ17: 30.13999939 | ER17: 26.42381897 | ES17: 1.993814746 | ET17: 28.27749939 | EU17: 17.83364258 | EV17: 1.481683731 | EW17: 0.02349530607 | EX17: 0.01078429818 | EY17: U | EZ17: 0 | FA17: 26.41499939 | FB17: 50 | FC17: 34 | FD17: 34 | FE17: 0 | FF17: 0 | FG17: 13 | FH17: 17.53999939 | FI17: 24.41999969 | FJ17: 21.06793823 | FK17: 1.734391452 | FL17: 22.7 | FM17: 14.92845154 | FN17: 1.411260843 | FO17: 0.02349530607 | FP17: 0.00735784173 | FQ17: N | FR17: 0 | FS17: 21.06790302 | FT17: 50.00081 | FU17: 34 | FV17: 34 | FW17: 0 | FX17: 0 | FY17: 13 | FZ17: 111 | GA17: 182 | GB17: 148.2647095 | GC17: 19.55769928 | GD17: 140.5833282 | GE17: 57.67137527 | GF17: 2.570854425 | GG17: 0.2349530607 | GH17: 0.06862750649 | GI17: U | GJ17: 0 | GK17: 128.75 | GL17: 75 | GM17: 34 | GN17: 34 | GO17: 0 | GP17: 0
A18: 14 | B18: 1.399999976 | C18: 134.8000031 | D18: 36.81379318 | E18: 36.52314923 | F18: 14.73999977 | G18: 0.949019134 | H18: 38.79141235 | I18: 0.2544026077 | J18: 0.02782261372 | K18: G | L18: 14.28571429 | M18: 19.25094773 | N18: 50.00000647 | O18: 29 | P18: 34 | Q18: 5 | R18: 14.28571429 | S18: 14 | T18: 16.96578598 | U18: 33.72557068 | V18: 24.22242546 | W18: 3.807120233 | X18: 26.74232674 | Y18: 41.12179565 | Z18: 0.5890410542 | AA18: 0.2349530607 | AB18: 0.06238007545 | AC18: N | AD18: 0 | AE18: 24.22239961 | AF18: 50.00027091 | AG18: 34 | AH18: 34 | AI18: 0 | AJ18: 0 | AK18: 14 | AL18: 18.70000076 | AM18: 37.09999847 | AN18: 26.54545593 | AO18: 4.18203675 | AP18: 29.43333244 | AQ18: 41.26984787 | AR18: 0.6432167292 | AS18: 0.2384863943 | AT18: 0.09213459492 | AU18: N | AV18: 0 | AW18: 31.90476426 | AX18: 10.00078652 | AY18: 33 | AZ18: 33 | BA18: 0 | BB18: 0 | BC18: 14 | BD18: 112.2699951 | BE18: 206.9850098 | BF18: 166.742334 | BG18: 23.01423982 | BH18: 183.30625 | BI18: 2.515580559 | BJ18: 66.28383636 | BK18: 0.01210920364 | BL18: 0.001273147017 | BM18: T | BN18: 0 | BO18: 170.2708574 | BP18: 49.99999911 | BQ18: 32 | BR18: 32 | BS18: 0 | BT18: 0 | BU18: 14 | BV18: 3.5 | BW18: 22.89999962 | BX18: 13.99697113 | BY18: 6.212864223 | BZ18: 18.04999924 | CA18: 3.995352507 | CB18: 3.503313303 | CC18: 0.2384863943 | CD18: 0.1417463422 | CE18: N | CF18: 0 | CG18: 21.95906552 | CH18: 10.00003244 | CI18: 33 | CJ18: 33 | CK18: 0 | CL18: 0 | CM18: 14 | CN18: 0.3000000119 | CO18: 28.39999962 | CP18: 12.27647114 | CQ18: 8.574347326 | CR18: 2.641666651 | CS18: 1.39524889 | CT18: 8.798768044 | CU18: 0.2349530607 | CV18: 0.107789278 | CW18: N | CX18: 0 | CY18: 23.26493804 | CZ18: 10.00000274 | DA18: 34 | DB18: 34 | DC18: 0 | DD18: 0 | DE18: 14 | DF18: 3.200000048 | DG18: 103.8000031 | DH18: 40.51875305 | DI18: 33.45612434 | DJ18: 13.26000023 | DK18: 1.267084241 | DL18: 31.97794724 | DM18: 0.3425000012 | DN18: 0.09087884426 | DO18: E | DP18: 50 | DQ18: 0.0002944032161 | DR18: 49.99963671 | DS18: 33 | DT18: 33 | DU18: 17 | DV18: 50 | DW18: 14 | DX18: 9.640000153 | DY18: 19.48999939 | DZ18: 15.44264374 | EA18: 2.135643082 | EB18: 15.38583374 | EC18: 5.032588577 | ED18: 3.068528891 | EE18: 0.02349530607 | EF18: 0.005434042215 | EG18: N | EH18: 0 | EI18: 15.44264378 | EJ18: 49.99999927 | EK18: 34 | EL18: 34 | EM18: 0 | EN18: 0 | EO18: 14 | EP18: 21.81999969 | EQ18: 30.98999939 | ER18: 25.69088135 | ES18: 1.97915398 | ET18: 25.64083252 | EU18: 17.48258667 | EV18: 1.469512582 | EW18: 0.02349530607 | EX18: 0.006038069725 | EY18: N | EZ18: 0 | FA18: 25.69088169 | FB18: 49.99999319 | FC18: 34 | FD18: 34 | FE18: 0 | FF18: 0 | FG18: 14 | FH18: 16.9 | FI18: 25.21999969 | FJ18: 20.56853027 | FK18: 1.908436086 | FL18: 20.36666718 | FM18: 11.86513596 | FN18: 1.733526707 | FO18: 0.02349530607 | FP18: 0.002898607403 | FQ18: N | FR18: 0 | FS18: 20.56853102 | FT18: 49.99998445 | FU18: 34 | FV18: 34 | FW18: 0 | FX18: 0 | FY18: 14 | FZ18: 104 | GA18: 162 | GB18: 135.3529358 | GC18: 16.40192465 | GD18: 128.1666718 | GE18: 68.61445618 | GF18: 1.972659111 | GG18: 0.2349530607 | GH18: 0.07103538513 | GI18: G | GJ18: 0 | GK18: 124.0028209 | GL18: 74.99999888 | GM18: 34 | GN18: 34 | GO18: 0 | GP18: 0
A19: 15 | B19: 1.799999952 | C19: 101.4000015 | D19: 45.37143326 | E19: 29.30907767 | F19: 11.76000023 | G19: 1.680519819 | H19: 26.99845123 | I19: 0.2589056492 | J19: 0.06329020858 | K19: N | L19: 17.14285714 | M19: 37.68416781 | N19: 49.99999946 | O19: 28 | P19: 34 | Q19: 6 | R19: 17.14285714 | S19: 15 | T19: 14.85383511 | U19: 29.19405365 | V19: 22.0756321 | W19: 3.474102805 | X19: 23.21896172 | Y19: 40.9952774 | Z19: 0.5384920835 | AA19: 0.2349530607 | AB19: 0.02694505453 | AC19: G | AD19: 0 | AE19: 21.8964742 | AF19: 49.99909976 | AG19: 34 | AH19: 34 | AI19: 0 | AJ19: 0 | AK19: 15 | AL19: 16.29999924 | AM19: 32.20000076 | AN19: 24.4030304 | AO19: 3.812519136 | AP19: 22.92499924 | AQ19: 41.38331223 | AR19: 0.5896828771 | AS19: 0.2384863943 | AT19: 0.02823907137 | AU19: G | AV19: 0 | AW19: 29.3732155 | AX19: 10.00000278 | AY19: 33 | AZ19: 33 | BA19: 0 | BB19: 0 | BC19: 15 | BD19: 121.1599976 | BE19: 208.9199951 | BF19: 173.5875122 | BG19: 23.43277619 | BH19: 172.3533325 | BI19: 2.653071785 | BJ19: 65.42887878 | BK19: 0.01210920364 | BL19: 0.00265147388 | BM19: N | BN19: 0 | BO19: 173.5875123 | BP19: 49.99999984 | BQ19: 32 | BR19: 32 | BS19: 0 | BT19: 0 | BU19: 15 | BV19: 3.299999952 | BW19: 22.60000038 | BX19: 14.10000038 | BY19: 5.714236286 | BZ19: 17.77499962 | CA19: 4.519352913 | CB19: 3.119915724 | CC19: 0.2384863943 | CD19: 0.08298885822 | CE19: N | CF19: 0 | CG19: 21.42308798 | CH19: 10.00000265 | CI19: 33 | CJ19: 33 | CK19: 0 | CL19: 0 | CM19: 15 | CN19: 0.200000003 | CO19: 27.70000076 | CP19: 10.0088253 | CQ19: 8.742283061 | CR19: 2.491666794 | CS19: 0.9075151682 | CT19: 11.02882385 | CU19: 0.2349530607 | CV19: 0.06336933374 | CW19: E | CX19: 0 | CY19: 23.04614655 | CZ19: 10.00002537 | DA19: 34 | DB19: 34 | DC19: 0 | DD19: 0 | DE19: 15 | DF19: 5.5 | DG19: 126.1999969 | DH19: 39.19499969 | DI19: 32.30596185 | DJ19: 17.56999969 | DK19: 1.518517494 | DL19: 25.81135941 | DM19: 0.3063413203 | DN19: 0.04604971409 | DO19: E | DP19: 38.23529412 | DQ19: 8.28226064 | DR19: 49.99999901 | DS19: 33 | DT19: 33 | DU19: 13 | DV19: 38.23529412 | DW19: 15 | DX19: 10.73000031 | DY19: 17.73999939 | DZ19: 14.40352936 | EA19: 1.761858192 | EB19: 14.81916656 | EC19: 6.747880554 | ED19: 2.134526491 | EE19: 0.02349530607 | EF19: 0.006045164168 | EG19: N | EH19: 0 | EI19: 14.40352936 | EJ19: 50.00000004 | EK19: 34 | EL19: 34 | EM19: 0 | EN19: 0 | EO19: 15 | EP19: 19.61000061 | EQ19: 29.45 | ER19: 24.68558655 | ES19: 2.135285382 | ET19: 25.35 | EU19: 13.45315399 | EV19: 1.834929347 | EW19: 0.02349530607 | EX19: 0.007880520821 | EY19: N | EZ19: 0 | FA19: 24.68558656 | FB19: 49.99999975 | FC19: 34 | FD19: 34 | FE19: 0 | FF19: 0 | FG19: 15 | FH19: 15.33999939 | FI19: 23.38000031 | FJ19: 19.5447052 | FK19: 1.755383391 | FL19: 20.03000031 | FM19: 12.41537857 | FN19: 1.574233532 | FO19: 0.02349530607 | FP19: 0.002596238256 | FQ19: N | FR19: 0 | FS19: 19.54470545 | FT19: 49.99999434 | FU19: 34 | FV19: 34 | FW19: 0 | FX19: 0 | FY19: 15 | FZ19: 94 | GA19: 162 | GB19: 129.3235321 | GC19: 17.34100133 | GD19: 133.6666718 | GE19: 54.90822983 | GF19: 2.355266809 | GG19: 0.2349530607 | GH19: 0.07422977686 | GI19: T | GJ19: 0 | GK19: 119.9679533 | GL19: 74.99995635 | GM19: 34 | GN19: 34 | GO19: 0 | GP19: 0
A20: 16 | B20: 1.399999976 | C20: 165.3999939 | D20: 29.01935387 | E20: 35.28931588 | F20: 17.79999924 | G20: 0.9377917647 | H20: 30.94434738 | I20: 0.2460592687 | J20: 0.04769265652 | K20: G | L20: 8.571428571 | M20: 16.95595991 | N20: 50.00053355 | O20: 31 | P20: 34 | Q20: 3 | R20: 8.571428571 | S20: 16 | T20: 10.63563728 | U20: 27.77850914 | V20: 20.92470741 | W20: 3.412423375 | X20: 20.63564682 | Y20: 34.89221573 | Z20: 0.5996955633 | AA20: 0.2349530607 | AB20: 0.05269365758 | AC20: N | AD20: 0 | AE20: 20.9246956 | AF20: 50.0001381 | AG20: 34 | AH20: 34 | AI20: 0 | AJ20: 0 | AK20: 16 | AL20: 11.60000038 | AM20: 30.60000038 | AN20: 22.95757675 | AO20: 3.792676449 | AP20: 22.68333435 | AQ20: 33.96896744 | AR20: 0.6758397222 | AS20: 0.2384863943 | AT20: 0.04701463133 | AU20: N | AV20: 0 | AW20: 27.81791387 | AX20: 10.00080202 | AY20: 33 | AZ20: 33 | BA20: 0 | BB20: 0 | BC20: 16 | BD20: 123.9849976 | BE20: 227.3949951 | BF20: 177.4468994 | BG20: 23.74505129 | BH20: 184.3074951 | BI20: 2.735136414 | BJ20: 64.87680054 | BK20: 0.01210920364 | BL20: 0.002976192534 | BM20: T | BN20: 0 | BO20: 179.832777 | BP20: 50.00000309 | BQ20: 32 | BR20: 32 | BS20: 0 | BT20: 0 | BU20: 16 | BV20: 3.799999952 | BW20: 22 | BX20: 13.61515236 | BY20: 4.561943334 | BZ20: 14.41666603 | CA20: 6.867071152 | CB20: 1.982672334 | CC20: 0.2384863943 | CD20: 0.042199485 | CE20: N | CF20: 0 | CG20: 19.46150717 | CH20: 10.00004157 | CI20: 33 | CJ20: 33 | CK20: 0 | CL20: 0 | CM20: 16 | CN20: 0.1000000015 | CO20: 22.79999924 | CP20: 9.088233948 | CQ20: 6.44753927 | CR20: 9.558333397 | CS20: 1.197021365 | CT20: 7.592373848 | CU20: 0.2349530607 | CV20: 0.05613091588 | CW20: N | CX20: 0 | CY20: 17.35075642 | CZ20: 10.00090255 | DA20: 34 | DB20: 34 | DC20: 0 | DD20: 0 | DE20: 16 | DF20: 1.200000048 | DG20: 174.6000061 | DH20: 33.47058487 | DI20: 46.20866766 | DJ20: 18.54000092 | DK20: 0.7963624597 | DL20: 42.02933502 | DM20: 0.3322738111 | DN20: 0.1538118124 | DO20: G | DP20: 47.05882353 | DQ20: 1.032336858 | DR20: 50.00037191 | DS20: 33 | DT20: 33 | DU20: 16 | DV20: 47.05882353 | DW20: 16 | DX20: 7.769999695 | DY20: 18.46999969 | DZ20: 13.74823456 | EA20: 2.717906433 | EB20: 14.01166687 | EC20: 2.438122177 | ED20: 5.638862133 | EE20: 0.02349530607 | EF20: 0.004362100363 | EG20: N | EH20: 0 | EI20: 13.74819069 | EJ20: 50.00064391 | EK20: 34 | EL20: 34 | EM20: 0 | EN20: 0 | EO20: 16 | EP20: 16.4 | EQ20: 28.66000061 | ER20: 24.1155899 | ES20: 2.796707179 | ET20: 25.59500122 | EU20: 6.963285828 | EV20: 3.463248491 | EW20: 0.02349530607 | EX20: 0.00777412653 | EY20: N | EZ20: 0 | FA20: 24.11558957 | FB20: 50.00000482 | FC20: 34 | FD20: 34 | FE20: 0 | FF20: 0 | FG20: 16 | FH20: 13.18999939 | FI20: 23.51999969 | FJ20: 18.93382568 | FK20: 2.643141945 | FL20: 19.21583252 | FM20: 4.8902771 | FN20: 3.871728659 | FO20: 0.02349530607 | FP20: 0.006678941846 | FQ20: N | FR20: 0 | FS20: 18.93382568 | FT20: 50.00000009 | FU20: 34 | FV20: 34 | FW20: 0 | FX20: 0 | FY20: 16 | FZ20: 74 | GA20: 153 | GB20: 125.0294113 | GC20: 16.34752511 | GD20: 120.0833359 | GE20: 53.37170792 | GF20: 2.342615843 | GG20: 0.2349530607 | GH20: 0.0596473217 | GI20: N | GJ20: 0 | GK20: 114.0031764 | GL20: 74.99999382 | GM20: 34 | GN20: 34 | GO20: 0 | GP20: 0
A21: 17 | B21: 1.200000048 | C21: 95.59999847 | D21: 29.21999741 | E21: 28.10257895 | F21: 10.63999939 | G21: 1.065814853 | H21: 27.41564178 | I21: 0.273999989 | J21: 0.06645148993 | K21: E | L21: 25.71428571 | M21: 11.5680693 | N21: 50.00000132 | O21: 25 | P21: 34 | Q21: 9 | R21: 25.71428571 | S21: 17 | T21: 15.35608006 | U21: 27.9742012 | V21: 21.47992134 | W21: 3.477178146 | X21: 24.81967163 | Y21: 38.35408783 | Z21: 0.5600425601 | AA21: 0.2349530607 | AB21: 0.04901957512 | AC21: U | AD21: 0 | AE21: 21.66514063 | AF21: 50 | AG21: 34 | AH21: 34 | AI21: 0 | AJ21: 0 | AK21: 17 | AL21: 16.89999962 | AM21: 30.79999924 | AN21: 23.68787956 | AO21: 3.856063101 | AP21: 27.32499886 | AQ21: 37.78431702 | AR21: 0.6269235611 | AS21: 0.2384863943 | AT21: 0.04545450211 | AU21: U | AV21: 0 | AW21: 29.40999928 | AX21: 10 | AY21: 33 | AZ21: 33 | BA21: 0 | BB21: 0 | BC21: 17 | BD21: 123.0099976 | BE21: 216.6100098 | BF21: 177.736731 | BG21: 22.16429332 | BH21: 193.2100098 | BI21: 3.042455292 | BJ21: 58.41884613 | BK21: 0.01210920364 | BL21: 0.003067132831 | BM21: T | BN21: 0 | BO21: 180.3280667 | BP21: 49.99999917 | BQ21: 32 | BR21: 32 | BS21: 0 | BT21: 0 | BU21: 17 | BV21: 2.799999952 | BW21: 20.70000076 | BX21: 12.52121162 | BY21: 4.824660753 | BZ21: 16.22500038 | CA21: 5.561184883 | CB21: 2.251536608 | CC21: 0.2384863943 | CD21: 0.1060606241 | CE21: U | CF21: 0 | CG21: 18.91000068 | CH21: 10 | CI21: 33 | CJ21: 33 | CK21: 0 | CL21: 0 | CM21: 17 | CN21: 0.8000000119 | CO21: 23.60000038 | CP21: 10.88529587 | CQ21: 7.750234047 | CR21: 2.700000048 | CS21: 1.427820325 | CT21: 7.623715401 | CU21: 0.2349530607 | CV21: 0.1188952923 | CW21: E | CX21: 0 | CY21: 25.06421282 | CZ21: 10.00009846 | DA21: 34 | DB21: 34 | DC21: 0 | DD21: 0 | DE21: 17 | DF21: 0.1000000015 | DG21: 90.80000305 | DH21: 27.83571243 | DI21: 29.23124524 | DJ21: 9.17000103 | DK21: 0.7282041907 | DL21: 38.22514725 | DM21: 0.340793103 | DN21: 0.05481892824 | DO21: E | DP21: 55.88235294 | DQ21: 0 | DR21: 44.11764706 | DS21: 33 | DT21: 33 | DU21: 19 | DV21: 55.88235294 | DW21: 17 | DX21: 8.319999695 | DY21: 17.56000061 | DZ21: 13.89529572 | EA21: 2.138943726 | EB21: 12.16999969 | EC21: 4.146611404 | ED21: 3.351000309 | EE21: 0.02349530607 | EF21: 0.008814439178 | EG21: N | EH21: 0 | EI21: 13.89529584 | EJ21: 49.9999977 | EK21: 34 | EL21: 34 | EM21: 0 | EN21: 0 | EO21: 17 | EP21: 21.28000031 | EQ21: 29.22999878 | ER21: 24.78706055 | ES21: 2.341294026 | ET21: 21.94250031 | EU21: 11.51611938 | EV21: 2.152379513 | EW21: 0.02349530607 | EX21: 0.01433049589 | EY21: N | EZ21: 0 | FA21: 24.78705961 | FB21: 50.00001588 | FC21: 34 | FD21: 34 | FE21: 0 | FF21: 0 | FG21: 17 | FH21: 15.28999939 | FI21: 23.01999969 | FJ21: 19.34264984 | FK21: 2.129932952 | FL21: 17.22249908 | FM21: 8.450384521 | FN21: 2.288966894 | FO21: 0.02349530607 | FP21: 0.007843133062 | FQ21: U | FR21: 0 | FS21: 19.15499954 | FT21: 50 | FU21: 34 | FV21: 34 | FW21: 0 | FX21: 0 | FY21: 17 | FZ21: 93 | GA21: 148 | GB21: 125.4705887 | GC21: 14.21317284 | GD21: 125.0833359 | GE21: 78.10123444 | GF21: 1.606512189 | GG21: 0.2349530607 | GH21: 0.05546277761 | GI21: N | GJ21: 0 | GK21: 115.883952 | GL21: 74.99999403 | GM21: 34 | GN21: 34 | GO21: 0 | GP21: 0
A22: 18 | B22: 2.799999952 | C22: 228.1000061 | D22: 41.07777405 | E22: 50.51396968 | F22: 25.32999992 | G22: 0.9249473214 | H22: 44.41093445 | I22: 0.2636566162 | J22: 0.07677131891 | K22: G | L22: 20 | M22: 18.30272841 | N22: 50.00003438 | O22: 27 | P22: 34 | Q22: 7 | R22: 20 | S22: 18 | T22: 13.18538189 | U22: 27.6681633 | V22: 20.70552444 | W22: 3.324131105 | X22: 19.21987343 | Y22: 40.46413422 | Z22: 0.5117006898 | AA22: 0.2349530607 | AB22: 0.09019611776 | AC22: T | AD22: 0 | AE22: 19.84656679 | AF22: 50.00000339 | AG22: 34 | AH22: 34 | AI22: 0 | AJ22: 0 | AK22: 18 | AL22: 18.60000038 | AM22: 30.39999962 | AN22: 23.02727127 | AO22: 3.415888457 | AP22: 21.55000114 | AQ22: 49.64305878 | AR22: 0.4638568163 | AS22: 0.2384863943 | AT22: 0.1174943149 | AU22: G | AV22: 0 | AW22: 27.30240738 | AX22: 10.00000243 | AY22: 33 | AZ22: 33 | BA22: 0 | BB22: 0 | BC22: 18 | BD22: 122.0699951 | BE22: 220.4949951 | BF22: 180.0951538 | BG22: 19.68825395 | BH22: 179.4845825 | BI22: 4.031365585 | BJ22: 44.6734848 | BK22: 0.01210920364 | BL22: 0.002037364244 | BM22: N | BN22: 0 | BO22: 180.0951545 | BP22: 49.9999985 | BQ22: 32 | BR22: 32 | BS22: 0 | BT22: 0 | BU22: 18 | BV22: 3.299999952 | BW22: 20.60000038 | BX22: 12.19696999 | BY22: 5.300559234 | BZ22: 16.27499962 | CA22: 4.247652531 | CB22: 2.871461391 | CC22: 0.2384863943 | CD22: 0.06060600281 | CE22: U | CF22: 0 | CG22: 18.87000034 | CH22: 10 | CI22: 33 | CJ22: 33 | CK22: 0 | CL22: 0 | CM22: 18 | CN22: 1.100000024 | CO22: 26.60000038 | CP22: 10.83030319 | CQ22: 7.724696043 | CR22: 3.224999905 | CS22: 1.805112958 | CT22: 5.999792576 | CU22: 0.2384863943 | CV22: 0.08231902122 | CW22: G | CX22: 2.857142857 | CY22: 21.36975636 | CZ22: 10.00049859 | DA22: 34 | DB22: 34 | DC22: 1 | DD22: 2.857142857 | DE22: 18 | DF22: 1.200000048 | DG22: 184 | DH22: 36.8571434 | DI22: 46.66741274 | DJ22: 19.48000145 | DK22: 1.012422681 | DL22: 36.40489578 | DM22: 0.340793103 | DN22: 0.1454142332 | DO22: G | DP22: 55.88235294 | DQ22: 0 | DR22: 44.11764706 | DS22: 33 | DT22: 33 | DU22: 19 | DV22: 55.88235294 | DW22: 18 | DX22: 9.259999847 | DY22: 16.51000061 | DZ22: 13.57970734 | EA22: 1.955223716 | EB22: 13.48916779 | EC22: 4.528224182 | ED22: 2.998903513 | EE22: 0.02349530607 | EF22: 0.01256185621 | EG22: N | EH22: 0 | EI22: 13.57970734 | EJ22: 49.99999987 | EK22: 34 | EL22: 34 | EM22: 0 | EN22: 0 | EO22: 18 | EP22: 20.4 | EQ22: 29.23999939 | ER22: 24.18058624 | ES22: 1.983495361 | ET22: 24.08333282 | EU22: 15.52590485 | EV22: 1.557434916 | EW22: 0.02349530607 | EX22: 0.003839188814 | EY22: G | EZ22: 0 | FA22: 24.12872227 | FB22: 49.99937047 | FC22: 34 | FD22: 34 | FE22: 0 | FF22: 0 | FG22: 18 | FH22: 14.9 | FI22: 22.13000031 | FJ22: 18.87911682 | FK22: 1.709113522 | FL22: 19.11750031 | FM22: 12.04795074 | FN22: 1.566998124 | FO22: 0.02349530607 | FP22: 0.01028608382 | FQ22: N | FR22: 0 | FS22: 18.87911714 | FT22: 49.99999262 | FU22: 34 | FV22: 34 | FW22: 0 | FX22: 0 | FY22: 18 | FZ22: 69 | GA22: 148 | GB22: 119.7058792 | GC22: 18.0126722 | GD22: 128.25 | GE22: 41.58911133 | GF22: 2.878298521 | GG22: 0.2349530607 | GH22: 0.052061975 | GI22: N | GJ22: 0 | GK22: 107.55652 | GL22: 74.99999366 | GM22: 34 | GN22: 34 | GO22: 0 | GP22: 0
A23: 19 | B23: 1.700000048 | C23: 83.40000153 | D23: 19.38695526 | E23: 18.70008003 | F23: 9.869999886 | G23: 1.138790369 | H23: 17.0241642 | I23: 0.2856647372 | J23: 0.03031736612 | K23: G | L23: 31.42857143 | M23: 6.871635679 | N23: 50.00090067 | O23: 23 | P23: 34 | Q23: 11 | R23: 31.42857143 | S23: 19 | T23: 16.99435425 | U23: 31.0465126 | V23: 23.08390808 | W23: 3.797085352 | X23: 22.84942055 | Y23: 38.33925629 | Z23: 0.602095902 | AA23: 0.2349530607 | AB23: 0.04453653097 | AC23: G | AD23: 0 | AE23: 22.88357268 | AF23: 49.99947245 | AG23: 34 | AH23: 34 | AI23: 0 | AJ23: 0 | AK23: 19 | AL23: 18.79999924 | AM23: 34.09999847 | AN23: 25.36666489 | AO23: 4.223939769 | AP23: 25.17499924 | AQ23: 37.53931046 | AR23: 0.6757360101 | AS23: 0.2384863943 | AT23: 0.05440139771 | AU23: N | AV23: 0 | AW23: 30.77966787 | AX23: 10.00080455 | AY23: 33 | AZ23: 33 | BA23: 0 | BB23: 0 | BC23: 19 | BD23: 121.0349976 | BE23: 203.0849976 | BF23: 179.8068848 | BG23: 17.31997526 | BH23: 196.2474976 | BI23: 5.012685776 | BJ23: 35.87036896 | BK23: 0.01210920364 | BL23: 0.004253175855 | BM23: N | BN23: 0 | BO23: 179.8068848 | BP23: 49.99999992 | BQ23: 32 | BR23: 32 | BS23: 0 | BT23: 0 | BU23: 19 | BV23: 2.5 | BW23: 21.20000076 | BX23: 12.28787804 | BY23: 5.911681246 | BZ23: 16.52500153 | CA23: 3.100619316 | CB23: 3.963039875 | CC23: 0.2384863943 | CD23: 0.09090912342 | CE23: U | CF23: 0 | CG23: 19.33000069 | CH23: 10 | CI23: 33 | CJ23: 33 | CK23: 0 | CL23: 0 | CM23: 19 | CN23: 1.700000048 | CO23: 30.89999962 | CP23: 12.74411774 | CQ23: 8.427092286 | CR23: 9 | CS23: 2.025399446 | CT23: 6.292150497 | CU23: 0.2349530607 | CV23: 0.04820722342 | CW23: G | CX23: 0 | CY23: 24.7120527 | CZ23: 10.00012153 | DA23: 34 | DB23: 34 | DC23: 0 | DD23: 0 | DE23: 19 | DF23: 0.6000000238 | DG23: 48.40000153 | DH23: 12.63333225 | DI23: 12.69118022 | DJ23: 14.94000053 | DK23: 1.10451901 | DL23: 11.43785858 | DM23: 0.3776043057 | DN23: 0.1250754893 | DO23: G | DP23: 61.76470588 | DQ23: 0 | DR23: 38.23529412 | DS23: 33 | DT23: 33 | DU23: 21 | DV23: 61.76470588 | DW23: 19 | DX23: 9.290000153 | DY23: 17.03000031 | DZ23: 14.03794098 | EA23: 1.916518195 | EB23: 15.09499969 | EC23: 5.010005188 | ED23: 2.801981211 | EE23: 0.02349530607 | EF23: 0.007205021381 | EG23: N | EH23: 0 | EI23: 14.03794111 | EJ23: 49.99999727 | EK23: 34 | EL23: 34 | EM23: 0 | EN23: 0 | EO23: 19 | EP23: 20.66999969 | EQ23: 29.46000061 | ER23: 25.11264648 | ES23: 2.220581743 | ET23: 22.86750031 | EU23: 12.99067993 | EV23: 1.933127999 | EW23: 0.02349530607 | EX23: 0.007255345583 | EY23: G | EZ23: 0 | FA23: 25.04829368 | FB23: 49.99900814 | FC23: 34 | FD23: 34 | FE23: 0 | FF23: 0 | FG23: 19 | FH23: 14.98999939 | FI23: 22.11999969 | FJ23: 19.5776474 | FK23: 1.935660669 | FL23: 21.52583313 | FM23: 9.963929749 | FN23: 1.964851975 | FO23: 0.02349530607 | FP23: 0.008021381497 | FQ23: T | FR23: 0 | FS23: 19.81703464 | FT23: 49.99995485 | FU23: 34 | FV23: 34 | FW23: 0 | FX23: 0 | FY23: 19 | FZ23: 99 | GA23: 150 | GB23: 127.2352905 | GC23: 13.16114292 | GD23: 137.25 | GE23: 92.9835434 | GF23: 1.3683635 | GG23: 0.2349530607 | GH23: 0.04923868179 | GI23: N | GJ23: 0 | GK23: 118.3582369 | GL23: 74.99999418 | GM23: 34 | GN23: 34 | GO23: 0 | GP23: 0
A24: 20 | B24: 1.100000024 | C24: 113.6999969 | D24: 26.06087112 | E24: 29.60074083 | F24: 12.35999966 | G24: 0.9417190552 | H24: 27.67372131 | I24: 0.2856647372 | J24: 0.09930539131 | K24: E | L24: 28.57142857 | M24: 9.295139832 | N24: 50.00023007 | O24: 24 | P24: 34 | Q24: 10 | R24: 28.57142857 | S24: 20 | T24: 16.80900002 | U24: 34.82292938 | V24: 23.63967896 | W24: 3.879981869 | X24: 21.31248283 | Y24: 40.16427231 | Z24: 0.5885748267 | AA24: 0.2349530607 | AB24: 0.06800687313 | AC24: G | AD24: 0 | AE24: 23.44385309 | AF24: 49.99921561 | AG24: 34 | AH24: 34 | AI24: 0 | AJ24: 0 | AK24: 20 | AL24: 18.60000038 | AM24: 38.40000153 | AN24: 25.95151138 | AO24: 4.313505194 | AP24: 23.55000114 | AQ24: 39.52804184 | AR24: 0.6565341949 | AS24: 0.2384863943 | AT24: 0.06713455915 | AU24: G | AV24: 0 | AW24: 31.36198398 | AX24: 10.00000287 | AY24: 33 | AZ24: 33 | BA24: 0 | BB24: 0 | BC24: 20 | BD24: 120 | BE24: 205.3600098 | BF24: 179.8307739 | BG24: 16.85790859 | BH24: 184.0200073 | BI24: 5.193529892 | BJ24: 34.62592316 | BK24: 0.01210920364 | BL24: 0.006208178401 | BM24: N | BN24: 0 | BO24: 179.8308022 | BP24: 49.99993319 | BQ24: 32 | BR24: 32 | BS24: 0 | BT24: 0 | BU24: 20 | BV24: 1.799999952 | BW24: 22.10000038 | BX24: 11.72121239 | BY24: 5.568255929 | BZ24: 17.02499962 | CA24: 3.282922029 | CB24: 3.570359707 | CC24: 0.2384863943 | CD24: 0.05339288712 | CE24: N | CF24: 0 | CG24: 18.85721037 | CH24: 10.00002873 | CI24: 33 | CJ24: 33 | CK24: 0 | CL24: 0 | CM24: 20 | CN24: 0.5 | CO24: 35 | CP24: 13.90882492 | CQ24: 7.917964173 | CR24: 9.125 | CS24: 2.170188427 | CT24: 6.409040451 | CU24: 0.2349530607 | CV24: 0.05144315958 | CW24: N | CX24: 0 | CY24: 24.0560738 | CZ24: 10.00006761 | DA24: 34 | DB24: 34 | DC24: 0 | DD24: 0 | DE24: 20 | DF24: 1.299999952 | DG24: 69 | DH24: 28.60000229 | DI24: 22.91380546 | DJ24: 8.069999695 | DK24: 1.280155063 | DL24: 22.34104538 | DM24: 0.4463027716 | DN24: 0.08788472414 | DO24: E | DP24: 70.58823529 | DQ24: 0 | DR24: 29.41176471 | DS24: 33 | DT24: 33 | DU24: 24 | DV24: 70.58823529 | DW24: 20 | DX24: 7.340000153 | DY24: 17.16999969 | DZ24: 12.92352905 | EA24: 2.363605479 | EB24: 14.7125 | EC24: 2.769083786 | ED24: 4.667077541 | EE24: 0.02349530607 | EF24: 0.002832239866 | EG24: T | EH24: 0 | EI24: 13.35962106 | EJ24: 49.99999886 | EK24: 34 | EL24: 34 | EM24: 0 | EN24: 0 | EO24: 20 | EP24: 19.43999939 | EQ24: 30.57999878 | ER24: 24.61882172 | ES24: 2.561420909 | ET24: 24.08166504 | EU24: 9.592124939 | EV24: 2.56656599 | EW24: 0.02349530607 | EX24: 0.006778401136 | EY24: N | EZ24: 0 | FA24: 24.61886843 | FB24: 49.99927238 | FC24: 34 | FD24: 34 | FE24: 0 | FF24: 0 | FG24: 20 | FH24: 13.38000031 | FI24: 22.61000061 | FJ24: 18.77117767 | FK24: 2.295193368 | FL24: 18.76416779 | FM24: 6.634481049 | FN24: 2.829336166 | FO24: 0.02349530607 | FP24: 0.004546761513 | FQ24: N | FR24: 0 | FS24: 18.77117767 | FT24: 50.00000001 | FU24: 34 | FV24: 34 | FW24: 0 | FX24: 0 | FY24: 20 | FZ24: 89 | GA24: 162 | GB24: 134.1470642 | GC24: 17.42017491 | GD24: 143.75 | GE24: 56.32579041 | GF24: 2.381627798 | GG24: 0.2349530607 | GH24: 0.09259271622 | GI24: T | GJ24: 0 | GK24: 120.6099575 | GL24: 74.99995213 | GM24: 34 | GN24: 34 | GO24: 0 | GP24: 0
A25: 21 | B25: 1.100000024 | C25: 86.19999695 | D25: 22.14761925 | E25: 23.69007268 | F25: 9.609999657 | G25: 1.11855042 | H25: 19.80028725 | I25: 0.2989585102 | J25: 0.04411542416 | K25: E | L25: 34.28571429 | M25: 6.052677725 | N25: 50.00026866 | O25: 22 | P25: 34 | Q25: 12 | R25: 34.28571429 | S25: 21 | T25: 17.17759514 | U25: 32.48664093 | V25: 25.51060867 | W25: 4.280634035 | X25: 26.10787201 | Y25: 34.58033371 | Z25: 0.7377201319 | AA25: 0.2349530607 | AB25: 0.06218218803 | AC25: G | AD25: 0 | AE25: 25.26513727 | AF25: 49.99990965 | AG25: 34 | AH25: 34 | AI25: 0 | AJ25: 0 | AK25: 21 | AL25: 18.89999962 | AM25: 35.70000076 | AN25: 28.20606232 | AO25: 4.701790959 | AP25: 28.70000076 | AQ25: 34.77392578 | AR25: 0.8111267686 | AS25: 0.2384863943 | AT25: 0.04310894012 | AU25: N | AV25: 0 | AW25: 34.23143425 | AX25: 10.0008049 | AY25: 33 | AZ25: 33 | BA25: 0 | BB25: 0 | BC25: 21 | BD25: 119.1550049 | BE25: 215.3600098 | BF25: 180.6051392 | BG25: 18.36769625 | BH25: 191.3087646 | BI25: 4.458854294 | BJ25: 40.50482941 | BK25: 0.01210920364 | BL25: 0.00744959116 | BM25: N | BN25: 0 | BO25: 180.6053819 | BP25: 49.99947276 | BQ25: 32 | BR25: 32 | BS25: 0 | BT25: 0 | BU25: 21 | BV25: 2 | BW25: 26.89999962 | BX25: 10.71212196 | BY25: 6.441406842 | BZ25: 4.074999809 | CA25: 2.676101923 | CB25: 4.002882481 | CC25: 0.2384863943 | CD25: 0.03030306101 | CE25: T | CF25: 0 | CG25: 19.36108164 | CH25: 10.00018223 | CI25: 33 | CJ25: 33 | CK25: 0 | CL25: 0 | CM25: 21 | CN25: 0.6000000238 | CO25: 29.29999924 | CP25: 17.01470375 | CQ25: 8.274903136 | CR25: 17.34166718 | CS25: 2.157514334 | CT25: 7.88625288 | CU25: 0.2349530607 | CV25: 0.08460474014 | CW25: N | CX25: 0 | CY25: 27.61940338 | CZ25: 10.00003275 | DA25: 34 | DB25: 34 | DC25: 0 | DD25: 0 | DE25: 21 | DF25: 3.299999952 | DG25: 67.30000305 | DH25: 27.41250038 | DI25: 23.4483894 | DJ25: 9.699999809 | DK25: 1.252061248 | DL25: 21.89389801 | DM25: 0.474429369 | DN25: 0.1405172348 | DO25: G | DP25: 73.52941176 | DQ25: 0 | DR25: 26.47058824 | DS25: 33 | DT25: 33 | DU25: 25 | DV25: 73.52941176 | DW25: 21 | DX25: 6.7 | DY25: 17.06000061 | DZ25: 12.81647034 | EA25: 2.821799188 | EB25: 14.47000122 | EC25: 1.855181313 | ED25: 6.908473015 | EE25: 0.02349530607 | EF25: 0.009259271622 | EG25: T | EH25: 0 | EI25: 13.0441792 | EJ25: 49.9999988 | EK25: 34 | EL25: 34 | EM25: 0 | EN25: 0 | EO25: 21 | EP25: 18.76000061 | EQ25: 30.02000122 | ER25: 25.01264954 | ES25: 2.970091905 | ET25: 27.20500183 | EU25: 7.132422638 | EV25: 3.506893873 | EW25: 0.02349530607 | EX25: 0.00874337852 | EY25: N | EZ25: 0 | FA25: 25.01264888 | FB25: 50.00000883 | FC25: 34 | FD25: 34 | FE25: 0 | FF25: 0 | FG25: 21 | FH25: 13.48999939 | FI25: 23.53999939 | FJ25: 18.91441193 | FK25: 2.792267613 | FL25: 21.02749939 | FM25: 4.494555283 | FN25: 4.208294392 | FO25: 0.02349530607 | FP25: 0.006994384527 | FQ25: N | FR25: 0 | FS25: 18.91441191 | FT25: 50.0000002 | FU25: 34 | FV25: 34 | FW25: 0 | FX25: 0 | FY25: 21 | FZ25: 83 | GA25: 162 | GB25: 140.9117584 | GC25: 15.30570989 | GD25: 142.25 | GE25: 73.92099762 | GF25: 1.906248093 | GG25: 0.2349530607 | GH25: 0.08322894573 | GI25: N | GJ25: 0 | GK25: 130.5882168 | GL25: 74.9999941 | GM25: 34 | GN25: 34 | GO25: 0 | GP25: 0
A26: 22 | B26: 1 | C26: 49 | D26: 17.22380829 | E26: 17.3452271 | F26: 5.800000191 | G26: 0.901818037 | H26: 19.09898376 | I26: 0.2989585102 | J26: 0.08330333233 | K26: G | L26: 37.14285714 | M26: 3.459290734 | N26: 50.00000153 | O26: 21 | P26: 34 | Q26: 13 | R26: 37.14285714 | S26: 22 | T26: 21.45384979 | U26: 39.1670723 | V26: 28.27867126 | W26: 4.263006392 | X26: 28.83435822 | Y26: 47.30144882 | Z26: 0.5978394151 | AA26: 0.2349530607 | AB26: 0.09182924032 | AC26: G | AD26: 0 | AE26: 28.07964221 | AF26: 50.00000066 | AG26: 34 | AH26: 34 | AI26: 0 | AJ26: 0 | AK26: 22 | AL26: 23.70000076 | AM26: 41.79999924 | AN26: 30.76969528 | AO26: 4.245474257 | AP26: 31.24166679 | AQ26: 55.48231888 | AR26: 0.5545855761 | AS26: 0.2384863943 | AT26: 0.03089600801 | AU26: G | AV26: 0 | AW26: 36.16817511 | AX26: 10.00000224 | AY26: 33 | AZ26: 33 | BA26: 0 | BB26: 0 | BC26: 22 | BD26: 119.05 | BE26: 199.8550049 | BF26: 179.2874756 | BG26: 17.12060904 | BH26: 193.1212524 | BI26: 4.938716125 | BJ26: 36.30244446 | BK26: 0.01210920364 | BL26: 0.005337479711 | BM26: N | BN26: 0 | BO26: 179.2874758 | BP26: 49.9999996 | BQ26: 32 | BR26: 32 | BS26: 0 | BT26: 0 | BU26: 22 | BV26: 2.099999905 | BW26: 23.79999924 | BX26: 11.24545479 | BY26: 6.339809152 | BZ26: 3.908333302 | CA26: 2.656065702 | CB26: 4.233876705 | CC26: 0.2384863943 | CD26: 0.1143679321 | CE26: G | CF26: 0 | CG26: 20.49282257 | CH26: 10.00005249 | CI26: 33 | CJ26: 33 | CK26: 0 | CL26: 0 | CM26: 22 | CN26: 3.099999905 | CO26: 34.59999847 | CP26: 19.04117775 | CQ26: 9.498615766 | CR26: 21.47500038 | CS26: 3.19409585 | CT26: 5.96136713 | CU26: 0.2349530607 | CV26: 0.05882358551 | CW26: U | CX26: 0 | CY26: 31.44999862 | CZ26: 10 | DA26: 34 | DB26: 34 | DC26: 0 | DD26: 0 | DE26: 22 | DF26: 0.3000000119 | DG26: 17.70000076 | DH26: 6.449999809 | DI26: 6.013556107 | DJ26: 2.0400002 | DK26: 0.9543192387 | DL26: 6.75874424 | DM26: 0.474429369 | DN26: 0.07476490736 | DO26: E | DP26: 73.52941176 | DQ26: 0 | DR26: 26.47058824 | DS26: 33 | DT26: 33 | DU26: 25 | DV26: 73.52941176 | DW26: 22 | DX26: 9.469999695 | DY26: 16.96000061 | DZ26: 13.63147125 | EA26: 1.961119187 | EB26: 12.59083328 | EC26: 4.858509064 | ED26: 2.805690289 | EE26: 0.02349530607 | EF26: 0.005331556499 | EG26: G | EH26: 0 | EI26: 13.53806322 | EJ26: 50.00000811 | EK26: 34 | EL26: 34 | EM26: 0 | EN26: 0 | EO26: 22 | EP26: 20.16000061 | EQ26: 31.53999939 | ER26: 26.21176758 | ES26: 2.219012212 | ET26: 26.79833374 | EU26: 14.11855774 | EV26: 1.856547117 | EW26: 0.02349530607 | EX26: 0.003056830168 | EY26: N | EZ26: 0 | FA26: 26.21176761 | FB26: 49.99999941 | FC26: 34 | FD26: 34 | FE26: 0 | FF26: 0 | FG26: 22 | FH26: 14.81999969 | FI26: 23.21000061 | FJ26: 19.92205811 | FK26: 1.965998589 | FL26: 18.31583405 | FM26: 10.2638443 | FN26: 1.940993786 | FO26: 0.02349530607 | FP26: 0.006752789021 | FQ26: N | FR26: 0 | FS26: 19.92206151 | FT26: 49.99993086 | FU26: 34 | FV26: 34 | FW26: 0 | FX26: 0 | FY26: 22 | FZ26: 119 | GA26: 181 | GB26: 149.0294189 | GC26: 16.52818804 | GD26: 165.5 | GE26: 81.97109985 | GF26: 1.818072677 | GG26: 0.2349530607 | GH26: 0.05424100161 | GI26: G | GJ26: 0 | GK26: 137.6216662 | GL26: 74.99999868 | GM26: 34 | GN26: 34 | GO26: 0 | GP26: 0
A27: 23 | B27: 1.200000048 | C27: 93.40000153 | D27: 26.44210815 | E27: 25.96536883 | F27: 10.42000008 | G27: 1.147689939 | H27: 23.03941727 | I27: 0.3142995536 | J27: 0.0880253315 | K27: E | L27: 42.85714286 | M27: 3.53072585 | N27: 50.00023764 | O27: 19 | P27: 34 | Q27: 15 | R27: 42.85714286 | S27: 23 | T27: 21.81919289 | U27: 46.69072723 | V27: 31.95204735 | W27: 6.060680313 | X27: 28.03707695 | Y27: 29.18897629 | Z27: 1.094661474 | AA27: 0.2349530607 | AB27: 0.03594771028 | AC27: T | AD27: 0 | AE27: 31.46008897 | AF27: 49.99997629 | AG27: 34 | AH27: 34 | AI27: 0 | AJ27: 0 | AK27: 23 | AL27: 24.10000038 | AM27: 51.29999924 | AN27: 35.11212158 | AO27: 6.733858093 | AP27: 30.89999962 | AQ27: 28.6651516 | AR27: 1.224906206 | AS27: 0.2384863943 | AT27: 0.04713797569 | AU27: T | AV27: 0 | AW27: 43.85090505 | AX27: 10.00018157 | AY27: 33 | AZ27: 33 | BA27: 0 | BB27: 0 | BC27: 23 | BD27: 117.85 | BE27: 207.7850098 | BF27: 179.0990845 | BG27: 18.17158883 | BH27: 185.3012573 | BI27: 4.4174366 | BJ27: 40.54366684 | BK27: 0.01210920364 | BL27: 0.009926564991 | BM27: N | BN27: 0 | BO27: 179.0992737 | BP27: 49.99958461 | BQ27: 32 | BR27: 32 | BS27: 0 | BT27: 0 | BU27: 23 | BV27: 1.700000048 | BW27: 31.20000076 | BX27: 10.24242496 | BY27: 7.547807277 | BZ27: 4.158333778 | CA27: 1.931321979 | CB27: 5.303323269 | CC27: 0.2384863943 | CD27: 0.05665832758 | CE27: E | CF27: 0 | CG27: 23.58387273 | CH27: 10.000178 | CI27: 33 | CJ27: 33 | CK27: 0 | CL27: 0 | CM27: 23 | CN27: 1.799999952 | CO27: 45 | CP27: 24.19117546 | CQ27: 12.36016018 | CR27: 34.20000076 | CS27: 2.527163029 | CT27: 9.572463036 | CU27: 0.2349530607 | CV27: 0.08823528886 | CW27: U | CX27: 0 | CY27: 40.68 | CZ27: 10 | DA27: 34 | DB27: 34 | DC27: 0 | DD27: 0 | DE27: 23 | DF27: 2.200000048 | DG27: 82.40000153 | DH27: 40.89999771 | DI27: 34.78462262 | DJ27: 58.34000397 | DK27: 0.8936070204 | DL27: 45.76955795 | DM27: 0.5866662264 | DN27: 0.2000000179 | DO27: U | DP27: 82.35294118 | DQ27: 0 | DR27: 18.13114273 | DS27: 33 | DT27: 33 | DU27: 28 | DV27: 82.35294118 | DW27: 23 | DX27: 9.059999847 | DY27: 18.96000061 | DZ27: 14.34323578 | EA27: 2.446397149 | EB27: 16.48500061 | EC27: 3.283644485 | ED27: 4.368084431 | EE27: 0.02349530607 | EF27: 0.00681129694 | EG27: G | EH27: 0 | EI27: 14.19789907 | EJ27: 50.00000264 | EK27: 34 | EL27: 34 | EM27: 0 | EN27: 0 | EO27: 23 | EP27: 22.53000031 | EQ27: 31.35 | ER27: 26.7788269 | ES27: 2.34085029 | ET27: 26.20499878 | EU27: 13.65445404 | EV27: 1.961178899 | EW27: 0.02349530607 | EX27: 0.005571490526 | EY27: G | EZ27: 0 | FA27: 26.71348288 | FB27: 50.00000128 | FC27: 34 | FD27: 34 | FE27: 0 | FF27: 0 | FG27: 23 | FH27: 16.18000031 | FI27: 25.13000031 | FJ27: 20.56146851 | FK27: 2.183604372 | FL27: 19.90916748 | FM27: 9.09968338 | FN27: 2.259580612 | FO27: 0.02349530607 | FP27: 0.003870248795 | FQ27: G | FR27: 0 | FS27: 20.48619879 | FT27: 49.99998608 | FU27: 34 | FV27: 34 | FW27: 0 | FX27: 0 | FY27: 23 | FZ27: 106 | GA27: 190 | GB27: 154.8529358 | GC27: 21.89663342 | GD27: 169 | GE27: 48.32154083 | GF27: 3.20463562 | GG27: 0.2349530607 | GH27: 0.06535947323 | GI27: T | GJ27: 0 | GK27: 142.3731014 | GL27: 74.99995266 | GM27: 34 | GN27: 34 | GO27: 0 | GP27: 0
A28: 24 | B28: 1.100000024 | C28: 132.6000061 | D28: 38.74118042 | E28: 41.34452947 | F28: 14.25000095 | G28: 0.920932591 | H28: 42.06733704 | I28: 0.3322738111 | J28: 0.1043455005 | K28: G | L28: 48.57142857 | M28: 0.8388930819 | N28: 50.00006468 | O28: 17 | P28: 34 | Q28: 17 | R28: 48.57142857 | S28: 24 | T28: 20.56746864 | U28: 48.90792084 | V28: 33.87634659 | W28: 6.74725088 | X28: 37.09939957 | Y28: 24.42220497 | Z28: 1.387112498 | AA28: 0.2349530607 | AB28: 0.07616639137 | AC28: N | AD28: 0 | AE28: 33.87635461 | AF28: 49.99995258 | AG28: 34 | AH28: 34 | AI28: 0 | AJ28: 0 | AK28: 24 | AL28: 22.70000076 | AM28: 53.79999924 | AN28: 37.11212158 | AO28: 7.454770081 | AP28: 40.84166718 | AQ28: 24.19029427 | AR28: 1.534174085 | AS28: 0.2384863943 | AT28: 0.04605215788 | AU28: N | AV28: 0 | AW28: 46.66542845 | AX28: 10.00086023 | AY28: 33 | AZ28: 33 | BA28: 0 | BB28: 0 | BC28: 24 | BD28: 128.1550049 | BE28: 215.7350098 | BF28: 180.0371826 | BG28: 19.60443987 | BH28: 179.243335 | BI28: 4.142121887 | BJ28: 43.46496582 | BK28: 0.01210920364 | BL28: 0.00512419492 | BM28: G | BN28: 0 | BO28: 179.3128329 | BP28: 50.00092534 | BQ28: 32 | BR28: 32 | BS28: 0 | BT28: 0 | BU28: 24 | BV28: 2.5 | BW28: 24.5 | BX28: 10.52121258 | BY28: 7.449989923 | BZ28: 4.333333492 | CA28: 1.865938425 | CB28: 5.638563633 | CC28: 0.2384863943 | CD28: 0.105399251 | CE28: E | CF28: 0 | CG28: 24.22551533 | CH28: 10.00044854 | CI28: 33 | CJ28: 33 | CK28: 0 | CL28: 0 | CM28: 24 | CN28: 0.200000003 | CO28: 50.20000076 | CP28: 26.70303154 | CQ28: 14.25037317 | CR28: 37.69999695 | CS28: 1.762836814 | CT28: 15.14776134 | CU28: 0.2384863943 | CV28: 0.1220094562 | CW28: N | CX28: 0 | CY28: 44.96556403 | CZ28: 10.00006841 | DA28: 34 | DB28: 34 | DC28: 0 | DD28: 0 | DE28: 24 | DF28: 0.8999999762 | DG28: 113 | DH28: 50.46249771 | DI28: 49.45780241 | DJ28: 12.10999966 | DK28: 0.6947522759 | DL28: 72.63379669 | DM28: 0.474429369 | DN28: 0.1280220747 | DO28: G | DP28: 73.52941176 | DQ28: 0 | DR28: 26.47058824 | DS28: 33 | DT28: 33 | DU28: 25 | DV28: 73.52941176 | DW28: 24 | DX28: 11.14000015 | DY28: 18.86000061 | DZ28: 15.12441101 | EA28: 1.84533342 | EB28: 16.93000031 | EC28: 6.631848907 | ED28: 2.280572414 | EE28: 0.02349530607 | EF28: 0.005743151903 | EG28: N | EH28: 0 | EI28: 15.12439561 | EJ28: 50.00033287 | EK28: 34 | EL28: 34 | EM28: 0 | EN28: 0 | EO28: 24 | EP28: 21 | EQ28: 34.37000122 | ER28: 27.84353027 | ES28: 2.954943223 | ET28: 31.02749939 | EU28: 8.805270386 | EV28: 3.162143707 | EW28: 0.02349530607 | EX28: 0.005452096462 | EY28: N | EZ28: 0 | FA28: 27.84353026 | FB28: 50.00000017 | FC28: 34 | FD28: 34 | FE28: 0 | FF28: 0 | FG28: 24 | FH28: 16.06000061 | FI28: 24.81000061 | FJ28: 21.4841156 | FK28: 2.084140875 | FL28: 22.62250061 | FM28: 10.47807236 | FN28: 2.050388098 | FO28: 0.02349530607 | FP28: 0.008264738321 | FQ28: N | FR28: 0 | FS28: 21.48411809 | FT28: 49.99995233 | FU28: 34 | FV28: 34 | FW28: 0 | FX28: 0 | FY28: 24 | FZ28: 119 | GA28: 199 | GB28: 162.7941132 | GC28: 22.90266588 | GD28: 179 | GE28: 48.83602905 | GF28: 3.333483934 | GG28: 0.2349530607 | GH28: 0.07761490345 | GI28: N | GJ28: 0 | GK28: 147.3465043 | GL28: 74.99999373 | GM28: 34 | GN28: 34 | GO28: 0 | GP28: 0
A29: 25 | B29: 1.200000048 | C29: 164.5 | D29: 43.13500214 | E29: 43.47119169 | F29: 17.53000069 | G29: 0.9985361695 | H29: 43.19823837 | I29: 0.3063413203 | J29: 0.03002667427 | K29: E | L29: 40 | M29: 7.864439292 | N29: 50.00000168 | O29: 20 | P29: 34 | Q29: 14 | R29: 40 | S29: 25 | T29: 21.8623333 | U29: 50.78376389 | V29: 36.7568512 | W29: 7.823139971 | X29: 38.73316956 | Y29: 21.38710213 | Z29: 1.718645692 | AA29: 0.2349530607 | AB29: 0.03803551197 | AC29: N | AD29: 0 | AE29: 36.75690309 | AF29: 49.99973537 | AG29: 34 | AH29: 34 | AI29: 0 | AJ29: 0 | AK29: 25 | AL29: 23.79999924 | AM29: 55.90000153 | AN29: 40.17878723 | AO29: 8.645654687 | AP29: 42.52500153 | AQ29: 21.07774162 | AR29: 1.906218767 | AS29: 0.2384863943 | AT29: 0.03058326244 | AU29: N | AV29: 0 | AW29: 51.25820668 | AX29: 10.00087867 | AY29: 33 | AZ29: 33 | BA29: 0 | BB29: 0 | BC29: 25 | BD29: 128.5800049 | BE29: 215.2600098 | BF29: 179.2651367 | BG29: 18.69091001 | BH29: 179.143335 | BI29: 4.456535721 | BJ29: 40.22521973 | BK29: 0.01210920364 | BL29: 0.005531011522 | BM29: G | BN29: 0 | BO29: 178.5949223 | BP29: 50.00049174 | BQ29: 32 | BR29: 32 | BS29: 0 | BT29: 0 | BU29: 25 | BV29: 2.200000048 | BW29: 27.39999962 | BX29: 11.68181801 | BY29: 8.168784146 | BZ29: 4.300000191 | CA29: 1.833462358 | CB29: 6.371452332 | CC29: 0.2384863943 | CD29: 0.08176738024 | CE29: G | CF29: 0 | CG29: 23.19194721 | CH29: 10.0000092 | CI29: 33 | CJ29: 33 | CK29: 0 | CL29: 0 | CM29: 25 | CN29: 0.8000000119 | CO29: 51.20000076 | CP29: 27.6941185 | CQ29: 15.51659858 | CR29: 38.60000229 | CS29: 1.64955008 | CT29: 16.78889275 | CU29: 0.2349530607 | CV29: 0.1078431606 | CW29: U | CX29: 0 | CY29: 46.16000069 | CZ29: 10 | DA29: 34 | DB29: 34 | DC29: 0 | DD29: 0 | DE29: 25 | DF29: 1 | DG29: 135.1000061 | DH29: 37.99090958 | DI29: 39.54006664 | DJ29: 14.4100008 | DK29: 0.8109438419 | DL29: 46.84776688 | DM29: 0.3983826041 | DN29: 0.04774880409 | DO29: E | DP29: 64.70588235 | DQ29: 0 | DR29: 35.29411765 | DS29: 33 | DT29: 33 | DU29: 22 | DV29: 64.70588235 | DW29: 25 | DX29: 10.54000015 | DY29: 20.26999969 | DZ29: 15.50676422 | EA29: 2.196671968 | EB29: 14.59416656 | EC29: 5.057141113 | ED29: 3.066310406 | EE29: 0.02349530607 | EF29: 0.004288972914 | EG29: G | EH29: 0 | EI29: 15.40467552 | EJ29: 49.99998506 | EK29: 34 | EL29: 34 | EM29: 0 | EN29: 0 | EO29: 25 | EP29: 22.63000031 | EQ29: 33.58999939 | ER29: 28.07059021 | ES29: 3.286661646 | ET29: 30.85 | EU29: 7.371043396 | EV29: 3.808224678 | EW29: 0.02349530607 | EX29: 0.007843136787 | EY29: U | EZ29: 0 | FA29: 28.10999985 | FB29: 50 | FC29: 34 | FD29: 34 | FE29: 0 | FF29: 0 | FG29: 25 | FH29: 17.28999939 | FI29: 26.35 | FJ29: 21.78852844 | FK29: 2.570361535 | FL29: 24.08500061 | FM29: 7.303985596 | FN29: 2.98310113 | FO29: 0.02349530607 | FP29: 0.004901969433 | FQ29: U | FR29: 0 | FS29: 21.81999969 | FT29: 50 | FU29: 34 | FV29: 34 | FW29: 0 | FX29: 0 | FY29: 25 | FZ29: 110 | GA29: 211 | GB29: 167.7647095 | GC29: 25.3018858 | GD29: 185.75 | GE29: 42.28806686 | GF29: 3.967187881 | GG29: 0.2349530607 | GH29: 0.06535953283 | GI29: T | GJ29: 0 | GK29: 153.7343262 | GL29: 74.99995048 | GM29: 34 | GN29: 34 | GO29: 0 | GP29: 0
A30: 26 | B30: 5.800000191 | C30: 113.8000031 | D30: 36.61153793 | E30: 28.6567452 | F30: 16.60000038 | G30: 1.864786506 | H30: 19.6330986 | I30: 0.2686791122 | J30: 0.04758268595 | K30: E | L30: 22.85714286 | M30: 15.87606889 | N30: 50.00001561 | O30: 26 | P30: 34 | Q30: 8 | R30: 22.85714286 | S30: 26 | T30: 22.73755074 | U30: 54.0463562 | V30: 37.36497879 | W30: 8.039462511 | X30: 41.00102234 | Y30: 22.52118492 | Z30: 1.659103632 | AA30: 0.2349530607 | AB30: 0.03982891142 | AC30: G | AD30: 0 | AE30: 36.813425 | AF30: 49.99999497 | AG30: 34 | AH30: 34 | AI30: 0 | AJ30: 0 | AK30: 26 | AL30: 25.10000038 | AM30: 58.20000076 | AN30: 40.57575226 | AO30: 8.385032907 | AP30: 44.40833282 | AQ30: 24.30443382 | AR30: 1.66947937 | AS30: 0.2384863943 | AT30: 0.03527829051 | AU30: N | AV30: 0 | AW30: 51.32118963 | AX30: 10.00086796 | AY30: 33 | AZ30: 33 | BA30: 0 | BB30: 0 | BC30: 26 | BD30: 124.8449951 | BE30: 212.725 | BF30: 181.6117432 | BG30: 19.99617932 | BH30: 176.1083252 | BI30: 3.943120575 | BJ30: 46.05787277 | BK30: 0.01210920364 | BL30: 0.003055540472 | BM30: N | BN30: 0 | BO30: 181.6118072 | BP30: 49.99987218 | BQ30: 32 | BR30: 32 | BS30: 0 | BT30: 0 | BU30: 26 | BV30: 2.200000048 | BW30: 28.5 | BX30: 16.28484917 | BY30: 8.794178632 | BZ30: 26.30833244 | CA30: 2.235146523 | CB30: 7.285808563 | CC30: 0.2384863943 | CD30: 0.08254796267 | CE30: N | CF30: 0 | CG30: 27.55498983 | CH30: 10.00010523 | CI30: 33 | CJ30: 33 | CK30: 0 | CL30: 0 | CM30: 26 | CN30: 2 | CO30: 55.40000153 | CP30: 23.79706001 | CQ30: 16.18773283 | CR30: 6.450000286 | CS30: 1.679652572 | CT30: 14.16784668 | CU30: 0.2349530607 | CV30: 0.07611942291 | CW30: G | CX30: 0 | CY30: 48.24647047 | CZ30: 10.0001825 | DA30: 34 | DB30: 34 | DC30: 0 | DD30: 0 | DE30: 26 | DF30: 2.799999952 | DG30: 121.0999985 | DH30: 33.76874924 | DI30: 31.88438894 | DJ30: 14.63000011 | DK30: 1.227108598 | DL30: 27.51895714 | DM30: 0.3425000012 | DN30: 0.04259198904 | DO30: G | DP30: 50 | DQ30: 0.001835342428 | DR30: 49.99966422 | DS30: 33 | DT30: 33 | DU30: 17 | DV30: 50 | DW30: 26 | DX30: 10.76999969 | DY30: 19.7 | DZ30: 16.07676239 | EA30: 1.866185008 | EB30: 17.46750031 | EC30: 7.082380676 | ED30: 2.269965887 | EE30: 0.02349530607 | EF30: 0.00686275363 | EG30: T | EH30: 0 | EI30: 16.23848594 | EJ30: 49.99999912 | EK30: 34 | EL30: 34 | EM30: 0 | EN30: 0 | EO30: 26 | EP30: 22.38999939 | EQ30: 36 | ER30: 28.45235596 | ES30: 3.215700163 | ET30: 28.06083374 | EU30: 8.040505219 | EV30: 3.538627863 | EW30: 0.02349530607 | EX30: 0.002200597525 | EY30: N | EZ30: 0 | FA30: 28.45235578 | FB30: 50.00000225 | FC30: 34 | FD30: 34 | FE30: 0 | FF30: 0 | FG30: 26 | FH30: 17.65 | FI30: 27.32000122 | FJ30: 22.26382294 | FK30: 2.374396253 | FL30: 23.29083405 | FM30: 8.833496094 | FN30: 2.520386457 | FO30: 0.02349530607 | FP30: 0.006886278093 | FQ30: N | FR30: 0 | FS30: 22.2638396 | FT30: 49.99972001 | FU30: 34 | FV30: 34 | FW30: 0 | FX30: 0 | FY30: 26 | FZ30: 125 | GA30: 209 | GB30: 170.3235321 | GC30: 22.18751926 | GD30: 174 | GE30: 58.47863388 | GF30: 2.912577152 | GG30: 0.2349530607 | GH30: 0.07057034969 | GI30: G | GJ30: 0 | GK30: 154.8196616 | GL30: 74.9990395 | GM30: 34 | GN30: 34 | GO30: 0 | GP30: 0
A31: 27 | B31: 2.099999905 | C31: 114.9000015 | D31: 41.10312653 | E31: 29.98519532 | F31: 30.30000114 | G31: 1.636021852 | H31: 25.12382507 | I31: 0.2421840727 | J31: 0.05751529336 | K31: G | L31: 5.714285714 | M31: 31.00142407 | N31: 50.00011233 | O31: 32 | P31: 34 | Q31: 2 | R31: 5.714285714 | S31: 27 | T31: 27.92928696 | U31: 51.1407814 | V31: 38.02960968 | W31: 6.543185339 | X31: 37.60074234 | Y31: 34.90063477 | Z31: 1.08965385 | AA31: 0.2349530607 | AB31: 0.06911693513 | AC31: G | AD31: 0 | AE31: 37.66703508 | AF31: 49.99988276 | AG31: 34 | AH31: 34 | AI31: 0 | AJ31: 0 | AK31: 27 | AL31: 30.60000038 | AM31: 56.5 | AN31: 41.69090652 | AO31: 7.283644123 | AP31: 41.39166641 | AQ31: 34.11981964 | AR31: 1.221897006 | AS31: 0.2384863943 | AT31: 0.07088838518 | AU31: G | AV31: 0 | AW31: 51.05938968 | AX31: 10.00000318 | AY31: 33 | AZ31: 33 | BA31: 0 | BB31: 0 | BC31: 27 | BD31: 141.3949951 | BE31: 212.1800049 | BF31: 182.5587646 | BG31: 14.96926995 | BH31: 182.6862549 | BI31: 7.347553253 | BJ31: 24.84619904 | BK31: 0.01210920364 | BL31: 0.005475561321 | BM31: G | BN31: 0 | BO31: 182.1445785 | BP31: 50.0006795 | BQ31: 32 | BR31: 32 | BS31: 0 | BT31: 0 | BU31: 27 | BV31: 6.300000191 | BW31: 34.79999924 | BX31: 21.64848518 | BY31: 7.575417576 | BZ31: 22.92499924 | CA31: 6.91584444 | CB31: 3.130273581 | CC31: 0.2384863943 | CD31: 0.04687437415 | CE31: N | CF31: 0 | CG31: 31.35675967 | CH31: 10.00003188 | CI31: 33 | CJ31: 33 | CK31: 0 | CL31: 0 | CM31: 27 | CN31: 2.599999905 | CO31: 50.20000076 | CP31: 19.67353058 | CQ31: 12.2117747 | CR31: 6.566666603 | CS31: 2.621008873 | CT31: 7.506090641 | CU31: 0.2349530607 | CV31: 0.08110520244 | CW31: T | CX31: 0 | CY31: 35.78821949 | CZ31: 10.00022943 | DA31: 34 | DB31: 34 | DC31: 0 | DD31: 0 | DE31: 27 | DF31: 0.8999999762 | DG31: 104.1999969 | DH31: 23.6684227 | DI31: 26.68709634 | DJ31: 11.22999954 | DK31: 0.8842411637 | DL31: 26.76693153 | DM31: 0.3142995536 | DN31: 0.03811776638 | DO31: G | DP31: 41.17647059 | DQ31: 3.169629019 | DR31: 49.99920056 | DS31: 33 | DT31: 33 | DU31: 14 | DV31: 41.17647059 | DW31: 27 | DX31: 11.6 | DY31: 19.98999939 | DZ31: 16.17294312 | EA31: 1.834239241 | EB31: 15.09583282 | EC31: 7.860494232 | ED31: 2.057497025 | EE31: 0.02349530607 | EF31: 0.002976483107 | EG31: N | EH31: 0 | EI31: 16.17293725 | EJ31: 50.00012765 | EK31: 34 | EL31: 34 | EM31: 0 | EN31: 0 | EO31: 27 | EP31: 22.26999969 | EQ31: 33.7 | ER31: 28.03117371 | ES31: 2.659967871 | ET31: 27.03250122 | EU31: 11.44948883 | EV31: 2.448246717 | EW31: 0.02349530607 | EX31: 0.005342692137 | EY31: G | EZ31: 0 | FA31: 27.94961049 | FB31: 49.99995588 | FC31: 34 | FD31: 34 | FE31: 0 | FF31: 0 | FG31: 27 | FH31: 16.95 | FI31: 26.85 | FJ31: 22.10264587 | FK31: 2.120191884 | FL31: 21.075 | FM31: 11.19303436 | FN31: 1.974678636 | FO31: 0.02349530607 | FP31: 0.005562707782 | FQ31: G | FR31: 0 | FS31: 22.03685793 | FT31: 50.00000442 | FU31: 34 | FV31: 34 | FW31: 0 | FX31: 0 | FY31: 27 | FZ31: 121 | GA31: 225 | GB31: 175.9117584 | GC31: 25.87659217 | GD31: 181.6666718 | GE31: 45.3338356 | GF31: 3.880363464 | GG31: 0.2349530607 | GH31: 0.04586478323 | GI31: N | GJ31: 0 | GK31: 158.4582674 | GL31: 74.99999368 | GM31: 34 | GN31: 34 | GO31: 0 | GP31: 0
A32: 28 | B32: 1.200000048 | C32: 221.3999939 | D32: 49.01000595 | E32: 51.52926486 | F32: 23.21999931 | G32: 1.186689496 | H32: 41.29977417 | I32: 0.2501266301 | J32: 0.02426105738 | K32: E | L32: 8.571428571 | M32: 29.57903132 | N32: 50.00022821 | O32: 31 | P32: 34 | Q32: 3 | R32: 8.571428571 | S32: 28 | T32: 24.81035805 | U32: 57.44766617 | V32: 39.52529144 | W32: 7.049056771 | X32: 38.40923691 | Y32: 31.51730728 | Z32: 1.254082084 | AA32: 0.2349530607 | AB32: 0.01432496309 | AC32: N | AD32: 0 | AE32: 39.52529114 | AF32: 50.00000171 | AG32: 34 | AH32: 34 | AI32: 0 | AJ32: 0 | AK32: 28 | AL32: 21.89999962 | AM32: 52.5 | AN32: 36.18484879 | AO32: 6.767298256 | AP32: 34.64999771 | AQ32: 27.99611855 | AR32: 1.292495251 | AS32: 0.2384863943 | AT32: 0.06010201573 | AU32: N | AV32: 0 | AW32: 44.85716657 | AX32: 10.00083998 | AY32: 33 | AZ32: 33 | BA32: 0 | BB32: 0 | BC32: 28 | BD32: 152.9449951 | BE32: 221.925 | BF32: 187.7996582 | BG32: 13.58998511 | BH32: 181.6866699 | BI32: 9.83999176 | BJ32: 19.08534622 | BK32: 0.01210920364 | BL32: 0.002160772681 | BM32: N | BN32: 0 | BO32: 187.799657 | BP32: 50.00000344 | BQ32: 32 | BR32: 32 | BS32: 0 | BT32: 0 | BU32: 28 | BV32: 2.900000095 | BW32: 32.79999924 | BX32: 20.19696999 | BY32: 7.58388453 | BZ32: 20.34166527 | CA32: 4.124641895 | CB32: 4.896660328 | CC32: 0.2384863943 | CD32: 0.1233760417 | CE32: N | CF32: 0 | CG32: 29.91613574 | CH32: 9.999938294 | CI32: 33 | CJ32: 33 | CK32: 0 | CL32: 0 | CM32: 28 | CN32: 0.1000000015 | CO32: 48.29999924 | CP32: 16.57575798 | CQ32: 11.8153725 | CR32: 12.14999962 | CS32: 1.450435758 | CT32: 11.42812252 | CU32: 0.2384863943 | CV32: 0.06128007174 | CW32: N | CX32: 0 | CY32: 31.71776526 | CZ32: 10.00000275 | DA32: 34 | DB32: 34 | DC32: 0 | DD32: 0 | DE32: 28 | DF32: 1.700000048 | DG32: 214.3000031 | DH32: 39.72500229 | DI32: 52.12084769 | DJ32: 22.96000099 | DK32: 0.7622571588 | DL32: 52.11495972 | DM32: 0.2796500921 | DN32: 0.04068344831 | DO32: G | DP32: 26.47058824 | DQ32: 11.92690587 | DR32: 49.99999569 | DS32: 33 | DT32: 33 | DU32: 9 | DV32: 26.47058824 | DW32: 28 | DX32: 14.1 | DY32: 19.76999969 | DZ32: 17.09647064 | EA32: 1.394171599 | EB32: 17.40749969 | EC32: 15.00498199 | ED32: 1.139386296 | EE32: 0.02349530607 | EF32: 0.01344540119 | EG32: T | EH32: 0 | EI32: 17.16212834 | EJ32: 50.00069932 | EK32: 34 | EL32: 34 | EM32: 0 | EN32: 0 | EO32: 28 | EP32: 24.56000061 | EQ32: 34.02000122 | ER32: 28.77676086 | ES32: 2.012046697 | ET32: 28.50166626 | EU32: 21.42648163 | EV32: 1.343046427 | EW32: 0.02349530607 | EX32: 0.003592592478 | EY32: G | EZ32: 0 | FA32: 28.73200866 | FB32: 49.99990093 | FC32: 34 | FD32: 34 | FE32: 0 | FF32: 0 | FG32: 28 | FH32: 20.16000061 | FI32: 26.28999939 | FJ32: 22.93382416 | FK32: 1.501851275 | FL32: 23.73583374 | FM32: 24.29707794 | FN32: 0.9438923001 | FO32: 0.02349530607 | FP32: 0.005403655767 | FQ32: N | FR32: 0 | FS32: 22.93382399 | FT32: 50.00000446 | FU32: 34 | FV32: 34 | FW32: 0 | FX32: 0 | FY32: 28 | FZ32: 118 | GA32: 229 | GB32: 187.2352905 | GC32: 25.14811592 | GD32: 201.25 | GE32: 51.61999512 | GF32: 3.627185345 | GG32: 0.2349530607 | GH32: 0.06115502119 | GI32: N | GJ32: 0 | GK32: 170.273149 | GL32: 74.99999379 | GM32: 34 | GN32: 34 | GO32: 0 | GP32: 0
A33: 29 | B33: 4.900000095 | C33: 168.6999969 | D33: 46.03437805 | E33: 43.33351143 | F33: 18.54999924 | G33: 1.267490506 | H33: 36.31930923 | I33: 0.2421840727 | J33: 0.09559631348 | K33: E | L33: 5.714285714 | M33: 29.19988091 | N33: 50.00003543 | O33: 32 | P33: 34 | Q33: 2 | R33: 5.714285714 | S33: 29 | T33: 32.29870987 | U33: 51.36149979 | V33: 41.46257782 | W33: 5.016160408 | X33: 40.241539 | Y33: 69.48707581 | Z33: 0.5966948271 | AA33: 0.2349530607 | AB33: 0.05379325151 | AC33: N | AD33: 0 | AE33: 41.4625501 | AF33: 50.00022045 | AG33: 34 | AH33: 34 | AI33: 0 | AJ33: 0 | AK33: 29 | AL33: 26.70000076 | AM33: 42.40000153 | AN33: 34.18182373 | AO33: 4.194226229 | AP33: 33.2416687 | AQ33: 67.75531006 | AR33: 0.504489243 | AS33: 0.2384863943 | AT33: 0.07310396433 | AU33: G | AV33: 0 | AW33: 39.59993976 | AX33: 10.00000193 | AY33: 33 | AZ33: 33 | BA33: 0 | BB33: 0 | BC33: 29 | BD33: 147.9800049 | BE33: 217.0050049 | BF33: 190.3220093 | BG33: 13.08810365 | BH33: 188.2445923 | BI33: 10.4602829 | BJ33: 18.19472885 | BK33: 0.01210920364 | BL33: 0.001602843404 | BM33: N | BN33: 0 | BO33: 190.3220181 | BP33: 49.99997319 | BQ33: 32 | BR33: 32 | BS33: 0 | BT33: 0 | BU33: 29 | BV33: 6.300000191 | BW33: 34 | BX33: 21.01817894 | BY33: 6.824013317 | BZ33: 27.07500076 | CA33: 8.122861862 | CB33: 2.587533712 | CC33: 0.2384863943 | CD33: 0.07044559717 | CE33: N | CF33: 0 | CG33: 29.76350543 | CH33: 9.999996041 | CI33: 33 | CJ33: 33 | CK33: 0 | CL33: 0 | CM33: 29 | CN33: 1.5 | CO33: 33 | CP33: 13.59999943 | CQ33: 9.094520143 | CR33: 9.375 | CS33: 2.098967075 | CT33: 6.47937727 | CU33: 0.2349530607 | CV33: 0.08098858595 | CW33: G | CX33: 0 | CY33: 26.15241162 | CZ33: 10.0001242 | DA33: 34 | DB33: 34 | DC33: 0 | DD33: 0 | DE33: 29 | DF33: 0.200000003 | DG33: 126.5 | DH33: 32.52000427 | DI33: 36.97524939 | DJ33: 12.82999992 | DK33: 0.6497062445 | DL33: 50.05339813 | DM33: 0.3063413203 | DN33: 0.04283881187 | DO33: G | DP33: 38.23529412 | DQ33: 3.456675146 | DR33: 49.99999331 | DS33: 33 | DT33: 33 | DU33: 13 | DV33: 38.23529412 | DW33: 29 | DX33: 14.61999969 | DY33: 22.36999969 | DZ33: 18.00117645 | EA33: 1.944902693 | EB33: 19.14083252 | EC33: 8.798356628 | ED33: 2.045970201 | EE33: 0.02349530607 | EF33: 0.005738370121 | EG33: N | EH33: 0 | EI33: 18.00119892 | EJ33: 49.99953912 | EK33: 34 | EL33: 34 | EM33: 0 | EN33: 0 | EO33: 29 | EP33: 25.88999939 | EQ33: 33.96000061 | ER33: 29.52264099 | ES33: 2.140674255 | ET33: 29.25249939 | EU33: 19.48235016 | EV33: 1.515353203 | EW33: 0.02349530607 | EX33: 0.006220638752 | EY33: N | EZ33: 0 | FA33: 29.52264192 | FB33: 49.99998263 | FC33: 34 | FD33: 34 | FE33: 0 | FF33: 0 | FG33: 29 | FH33: 20.26000061 | FI33: 28.17999878 | FJ33: 23.76088104 | FK33: 1.944819528 | FL33: 24.87999878 | FM33: 15.29644165 | FN33: 1.553359985 | FO33: 0.02349530607 | FP33: 0.004740826786 | FQ33: N | FR33: 0 | FS33: 23.76085143 | FT33: 50.00060746 | FU33: 34 | FV33: 34 | FW33: 0 | FX33: 0 | FY33: 29 | FZ33: 139 | GA33: 224 | GB33: 193.2352905 | GC33: 18.73427889 | GD33: 188.5833282 | GE33: 103.5987625 | GF33: 1.865227818 | GG33: 0.2349530607 | GH33: 0.04668211937 | GI33: N | GJ33: 0 | GK33: 180.5992148 | GL33: 74.9999943 | GM33: 34 | GN33: 34 | GO33: 0 | GP33: 0
A34: 30 | B34: 1 | C34: 200.6000061 | D34: 48.59393311 | E34: 43.61857352 | F34: 17.63333321 | G34: 1.128853679 | H34: 43.04714966 | I34: 0.2384863943 | J34: 0.0363343358 | K34: G | L34: 2.857142857 | M34: 33.86370282 | N34: 50.00000134 | O34: 33 | P34: 34 | Q34: 1 | R34: 2.857142857 | S34: 30 | T34: 32.10928345 | U34: 55.34234238 | V34: 43.07487488 | W34: 6.038955747 | X34: 41.78972626 | Y34: 52.25556564 | Z34: 0.8243117332 | AA34: 0.2349530607 | AB34: 0.03260999918 | AC34: G | AD34: 0 | AE34: 42.80041901 | AF34: 50.00000052 | AG34: 34 | AH34: 34 | AI34: 0 | AJ34: 0 | AK34: 30 | AL34: 26.89999962 | AM34: 45.59999847 | AN34: 35.61212158 | AO34: 4.796011285 | AP34: 37.80833435 | AQ34: 56.46770096 | AR34: 0.6306635737 | AS34: 0.2384863943 | AT34: 0.0330979228 | AU34: N | AV34: 0 | AW34: 41.75825751 | AX34: 10.0007313 | AY34: 33 | AZ34: 33 | BA34: 0 | BB34: 0 | BC34: 30 | BD34: 149.5550049 | BE34: 219.5399902 | BF34: 194.0323242 | BG34: 14.14456057 | BH34: 202.0437378 | BI34: 9.205391693 | BJ34: 21.07811737 | BK34: 0.01210920364 | BL34: 0.00314367637 | BM34: N | BN34: 0 | BO34: 194.0323698 | BP34: 49.99987143 | BQ34: 32 | BR34: 32 | BS34: 0 | BT34: 0 | BU34: 30 | BV34: 4.400000095 | BW34: 31.70000076 | BX34: 22.70908737 | BY34: 6.517062461 | BZ34: 24.875 | CA34: 8.433232307 | CB34: 2.692809343 | CC34: 0.2384863943 | CD34: 0.1239426136 | CE34: N | CF34: 0 | CG34: 31.06103585 | CH34: 10.00000841 | CI34: 33 | CJ34: 33 | CK34: 0 | CL34: 0 | CM34: 30 | CN34: 0.5 | CO34: 34.59999847 | CP34: 13.52647209 | CQ34: 9.68248358 | CR34: 9.024999619 | CS34: 1.460024118 | CT34: 9.264554024 | CU34: 0.2349530607 | CV34: 0.07936733961 | CW34: G | CX34: 0 | CY34: 28.37345426 | CZ34: 9.999439765 | DA34: 34 | DB34: 34 | DC34: 0 | DD34: 0 | DE34: 30 | DF34: 1.299999952 | DG34: 151.3999939 | DH34: 43.70833206 | DI34: 41.21246072 | DJ34: 16.30999947 | DK34: 0.9463364482 | DL34: 46.18688583 | DM34: 0.2796500921 | DN34: 0.05585318804 | DO34: E | DP34: 26.47058824 | DQ34: 16.8565712 | DR34: 50.0001059 | DS34: 33 | DT34: 33 | DU34: 9 | DV34: 26.47058824 | DW34: 30 | DX34: 15.05 | DY34: 21.58000031 | DZ34: 18.22029266 | EA34: 1.617350064 | EB34: 19.94750061 | EC34: 12.90602875 | ED34: 1.411766052 | EE34: 0.02349530607 | EF34: 0.007067942619 | EG34: N | EH34: 0 | EI34: 18.22029601 | EJ34: 49.99991756 | EK34: 34 | EL34: 34 | EM34: 0 | EN34: 0 | EO34: 30 | EP34: 25.33999939 | EQ34: 33.63999939 | ER34: 29.60823364 | ES34: 2.115725395 | ET34: 30.18166504 | EU34: 20.16615143 | EV34: 1.468214393 | EW34: 0.02349530607 | EX34: 0.002729204297 | EY34: N | EZ34: 0 | FA34: 29.60823474 | FB34: 49.99997928 | FC34: 34 | FD34: 34 | FE34: 0 | FF34: 0 | FG34: 30 | FH34: 20.23999939 | FI34: 27.61000061 | FJ34: 23.91264343 | FK34: 1.739345531 | FL34: 24.53916626 | FM34: 19.36904907 | FN34: 1.234580159 | FO34: 0.02349530607 | FP34: 0.005090714991 | FQ34: G | FR34: 0 | FS34: 23.87150376 | FT34: 49.99999701 | FU34: 34 | FV34: 34 | FW34: 0 | FX34: 0 | FY34: 30 | FZ34: 159 | GA34: 250 | GB34: 204.3235321 | GC34: 25.1272166 | GD34: 212.0833282 | GE34: 67.32740021 | GF34: 3.034775257 | GG34: 0.2349530607 | GH34: 0.03921562433 | GI34: U | GJ34: 0 | GK34: 181.75 | GL34: 75 | GM34: 34 | GN34: 34 | GO34: 0 | GP34: 0
A35: 31 | B35: 4.800000191 | C35: 100.8000031 | D35: 39.3999939 | E35: 23.74913136 | F35: 28.79999924 | G35: 2.614294529 | H35: 15.07098484 | I35: 0.2349530607 | J35: 0.03022527695 | K35: G | L35: 0 | M35: 34.50618274 | N35: 50.00009442 | O35: 34 | P35: 34 | Q35: 0 | R35: 0 | S35: 31 | T35: 34.31162262 | U35: 59.22391129 | V35: 45.05619812 | W35: 5.366544593 | X35: 44.69174194 | Y35: 74.64054108 | Z35: 0.6036424637 | AA35: 0.2349530607 | AB35: 0.03492248058 | AC35: G | AD35: 0 | AE35: 44.85524178 | AF35: 49.99926912 | AG35: 34 | AH35: 34 | AI35: 0 | AJ35: 0 | AK35: 31 | AL35: 28.29999924 | AM35: 49.40000153 | AN35: 39.78485107 | AO35: 4.213973669 | AP35: 37.09166718 | AQ35: 89.32045746 | AR35: 0.4454170167 | AS35: 0.2384863943 | AT35: 0.02929908037 | AU35: G | AV35: 0 | AW35: 45.26581109 | AX35: 10.00092626 | AY35: 33 | AZ35: 33 | BA35: 0 | BB35: 0 | BC35: 31 | BD35: 146.3650024 | BE35: 205.7949951 | BF35: 192.0107666 | BG35: 12.33631026 | BH35: 200.8424927 | BI35: 11.31138916 | BJ35: 16.97499466 | BK35: 0.01210920364 | BL35: 0.006143811345 | BM35: N | BN35: 0 | BO35: 192.0107646 | BP35: 50.00000639 | BQ35: 32 | BR35: 32 | BS35: 0 | BT35: 0 | BU35: 31 | BV35: 11 | BW35: 40.59999847 | BX35: 30.48787689 | BY35: 6.620034138 | BZ35: 33.19999695 | CA35: 15.84119701 | CB35: 1.924594283 | CC35: 0.2384863943 | CD35: 0.08995509148 | CE35: N | CF35: 0 | CG35: 38.97179537 | CH35: 9.999991077 | CI35: 33 | CJ35: 33 | CK35: 0 | CL35: 0 | CM35: 31 | CN35: 0.6000000238 | CO35: 42.5 | CP35: 10.27352905 | CQ35: 8.919108642 | CR35: 4.091666698 | CS35: 1.623588204 | CT35: 6.327669144 | CU35: 0.2349530607 | CV35: 0.05648684502 | CW35: G | CX35: 0 | CY35: 21.00081966 | CZ35: 9.999197164 | DA35: 34 | DB35: 34 | DC35: 0 | DD35: 0 | DE35: 31 | DF35: 0.5 | DG35: 92 | DH35: 23.21739197 | DI35: 22.09260904 | DJ35: 9.649999619 | DK35: 0.9055666327 | DL35: 25.63852501 | DM35: 0.2856647372 | DN35: 0.05634570122 | DO35: G | DP35: 29.41176471 | DQ35: 7.302815807 | DR35: 49.99997367 | DS35: 33 | DT35: 33 | DU35: 10 | DV35: 29.41176471 | DW35: 31 | DX35: 15.95 | DY35: 21.51999969 | DZ35: 18.91617432 | EA35: 1.592269245 | EB35: 20.12749939 | EC35: 14.26439819 | ED35: 1.326110959 | EE35: 0.02349530607 | EF35: 0.007843136787 | EG35: U | EH35: 0 | EI35: 18.73499985 | EJ35: 50 | EK35: 34 | EL35: 34 | EM35: 0 | EN35: 0 | EO35: 31 | EP35: 26.5 | EQ35: 35.22000122 | ER35: 30.13440857 | ES35: 1.810751194 | ET35: 30.13333435 | EU35: 28.58521423 | EV35: 1.054195642 | EW35: 0.02349530607 | EX35: 0.002417224646 | EY35: G | EZ35: 0 | FA35: 30.09928822 | FB35: 49.99972007 | FC35: 34 | FD35: 34 | FE35: 0 | FF35: 0 | FG35: 31 | FH35: 21.41000061 | FI35: 28.37999878 | FJ35: 24.52558594 | FK35: 1.591913675 | FL35: 24.31416626 | FM35: 24.31387024 | FN35: 1.008707643 | FO35: 0.02349530607 | FP35: 0.004497631639 | FQ35: N | FR35: 0 | FS35: 24.52558572 | FT35: 50.00000555 | FU35: 34 | FV35: 34 | FW35: 0 | FX35: 0 | FY35: 31 | FZ35: 164 | GA35: 252 | GB35: 211.3823547 | GC35: 21.26601462 | GD35: 215.3333282 | GE35: 99.05032349 | GF35: 2.134090424 | GG35: 0.2349530607 | GH35: 0.0756302774 | GI35: T | GJ35: 0 | GK35: 197.6055787 | GL35: 74.99996241 | GM35: 34 | GN35: 34 | GO35: 0 | GP35: 0
A36: 32 | B36: 2 | C36: 153.1000061 | D36: 46.02812576 | E36: 33.21484536 | F36: 39.77500153 | G36: 1.896041632 | H36: 24.2759037 | I36: 0.2421840727 | J36: 0.06010311842 | K36: G | L36: 5.714285714 | M36: 36.00924643 | N36: 50.0000257 | O36: 32 | P36: 34 | Q36: 2 | R36: 5.714285714 | S36: 32 | T36: 35.91645813 | U36: 63.05947113 | V36: 46.2441597 | W36: 6.329799704 | X36: 47.22604752 | Y36: 57.80743408 | Z36: 0.7999690771 | AA36: 0.2349530607 | AB36: 0.05076038837 | AC36: G | AD36: 0 | AE36: 45.97777835 | AF36: 50.00000041 | AG36: 34 | AH36: 34 | AI36: 0 | AJ36: 0 | AK36: 32 | AL36: 34.79999924 | AM36: 64 | AN36: 45.790905 | AO36: 6.874834926 | AP36: 46.96666718 | AQ36: 47.17326736 | AR36: 0.9706960917 | AS36: 0.2384863943 | AT36: 0.07019299269 | AU36: G | AV36: 0 | AW36: 54.51582929 | AX36: 10.00000253 | AY36: 33 | AZ36: 33 | BA36: 0 | BB36: 0 | BC36: 32 | BD36: 160.075 | BE36: 218.0800049 | BF36: 187.9114136 | BG36: 12.26103338 | BH36: 184.24375 | BI36: 12.17774048 | BJ36: 15.43072891 | BK36: 0.01210920364 | BL36: 0.002100628614 | BM36: N | BN36: 0 | BO36: 187.9114133 | BP36: 50.00000078 | BQ36: 32 | BR36: 32 | BS36: 0 | BT36: 0 | BU36: 32 | BV36: 16.70000076 | BW36: 62.09999847 | BX36: 40.5484848 | BY36: 10.1570515 | BZ36: 35.61666489 | CA36: 13.54986572 | CB36: 2.992537737 | CC36: 0.2384863943 | CD36: 0.0595625788 | CE36: N | CF36: 0 | CG36: 53.56527974 | CH36: 9.999983271 | CI36: 33 | CJ36: 33 | CK36: 0 | CL36: 0 | CM36: 32 | CN36: 0.400000006 | CO36: 48.70000076 | CP36: 6.928125381 | CQ36: 9.986191562 | CR36: 4.425000191 | CS36: 0.8359943628 | CT36: 8.287286758 | CU36: 0.2421840727 | CV36: 0.1030902863 | CW36: G | CX36: 5.714285714 | CY36: 16.20830513 | CZ36: 9.999541248 | DA36: 34 | DB36: 34 | DC36: 2 | DD36: 5.714285714 | DE36: 32 | DF36: 0.1000000015 | DG36: 78.69999695 | DH36: 22.21578979 | DI36: 25.97009553 | DJ36: 7.959999561 | DK36: 0.5370250344 | DL36: 41.36825562 | DM36: 0.3142995536 | DN36: 0.06842023134 | DO36: G | DP36: 41.17647059 | DQ36: 0.9842096545 | DR36: 50.00000405 | DS36: 33 | DT36: 33 | DU36: 14 | DV36: 41.17647059 | DW36: 32 | DX36: 16.25 | DY36: 21.78999939 | DZ36: 19.01323547 | EA36: 1.560098398 | EB36: 20.40500031 | EC36: 15.21264496 | ED36: 1.249830961 | EE36: 0.02349530607 | EF36: 0.006862735748 | EG36: U | EH36: 0 | EI36: 19.01999969 | EJ36: 50 | EK36: 34 | EL36: 34 | EM36: 0 | EN36: 0 | EO36: 32 | EP36: 26.12999878 | EQ36: 33.41000061 | ER36: 30.07970581 | ES36: 1.850017816 | ET36: 30.37666626 | EU36: 26.98469849 | EV36: 1.114694953 | EW36: 0.02349530607 | EX36: 0.00876738131 | EY36: G | EZ36: 0 | FA36: 30.04257064 | FB36: 49.99974359 | FC36: 34 | FD36: 34 | FE36: 0 | FF36: 0 | FG36: 32 | FH36: 21.36999969 | FI36: 27.12999878 | FJ36: 24.54529266 | FK36: 1.552851214 | FL36: 24.72999878 | FM36: 25.51677856 | FN36: 0.9619275928 | FO36: 0.02349530607 | FP36: 0.008780705929 | FQ36: N | FR36: 0 | FS36: 24.54529229 | FT36: 50.00000966 | FU36: 34 | FV36: 34 | FW36: 0 | FX36: 0 | FY36: 32 | FZ36: 173 | GA36: 277 | GB36: 220.5588226 | GC36: 25.12295934 | GD36: 216.3333282 | GE36: 80.11643982 | GF36: 2.752978325 | GG36: 0.2349530607 | GH36: 0.03205239773 | GI36: G | GJ36: 0 | GK36: 203.4765929 | GL36: 74.99999871 | GM36: 34 | GN36: 34 | GO36: 0 | GP36: 0
A37: 33 | B37: 3.099999905 | C37: 158.8999939 | D37: 40.72903442 | E37: 33.68341957 | F37: 18.6799984 | G37: 1.725009084 | H37: 23.61091042 | I37: 0.2460592687 | J37: 0.0560131073 | K37: E | L37: 8.571428571 | M37: 24.58121287 | N37: 50.00022811 | O37: 31 | P37: 34 | Q37: 3 | R37: 8.571428571 | S37: 33 | T37: 30.37265587 | U37: 62.11491776 | V37: 48.18896103 | W37: 5.884630791 | X37: 48.88897705 | Y37: 63.25439835 | Z37: 0.7618278265 | AA37: 0.2349530607 | AB37: 0.05010492727 | AC37: N | AD37: 0 | AE37: 48.18892824 | AF37: 50.00022232 | AG37: 34 | AH37: 34 | AI37: 0 | AJ37: 0 | AK37: 33 | AL37: 32.79999924 | AM37: 66.5 | AN37: 50.09090805 | AO37: 6.448515717 | AP37: 52.45833206 | AQ37: 59.24714279 | AR37: 0.8454569578 | AS37: 0.2384863943 | AT37: 0.08114778996 | AU37: N | AV37: 0 | AW37: 58.35475102 | AX37: 10.00071427 | AY37: 33 | AZ37: 33 | BA37: 0 | BB37: 0 | BC37: 33 | BD37: 153.3 | BE37: 207.0149902 | BF37: 180.9228394 | BG37: 15.47873668 | BH37: 184.6337402 | BI37: 7.021117401 | BJ37: 25.76838303 | BK37: 0.01210920364 | BL37: 0.002425158024 | BM37: N | BN37: 0 | BO37: 180.9229887 | BP37: 49.999615 | BQ37: 32 | BR37: 32 | BS37: 0 | BT37: 0 | BU37: 33 | BV37: 9.399999619 | BW37: 60 | BX37: 43.87576294 | BY37: 11.69602093 | BZ37: 47.34999847 | CA37: 8.995555878 | CB37: 4.877493382 | CC37: 0.2384863943 | CD37: 0.1346814632 | CE37: N | CF37: 0 | CG37: 58.86479018 | CH37: 10.00004005 | CI37: 33 | CJ37: 33 | CK37: 0 | CL37: 0 | CM37: 33 | CN37: 0.1000000015 | CO37: 36.09999847 | CP37: 7.78064537 | CQ37: 10.04829722 | CR37: 3.699999809 | CS37: 0.7572548985 | CT37: 10.27480316 | CU37: 0.2460592687 | CV37: 0.07868593931 | CW37: G | CX37: 8.571428571 | CY37: 18.33023696 | CZ37: 9.999740535 | DA37: 34 | DB37: 34 | DC37: 3 | DD37: 8.571428571 | DE37: 33 | DF37: 0.200000003 | DG37: 56.70000076 | DH37: 13.69090939 | DI37: 21.07825603 | DJ37: 5.849999905 | DK37: 0.5031796098 | DL37: 27.20879173 | DM37: 0.3983826041 | DN37: 0.113473177 | DO37: G | DP37: 64.70588235 | DQ37: 0 | DR37: 35.29411765 | DS37: 33 | DT37: 33 | DU37: 22 | DV37: 64.70588235 | DW37: 33 | DX37: 16.8 | DY37: 22.23000031 | DZ37: 19.51617432 | EA37: 1.271601317 | EB37: 19.0625 | EC37: 24.58033295 | ED37: 0.7939751744 | EE37: 0.02349530607 | EF37: 0.007422959805 | EG37: T | EH37: 0 | EI37: 19.29746823 | EJ37: 49.99988692 | EK37: 34 | EL37: 34 | EM37: 0 | EN37: 0 | EO37: 33 | EP37: 27.62999878 | EQ37: 34.16000061 | ER37: 30.84676819 | ES37: 1.385178447 | ET37: 30.35083313 | EU37: 51.05869751 | EV37: 0.6041432619 | EW37: 0.02349530607 | EX37: 0.001512277126 | EY37: N | EZ37: 0 | FA37: 30.84676913 | FB37: 49.9999729 | FC37: 34 | FD37: 34 | FE37: 0 | FF37: 0 | FG37: 33 | FH37: 23.33999939 | FI37: 28.18999939 | FJ37: 25.18499756 | FK37: 1.158947313 | FL37: 24.55249939 | FM37: 49.47418213 | FN37: 0.5090533495 | FO37: 0.02349530607 | FP37: 0.007427608967 | FQ37: G | FR37: 0 | FS37: 25.16803266 | FT37: 49.99996665 | FU37: 34 | FV37: 34 | FW37: 0 | FX37: 0 | FY37: 33 | FZ37: 150 | GA37: 271 | GB37: 227.4411774 | GC37: 24.6037568 | GD37: 240.75 | GE37: 80.01834869 | GF37: 2.842362881 | GG37: 0.2349530607 | GH37: 0.110825181 | GI37: N | GJ37: 0 | GK37: 210.8462002 | GL37: 74.9999941 | GM37: 34 | GN37: 34 | GO37: 0 | GP37: 0
A38: 34 | B38: 1.899999976 | C38: 132.3000031 | D38: 47.50937653 | E38: 32.81016919 | F38: 34.5 | G38: 1.887120366 | H38: 25.17559433 | I38: 0.2421840727 | J38: 0.0394513011 | K38: G | L38: 5.714285714 | M38: 37.12777746 | N38: 50.00002711 | O38: 32 | P38: 34 | Q38: 2 | R38: 5.714285714 | S38: 34 | T38: 34.28611755 | U38: 63.77674866 | V38: 47.39420319 | W38: 6.921412054 | X38: 41.65877533 | Y38: 49.10334396 | Z38: 0.9651929736 | AA38: 0.2349530607 | AB38: 0.02505454421 | AC38: T | AD38: 0 | AE38: 45.71749848 | AF38: 50.00000319 | AG38: 34 | AH38: 34 | AI38: 0 | AJ38: 0 | AK38: 34 | AL38: 36.70000076 | AM38: 67.80000305 | AN38: 48.85757446 | AO38: 6.670833462 | AP38: 44.47500229 | AQ38: 58.25380707 | AR38: 0.8387018442 | AS38: 0.2384863943 | AT38: 0.06984463334 | AU38: N | AV38: 0 | AW38: 57.40631163 | AX38: 10.00073639 | AY38: 33 | AZ38: 33 | BA38: 0 | BB38: 0 | BC38: 34 | BD38: 149.3800049 | BE38: 211.5699951 | BF38: 175.6807983 | BG38: 17.20628235 | BH38: 175.2925049 | BI38: 5.568205643 | BJ38: 31.55070305 | BK38: 0.01210920364 | BL38: 0.003157511353 | BM38: G | BN38: 0 | BO38: 175.1552389 | BP38: 49.9999989 | BQ38: 32 | BR38: 32 | BS38: 0 | BT38: 0 | BU38: 34 | BV38: 11.60000038 | BW38: 64.5 | BX38: 41.33333206 | BY38: 10.60830058 | BZ38: 33.64166641 | CA38: 12.21726704 | CB38: 3.383189678 | CC38: 0.2384863943 | CD38: 0.05436913669 | CE38: N | CF38: 0 | CG38: 54.92840839 | CH38: 10.00001306 | CI38: 33 | CJ38: 33 | CK38: 0 | CL38: 0 | CM38: 34 | CN38: 0.200000003 | CO38: 41.40000153 | CP38: 9.656666756 | CQ38: 11.373796 | CR38: 4.320000172 | CS38: 0.689226687 | CT38: 14.01087189 | CU38: 0.2501266301 | CV38: 0.03798049688 | CW38: G | CX38: 11.42857143 | CY38: 22.82623728 | CZ38: 9.999248868 | DA38: 34 | DB38: 34 | DC38: 4 | DD38: 11.42857143 | DE38: 34 | DF38: 1.200000048 | DG38: 69.90000153 | DH38: 30.05714226 | DI38: 26.72108108 | DJ38: 8.070000648 | DK38: 0.9454964995 | DL38: 31.78979683 | DM38: 0.5063166618 | DN38: 0.1621125638 | DO38: N | DP38: 76.47058824 | DQ38: 0 | DR38: 20.46289828 | DS38: 33 | DT38: 33 | DU38: 26 | DV38: 76.47058824 | DW38: 34 | DX38: 16.48999939 | DY38: 21.68999939 | DZ38: 19.78176422 | EA38: 1.123782809 | EB38: 19.52333221 | EC38: 31.32619934 | ED38: 0.6314767003 | EE38: 0.02349530607 | EF38: 0.008028578758 | EG38: N | EH38: 0 | EI38: 19.78176494 | EJ38: 49.99997446 | EK38: 34 | EL38: 34 | EM38: 0 | EN38: 0 | EO38: 34 | EP38: 28.42999878 | EQ38: 34 | ER38: 30.70793762 | ES38: 1.628399202 | ET38: 28.89416504 | EU38: 37.02249756 | EV38: 0.8294399381 | EW38: 0.02349530607 | EX38: 0.009384000301 | EY38: N | EZ38: 0 | FA38: 30.7079391 | FB38: 49.99996379 | FC38: 34 | FD38: 34 | FE38: 0 | FF38: 0 | FG38: 34 | FH38: 22.83000031 | FI38: 27.46000061 | FJ38: 25.24176483 | FK38: 1.179027457 | FL38: 25.53083344 | FM38: 47.19570923 | FN38: 0.5348317623 | FO38: 0.02349530607 | FP38: 0.005990052223 | FQ38: N | FR38: 0 | FS38: 25.24176376 | FT38: 50.00003624 | FU38: 34 | FV38: 34 | FW38: 0 | FX38: 0 | FY38: 34 | FZ38: 162 | GA38: 274 | GB38: 224 | GC38: 27.97401421 | GD38: 246 | GE38: 63.03364563 | GF38: 3.55365777 | GG38: 0.2349530607 | GH38: 0.05173158646 | GI38: N | GJ38: 0 | GK38: 205.1318195 | GL38: 74.99999389 | GM38: 34 | GN38: 34 | GO38: 0 | GP38: 0
A39: 35 | B39: 4.5 | C39: 182.8000031 | D39: 52.44242096 | E39: 43.69876325 | F39: 49.07500076 | G39: 1.608531952 | H39: 32.60266113 | I39: 0.2384863943 | J39: 0.08897733688 | K39: G | L39: 2.857142857 | M39: 40.74457829 | N39: 50.00007562 | O39: 33 | P39: 34 | Q39: 1 | R39: 2.857142857 | S39: 35 | T39: 34.19269562 | U39: 56.28239441 | V39: 44.73388672 | W39: 6.121127091 | X39: 47.07835388 | Y39: 54.30520248 | Z39: 0.8237495422 | AA39: 0.2349530607 | AB39: 0.05845472217 | AC39: N | AD39: 0 | AE39: 44.73384917 | AF39: 50.00024472 | AG39: 34 | AH39: 34 | AI39: 0 | AJ39: 0 | AK39: 35 | AL39: 31 | AM39: 58 | AN39: 45.79091263 | AO39: 6.733376272 | AP39: 46.75 | AQ39: 45.88757706 | AR39: 0.9978934526 | AS39: 0.2384863943 | AT39: 0.03182291985 | AU39: N | AV39: 0 | AW39: 54.41978879 | AX39: 10.00076301 | AY39: 33 | AZ39: 33 | BA39: 0 | BB39: 0 | BC39: 35 | BD39: 147.2349976 | BE39: 209.1149902 | BF39: 175.3071899 | BG39: 16.54237516 | BH39: 162.7049927 | BI39: 5.842029572 | BJ39: 30.00792503 | BK39: 0.01210920364 | BL39: 0.003645837307 | BM39: U | BN39: 0 | BO39: 178.1749939 | BP39: 50 | BQ39: 32 | BR39: 32 | BS39: 0 | BT39: 0 | BU39: 35 | BV39: 18.89999962 | BW39: 54 | BX39: 39.99393845 | BY39: 8.626555814 | BZ39: 45.22499847 | CA39: 18.71214294 | CB39: 2.137325287 | CC39: 0.2384863943 | CD39: 0.06060609221 | CE39: T | CF39: 0 | CG39: 48.44999002 | CH39: 10.00076463 | CI39: 33 | CJ39: 33 | CK39: 0 | CL39: 0 | CM39: 35 | CN39: 0.1000000015 | CO39: 39 | CP39: 7.941380024 | CQ39: 9.364733148 | CR39: 3.99000001 | CS39: 0.8062576652 | CT39: 9.849679947 | CU39: 0.2544026077 | CV39: 0.04568254948 | CW39: G | CX39: 14.28571429 | CY39: 17.86066763 | CZ39: 9.999769252 | DA39: 34 | DB39: 34 | DC39: 5 | DD39: 14.28571429 | DE39: 35 | DF39: 2.900000095 | DG39: 107.0999985 | DH39: 38.61817932 | DI39: 32.44034113 | DJ39: 34.15999985 | DK39: 1.509180546 | DL39: 25.58884048 | DM39: 0.3983826041 | DN39: 0.08525818586 | DO39: E | DP39: 64.70588235 | DQ39: 0 | DR39: 35.29411765 | DS39: 33 | DT39: 33 | DU39: 22 | DV39: 64.70588235 | DW39: 35 | DX39: 17.98999939 | DY39: 23.2 | DZ39: 20.32529449 | EA39: 1.021885564 | EB39: 21.02916565 | EC39: 40.91959839 | ED39: 0.4967129529 | EE39: 0.02349530607 | EF39: 0.004220283031 | EG39: N | EH39: 0 | EI39: 20.32529508 | EJ39: 49.99997706 | EK39: 34 | EL39: 34 | EM39: 0 | EN39: 0 | EO39: 35 | EP39: 27.12000122 | EQ39: 34.62000122 | ER39: 30.6067627 | ES39: 1.746365419 | ET39: 30.24500122 | EU39: 31.94805298 | EV39: 0.9580165148 | EW39: 0.02349530607 | EX39: 0.007563024759 | EY39: T | EZ39: 0 | FA39: 30.56954553 | FB39: 49.99982119 | FC39: 34 | FD39: 34 | FE39: 0 | FF39: 0 | FG39: 35 | FH39: 22.86000061 | FI39: 28.88999939 | FJ39: 25.46323242 | FK39: 1.250376347 | FL39: 25.37250061 | FM39: 43.07740479 | FN39: 0.5911041498 | FO39: 0.02349530607 | FP39: 0.004230803251 | FQ39: N | FR39: 0 | FS39: 25.46323119 | FT39: 50.00003941 | FU39: 34 | FV39: 34 | FW39: 0 | FX39: 0 | FY39: 35 | FZ39: 169 | GA39: 258 | GB39: 212.3529358 | GC39: 25.64073331 | GD39: 220.9166718 | GE39: 69.31191254 | GF39: 3.063729286 | GG39: 0.2349530607 | GH39: 0.05882352591 | GI39: U | GJ39: 0 | GK39: 191.25 | GL39: 75 | GM39: 34 | GN39: 34 | GO39: 0 | GP39: 0
A40: 36 | B40: 3.900000095 | C40: 195.8999939 | D40: 52.17058563 | E40: 52.24973834 | F40: 19.89999962 | G40: 1.271931291 | H40: 41.01682663 | I40: 0.2349530607 | J40: 0.07706463337 | K40: E | L40: 0 | M40: 36.1618913 | N40: 50.00000291 | O40: 34 | P40: 34 | Q40: 0 | R40: 0 | S40: 36 | T40: 35.15005112 | U40: 64.45723724 | V40: 47.04106522 | W40: 7.029179383 | X40: 47.36137772 | Y40: 48.1007576 | Z40: 0.9779693484 | AA40: 0.2349530607 | AB40: 0.06257158518 | AC40: G | AD40: 0 | AE40: 46.71548134 | AF40: 50.00000064 | AG40: 34 | AH40: 34 | AI40: 0 | AJ40: 0 | AK40: 36 | AL40: 35.79999924 | AM40: 58.79999924 | AN40: 46.51514816 | AO40: 6.067697715 | AP40: 45.3833313 | AQ40: 61.05317688 | AR40: 0.7618792653 | AS40: 0.2384863943 | AT40: 0.03696298599 | AU40: N | AV40: 0 | AW40: 54.29096698 | AX40: 10.00071931 | AY40: 33 | AZ40: 33 | BA40: 0 | BB40: 0 | BC40: 36 | BD40: 144.3699951 | BE40: 226.925 | BF40: 177.2546753 | BG40: 21.08961626 | BH40: 165.0087402 | BI40: 3.702565384 | BJ40: 47.87347794 | BK40: 0.01210920364 | BL40: 0.002875448763 | BM40: G | BN40: 0 | BO40: 176.4574506 | BP40: 49.999965 | BQ40: 32 | BR40: 32 | BS40: 0 | BT40: 0 | BU40: 36 | BV40: 20.10000038 | BW40: 57.70000076 | BX40: 39.2696991 | BY40: 11.42993581 | BZ40: 42.03333282 | CA40: 10.74425793 | CB40: 3.654947519 | CC40: 0.2384863943 | CD40: 0.04545459151 | CE40: U | CF40: 0 | CG40: 53.94000072 | CH40: 10 | CI40: 33 | CJ40: 33 | CK40: 0 | CL40: 0 | CM40: 36 | CN40: 0.1000000015 | CO40: 41.29999924 | CP40: 9.346665382 | CQ40: 11.41238598 | CR40: 4.21999979 | CS40: 0.6431083083 | CT40: 14.53357887 | CU40: 0.2501266301 | CV40: 0.0520876646 | CW40: G | CX40: 11.42857143 | CY40: 22.40519338 | CZ40: 10.00015749 | DA40: 34 | DB40: 34 | DC40: 4 | DD40: 11.42857143 | DE40: 36 | DF40: 0.1000000015 | DG40: 125.3000031 | DH40: 38.40714264 | DI40: 45.68476394 | DJ40: 12.62000084 | DK40: 0.4260824323 | DL40: 90.14016724 | DM40: 0.340793103 | DN40: 0.1116371155 | DO40: E | DP40: 55.88235294 | DQ40: 0 | DR40: 44.11764706 | DS40: 33 | DT40: 33 | DU40: 19 | DV40: 55.88235294 | DW40: 36 | DX40: 18.16000061 | DY40: 21.88000031 | DZ40: 20.39735413 | EA40: 1.037226298 | EB40: 21.56999969 | EC40: 39.44606628 | ED40: 0.5170947313 | EE40: 0.02349530607 | EF40: 0.009509956837 | EG40: G | EH40: 0 | EI40: 20.38011397 | EJ40: 50.00020119 | EK40: 34 | EL40: 34 | EM40: 0 | EN40: 0 | EO40: 36 | EP40: 28.28999939 | EQ40: 34.98999939 | ER40: 30.86411743 | ES40: 1.772953541 | ET40: 29.96499939 | EU40: 31.97985535 | EV40: 0.9651112556 | EW40: 0.02349530607 | EX40: 0.00712377727 | EY40: G | EZ40: 0 | FA40: 30.83196583 | FB40: 49.99972514 | FC40: 34 | FD40: 34 | FE40: 0 | FF40: 0 | FG40: 36 | FH40: 23.41999969 | FI40: 28.17999878 | FJ40: 25.63353271 | FK40: 1.271098012 | FL40: 25.40333252 | FM40: 42.15014343 | FN40: 0.6081481576 | FO40: 0.02349530607 | FP40: 0.00699622035 | FQ40: N | FR40: 0 | FS40: 25.63353144 | FT40: 50.00004003 | FU40: 34 | FV40: 34 | FW40: 0 | FX40: 0 | FY40: 36 | FZ40: 177 | GA40: 266 | GB40: 223.3529358 | GC40: 24.94585934 | GD40: 214.0833282 | GE40: 82.20291138 | GF40: 2.717092752 | GG40: 0.2349530607 | GH40: 0.05780339241 | GI40: N | GJ40: 0 | GK40: 206.527214 | GL40: 74.99999405 | GM40: 34 | GN40: 34 | GO40: 0 | GP40: 0
A41: 37 | B41: 2 | C41: 141.3000031 | D41: 43.390625 | E41: 34.9432733 | F41: 13.60833359 | G41: 1.345521331 | H41: 32.24818802 | I41: 0.2421840727 | J41: 0.0370644927 | K41: G | L41: 5.714285714 | M41: 30.87985123 | N41: 50.00053955 | O41: 32 | P41: 34 | Q41: 2 | R41: 5.714285714 | S41: 37 | T41: 14.00126457 | U41: 34.90717697 | V41: 23.3508873 | W41: 4.543498565 | X41: 22.71206093 | Y41: 26.76749229 | Z41: 0.8723599315 | AA41: 0.2349530607 | AB41: 0.03101632744 | AC41: G | AD41: 0 | AE41: 23.06075373 | AF41: 49.99999945 | AG41: 34 | AH41: 34 | AI41: 0 | AJ41: 0 | AK41: 37 | AL41: 14.60000038 | AM41: 31.70000076 | AN41: 22.7696991 | AO41: 4.54150871 | AP41: 24.57500076 | AQ41: 25.49401283 | AR41: 0.8931390643 | AS41: 0.2384863943 | AT41: 0.05222249031 | AU41: N | AV41: 0 | AW41: 28.5896546 | AX41: 10.00085827 | AY41: 33 | AZ41: 33 | BA41: 0 | BB41: 0 | BC41: 37 | BD41: 74.37000122 | BE41: 135.3199951 | BF41: 93.02688599 | BG41: 12.42590933 | BH41: 89.60750122 | BI41: 3.17292347 | BJ41: 29.31898117 | BK41: 0.01210920364 | BL41: 0.003082939982 | BM41: G | BN41: 0 | BO41: 92.538693 | BP41: 49.99999903 | BQ41: 32 | BR41: 32 | BS41: 0 | BT41: 0 | BU41: 37 | BV41: 11.10000038 | BW41: 29.20000076 | BX41: 20.10909271 | BY41: 4.661636207 | BZ41: 18.64166641 | CA41: 17.73498535 | CB41: 1.133865714 | CC41: 0.2384863943 | CD41: 0.02589905262 | CE41: N | CF41: 0 | CG41: 26.08321899 | CH41: 10.00000338 | CI41: 33 | CJ41: 33 | CK41: 0 | CL41: 0 | CM41: 37 | CN41: 0.1000000015 | CO41: 12.19999981 | CP41: 3.511999846 | CQ41: 3.707011569 | CR41: 1.310000062 | CS41: 0.7463126779 | CT41: 4.705802441 | CU41: 0.273999989 | CV41: 0.04439985752 | CW41: G | CX41: 23.52941176 | CY41: 7.540702214 | CZ41: 9.999443194 | DA41: 33 | DB41: 33 | DC41: 8 | DD41: 23.52941176 | DE41: 37 | DF41: 0.200000003 | DG41: 19 | DH41: 7.983333588 | DI41: 8.079706801 | DJ41: 2.079999924 | DK41: 0.7723478079 | DL41: 10.33644867 | DM41: 0.5431278348 | DN41: 0.1749637127 | DO41: G | DP41: 79.41176471 | DQ41: 0 | DR41: 20.58823529 | DS41: 33 | DT41: 33 | DU41: 27 | DV41: 79.41176471 | DW41: 37 | DX41: 16.67711419 | DY41: 25.16762589 | DZ41: 20.59834792 | EA41: 2.321309881 | EB41: 18.79974139 | EC41: 15.71826999 | ED41: 1.310471654 | EE41: 0.04462800554 | EF41: 0.01444403035 | EG41: G | EH41: 0 | EI41: 20.51544758 | EJ41: 49.99977289 | EK41: 34 | EL41: 34 | EM41: 0 | EN41: 0 | EO41: 37 | EP41: 25.41455412 | EQ41: 39.48942844 | ER41: 30.71567545 | ES41: 3.310241718 | ET41: 28.93327197 | EU41: 17.53442441 | EV41: 1.751735568 | EW41: 0.04462800554 | EX41: 0.01186089636 | EY41: G | EZ41: 0 | FA41: 30.60483679 | FB41: 49.99998541 | FC41: 34 | FD41: 34 | FE41: 0 | FF41: 0 | FG41: 37 | FH41: 21.53968916 | FI41: 32.06260624 | FJ41: 25.65589728 | FK41: 2.713066819 | FL41: 24.17041807 | FM41: 18.19790364 | FN41: 1.409827113 | FO41: 0.04462800554 | FP41: 0.01890152307 | FQ41: N | FR41: 0 | FS41: 25.65591393 | FT41: 49.99975516 | FU41: 34 | FV41: 34 | FW41: 0 | FX41: 0 | FY41: 37 | FZ41: 73 | GA41: 149 | GB41: 112.0882339 | GC41: 20.26546236 | GD41: 117.3333359 | GE41: 30.07548523 | GF41: 3.726897001 | GG41: 0.2349530607 | GH41: 0.02663984895 | GI41: N | GJ41: 0 | GK41: 98.41939801 | GL41: 74.99998321 | GM41: 34 | GN41: 34 | GO41: 0 | GP41: 0
B42: =B4+1 -> 2 | C42: Componente hídrica: | G42: =$G$4 -> Precipitação (P) | L42: P.002 : -22,625 S; -52,625 W | T42: =T4+1 -> 2 | U42: Componente hídrica: | Y42: =$Y$4 -> Evapotranspiração de referência (ETo) | AD42: P.002 : -22,625 S; -52,625 W | AK42: Ponto: | AL42: =AL4+1 -> 2 | AM42: Componente hídrica: | AQ42: =$AQ$4 -> Evapotranspiração da cultura (ETc) | AV42: P.002 : -22,625 S; -52,625 W | BC42: Ponto: | BD42: =BD4+1 -> 2 | BE42: Componente hídrica: | BI42: =$BI$4 -> Armazenamento da água no solo (S) | BN42: P.002 : -22,625 S; -52,625 W | BU42: Ponto: | BV42: =BV4+1 -> 2 | BW42: Componente hídrica: | CA42: Evapotranspiração real (ETr) | CF42: P.002 : -22,625 S; -52,625 W | CM42: Ponto: | CN42: =CN4+1 -> 2 | CO42: Componente hídrica: | CS42: =$CS$4 -> Deficiência hídrica (Def) | CX42: P.002 : -22,625 S; -52,625 W | DE42: Ponto: | DF42: =DF4+1 -> 2 | DG42: Componente hídrica: | DK42: =$DK$4 -> Excedente hídrico (Exc) | DP42: P.002 : -22,625 S; -52,625 W | DW42: Ponto: | DX42: =DX4+1 -> 2 | DY42: Componente hídrica: | EC42: =$EC$4 -> Temperatura mínima (Tmin) | EH42: P.002 : -22,625 S; -52,625 W | EO42: Ponto: | EP42: =EP4+1 -> 2 | EQ42: Componente hídrica: | EU42: =$EU$4 -> Temperatura máxima (Tmax) | EZ42: P.002 : -22,625 S; -52,625 W | FG42: Ponto: | FH42: =FH4+1 -> 2 | FI42: Componente hídrica: | FM42: =$FM$4 -> Temperatura média (Tmed) | FR42: P.002 : -22,625 S; -52,625 W | FY42: Ponto: | FZ42: =FZ4+1 -> 2 | GA42: Componente hídrica: | GE42: =$G$4 -> Precipitação (P) | GJ42: P.002 : -22,625 S; -52,625 W
A43: 1 | B43: 7.199999809 | C43: 213.3000031 | D43: 61.82352829 | E43: 45.53846138 | F43: 58.72500229 | G43: 1.948745489 | H43: 31.72478294 | I43: 0.2349530607 | J43: 0.04562413692 | K43: G | L43: 0 | M43: 51.63037935 | N43: 50.00000076 | O43: 34 | P43: 34 | Q43: 0 | R43: 0 | S43: 1 | T43: 29.42735291 | U43: 63.01521683 | V43: 45.05888748 | W43: 6.84751865 | X43: 49.0202713 | Y43: 41.46659088 | Z43: 1.08663106 | AA43: 0.2349530607 | AB43: 0.0682542026 | AC43: N | AD43: 0 | AE43: 45.05887591 | AF43: 50.00006739 | AG43: 34 | AH43: 34 | AI43: 0 | AJ43: 0 | AK43: 1 | AL43: 20.89999962 | AM43: 55.40000153 | AN43: 40.16470718 | AO43: 9.271261575 | AP43: 46.77500153 | AQ43: 16.72755432 | AR43: 2.401110649 | AS43: 0.2349530607 | AT43: 0.101026535 | AU43: N | AV43: 0 | AW43: 52.04630327 | AX43: 10.00000701 | AY43: 34 | AZ43: 34 | BA43: 0 | BB43: 0 | BC43: 1 | BD43: 57.42999878 | BE43: 114.2849976 | BF43: 89.00424194 | BG43: 16.64230655 | BH43: 109.5470825 | BI43: 1.432968426 | BJ43: 62.11179733 | BK43: 0.01192431971 | BL43: 0.004172484577 | BM43: N | BN43: 0 | BO43: 89.00416811 | BP43: 50.00017699 | BQ43: 33 | BR43: 33 | BS43: 0 | BT43: 0 | BU43: 1 | BV43: 14.10000038 | BW43: 52.20000076 | BX43: 36.13824081 | BY43: 10.28803435 | BZ43: 42.67499924 | CA43: 10.58677292 | CB43: 3.413527489 | CC43: 0.2349530607 | CD43: 0.08061002195 | CE43: T | CF43: 0 | CG43: 46.17585341 | CH43: 10.00002622 | CI43: 34 | CJ43: 34 | CK43: 0 | CL43: 0 | CM43: 1 | CN43: 0.200000003 | CO43: 25.60000038 | CP43: 5.476000309 | CQ43: 6.354674906 | CR43: 2.74000001 | CS43: 0.75623703 | CT43: 7.241116524 | CU43: 0.273999989 | CV43: 0.02778106928 | CW43: E | CX43: 25.71428571 | CY43: 10.98117356 | CZ43: 10.00006151 | DA43: 34 | DB43: 34 | DC43: 9 | DD43: 25.71428571 | DE43: 1 | DF43: 5.900000095 | DG43: 88.90000153 | DH43: 38.47692108 | DI43: 23.37748697 | DJ43: 47.40000153 | DK43: 2.284716129 | DL43: 16.84100723 | DM43: 0.3584900796 | DN43: 0.08393192291 | DO43: N | DP43: 60 | DQ43: 0 | DR43: 38.0042981 | DS43: 34 | DT43: 34 | DU43: 21 | DV43: 60 | DW43: 1 | DX43: 18.05 | DY43: 22.85 | DZ43: 20.761763 | EA43: 1.170618728 | EB43: 20.05 | EC43: 32.06362305 | ED43: 0.6475176811 | EE43: 0.02349530607 | EF43: 0.005142790824 | EG43: G | EH43: 0 | EI43: 20.74018358 | EJ43: 49.99997721 | EK43: 34 | EL43: 34 | EM43: 0 | EN43: 0 | EO43: 1 | EP43: 27.06000061 | EQ43: 33.67999878 | ER43: 30.63235168 | ES43: 1.481203489 | ET43: 30.92166748 | EU43: 43.34669189 | EV43: 0.7066825628 | EW43: 0.02349530607 | EX43: 0.004807060957 | EY43: N | EZ43: 0 | FA43: 30.63235177 | FB43: 49.99999762 | FC43: 34 | FD43: 34 | FE43: 0 | FF43: 0 | FG43: 1 | FH43: 23.51000061 | FI43: 28.23999939 | FJ43: 25.69529419 | FK43: 1.175631998 | FL43: 25.48083344 | FM43: 48.913974 | FN43: 0.525316 | FO43: 0.02349530607 | FP43: 0.004989013076 | FQ43: N | FR43: 0 | FS43: 25.69529406 | FT43: 50.00000439 | FU43: 34 | FV43: 34 | FW43: 0 | FX43: 0 | FY43: 1 | FZ43: 150 | GA43: 273 | GB43: 218.1176453 | GC43: 29.88438619 | GD43: 242.25 | GE43: 50.18398666 | GF43: 4.346359253 | GG43: 0.2349530607 | GH43: 0.07663801312 | GI43: N | GJ43: 0 | GK43: 197.9609389 | GL43: 74.99999377 | GM43: 34 | GN43: 34 | GO43: 0 | GP43: 0
A44: 2 | B44: 4.599999905 | C44: 208.3999939 | D44: 74.86363983 | E44: 54.10157773 | F44: 55.54999924 | G44: 1.454152346 | H44: 51.48266602 | I44: 0.2384863943 | J44: 0.1142748594 | K44: N | L44: 2.857142857 | M44: 72.8688811 | N44: 50.00000339 | O44: 33 | P44: 34 | Q44: 1 | R44: 2.857142857 | S44: 2 | T44: 32.13586426 | U44: 58.24165726 | V44: 44.17554092 | W44: 6.840020823 | X44: 43.01327896 | Y44: 43.57052994 | Z44: 1.013885736 | AA44: 0.2349530607 | AB44: 0.03789824247 | AC44: G | AD44: 0 | AE44: 43.83804038 | AF44: 50.00000035 | AG44: 34 | AH44: 34 | AI44: 0 | AJ44: 0 | AK44: 2 | AL44: 15.30000019 | AM44: 54.79999924 | AN44: 33.35000229 | AO44: 8.507331828 | AP44: 31.75833321 | AQ44: 14.87588024 | AR44: 2.241884232 | AS44: 0.2349530607 | AT44: 0.04163390398 | AU44: N | AV44: 0 | AW44: 44.25251795 | AX44: 10.00014185 | AY44: 34 | AZ44: 34 | BA44: 0 | BB44: 0 | BC44: 2 | BD44: 62.87999878 | BE44: 117.3199951 | BF44: 95.74939575 | BG44: 16.64425107 | BH44: 112.7833252 | BI44: 1.59289465 | BJ44: 60.11031342 | BK44: 0.01192431971 | BL44: 0.005052125454 | BM44: N | BN44: 0 | BO44: 95.74939579 | BP44: 49.99999991 | BQ44: 33 | BR44: 33 | BS44: 0 | BT44: 0 | BU44: 2 | BV44: 10.80000019 | BW44: 40.90000153 | BX44: 29.49705505 | BY44: 7.157809825 | BZ44: 28.35833359 | CA44: 13.95284557 | CB44: 2.114053011 | CC44: 0.2349530607 | CD44: 0.08867646754 | CE44: N | CF44: 0 | CG44: 38.67015636 | CH44: 10.00000266 | CI44: 34 | CJ44: 34 | CK44: 0 | CL44: 0 | CM44: 2 | CN44: 0.1000000015 | CO44: 32.29999924 | CP44: 5.458332539 | CQ44: 6.922233762 | CR44: 3.319999933 | CS44: 0.7209126353 | CT44: 7.571420193 | CU44: 0.2796500921 | CV44: 0.06798970699 | CW44: G | CX44: 28.57142857 | CY44: 11.33088496 | CZ44: 10.00096487 | DA44: 34 | DB44: 34 | DC44: 10 | DD44: 28.57142857 | DE44: 2 | DF44: 1.799999952 | DG44: 137.3999939 | DH44: 54.77894974 | DI44: 49.63359645 | DJ44: 15.35999966 | DK44: 0.8351154923 | DL44: 65.59445953 | DM44: 0.3142995536 | DN44: 0.09334594011 | DO44: E | DP44: 42.85714286 | DQ44: 7.314829966 | DR44: 49.99988999 | DS44: 34 | DT44: 34 | DU44: 15 | DV44: 42.85714286 | DW44: 2 | DX44: 18.55 | DY44: 22.23000031 | DZ44: 20.77382507 | EA44: 0.9699609682 | EB44: 21.31000061 | EC44: 46.25179749 | ED44: 0.4491463304 | EE44: 0.02349530607 | EF44: 0.01178563535 | EG44: N | EH44: 0 | EI44: 20.77382507 | EJ44: 50.00000011 | EK44: 34 | EL44: 34 | EM44: 0 | EN44: 0 | EO44: 2 | EP44: 28.51000061 | EQ44: 33.87000122 | ER44: 30.7552887 | ES44: 1.30871956 | ET44: 29.85 | EU44: 57.6270813 | EV44: 0.5336950421 | EW44: 0.02349530607 | EX44: 0.007645303011 | EY44: G | EZ44: 0 | FA44: 30.73750367 | FB44: 49.99987265 | FC44: 34 | FD44: 34 | FE44: 0 | FF44: 0 | FG44: 2 | FH44: 23.98999939 | FI44: 27.97000122 | FJ44: 25.76470337 | FK44: 0.9436365729 | FL44: 25.64833374 | FM44: 77.20715942 | FN44: 0.3337087333 | FO44: 0.02349530607 | FP44: 0.003802537918 | FQ44: G | FR44: 0 | FS44: 25.75358069 | FT44: 49.99999643 | FU44: 34 | FV44: 34 | FW44: 0 | FX44: 0 | FY44: 2 | FZ44: 161 | GA44: 278 | GB44: 213.5 | GC44: 31.92439016 | GD44: 209.75 | GE44: 46.24123001 | GF44: 4.617091656 | GG44: 0.2349530607 | GH44: 0.0392267704 | GI44: N | GJ44: 0 | GK44: 191.9673324 | GL44: 74.99999367 | GM44: 34 | GN44: 34 | GO44: 0 | GP44: 0
A45: 3 | B45: 1.299999952 | C45: 240.3000031 | D45: 56.04999924 | E45: 48.04377277 | F45: 21.21666527 | G45: 1.724435687 | H45: 32.50338745 | I45: 0.2421840727 | J45: 0.05203473568 | K45: E | L45: 2.857142857 | M45: 37.22614188 | N45: 50.00000503 | O45: 33 | P45: 34 | Q45: 1 | R45: 2.857142857 | S45: 3 | T45: 31.28823662 | U45: 58.43197632 | V45: 43.04178238 | W45: 6.262739702 | X45: 42.59812927 | Y45: 49.05008316 | Z45: 0.8775067925 | AA45: 0.2349530607 | AB45: 0.01799499989 | AC45: N | AD45: 0 | AE45: 43.04176774 | AF45: 50.00009324 | AG45: 34 | AH45: 34 | AI45: 0 | AJ45: 0 | AK45: 3 | AL45: 19.10000038 | AM45: 57.79999924 | AN45: 27.39090347 | AO45: 7.223328563 | AP45: 28.77499962 | AQ45: 19.73107338 | AR45: 1.388211489 | AS45: 0.2384863943 | AT45: 0.09549772739 | AU45: G | AV45: 0 | AW45: 35.53072241 | AX45: 10.00014376 | AY45: 33 | AZ45: 33 | BA45: 0 | BB45: 0 | BC45: 3 | BD45: 67.45999756 | BE45: 120.8949951 | BF45: 99.73078613 | BG45: 14.41495805 | BH45: 107.5362427 | BI45: 2.268130112 | BJ45: 43.97048569 | BK45: 0.01210920364 | BL45: 0.00775462389 | BM45: T | BN45: 0 | BO45: 100.1821162 | BP45: 49.99999915 | BQ45: 32 | BR45: 32 | BS45: 0 | BT45: 0 | BU45: 3 | BV45: 10.30000019 | BW45: 40.79999924 | BX45: 22.20909119 | BY45: 5.696345567 | BZ45: 23.00833321 | CA45: 16.53800011 | CB45: 1.342912793 | CC45: 0.2384863943 | CD45: 0.1016311049 | CE45: G | CF45: 0 | CG45: 29.43212396 | CH45: 10.00001654 | CI45: 33 | CJ45: 33 | CK45: 0 | CL45: 0 | CM45: 3 | CN45: 0.200000003 | CO45: 19.5 | CP45: 5.938709259 | CQ45: 5.128071493 | CR45: 2.129999876 | CS45: 1.330019355 | CT45: 4.465129852 | CU45: 0.2460592687 | CV45: 0.03856438398 | CW45: E | CX45: 8.571428571 | CY45: 13.14211392 | CZ45: 10.00014975 | DA45: 34 | DB45: 34 | DC45: 3 | DD45: 8.571428571 | DE45: 3 | DF45: 5.699999809 | DG45: 213.8000031 | DH45: 51.85000229 | DI45: 50.83416234 | DJ45: 26.50999832 | DK45: 1.99417305 | DL45: 26.0007534 | DM45: 0.322912097 | DN45: 0.0549826622 | DO45: E | DP45: 41.17647059 | DQ45: 8.426640634 | DR45: 49.99996744 | DS45: 33 | DT45: 33 | DU45: 14 | DV45: 41.17647059 | DW45: 3 | DX45: 18.78000031 | DY45: 22.96000061 | DZ45: 20.85764923 | EA45: 0.8504331943 | EB45: 21.21833344 | EC45: 61.684021 | ED45: 0.3381370008 | EE45: 0.02349530607 | EF45: 0.004672312737 | EG45: N | EH45: 0 | EI45: 20.85764907 | EJ45: 50.00000772 | EK45: 34 | EL45: 34 | EM45: 0 | EN45: 0 | EO45: 3 | EP45: 26.91000061 | EQ45: 33.43999939 | ER45: 30.50176697 | ES45: 1.498529502 | ET45: 29.63083496 | EU45: 42.28074341 | EV45: 0.7214103937 | EW45: 0.02349530607 | EX45: 0.005174377561 | EY45: G | EZ45: 0 | FA45: 30.47773325 | FB45: 49.99975406 | FC45: 34 | FD45: 34 | FE45: 0 | FF45: 0 | FG45: 3 | FH45: 23.33999939 | FI45: 28.17999878 | FJ45: 25.68029785 | FK45: 1.022769492 | FL45: 26.16333313 | FM45: 64.65335083 | FN45: 0.3971998096 | FO45: 0.02349530607 | FP45: 0.006603810191 | FQ45: G | FR45: 0 | FS45: 25.66707848 | FT45: 49.99926406 | FU45: 34 | FV45: 34 | FW45: 0 | FX45: 0 | FY45: 3 | FZ45: 154 | GA45: 267 | GB45: 207.2352905 | GC45: 27.46133312 | GD45: 219.9166718 | GE45: 57.19100571 | GF45: 3.623564482 | GG45: 0.2349530607 | GH45: 0.03176933527 | GI45: N | GJ45: 0 | GK45: 188.7129082 | GL45: 74.99999381 | GM45: 34 | GN45: 34 | GO45: 0 | GP45: 0
A46: 4 | B46: 1.399999976 | C46: 135.3000031 | D46: 53.33332825 | E46: 33.25620757 | F46: 34.875 | G46: 1.993991375 | H46: 26.74702072 | I46: 0.2384863943 | J46: 0.03818112612 | K46: G | L46: 2.857142857 | M46: 43.48966011 | N46: 50.00000403 | O46: 33 | P46: 34 | Q46: 1 | R46: 2.857142857 | S46: 4 | T46: 31.27488327 | U46: 64.36553955 | V46: 43.41617203 | W46: 6.962975817 | X46: 39.54754639 | Y46: 41.86905289 | Z46: 1.036951423 | AA46: 0.2349530607 | AB46: 0.07533603907 | AC46: G | AD46: 0 | AE46: 43.07107017 | AF46: 49.99968226 | AG46: 34 | AH46: 34 | AI46: 0 | AJ46: 0 | AK46: 4 | AL46: 34.59999847 | AM46: 70.80000305 | AN46: 47.79999542 | AO46: 7.760033051 | AP46: 43.65000153 | AQ46: 40.91876984 | AR46: 1.168167949 | AS46: 0.2384863943 | AT46: 0.05523276329 | AU46: G | AV46: 0 | AW46: 57.59147968 | AX46: 10.0002112 | AY46: 33 | AZ46: 33 | BA46: 0 | BB46: 0 | BC46: 4 | BD46: 69.56500244 | BE46: 114.4449951 | BF46: 100.4149963 | BG46: 11.93656574 | BH46: 110.7049927 | BI46: 3.349026871 | BJ46: 29.98333549 | BK46: 0.01210920364 | BL46: 0.007054926455 | BM46: T | BN46: 0 | BO46: 99.94890787 | BP46: 49.99997407 | BQ46: 32 | BR46: 32 | BS46: 0 | BT46: 0 | BU46: 4 | BV46: 8.100000381 | BW46: 40.70000076 | BX46: 30.30000114 | BY46: 9.032234112 | BZ46: 37.98333359 | CA46: 7.557290077 | CB46: 4.009373665 | CC46: 0.2384863943 | CD46: 0.16252774 | CE46: N | CF46: 0 | CG46: 41.87527137 | CH46: 10.00000687 | CI46: 33 | CJ46: 33 | CK46: 0 | CL46: 0 | CM46: 4 | CN46: 1.399999976 | CO46: 62.09999847 | CP46: 17.40588188 | CQ46: 14.10295397 | CR46: 16.57500076 | CS46: 1.685523629 | CT46: 10.32669067 | CU46: 0.2349530607 | CV46: 0.08358108997 | CW46: G | CX46: 0 | CY46: 35.25893406 | CZ46: 10.00045014 | DA46: 34 | DB46: 34 | DC46: 0 | DD46: 0 | DE46: 4 | DF46: 0.3000000119 | DG46: 105.4000015 | DH46: 27.58000183 | DI46: 25.27013357 | DJ46: 31.82999992 | DK46: 0.9782905579 | DL46: 28.19203568 | DM46: 0.3063413203 | DN46: 0.1210874319 | DO46: N | DP46: 38.23529412 | DQ46: 5.439761839 | DR46: 49.99999546 | DS46: 33 | DT46: 33 | DU46: 13 | DV46: 38.23529412 | DW46: 4 | DX46: 18.95 | DY46: 24.33000031 | DZ46: 20.8435318 | EA46: 1.145240155 | EB46: 20.29499969 | EC46: 35.18465576 | ED46: 0.5924040079 | EE46: 0.02349530607 | EF46: 0.007819795609 | EG46: N | EH46: 0 | EI46: 20.84353169 | EJ46: 50.00000379 | EK46: 34 | EL46: 34 | EM46: 0 | EN46: 0 | EO46: 4 | EP46: 27 | EQ46: 35.21000061 | ER46: 30.73999939 | ES46: 1.841572138 | ET46: 31.78916626 | EU46: 28.78363342 | EV46: 1.067968011 | EW46: 0.02349530607 | EX46: 0.004402279854 | EY46: N | EZ46: 0 | FA46: 30.74000045 | FB46: 49.99997697 | FC46: 34 | FD46: 34 | FE46: 0 | FF46: 0 | FG46: 4 | FH46: 22.98000031 | FI46: 29.76000061 | FJ46: 25.78882446 | FK46: 1.411340937 | FL46: 25.80500183 | FM46: 35.05789795 | FN46: 0.7356066704 | FO46: 0.02349530607 | FP46: 0.003159931302 | FQ46: N | FR46: 0 | FS46: 25.78882446 | FT46: 50.00000005 | FU46: 34 | FV46: 34 | FW46: 0 | FX46: 0 | FY46: 4 | FZ46: 154 | GA46: 273 | GB46: 210.7647095 | GC46: 28.18129457 | GD46: 203.5833282 | GE46: 57.72039032 | GF46: 3.651477575 | GG46: 0.2349530607 | GH46: 0.0347917676 | GI46: N | GJ46: 0 | GK46: 191.7567206 | GL46: 74.9999938 | GM46: 34 | GN46: 34 | GO46: 0 | GP46: 0
A47: 5 | B47: 1.299999952 | C47: 128 | D47: 54.48530197 | E47: 36.21676817 | F47: 32.97499847 | G47: 1.632781982 | H47: 33.36961365 | I47: 0.2349530607 | J47: 0.09140300751 | K47: G | L47: 0 | M47: 43.85509975 | N47: 50.00002906 | O47: 34 | P47: 34 | Q47: 0 | R47: 0 | S47: 5 | T47: 31.30616379 | U47: 54.93455124 | V47: 41.40802383 | W47: 5.628093971 | X47: 41.15132523 | Y47: 56.55226135 | Z47: 0.7322080731 | AA47: 0.2349530607 | AB47: 0.06868201494 | AC47: G | AD47: 0 | AE47: 41.1642625 | AF47: 49.99962095 | AG47: 34 | AH47: 34 | AI47: 0 | AJ47: 0 | AK47: 5 | AL47: 34.40000153 | AM47: 60.40000153 | AN47: 45.5848465 | AO47: 6.288885079 | AP47: 45.23333359 | AQ47: 54.82429886 | AR47: 0.8314715624 | AS47: 0.2384863943 | AT47: 0.05226038396 | AU47: G | AV47: 0 | AW47: 53.63118918 | AX47: 10.00021434 | AY47: 33 | AZ47: 33 | BA47: 0 | BB47: 0 | BC47: 5 | BD47: 70.97999878 | BE47: 112.7349976 | BF47: 102.5982788 | BG47: 9.935769307 | BH47: 109.2554199 | BI47: 4.933625793 | BJ47: 20.79571533 | BK47: 0.01210920364 | BL47: 0.008178517222 | BM47: G | BN47: 0 | BO47: 102.2519202 | BP47: 49.99988769 | BQ47: 32 | BR47: 32 | BS47: 0 | BT47: 0 | BU47: 5 | BV47: 6.199999809 | BW47: 42.09999847 | BX47: 28.84848213 | BY47: 8.921080973 | BZ47: 33.125 | CA47: 6.965703487 | CB47: 4.141502857 | CC47: 0.2384863943 | CD47: 0.1200207174 | CE47: N | CF47: 0 | CG47: 40.28129033 | CH47: 10.00003363 | CI47: 33 | CJ47: 33 | CK47: 0 | CL47: 0 | CM47: 5 | CN47: 0.3000000119 | CO47: 49.40000153 | CP47: 16.25294304 | CQ47: 13.8970294 | CR47: 4.391666889 | CS47: 1.26665628 | CT47: 12.83137608 | CU47: 0.2349530607 | CV47: 0.03577333689 | CW47: G | CX47: 0 | CY47: 35.30216933 | CZ47: 10.00003842 | DA47: 34 | DB47: 34 | DC47: 0 | DD47: 0 | DE47: 5 | DF47: 0.1000000015 | DG47: 98.5 | DH47: 31.73499489 | DI47: 28.29452598 | DJ47: 29.62000084 | DK47: 0.7593548298 | DL47: 41.79204941 | DM47: 0.3063413203 | DN47: 0.0953746438 | DO47: E | DP47: 38.23529412 | DQ47: 6.705889692 | DR47: 50.00000522 | DS47: 33 | DT47: 33 | DU47: 13 | DV47: 38.23529412 | DW47: 5 | DX47: 17.61999969 | DY47: 21.81000061 | DZ47: 20.523526 | EA47: 0.8548466899 | EB47: 20.7625 | EC47: 57.34897461 | ED47: 0.357870847 | EE47: 0.02349530607 | EF47: 0.006649935246 | EG47: N | EH47: 0 | EI47: 20.52352594 | EJ47: 50.00000296 | EK47: 34 | EL47: 34 | EM47: 0 | EN47: 0 | EO47: 5 | EP47: 27 | EQ47: 34.46000061 | ER47: 30.37588196 | ES47: 1.482340711 | ET47: 30.10833435 | EU47: 43.50514832 | EV47: 0.6982135177 | EW47: 0.02349530607 | EX47: 0.003155380487 | EY47: N | EZ47: 0 | FA47: 30.37588283 | FB47: 49.99997649 | FC47: 34 | FD47: 34 | FE47: 0 | FF47: 0 | FG47: 5 | FH47: 22.3 | FI47: 28.01000061 | FJ47: 25.44764709 | FK47: 1.02796073 | FL47: 25.63083496 | FM47: 62.36021118 | FN47: 0.4080750644 | FO47: 0.02349530607 | FP47: 0.003551694751 | FQ47: N | FR47: 0 | FS47: 25.44764693 | FT47: 50.00000646 | FU47: 34 | FV47: 34 | FW47: 0 | FX47: 0 | FY47: 5 | FZ47: 158 | GA47: 257 | GB47: 203.5294189 | GC47: 25.76024239 | GD47: 199.25 | GE47: 63.78372955 | GF47: 3.190930128 | GG47: 0.2349530607 | GH47: 0.02896487713 | GI47: G | GJ47: 0 | GK47: 185.8105766 | GL47: 74.99999896 | GM47: 34 | GN47: 34 | GO47: 0 | GP47: 0
A48: 6 | B48: 1.5 | C48: 177.8000031 | D48: 48.13822556 | E48: 36.28185225 | F48: 45.57500076 | G48: 1.542352915 | H48: 31.21090126 | I48: 0.2349530607 | J48: 0.1393723488 | K48: N | L48: 0 | M48: 48.13822562 | N48: 49.99999993 | O48: 34 | P48: 34 | Q48: 0 | R48: 0 | S48: 6 | T48: 28.72481155 | U48: 48.62736511 | V48: 41.01130295 | W48: 5.356669908 | X48: 46.96881866 | Y48: 56.76145172 | Z48: 0.7225203514 | AA48: 0.2349530607 | AB48: 0.06238335371 | AC48: N | AD48: 0 | AE48: 41.01130261 | AF48: 50.0000025 | AG48: 34 | AH48: 34 | AI48: 0 | AJ48: 0 | AK48: 6 | AL48: 31.60000038 | AM48: 53.40000153 | AN48: 44.95758057 | AO48: 5.886055143 | AP48: 47.95000076 | AQ48: 56.74650955 | AR48: 0.792252779 | AS48: 0.2384863943 | AT48: 0.08352005482 | AU48: N | AV48: 0 | AW48: 52.50080983 | AX48: 10.00016078 | AY48: 33 | AZ48: 33 | BA48: 0 | BB48: 0 | BC48: 6 | BD48: 80.65999756 | BE48: 112.6349976 | BF48: 103.7335937 | BG48: 7.57916069 | BH48: 109.9704102 | BI48: 8.874069214 | BJ48: 11.68951797 | BK48: 0.01210920364 | BL48: 0.005986109376 | BM48: N | BN48: 0 | BO48: 103.7335937 | BP48: 50.00000043 | BQ48: 32 | BR48: 32 | BS48: 0 | BT48: 0 | BU48: 6 | BV48: 6.300000191 | BW48: 41.90000153 | BX48: 28.43636322 | BY48: 9.162144557 | BZ48: 27.06666756 | CA48: 6.754949093 | CB48: 4.209708214 | CC48: 0.2384863943 | CD48: 0.08331719041 | CE48: N | CF48: 0 | CG48: 40.17812237 | CH48: 10.00000297 | CI48: 33 | CJ48: 33 | CK48: 0 | CL48: 0 | CM48: 6 | CN48: 1.899999976 | CO48: 43.90000153 | CP48: 16.12647438 | CQ48: 11.66079419 | CR48: 12.40000057 | CS48: 1.714151978 | CT48: 9.40784359 | CU48: 0.2349530607 | CV48: 0.06366032362 | CW48: G | CX48: 0 | CY48: 32.53560721 | CZ48: 10.00004269 | DA48: 34 | DB48: 34 | DC48: 0 | DD48: 0 | DE48: 6 | DF48: 0.400000006 | DG48: 140.3000031 | DH48: 31.34090614 | DI48: 34.0535933 | DJ48: 14.39000034 | DK48: 0.9600776434 | DL48: 32.64413834 | DM48: 0.2920849919 | DN48: 0.03722250462 | DO48: G | DP48: 32.35294118 | DQ48: 9.095375378 | DR48: 49.99981379 | DS48: 33 | DT48: 33 | DU48: 11 | DV48: 32.35294118 | DW48: 6 | DX48: 18.3 | DY48: 22.75 | DZ48: 20.71912079 | EA48: 1.14306173 | EB48: 21.6375 | EC48: 33.11287231 | ED48: 0.6257119775 | EE48: 0.02349530607 | EF48: 0.005039279908 | EG48: G | EH48: 0 | EI48: 20.69826813 | EJ48: 49.99997753 | EK48: 34 | EL48: 34 | EM48: 0 | EN48: 0 | EO48: 6 | EP48: 27.45 | EQ48: 34.42999878 | ER48: 30.83088074 | ES48: 1.544239242 | ET48: 30.3583313 | EU48: 40.75492859 | EV48: 0.7564945221 | EW48: 0.02349530607 | EX48: 0.002843105793 | EY48: N | EZ48: 0 | FA48: 30.83088174 | FB48: 49.99997416 | FC48: 34 | FD48: 34 | FE48: 0 | FF48: 0 | FG48: 6 | FH48: 23.1 | FI48: 28.42000122 | FJ48: 25.77206116 | FK48: 1.227559308 | FL48: 25.31666718 | FM48: 45.05740051 | FN48: 0.5719828606 | FO48: 0.02349530607 | FP48: 0.00212289691 | FQ48: N | FR48: 0 | FS48: 25.77206065 | FT48: 50.00001659 | FU48: 34 | FV48: 34 | FW48: 0 | FX48: 0 | FY48: 6 | FZ48: 137 | GA48: 231 | GB48: 199.7941132 | GC48: 22.91589236 | GD48: 207.5 | GE48: 71.82752991 | GF48: 2.781581402 | GG48: 0.2349530607 | GH48: 0.1176473498 | GI48: N | GJ48: 0 | GK48: 184.337583 | GL48: 74.99999401 | GM48: 34 | GN48: 34 | GO48: 0 | GP48: 0
A49: 7 | B49: 1.700000048 | C49: 115.0999985 | D49: 35.03636169 | E49: 26.22449584 | F49: 30.04999924 | G49: 1.736634731 | H49: 20.17486 | I49: 0.2384863943 | J49: 0.06660145521 | K49: G | L49: 2.857142857 | M49: 27.73028239 | N49: 50.0000326 | O49: 33 | P49: 34 | Q49: 1 | R49: 2.857142857 | S49: 7 | T49: 30.93187714 | U49: 57.67983627 | V49: 42.49503326 | W49: 6.294119485 | X49: 42.07685852 | Y49: 46.31329727 | Z49: 0.9175557494 | AA49: 0.2349530607 | AB49: 0.04897977412 | AC49: N | AD49: 0 | AE49: 42.49503021 | AF49: 50.00001933 | AG49: 34 | AH49: 34 | AI49: 0 | AJ49: 0 | AK49: 7 | AL49: 33.90000153 | AM49: 63.5 | AN49: 46.62120438 | AO49: 6.995701969 | AP49: 46.23333359 | AQ49: 45.3033905 | AR49: 1.029088616 | AS49: 0.2384863943 | AT49: 0.04802797735 | AU49: N | AV49: 0 | AW49: 55.58655468 | AX49: 10.00000628 | AY49: 33 | AZ49: 33 | BA49: 0 | BB49: 0 | BC49: 7 | BD49: 85.45999756 | BE49: 111.7400024 | BF49: 103.7604736 | BG49: 6.363040828 | BH49: 109.55 | BI49: 12.89329224 | BJ49: 8.047632217 | BK49: 0.01210920364 | BL49: 0.005092182755 | BM49: N | BN49: 0 | BO49: 103.7604736 | BP49: 50.00000001 | BQ49: 32 | BR49: 32 | BS49: 0 | BT49: 0 | BU49: 7 | BV49: 4.300000191 | BW49: 39.5 | BX49: 24.53939629 | BY49: 8.650431857 | BZ49: 30.70000076 | CA49: 6.136988163 | CB49: 3.998605728 | CC49: 0.2384863943 | CD49: 0.06397308409 | CE49: T | CF49: 0 | CG49: 33.93436458 | CH49: 10.000097 | CI49: 33 | CJ49: 33 | CK49: 0 | CL49: 0 | CM49: 7 | CN49: 1 | CO49: 51 | CP49: 21.53235435 | CQ49: 13.8845402 | CR49: 5.166666508 | CS49: 1.630727768 | CT49: 13.2041378 | CU49: 0.2349530607 | CV49: 0.08499321342 | CW49: N | CX49: 0 | CY49: 39.32610035 | CZ49: 10.00001041 | DA49: 34 | DB49: 34 | DC49: 0 | DD49: 0 | DE49: 7 | DF49: 0.3000000119 | DG49: 85.30000305 | DH49: 18.97777748 | DI49: 19.63003456 | DJ49: 8.800000191 | DK49: 1.083289027 | DL49: 17.51866531 | DM49: 0.322912097 | DN49: 0.04954570532 | DO49: G | DP49: 44.11764706 | DQ49: 2.423755904 | DR49: 49.99986551 | DS49: 33 | DT49: 33 | DU49: 15 | DV49: 44.11764706 | DW49: 7 | DX49: 17.73999939 | DY49: 22.63999939 | DZ49: 20.45764771 | EA49: 1.10316086 | EB49: 20.59833221 | EC49: 34.79579468 | ED49: 0.587934494 | EE49: 0.02349530607 | EF49: 0.01089538336 | EG49: N | EH49: 0 | EI49: 20.45764694 | EJ49: 50.00002756 | EK49: 34 | EL49: 34 | EM49: 0 | EN49: 0 | EO49: 7 | EP49: 27.15 | EQ49: 34.22999878 | ER49: 30.98646851 | ES49: 2.007164216 | ET49: 31.27999878 | EU49: 24.19842529 | EV49: 1.280515909 | EW49: 0.02349530607 | EX49: 0.006127917767 | EY49: N | EZ49: 0 | FA49: 30.98646929 | FB49: 49.99998441 | FC49: 34 | FD49: 34 | FE49: 0 | FF49: 0 | FG49: 7 | FH49: 22.43999939 | FI49: 28.22000122 | FJ49: 25.72294006 | FK49: 1.436659698 | FL49: 25.81166687 | FM49: 32.5022522 | FN49: 0.7914202213 | FO49: 0.02349530607 | FP49: 0.004147654772 | FQ49: N | FR49: 0 | FS49: 25.72293639 | FT49: 50.00010203 | FU49: 34 | FV49: 34 | FW49: 0 | FX49: 0 | FY49: 7 | FZ49: 146 | GA49: 259 | GB49: 206.9705811 | GC49: 27.87144167 | GD49: 230.75 | GE49: 54.90480042 | GF49: 3.769626379 | GG49: 0.2349530607 | GH49: 0.08869582415 | GI49: G | GJ49: 0 | GK49: 187.5100084 | GL49: 74.99908326 | GM49: 34 | GN49: 34 | GO49: 0 | GP49: 0
A50: 8 | B50: 1.700000048 | C50: 132.8000031 | D50: 43.19118118 | E50: 33.51490202 | F50: 12.625 | G50: 1.407513022 | H50: 30.68616867 | I50: 0.2349530607 | J50: 0.03508687019 | K50: G | L50: 0 | M50: 33.50220537 | N50: 50.00015086 | O50: 34 | P50: 34 | Q50: 0 | R50: 0 | S50: 8 | T50: 28.26221466 | U50: 48.40394211 | V50: 39.04996109 | W50: 5.053195456 | X50: 36.65460205 | Y50: 60.28567886 | Z50: 0.6477485299 | AA50: 0.2349530607 | AB50: 0.04348409176 | AC50: N | AD50: 0 | AE50: 39.04995332 | AF50: 50.00006138 | AG50: 34 | AH50: 34 | AI50: 0 | AJ50: 0 | AK50: 8 | AL50: 33.09999847 | AM50: 53.29999924 | AN50: 43.32727432 | AO50: 5.225375418 | AP50: 41.51666641 | AQ50: 70.66120148 | AR50: 0.6131692529 | AS50: 0.2384863943 | AT50: 0.03948688507 | AU50: G | AV50: 0 | AW50: 50.05013853 | AX50: 10.00000325 | AY50: 33 | AZ50: 33 | BA50: 0 | BB50: 0 | BC50: 8 | BD50: 86.74000244 | BE50: 112.4849976 | BF50: 104.2689087 | BG50: 5.249984421 | BH50: 106.0487549 | BI50: 19.43275909 | BJ50: 5.365625381 | BK50: 0.01210920364 | BL50: 0.003645011783 | BM50: G | BN50: 0 | BO50: 104.179492 | BP50: 49.99999976 | BQ50: 32 | BR50: 32 | BS50: 0 | BT50: 0 | BU50: 8 | BV50: 5.300000191 | BW50: 40.70000076 | BX50: 23.35454178 | BY50: 7.808252752 | BZ50: 25.95000076 | CA50: 7.305038929 | CB50: 3.197045565 | CC50: 0.2384863943 | CD50: 0.04081195593 | CE50: N | CF50: 0 | CG50: 33.3612163 | CH50: 10.00000902 | CI50: 33 | CJ50: 33 | CK50: 0 | CL50: 0 | CM50: 8 | CN50: 0.3000000119 | CO50: 41.09999847 | CP50: 19.39411545 | CQ50: 11.12637903 | CR50: 10.5 | CS50: 2.011603355 | CT50: 9.641122818 | CU50: 0.2349530607 | CV50: 0.09803926945 | CW50: U | CX50: 0 | CY50: 37.01999863 | CZ50: 10 | DA50: 34 | DB50: 34 | DC50: 0 | DD50: 0 | DE50: 8 | DF50: 1.299999952 | DG50: 85.80000305 | DH50: 31.44000053 | DI50: 27.1895406 | DJ50: 9.750000954 | DK50: 1.1595186 | DL50: 27.11470222 | DM50: 0.3243176043 | DN50: 0.1232092381 | DO50: N | DP50: 52.94117647 | DQ50: 0 | DR50: 41.23417837 | DS50: 33 | DT50: 33 | DU50: 18 | DV50: 52.94117647 | DW50: 8 | DX50: 16.66999969 | DY50: 22.36000061 | DZ50: 19.92941437 | EA50: 1.228615668 | EB50: 19.98916626 | EC50: 26.16353149 | ED50: 0.7617249489 | EE50: 0.02349530607 | EF50: 0.00555164516 | EG50: N | EH50: 0 | EI50: 19.92941386 | EJ50: 50.00001644 | EK50: 34 | EL50: 34 | EM50: 0 | EN50: 0 | EO50: 8 | EP50: 26.82999878 | EQ50: 34.27000122 | ER50: 30.24088745 | ES50: 1.530657221 | ET50: 29.92999878 | EU50: 40.45250549 | EV50: 0.7475652695 | EW50: 0.02349530607 | EX50: 0.002905750275 | EY50: N | EZ50: 0 | FA50: 30.24088823 | FB50: 49.99997964 | FC50: 34 | FD50: 34 | FE50: 0 | FF50: 0 | FG50: 8 | FH50: 21.85 | FI50: 28.31000061 | FJ50: 25.08500061 | FK50: 1.280824231 | FL50: 24.54166718 | FM50: 39.38599548 | FN50: 0.6369014978 | FO50: 0.02349530607 | FP50: 0.004000583291 | FQ50: N | FR50: 0 | FS50: 25.08503069 | FT50: 49.99906301 | FU50: 34 | FV50: 34 | FW50: 0 | FX50: 0 | FY50: 8 | FZ50: 125 | GA50: 230 | GB50: 191.7941132 | GC50: 21.7559189 | GD50: 203.75 | GE50: 74.54107666 | GF50: 2.572999001 | GG50: 0.2349530607 | GH50: 0.03036224842 | GI50: N | GJ50: 0 | GK50: 177.1199729 | GL50: 74.99999403 | GM50: 34 | GN50: 34 | GO50: 0 | GP50: 0
A51: 9 | B51: 1.100000024 | C51: 134 | D51: 41.73792648 | E51: 31.82643071 | F51: 40.97000122 | G51: 1.27276516 | H51: 32.79310989 | I51: 0.2544026077 | J51: 0.1047819555 | K51: G | L51: 14.28571429 | M51: 25.36181413 | N51: 50.0001574 | O51: 29 | P51: 34 | Q51: 5 | R51: 14.28571429 | S51: 9 | T51: 29.62307739 | U51: 48.61258698 | V51: 37.9882431 | W51: 4.644227553 | X51: 34.37045288 | Y51: 69.27227783 | Z51: 0.5483902693 | AA51: 0.2349530607 | AB51: 0.04901963472 | AC51: T | AD51: 0 | AE51: 36.98393324 | AF51: 50.00000617 | AG51: 34 | AH51: 34 | AI51: 0 | AJ51: 0 | AK51: 9 | AL51: 32.70000076 | AM51: 53.5 | AN51: 41.65454483 | AO51: 5.09669606 | AP51: 37.90000153 | AQ51: 69.54190826 | AR51: 0.5989847779 | AS51: 0.2384863943 | AT51: 0.04713797569 | AU51: T | AV51: 0 | AW51: 47.80365185 | AX51: 10.00011916 | AY51: 33 | AZ51: 33 | BA51: 0 | BB51: 0 | BC51: 9 | BD51: 89.84000244 | BE51: 112.3 | BF51: 105.1207886 | BG51: 4.505761557 | BH51: 102.9416626 | BI51: 27.23991394 | BJ51: 3.85907197 | BK51: 0.01210920364 | BL51: 0.004473790526 | BM51: N | BN51: 0 | BO51: 105.1207886 | BP51: 50.00000003 | BQ51: 32 | BR51: 32 | BS51: 0 | BT51: 0 | BU51: 9 | BV51: 6 | BW51: 34.70000076 | BX51: 20.6606102 | BY51: 9.038699552 | BZ51: 22.74166679 | CA51: 4.295188427 | CB51: 4.810175419 | CC51: 0.2384863943 | CD51: 0.07575756311 | CE51: U | CF51: 0 | CG51: 31.83000069 | CH51: 10 | CI51: 33 | CJ51: 33 | CK51: 0 | CL51: 0 | CM51: 9 | CN51: 2.900000095 | CO51: 45.59999847 | CP51: 20.58823395 | CQ51: 13.00253447 | CR51: 6.458333015 | CS51: 2.211237907 | CT51: 9.310728073 | CU51: 0.2349530607 | CV51: 0.07113260031 | CW51: G | CX51: 0 | CY51: 39.11440909 | CZ51: 10.00000427 | DA51: 34 | DB51: 34 | DC51: 0 | DD51: 0 | DE51: 9 | DF51: 0.200000003 | DG51: 88.09999847 | DH51: 21.77499962 | DI51: 23.24788271 | DJ51: 8.989999771 | DK51: 0.8678772449 | DL51: 25.08995247 | DM51: 0.3063413203 | DN51: 0.0268381238 | DO51: G | DP51: 38.23529412 | DQ51: 3.796194185 | DR51: 49.99967124 | DS51: 33 | DT51: 33 | DU51: 13 | DV51: 38.23529412 | DW51: 9 | DX51: 17.25 | DY51: 22.75 | DZ51: 19.66529388 | EA51: 1.313799115 | EB51: 19.54166718 | EC51: 22.99585114 | ED51: 0.8551670313 | EE51: 0.02349530607 | EF51: 0.002489431947 | EG51: G | EH51: 0 | EI51: 19.63679617 | EJ51: 49.99998066 | EK51: 34 | EL51: 34 | EM51: 0 | EN51: 0 | EO51: 9 | EP51: 27.78999939 | EQ51: 33.83999939 | ER51: 30.16265259 | ES51: 1.273728339 | ET51: 29.30249939 | EU51: 58.73916626 | EV51: 0.5135015249 | EW51: 0.02349530607 | EX51: 0.004890593886 | EY51: G | EZ51: 0 | FA51: 30.14553976 | FB51: 49.99989402 | FC51: 34 | FD51: 34 | FE51: 0 | FF51: 0 | FG51: 9 | FH51: 22.81999969 | FI51: 28.3 | FJ51: 24.9155899 | FK51: 1.146618723 | FL51: 24.18999939 | FM51: 49.47518921 | FN51: 0.5035976768 | FO51: 0.02349530607 | FP51: 0.00443752408 | FQ51: G | FR51: 0 | FS51: 24.89880612 | FT51: 49.99998722 | FU51: 34 | FV51: 34 | FW51: 0 | FX51: 0 | FY51: 9 | FZ51: 144 | GA51: 231 | GB51: 188.4705811 | GC51: 20.44688046 | GD51: 194.75 | GE51: 86.13088989 | GF51: 2.188188076 | GG51: 0.2349530607 | GH51: 0.02956944704 | GI51: G | GJ51: 0 | GK51: 174.4048896 | GL51: 74.99999863 | GM51: 34 | GN51: 34 | GO51: 0 | GP51: 0
A52: 10 | B52: 1.5 | C52: 134 | D52: 34.29999924 | E52: 29.81149578 | F52: 14.75 | G52: 1.28263104 | H52: 26.74190712 | I52: 0.2589056492 | J52: 0.01778185368 | K52: G | L52: 17.14285714 | M52: 19.79252206 | N52: 50.00040232 | O52: 28 | P52: 34 | Q52: 6 | R52: 17.14285714 | S52: 10 | T52: 26.89107704 | U52: 42.64015961 | V52: 36.34157562 | W52: 4.513157788 | X52: 41.3277359 | Y52: 64.47434998 | Z52: 0.5636594296 | AA52: 0.2349530607 | AB52: 0.09001332521 | AC52: G | AD52: 0 | AE52: 36.15388141 | AF52: 49.99983299 | AG52: 34 | AH52: 34 | AI52: 0 | AJ52: 0 | AK52: 10 | AL52: 30.29999924 | AM52: 47 | AN52: 40.2939415 | AO52: 4.69906512 | AP52: 45.60833359 | AQ52: 73.99674988 | AR52: 0.5445366502 | AS52: 0.2384863943 | AT52: 0.08114844561 | AU52: G | AV52: 0 | AW52: 46.40121522 | AX52: 10.00080621 | AY52: 33 | AZ52: 33 | BA52: 0 | BB52: 0 | BC52: 10 | BD52: 99.88499756 | BE52: 112.7099976 | BF52: 104.847644 | BG52: 2.869159638 | BH52: 103.0912476 | BI52: 69.54359131 | BJ52: 1.507653594 | BK52: 0.01210920364 | BL52: 0.001971173286 | BM52: G | BN52: 0 | BO52: 104.8225189 | BP52: 49.99999988 | BQ52: 32 | BR52: 32 | BS52: 0 | BT52: 0 | BU52: 10 | BV52: 5.199999809 | BW52: 27.5 | BX52: 17.60000229 | BY52: 6.44161293 | BZ52: 25.64166641 | CA52: 6.03150034 | CB52: 2.91801405 | CC52: 0.2384863943 | CD52: 0.07575762272 | CE52: U | CF52: 0 | CG52: 25.26999998 | CH52: 10 | CI52: 33 | CJ52: 33 | CK52: 0 | CL52: 0 | CM52: 10 | CN52: 2.799999952 | CO52: 41.70000076 | CP52: 22.10882378 | CQ52: 9.958835946 | CR52: 19.00833321 | CS52: 3.766360521 | CT52: 5.87007618 | CU52: 0.2349530607 | CV52: 0.05830901861 | CW52: N | CX52: 0 | CY52: 34.8715191 | CZ52: 10.00011714 | DA52: 34 | DB52: 34 | DC52: 0 | DD52: 0 | DE52: 10 | DF52: 0.1000000015 | DG52: 64.5 | DH52: 18.16111183 | DI52: 17.7506963 | DJ52: 6.539999962 | DK52: 0.6205514669 | DL52: 29.26608467 | DM52: 0.322912097 | DN52: 0.04301893711 | DO52: E | DP52: 44.11764706 | DQ52: 2.01998253 | DR52: 49.99999633 | DS52: 33 | DT52: 33 | DU52: 15 | DV52: 44.11764706 | DW52: 10 | DX52: 15.68999939 | DY52: 22.18999939 | DZ52: 19.07676697 | EA52: 1.551298127 | EB52: 18.39833221 | EC52: 15.27914734 | ED52: 1.248549223 | EE52: 0.02349530607 | EF52: 0.005929076672 | EG52: G | EH52: 0 | EI52: 19.03516956 | EJ52: 49.99989251 | EK52: 34 | EL52: 34 | EM52: 0 | EN52: 0 | EO52: 10 | EP52: 26.36000061 | EQ52: 33.17000122 | ER52: 29.75559082 | ES52: 1.868887416 | ET52: 29.19750061 | EU52: 25.99045105 | EV52: 1.144866228 | EW52: 0.02349530607 | EX52: 0.007843144983 | EY52: U | EZ52: 0 | FA52: 29.76500092 | FB52: 50 | FC52: 34 | FD52: 34 | FE52: 0 | FF52: 0 | FG52: 10 | FH52: 21 | FI52: 27.67000122 | FJ52: 24.4144104 | FK52: 1.618997327 | FL52: 23.77916718 | FM52: 23.29643097 | FN52: 1.047989249 | FO52: 0.02349530607 | FP52: 0.006051045656 | FQ52: N | FR52: 0 | FS52: 24.41441028 | FT52: 50.00000295 | FU52: 34 | FV52: 34 | FW52: 0 | FX52: 0 | FY52: 10 | FZ52: 131 | GA52: 213 | GB52: 183.0882416 | GC52: 20.6740465 | GD52: 192.5 | GE52: 75.57022858 | GF52: 2.422756195 | GG52: 0.2349530607 | GH52: 0.1041010618 | GI52: N | GJ52: 0 | GK52: 169.143813 | GL52: 74.99999403 | GM52: 34 | GN52: 34 | GO52: 0 | GP52: 0
A53: 11 | B53: 1.399999976 | C53: 121.4000015 | D53: 44.93333435 | E53: 32.76346969 | F53: 13.39999962 | G53: 1.198835492 | H53: 37.48081589 | I53: 0.2501266301 | J53: 0.05555558205 | K53: T | L53: 11.42857143 | M53: 0 | N53: 88.45087302 | O53: 30 | P53: 34 | Q53: 4 | R53: 11.42857143 | S53: 11 | T53: 24.71761322 | U53: 43.79576492 | V53: 33.37485504 | W53: 4.970353929 | X53: 35.84653473 | Y53: 46.78880692 | Z53: 0.7133085132 | AA53: 0.2349530607 | AB53: 0.04051199555 | AC53: N | AD53: 0 | AE53: 33.37484436 | AF53: 50.00008574 | AG53: 34 | AH53: 34 | AI53: 0 | AJ53: 0 | AK53: 11 | AL53: 27.20000076 | AM53: 48.09999847 | AN53: 36.63030624 | AO53: 5.541857016 | AP53: 39.39166641 | AQ53: 45.49178696 | AR53: 0.8052070141 | AS53: 0.2384863943 | AT53: 0.03973416984 | AU53: N | AV53: 0 | AW53: 43.73247183 | AX53: 10.00003151 | AY53: 33 | AZ53: 33 | BA53: 0 | BB53: 0 | BC53: 11 | BD53: 98.65 | BE53: 112.3900024 | BF53: 105.3373535 | BG53: 3.736603839 | BH53: 104.375 | BI53: 40.76758728 | BJ53: 2.583850622 | BK53: 0.01210920364 | BL53: 0.005157780647 | BM53: G | BN53: 0 | BO53: 105.2942994 | BP53: 49.99994981 | BQ53: 32 | BR53: 32 | BS53: 0 | BT53: 0 | BU53: 11 | BV53: 3.099999905 | BW53: 28.5 | BX53: 16.28181839 | BY53: 7.43965105 | BZ53: 22.15000153 | CA53: 3.529234648 | CB53: 4.613413334 | CC53: 0.2384863943 | CD53: 0.06060612202 | CE53: U | CF53: 0 | CG53: 25.95999999 | CH53: 10 | CI53: 33 | CJ53: 33 | CK53: 0 | CL53: 0 | CM53: 11 | CN53: 3.400000095 | CO53: 45 | CP53: 19.85882568 | CQ53: 12.22290718 | CR53: 20.73333359 | CS53: 2.265729666 | CT53: 8.76486969 | CU53: 0.2349530607 | CV53: 0.09285116196 | CW53: N | CX53: 0 | CY53: 35.52308102 | CZ53: 10.00004378 | DA53: 34 | DB53: 34 | DC53: 0 | DD53: 0 | DE53: 11 | DF53: 0.400000006 | DG53: 101.0999985 | DH53: 32.25263214 | DI53: 28.13825642 | DJ53: 10.46999931 | DK53: 1.054453969 | DL53: 30.58704567 | DM53: 0.3142995536 | DN53: 0.04191961884 | DO53: G | DP53: 41.17647059 | DQ53: 5.656998799 | DR53: 49.99962182 | DS53: 33 | DT53: 33 | DU53: 14 | DV53: 41.17647059 | DW53: 11 | DX53: 13.36000061 | DY53: 21.66999969 | DZ53: 18.1761795 | EA53: 1.861210196 | EB53: 18.20749969 | EC53: 9.323126221 | ED53: 1.949579954 | EE53: 0.02349530607 | EF53: 0.00954067111 | EG53: N | EH53: 0 | EI53: 18.17618044 | EJ53: 49.99997993 | EK53: 34 | EL53: 34 | EM53: 0 | EN53: 0 | EO53: 11 | EP53: 24.7 | EQ53: 34.31000061 | ER53: 28.87676697 | ES53: 2.194563164 | ET53: 30.30583496 | EU53: 18.03582153 | EV53: 1.60107851 | EW53: 0.02349530607 | EX53: 0.002733111382 | EY53: N | EZ53: 0 | FA53: 28.8767674 | FB53: 49.99999208 | FC53: 34 | FD53: 34 | FE53: 0 | FF53: 0 | FG53: 11 | FH53: 19.01999969 | FI53: 27.98999939 | FJ53: 23.52647095 | FK53: 1.935054373 | FL53: 24.25249939 | FM53: 15.05802002 | FN53: 1.562388062 | FO53: 0.02349530607 | FP53: 0.002895642817 | FQ53: N | FR53: 0 | FS53: 23.52651016 | FT53: 49.99919157 | FU53: 34 | FV53: 34 | FW53: 0 | FX53: 0 | FY53: 11 | FZ53: 136 | GA53: 209 | GB53: 168.8529358 | GC53: 19.08852284 | GD53: 178.5833282 | GE53: 81.18920898 | GF53: 2.079746008 | GG53: 0.2349530607 | GH53: 0.04471820593 | GI53: G | GJ53: 0 | GK53: 155.864133 | GL53: 74.99999869 | GM53: 34 | GN53: 34 | GO53: 0 | GP53: 0
A54: 12 | B54: 1.200000048 | C54: 136.3000031 | D54: 35.47692108 | E54: 37.80586686 | F54: 14.71000004 | G54: 0.8945960999 | H54: 39.65691376 | I54: 0.2686791122 | J54: 0.05432158709 | K54: G | L54: 22.85714286 | M54: 14.13991264 | N54: 50.00086142 | O54: 26 | P54: 34 | Q54: 8 | R54: 22.85714286 | S54: 12 | T54: 20.84700203 | U54: 40.96965408 | V54: 30.33092117 | W54: 4.946839204 | X54: 32.58521652 | Y54: 37.67503357 | Z54: 0.8050668836 | AA54: 0.2349530607 | AB54: 0.04600618035 | AC54: N | AD54: 0 | AE54: 30.33090098 | AF54: 50.00016286 | AG54: 34 | AH54: 34 | AI54: 0 | AJ54: 0 | AK54: 12 | AL54: 22.79999924 | AM54: 45 | AN54: 33.19393921 | AO54: 5.427760555 | AP54: 35.75 | AQ54: 37.74490356 | AR54: 0.8794283867 | AS54: 0.2384863943 | AT54: 0.04553593695 | AU54: N | AV54: 0 | AW54: 40.14980742 | AX54: 10.00028074 | AY54: 33 | AZ54: 33 | BA54: 0 | BB54: 0 | BC54: 12 | BD54: 97.8 | BE54: 113.6199951 | BF54: 105.7882812 | BG54: 3.505943788 | BH54: 104.3916626 | BI54: 47.04555359 | BJ54: 2.248635054 | BK54: 0.01210920364 | BL54: 0.004196575284 | BM54: N | BN54: 0 | BO54: 105.7882691 | BP54: 50.00013865 | BQ54: 32 | BR54: 32 | BS54: 0 | BT54: 0 | BU54: 12 | BV54: 3.200000048 | BW54: 28.29999924 | BX54: 15.40606117 | BY54: 6.10644867 | BZ54: 17.84166718 | CA54: 4.815961361 | CB54: 3.198958635 | CC54: 0.2384863943 | CD54: 0.08508487791 | CE54: N | CF54: 0 | CG54: 23.23178811 | CH54: 10.0000055 | CI54: 33 | CJ54: 33 | CK54: 0 | CL54: 0 | CM54: 12 | CN54: 2.200000048 | CO54: 38.29999924 | CP54: 17.69117737 | CQ54: 10.07503283 | CR54: 17.24166679 | CS54: 2.357605219 | CT54: 7.503876209 | CU54: 0.2349530607 | CV54: 0.09812647104 | CW54: N | CX54: 0 | CY54: 30.60281049 | CZ54: 10.00007138 | DA54: 34 | DB54: 34 | DC54: 0 | DD54: 0 | DE54: 12 | DF54: 0.200000003 | DG54: 100.9000015 | DH54: 28.31764603 | DI54: 30.72475979 | DJ54: 10.2699995 | DK54: 0.5477933884 | DL54: 51.69402695 | DM54: 0.3322738111 | DN54: 0.0410246253 | DO54: E | DP54: 44.11764706 | DQ54: 3.149648592 | DR54: 49.99999924 | DS54: 33 | DT54: 33 | DU54: 15 | DV54: 44.11764706 | DW54: 12 | DX54: 14.61000061 | DY54: 20.7 | DZ54: 17.64264832 | EA54: 1.675606325 | EB54: 17.14750061 | EC54: 11.33497391 | ED54: 1.556478977 | EE54: 0.02349530607 | EF54: 0.006473888457 | EG54: N | EH54: 0 | EI54: 17.64264834 | EJ54: 49.99999944 | EK54: 34 | EL54: 34 | EM54: 0 | EN54: 0 | EO54: 12 | EP54: 24.28999939 | EQ54: 33.07999878 | ER54: 28.10646973 | ES54: 1.915251225 | ET54: 27.95249939 | EU54: 22.44169312 | EV54: 1.252421975 | EW54: 0.02349530607 | EX54: 0.001145142317 | EY54: N | EZ54: 0 | FA54: 28.10647114 | FB54: 49.9999706 | FC54: 34 | FD54: 34 | FE54: 0 | FF54: 0 | FG54: 12 | FH54: 19.53999939 | FI54: 26.82000122 | FJ54: 22.87441101 | FK54: 1.65150457 | FL54: 22.57333374 | FM54: 19.97024384 | FN54: 1.145424724 | FO54: 0.02349530607 | FP54: 0.003388756514 | FQ54: G | FR54: 0 | FS54: 22.8362456 | FT54: 49.99990002 | FU54: 34 | FV54: 34 | FW54: 0 | FX54: 0 | FY54: 12 | FZ54: 109 | GA54: 187 | GB54: 158.8823547 | GC54: 22.58823033 | GD54: 180.5 | GE54: 47.80477142 | GF54: 3.323566914 | GG54: 0.2349530607 | GH54: 0.08467023075 | GI54: T | GJ54: 0 | GK54: 146.3396925 | GL54: 74.99995269 | GM54: 34 | GN54: 34 | GO54: 0 | GP54: 0
A55: 13 | B55: 1.899999976 | C55: 127.5 | D55: 31.98846436 | E55: 33.94551298 | F55: 14.46000004 | G55: 1.081189394 | H55: 29.58636475 | I55: 0.2686791122 | J55: 0.0399993062 | K55: G | L55: 22.85714286 | M55: 14.63386 | N55: 50.00096195 | O55: 26 | P55: 34 | Q55: 8 | R55: 22.85714286 | S55: 13 | T55: 19.25060463 | U55: 37.07412338 | V55: 26.97161484 | W55: 4.454482558 | X55: 26.67707062 | Y55: 37.38545227 | Z55: 0.7214468122 | AA55: 0.2349530607 | AB55: 0.0543551296 | AC55: N | AD55: 0 | AE55: 26.97159447 | AF55: 50.00018239 | AG55: 34 | AH55: 34 | AI55: 0 | AJ55: 0 | AK55: 13 | AL55: 21.29999924 | AM55: 40.79999924 | AN55: 29.45757294 | AO55: 4.811771288 | AP55: 29.42499924 | AQ55: 38.47604752 | AR55: 0.7656080723 | AS55: 0.2384863943 | AT55: 0.05423526466 | AU55: N | AV55: 0 | AW55: 35.62400362 | AX55: 10.00037329 | AY55: 33 | AZ55: 33 | BA55: 0 | BB55: 0 | BC55: 13 | BD55: 99.38499756 | BE55: 115.575 | BF55: 105.2354614 | BG55: 3.6803151 | BH55: 103.4324951 | BI55: 42.95593567 | BJ55: 2.449846745 | BK55: 0.01210920364 | BL55: 0.003851567209 | BM55: N | BN55: 0 | BO55: 105.2354611 | BP55: 50.00000302 | BQ55: 32 | BR55: 32 | BS55: 0 | BT55: 0 | BU55: 13 | BV55: 2.5 | BW55: 24.10000038 | BX55: 12.26666546 | BY55: 5.57694281 | BZ55: 11.5 | CA55: 3.693035841 | CB55: 3.32156682 | CC55: 0.2384863943 | CD55: 0.04307416826 | CE55: N | CF55: 0 | CG55: 19.4137646 | CH55: 10.0001279 | CI55: 33 | CJ55: 33 | CK55: 0 | CL55: 0 | CM55: 13 | CN55: 0.200000003 | CO55: 34 | CP55: 17.17058563 | CQ55: 8.909801324 | CR55: 14.28333282 | CS55: 2.14509964 | CT55: 8.004563332 | CU55: 0.2349530607 | CV55: 0.05681020021 | CW55: N | CX55: 0 | CY55: 28.58891357 | CZ55: 10.00008252 | DA55: 34 | DB55: 34 | DC55: 0 | DD55: 0 | DE55: 13 | DF55: 0.3000000119 | DG55: 107.1999969 | DH55: 33.52857208 | DI55: 30.37700028 | DJ55: 10.98999977 | DK55: 0.7529330254 | DL55: 44.53061676 | DM55: 0.340793103 | DN55: 0.06059604883 | DO55: E | DP55: 55.88235294 | DQ55: 0 | DR55: 44.11764706 | DS55: 33 | DT55: 33 | DU55: 19 | DV55: 55.88235294 | DW55: 13 | DX55: 11.39000015 | DY55: 18.58999939 | DZ55: 15.6197052 | EA55: 1.765333649 | EB55: 16.78999939 | EC55: 7.736276245 | ED55: 2.019021034 | EE55: 0.02349530607 | EF55: 0.008142590523 | EG55: N | EH55: 0 | EI55: 15.6197369 | EJ55: 49.99928361 | EK55: 34 | EL55: 34 | EM55: 0 | EN55: 0 | EO55: 13 | EP55: 22.46999969 | EQ55: 30.47000122 | ER55: 26.30676575 | ES55: 2.103240864 | ET55: 28.47000122 | EU55: 15.95418854 | EV55: 1.648893952 | EW55: 0.02349530607 | EX55: 0.008132255822 | EY55: N | EZ55: 0 | FA55: 26.30674253 | FB55: 50.00044035 | FC55: 34 | FD55: 34 | FE55: 0 | FF55: 0 | FG55: 13 | FH55: 17.43999939 | FI55: 24.55 | FJ55: 20.96558685 | FK55: 1.793740302 | FL55: 20.40249939 | FM55: 13.85844421 | FN55: 1.512838364 | FO55: 0.02349530607 | FP55: 0.005525735021 | FQ55: N | FR55: 0 | FS55: 20.96554529 | FT55: 50.00092443 | FU55: 34 | FV55: 34 | FW55: 0 | FX55: 0 | FY55: 13 | FZ55: 111 | GA55: 192 | GB55: 148.9705811 | GC55: 21.03170055 | GD55: 171.75 | GE55: 50.98019791 | GF55: 2.922126293 | GG55: 0.2349530607 | GH55: 0.06045198441 | GI55: N | GJ55: 0 | GK55: 134.7849188 | GL55: 74.99999373 | GM55: 34 | GN55: 34 | GO55: 0 | GP55: 0
A56: 14 | B56: 1.299999952 | C56: 124.4000015 | D56: 47.29615021 | E56: 37.77634668 | F56: 13.61000061 | G56: 1.26919353 | H56: 37.26472855 | I56: 0.2686791122 | J56: 0.0725260973 | K56: G | L56: 22.85714286 | M56: 23.85507367 | N56: 50.00004583 | O56: 26 | P56: 34 | Q56: 8 | R56: 22.85714286 | S56: 14 | T56: 16.53702164 | U56: 33.76085281 | V56: 24.26607895 | W56: 3.97133054 | X56: 26.58425713 | Y56: 37.66251373 | Z56: 0.6443032026 | AA56: 0.2349530607 | AB56: 0.1082704067 | AC56: G | AD56: 0 | AE56: 24.05165161 | AF56: 50.00000082 | AG56: 34 | AH56: 34 | AI56: 0 | AJ56: 0 | AK56: 14 | AL56: 18.20000076 | AM56: 37.09999847 | AN56: 26.57878685 | AO56: 4.387251131 | AP56: 29.22499847 | AQ56: 37.29691696 | AR56: 0.7126269341 | AS56: 0.2384863943 | AT56: 0.07323938608 | AU56: N | AV56: 0 | AW56: 32.20127228 | AX56: 10.00001251 | AY56: 33 | AZ56: 33 | BA56: 0 | BB56: 0 | BC56: 14 | BD56: 100.375 | BE56: 115.4349976 | BF56: 105.9529663 | BG56: 4.327481055 | BH56: 104.1400024 | BI56: 31.46291199 | BJ56: 3.367551088 | BK56: 0.01210920364 | BL56: 0.005493919551 | BM56: G | BN56: 0 | BO56: 105.896843 | BP56: 49.99999913 | BQ56: 32 | BR56: 32 | BS56: 0 | BT56: 0 | BU56: 14 | BV56: 2.5 | BW56: 23.39999962 | BX56: 12.44848442 | BY56: 5.663210469 | BZ56: 18.17499924 | CA56: 3.753893614 | CB56: 3.316152811 | CC56: 0.2384863943 | CD56: 0.06737202406 | CE56: N | CF56: 0 | CG56: 19.70616564 | CH56: 10.00004655 | CI56: 33 | CJ56: 33 | CK56: 0 | CL56: 0 | CM56: 14 | CN56: 0.1000000015 | CO56: 31.39999962 | CP56: 13.81176567 | CQ56: 9.037321063 | CR56: 18.35833359 | CS56: 1.314921498 | CT56: 10.50387096 | CU56: 0.2349530607 | CV56: 0.05488404632 | CW56: N | CX56: 0 | CY56: 25.39355712 | CZ56: 10.00000292 | DA56: 34 | DB56: 34 | DC56: 0 | DD56: 0 | DE56: 14 | DF56: 3.200000048 | DG56: 103.8000031 | DH56: 40.51875305 | DI56: 33.45612434 | DJ56: 13.26000023 | DK56: 1.267084241 | DL56: 31.97794724 | DM56: 0.3425000012 | DN56: 0.09087884426 | DO56: E | DP56: 50 | DQ56: 0.0002944032161 | DR56: 49.99963671 | DS56: 33 | DT56: 33 | DU56: 17 | DV56: 50 | DW56: 14 | DX56: 9.609999847 | DY56: 19.36999969 | DZ56: 15.35764771 | EA56: 2.160387151 | EB56: 15.30333252 | EC56: 4.872126007 | ED56: 3.152144909 | EE56: 0.02349530607 | EF56: 0.006127211452 | EG56: N | EH56: 0 | EI56: 15.3576477 | EJ56: 50.00000002 | EK56: 34 | EL56: 34 | EM56: 0 | EN56: 0 | EO56: 14 | EP56: 21.6 | EQ56: 31.16000061 | ER56: 25.60147095 | ES56: 2.029027405 | ET56: 25.58333435 | EU56: 16.52569733 | EV56: 1.549191594 | EW56: 0.02349530607 | EX56: 0.007452064753 | EY56: N | EZ56: 0 | FA56: 25.60147112 | FB56: 49.99999661 | FC56: 34 | FD56: 34 | FE56: 0 | FF56: 0 | FG56: 14 | FH56: 16.85 | FI56: 25.25 | FJ56: 20.47911682 | FK56: 1.961008231 | FL56: 20.35 | FM56: 11.12714386 | FN56: 1.84046483 | FO56: 0.02349530607 | FP56: 0.00462128371 | FQ56: N | FR56: 0 | FS56: 20.47916299 | FT56: 49.99906069 | FU56: 34 | FV56: 34 | FW56: 0 | FX56: 0 | FY56: 14 | FZ56: 101 | GA56: 162 | GB56: 136.1764679 | GC56: 16.89086349 | GD56: 156.9166718 | GE56: 64.56243896 | GF56: 2.10922122 | GG56: 0.2349530607 | GH56: 0.0650292635 | GI56: N | GJ56: 0 | GK56: 124.7837568 | GL56: 74.9999939 | GM56: 34 | GN56: 34 | GO56: 0 | GP56: 0
A57: 15 | B57: 1.799999952 | C57: 108.6999969 | D57: 42.55861664 | E57: 30.87824384 | F57: 12.48999977 | G57: 1.365179658 | H57: 31.17436981 | I57: 0.2544026077 | J57: 0.05920666456 | K57: G | L57: 14.28571429 | M57: 26.6374216 | N57: 50.00005974 | O57: 29 | P57: 34 | Q57: 5 | R57: 14.28571429 | S57: 15 | T57: 14.76719284 | U57: 30.24092865 | V57: 22.24015808 | W57: 3.74832879 | X57: 23.79353905 | Y57: 36.03258896 | Z57: 0.6172234416 | AA57: 0.2349530607 | AB57: 0.01832807064 | AC57: N | AD57: 0 | AE57: 22.24014364 | AF57: 50.00015365 | AG57: 34 | AH57: 34 | AI57: 0 | AJ57: 0 | AK57: 15 | AL57: 16.20000076 | AM57: 33.29999924 | AN57: 24.56060219 | AO57: 4.143288501 | AP57: 26.17499924 | AQ57: 35.87691879 | AR57: 0.6845794916 | AS57: 0.2384863943 | AT57: 0.01976811886 | AU57: N | AV57: 0 | AW57: 29.87043906 | AX57: 10.00000419 | AY57: 33 | AZ57: 33 | BA57: 0 | BB57: 0 | BC57: 15 | BD57: 100.1799988 | BE57: 114.7550049 | BF57: 106.6617432 | BG57: 4.171523569 | BH57: 108.6820801 | BI57: 33.55028381 | BJ57: 3.179160595 | BK57: 0.01210920364 | BL57: 0.005729174614 | BM57: U | BN57: 0 | BO57: 107.4675018 | BP57: 50 | BQ57: 32 | BR57: 32 | BS57: 0 | BT57: 0 | BU57: 15 | BV57: 2.200000048 | BW57: 21.39999962 | BX57: 13.17575836 | BY57: 6.099028663 | BZ57: 16.59999847 | CA57: 3.096460581 | CB57: 4.255103111 | CC57: 0.2384863943 | CD57: 0.1548821777 | CE57: T | CF57: 0 | CG57: 18.36410481 | CH57: 10.00071104 | CI57: 33 | CJ57: 33 | CK57: 0 | CL57: 0 | CM57: 15 | CN57: 0.3000000119 | CO57: 29.70000076 | CP57: 11.05882359 | CQ57: 9.298781563 | CR57: 2.75 | CS57: 1.032853365 | CT57: 10.70706081 | CU57: 0.2349530607 | CV57: 0.06900680065 | CW57: E | CX57: 0 | CY57: 25.46381648 | CZ57: 10.00005955 | DA57: 34 | DB57: 34 | DC57: 0 | DD57: 0 | DE57: 15 | DF57: 5.5 | DG57: 126.1999969 | DH57: 39.19499969 | DI57: 32.30596185 | DJ57: 17.56999969 | DK57: 1.518517494 | DL57: 25.81135941 | DM57: 0.3063413203 | DN57: 0.04604971409 | DO57: E | DP57: 38.23529412 | DQ57: 8.28226064 | DR57: 49.99999901 | DS57: 33 | DT57: 33 | DU57: 13 | DV57: 38.23529412 | DW57: 15 | DX57: 10.36999969 | DY57: 17.76999969 | DZ57: 14.35911865 | EA57: 1.854982338 | EB57: 14.68666687 | EC57: 5.998949051 | ED57: 2.393605709 | EE57: 0.02349530607 | EF57: 0.003279455006 | EG57: N | EH57: 0 | EI57: 14.35914849 | EJ57: 49.99935839 | EK57: 34 | EL57: 34 | EM57: 0 | EN57: 0 | EO57: 15 | EP57: 19.56000061 | EQ57: 29.52000122 | ER57: 24.60735321 | ES57: 2.187450892 | ET57: 25.37000122 | EU57: 12.76713486 | EV57: 1.927398205 | EW57: 0.02349530607 | EX57: 0.00417740941 | EY57: N | EZ57: 0 | FA57: 24.60730637 | FB57: 50.00085434 | FC57: 34 | FD57: 34 | FE57: 0 | FF57: 0 | FG57: 15 | FH57: 15.11000061 | FI57: 23.35 | FJ57: 19.48470612 | FK57: 1.861438341 | FL57: 19.91666718 | FM57: 11.03231201 | FN57: 1.766148925 | FO57: 0.02349530607 | FP57: 0.003055897355 | FQ57: N | FR57: 0 | FS57: 19.48470607 | FT57: 50.00000097 | FU57: 34 | FV57: 34 | FW57: 0 | FX57: 0 | FY57: 15 | FZ57: 99 | GA57: 162 | GB57: 130.2941132 | GC57: 17.60944779 | GD57: 135.75 | GE57: 54.44545364 | GF57: 2.393112898 | GG57: 0.2349530607 | GH57: 0.07351898402 | GI57: N | GJ57: 0 | GK57: 118.4167246 | GL57: 74.99999378 | GM57: 34 | GN57: 34 | GO57: 0 | GP57: 0
A58: 16 | B58: 1.399999976 | C58: 150.1000061 | D58: 29.8599987 | E58: 36.08500469 | F58: 16.27000046 | G58: 0.9477061629 | H58: 31.50765419 | I58: 0.2501266301 | J58: 0.05055248737 | K58: G | L58: 11.42857143 | M58: 16.58723317 | N58: 50.00000156 | O58: 30 | P58: 34 | Q58: 4 | R58: 11.42857143 | S58: 16 | T58: 10.58949947 | U58: 27.9249382 | V58: 20.94373703 | W58: 3.654609638 | X58: 17.81259918 | Y58: 31.26527977 | Z58: 0.6698720455 | AA58: 0.2349530607 | AB58: 0.06840463728 | AC58: N | AD58: 0 | AE58: 20.94370432 | AF58: 50.00035711 | AG58: 34 | AH58: 34 | AI58: 0 | AJ58: 0 | AK58: 16 | AL58: 11.60000038 | AM58: 30.70000076 | AN58: 22.95757484 | AO58: 4.042124667 | AP58: 19.55833435 | AQ58: 30.78417587 | AR58: 0.7457589507 | AS58: 0.2384863943 | AT58: 0.06592351198 | AU58: N | AV58: 0 | AW58: 28.13775273 | AX58: 10.00005779 | AY58: 33 | AZ58: 33 | BA58: 0 | BB58: 0 | BC58: 16 | BD58: 100.3400024 | BE58: 117.7599976 | BF58: 106.2301514 | BG58: 3.923449012 | BH58: 107.5983398 | BI58: 38.64315491 | BJ58: 2.749003172 | BK58: 0.01210920364 | BL58: 0.001365762949 | BM58: G | BN58: 0 | BO58: 106.1843416 | BP58: 50.00000673 | BQ58: 32 | BR58: 32 | BS58: 0 | BT58: 0 | BU58: 16 | BV58: 2.599999905 | BW58: 20.39999962 | BX58: 11.86060715 | BY58: 4.698066703 | BZ58: 12.98333359 | CA58: 5.020644665 | CB58: 2.362367392 | CC58: 0.2384863943 | CD58: 0.09253007174 | CE58: N | CF58: 0 | CG58: 17.88142032 | CH58: 10.00000584 | CI58: 33 | CJ58: 33 | CK58: 0 | CL58: 0 | CM58: 16 | CN58: 0.1000000015 | CO58: 23.5 | CP58: 11.11818123 | CQ58: 6.929125706 | CR58: 13.75 | CS58: 1.590099692 | CT58: 6.992128372 | CU58: 0.2384863943 | CV58: 0.08429086208 | CW58: N | CX58: 2.857142857 | CY58: 19.88330738 | CZ58: 10.00001195 | DA58: 34 | DB58: 34 | DC58: 1 | DD58: 2.857142857 | DE58: 16 | DF58: 1.200000048 | DG58: 174.6000061 | DH58: 33.47058487 | DI58: 46.20866766 | DJ58: 18.54000092 | DK58: 0.7963624597 | DL58: 42.02933502 | DM58: 0.3322738111 | DN58: 0.1538118124 | DO58: G | DP58: 47.05882353 | DQ58: 1.032336858 | DR58: 50.00037191 | DS58: 33 | DT58: 33 | DU58: 16 | DV58: 47.05882353 | DW58: 16 | DX58: 7.380000305 | DY58: 18.11999969 | DZ58: 13.69294128 | EA58: 2.736712951 | EB58: 17.225 | EC58: 2.343956757 | ED58: 5.841806412 | EE58: 0.02349530607 | EF58: 0.006120097637 | EG58: N | EH58: 0 | EI58: 13.69290331 | EJ58: 50.00055356 | EK58: 34 | EL58: 34 | EM58: 0 | EN58: 0 | EO58: 16 | EP58: 16.16999969 | EQ58: 29.02999878 | ER58: 23.96764526 | ES58: 2.873078927 | ET58: 25.81499939 | EU58: 6.577457428 | EV58: 3.643907309 | EW58: 0.02349530607 | EX58: 0.007481361926 | EY58: N | EZ58: 0 | FA58: 23.96764403 | FB58: 50.00001718 | FC58: 34 | FD58: 34 | FE58: 0 | FF58: 0 | FG58: 16 | FH58: 12.85 | FI58: 23.58999939 | FJ58: 18.82911682 | FK58: 2.711137871 | FL58: 19.11499939 | FM58: 4.589200592 | FN58: 4.102918625 | FO58: 0.02349530607 | FP58: 0.003940651193 | FQ58: N | FR58: 0 | FS58: 18.82909175 | FT58: 50.0003689 | FU58: 34 | FV58: 34 | FW58: 0 | FX58: 0 | FY58: 16 | FZ58: 73 | GA58: 153 | GB58: 125.3529434 | GC58: 16.77820092 | GD58: 119.6666641 | GE58: 51.01750183 | GF58: 2.457057714 | GG58: 0.2349530607 | GH58: 0.05964684486 | GI58: N | GJ58: 0 | GK58: 114.0362221 | GL58: 74.9999938 | GM58: 34 | GN58: 34 | GO58: 0 | GP58: 0
A59: 17 | B59: 1.700000048 | C59: 104.5 | D59: 31.7519989 | E59: 30.65499169 | F59: 11.97999954 | G59: 1.113059402 | H59: 28.52677917 | I59: 0.273999989 | J59: 0.05039298534 | K59: E | L59: 25.71428571 | M59: 12.57047705 | N59: 50.00000223 | O59: 25 | P59: 34 | Q59: 9 | R59: 25.71428571 | S59: 17 | T59: 15.3930378 | U59: 33.78108597 | V59: 21.65979576 | W59: 4.123525876 | X59: 16.92537498 | Y59: 29.44523811 | Z59: 0.7355958819 | AA59: 0.2349530607 | AB59: 0.04797236621 | AC59: G | AD59: 0 | AE59: 21.41509647 | AF59: 50.00000406 | AG59: 34 | AH59: 34 | AI59: 0 | AJ59: 0 | AK59: 17 | AL59: 17 | AM59: 37 | AN59: 23.91818237 | AO59: 4.577967306 | AP59: 18.66666603 | AQ59: 28.92597961 | AR59: 0.8268754482 | AS59: 0.2384863943 | AT59: 0.05722269416 | AU59: G | AV59: 0 | AW59: 29.76504738 | AX59: 10.00007952 | AY59: 33 | AZ59: 33 | BA59: 0 | BB59: 0 | BC59: 17 | BD59: 99.41500244 | BE59: 113.6150024 | BF59: 105.6596924 | BG59: 3.665447499 | BH59: 102.9650024 | BI59: 43.16240845 | BJ59: 2.447956324 | BK59: 0.01210920364 | BL59: 0.006409351528 | BM59: G | BN59: 0 | BO59: 105.6188946 | BP59: 49.99999645 | BQ59: 32 | BR59: 32 | BS59: 0 | BT59: 0 | BU59: 17 | BV59: 1.799999952 | BW59: 19 | BX59: 9.960604668 | BY59: 5.138819044 | BZ59: 6.100000381 | CA59: 3.120117188 | CB59: 3.19238162 | CC59: 0.2384863943 | CD59: 0.09090909362 | CE59: U | CF59: 0 | CG59: 17.28 | CH59: 10 | CI59: 33 | CJ59: 33 | CK59: 0 | CL59: 0 | CM59: 17 | CN59: 0.8000000119 | CO59: 32.90000153 | CP59: 13.59411621 | CQ59: 8.613096122 | CR59: 3.475000143 | CS59: 1.781144738 | CT59: 7.632235527 | CU59: 0.2349530607 | CV59: 0.08949398994 | CW59: G | CX59: 0 | CY59: 27.17543325 | CZ59: 10.00017573 | DA59: 34 | DB59: 34 | DC59: 0 | DD59: 0 | DE59: 17 | DF59: 0.1000000015 | DG59: 90.80000305 | DH59: 27.83571243 | DI59: 29.23124524 | DJ59: 9.17000103 | DK59: 0.7282041907 | DL59: 38.22514725 | DM59: 0.340793103 | DN59: 0.05481892824 | DO59: E | DP59: 55.88235294 | DQ59: 0 | DR59: 44.11764706 | DS59: 33 | DT59: 33 | DU59: 19 | DV59: 55.88235294 | DW59: 17 | DX59: 8.290000153 | DY59: 17.51000061 | DZ59: 13.84117737 | EA59: 2.221046209 | EB59: 12.13166733 | EC59: 3.830513 | ED59: 3.613400459 | EE59: 0.02349530607 | EF59: 0.00585231483 | EG59: G | EH59: 0 | EI59: 13.72091887 | EJ59: 49.99999988 | EK59: 34 | EL59: 34 | EM59: 0 | EN59: 0 | EO59: 17 | EP59: 21.06999969 | EQ59: 29.3 | ER59: 24.65500031 | ES59: 2.397371378 | ET59: 21.75583344 | EU59: 10.88165359 | EV59: 2.265740156 | EW59: 0.02349530607 | EX59: 0.01189248562 | EY59: G | EZ59: 0 | FA59: 24.57951618 | FB59: 49.99999888 | FC59: 34 | FD59: 34 | FE59: 0 | FF59: 0 | FG59: 17 | FH59: 15.26000061 | FI59: 23.33000031 | FJ59: 19.2473526 | FK59: 2.220202402 | FL59: 17.27750092 | FM59: 7.700145721 | FN59: 2.499608994 | FO59: 0.02349530607 | FP59: 0.006825959682 | FQ59: G | FR59: 0 | FS59: 19.16409778 | FT59: 49.99999723 | FU59: 34 | FV59: 34 | FW59: 0 | FX59: 0 | FY59: 17 | FZ59: 93 | GA59: 154 | GB59: 126.0588226 | GC59: 15.00089109 | GD59: 128.5833282 | GE59: 71.32639313 | GF59: 1.767351747 | GG59: 0.2349530607 | GH59: 0.05962204933 | GI59: G | GJ59: 0 | GK59: 115.6962293 | GL59: 74.99999883 | GM59: 34 | GN59: 34 | GO59: 0 | GP59: 0
A60: 18 | B60: 1.200000048 | C60: 190.8000031 | D60: 36.28889084 | E60: 40.64015943 | F60: 20.16000175 | G60: 1.030561209 | H60: 35.21274567 | I60: 0.2636566162 | J60: 0.02867257595 | K60: G | L60: 20 | M60: 17.3912868 | N60: 50.0000016 | O60: 27 | P60: 34 | Q60: 7 | R60: 20 | S60: 18 | T60: 12.50913143 | U60: 33.52724075 | V60: 20.92009544 | W60: 4.104808054 | X60: 17.76365852 | Y60: 28.90886879 | Z60: 0.7236566544 | AA60: 0.2349530607 | AB60: 0.0738158226 | AC60: G | AD60: 0 | AE60: 20.67938464 | AF60: 49.99992229 | AG60: 34 | AH60: 34 | AI60: 0 | AJ60: 0 | AK60: 18 | AL60: 18.29999924 | AM60: 36.90000153 | AN60: 23.28484917 | AO60: 4.29004073 | AP60: 19.84999847 | AQ60: 34.45282364 | AR60: 0.6758473516 | AS60: 0.2384863943 | AT60: 0.06084167957 | AU60: G | AV60: 0 | AW60: 28.49141835 | AX60: 10.0000036 | AY60: 33 | AZ60: 33 | BA60: 0 | BB60: 0 | BC60: 18 | BD60: 99.00999756 | BE60: 118.225 | BF60: 105.6617065 | BG60: 4.533952319 | BH60: 100.6112488 | BI60: 28.5038208 | BJ60: 3.706931353 | BK60: 0.01210920364 | BL60: 0.003503780812 | BM60: T | BN60: 0 | BO60: 105.2163814 | BP60: 50.00000604 | BQ60: 32 | BR60: 32 | BS60: 0 | BT60: 0 | BU60: 18 | BV60: 2.299999952 | BW60: 20.10000038 | BX60: 10.80000019 | BY60: 5.829075631 | BZ60: 3.783333302 | CA60: 2.509156704 | CB60: 4.304234982 | CC60: 0.2384863943 | CD60: 0.106060639 | CE60: U | CF60: 0 | CG60: 18.32000034 | CH60: 10 | CI60: 33 | CJ60: 33 | CK60: 0 | CL60: 0 | CM60: 18 | CN60: 0.1000000015 | CO60: 34.29999924 | CP60: 12.48484802 | CQ60: 8.852793245 | CR60: 2.949999809 | CS60: 1.451859236 | CT60: 8.5992136 | CU60: 0.2384863943 | CV60: 0.05771315098 | CW60: G | CX60: 2.857142857 | CY60: 25.94220272 | CZ60: 10.00000237 | DA60: 34 | DB60: 34 | DC60: 1 | DD60: 2.857142857 | DE60: 18 | DF60: 1.200000048 | DG60: 184 | DH60: 36.8571434 | DI60: 46.66741274 | DJ60: 19.48000145 | DK60: 1.012422681 | DL60: 36.40489578 | DM60: 0.340793103 | DN60: 0.1454142332 | DO60: G | DP60: 55.88235294 | DQ60: 0 | DR60: 44.11764706 | DS60: 33 | DT60: 33 | DU60: 19 | DV60: 55.88235294 | DW60: 18 | DX60: 8.680000305 | DY60: 16.33000031 | DZ60: 13.46323395 | EA60: 2.029564355 | EB60: 14.41750031 | EC60: 4.092617798 | ED60: 3.289638758 | EE60: 0.02349530607 | EF60: 0.007420361042 | EG60: N | EH60: 0 | EI60: 13.46323395 | EJ60: 50.00000002 | EK60: 34 | EL60: 34 | EM60: 0 | EN60: 0 | EO60: 18 | EP60: 20.23000031 | EQ60: 28.62999878 | ER60: 24.03941193 | ES60: 1.97812122 | ET60: 23.73000031 | EU60: 15.37462006 | EV60: 1.563577652 | EW60: 0.02349530607 | EX60: 0.004343038797 | EY60: G | EZ60: 0 | FA60: 23.98731312 | FB60: 50.00000177 | FC60: 34 | FD60: 34 | FE60: 0 | FF60: 0 | FG60: 18 | FH60: 14.46999969 | FI60: 22.3 | FJ60: 18.75294342 | FK60: 1.767790172 | FL60: 19.0375 | FM60: 11.10410004 | FN60: 1.688830495 | FO60: 0.02349530607 | FP60: 0.00816347003 | FQ60: N | FR60: 0 | FS60: 18.75293984 | FT60: 50.00008083 | FU60: 34 | FV60: 34 | FW60: 0 | FX60: 0 | FY60: 18 | FZ60: 67 | GA60: 148 | GB60: 119.9705887 | GC60: 18.07138149 | GD60: 127.75 | GE60: 40.78430176 | GF60: 2.941587448 | GG60: 0.2349530607 | GH60: 0.06812793016 | GI60: N | GJ60: 0 | GK60: 107.7816307 | GL60: 74.99999366 | GM60: 34 | GN60: 34 | GO60: 0 | GP60: 0
A61: 19 | B61: 1.100000024 | C61: 68.19999695 | D61: 16.48400116 | E61: 14.75806892 | F61: 7.809999466 | G61: 1.327088833 | H61: 12.42117405 | I61: 0.273999989 | J61: 0.04047954082 | K61: G | L61: 25.71428571 | M61: 7.906460133 | N61: 50.00001127 | O61: 25 | P61: 34 | Q61: 9 | R61: 25.71428571 | S61: 19 | T61: 16.53689766 | U61: 35.62376404 | V61: 23.35174751 | W61: 4.466406788 | X61: 24.48975945 | Y61: 29.27946281 | Z61: 0.7975469828 | AA61: 0.2349530607 | AB61: 0.04135534167 | AC61: G | AD61: 0 | AE61: 23.08644295 | AF61: 50.00000058 | AG61: 34 | AH61: 34 | AI61: 0 | AJ61: 0 | AK61: 19 | AL61: 18.10000038 | AM61: 39.29999924 | AN61: 25.65757179 | AO61: 5.014107067 | AP61: 30.46666527 | AQ61: 28.10647011 | AR61: 0.9128706455 | AS61: 0.2384863943 | AT61: 0.0411080718 | AU61: N | AV61: 0 | AW61: 32.08314943 | AX61: 10.00090699 | AY61: 33 | AZ61: 33 | BA61: 0 | BB61: 0 | BC61: 19 | BD61: 98.16500244 | BE61: 109.4449951 | BF61: 104.5506226 | BG61: 3.010227825 | BH61: 106.625 | BI61: 61.57599487 | BJ61: 1.697911978 | BK61: 0.01210920364 | BL61: 0.003069090843 | BM61: G | BN61: 0 | BO61: 104.522325 | BP61: 49.99996123 | BQ61: 32 | BR61: 32 | BS61: 0 | BT61: 0 | BU61: 19 | BV61: 2 | BW61: 17.79999924 | BX61: 10.04242325 | BY61: 4.879935481 | BZ61: 8.583333015 | CA61: 3.192159414 | CB61: 3.145965338 | CC61: 0.2384863943 | CD61: 0.06060606241 | CE61: U | CF61: 0 | CG61: 16.21999931 | CH61: 10 | CI61: 33 | CJ61: 33 | CK61: 0 | CL61: 0 | CM61: 19 | CN61: 1.700000048 | CO61: 36.79999924 | CP61: 15.20588207 | CQ61: 8.237421793 | CR61: 10.47500038 | CS61: 3.068970919 | CT61: 4.954716682 | CU61: 0.2349530607 | CV61: 0.02576345205 | CW61: G | CX61: 0 | CY61: 26.84391558 | CZ61: 10.00057045 | DA61: 34 | DB61: 34 | DC61: 0 | DD61: 0 | DE61: 19 | DF61: 0.6000000238 | DG61: 48.40000153 | DH61: 12.63333225 | DI61: 12.69118022 | DJ61: 14.94000053 | DK61: 1.10451901 | DL61: 11.43785858 | DM61: 0.3776043057 | DN61: 0.1250754893 | DO61: G | DP61: 61.76470588 | DQ61: 0 | DR61: 38.23529412 | DS61: 33 | DT61: 33 | DU61: 21 | DV61: 61.76470588 | DW61: 19 | DX61: 8.940000153 | DY61: 16.9 | DZ61: 14.02705841 | EA61: 2.02081824 | EB61: 14.91000061 | EC61: 4.448997879 | ED61: 3.152858019 | EE61: 0.02349530607 | EF61: 0.01414254308 | EG61: N | EH61: 0 | EI61: 14.02705841 | EJ61: 50.00000002 | EK61: 34 | EL61: 34 | EM61: 0 | EN61: 0 | EO61: 19 | EP61: 20.43000031 | EQ61: 29.43999939 | ER61: 24.99941711 | ES61: 2.349267854 | ET61: 25.68583374 | EU61: 11.48958282 | EV61: 2.175833225 | EW61: 0.02349530607 | EX61: 0.006722286344 | EY61: G | EZ61: 0 | FA61: 24.92692877 | FB61: 49.99994923 | FC61: 34 | FD61: 34 | FE61: 0 | FF61: 0 | FG61: 19 | FH61: 14.66999969 | FI61: 22.88999939 | FJ61: 19.51382446 | FK61: 2.100796503 | FL61: 20.83499908 | FM61: 8.431821442 | FN61: 2.314307213 | FO61: 0.02349530607 | FP61: 0.006535953283 | FQ61: T | FR61: 0 | FS61: 19.70370081 | FT61: 49.99999937 | FU61: 34 | FV61: 34 | FW61: 0 | FX61: 0 | FY61: 19 | FZ61: 100 | GA61: 152 | GB61: 128.0882416 | GC61: 13.62788683 | GD61: 139 | GE61: 88.13508606 | GF61: 1.453317285 | GG61: 0.2349530607 | GH61: 0.0477425456 | GI61: G | GJ61: 0 | GK61: 118.6408436 | GL61: 74.9999986 | GM61: 34 | GN61: 34 | GO61: 0 | GP61: 0
A62: 20 | B62: 1.200000048 | C62: 108 | D62: 24.55908775 | E62: 28.89870151 | F62: 11.88000011 | G62: 1.007139802 | H62: 24.38498306 | I62: 0.2920849919 | J62: 0.1269313693 | K62: G | L62: 34.28571429 | M62: 6.762059603 | N62: 50.00058288 | O62: 22 | P62: 34 | Q62: 12 | R62: 34.28571429 | S62: 20 | T62: 16.49216461 | U62: 34.82368851 | V62: 23.80584526 | W62: 4.482898429 | X62: 21.07504654 | Y62: 31.07884216 | Z62: 0.7659823895 | AA62: 0.2349530607 | AB62: 0.08961600065 | AC62: G | AD62: 0 | AE62: 23.55101083 | AF62: 50.00000065 | AG62: 34 | AH62: 34 | AI62: 0 | AJ62: 0 | AK62: 20 | AL62: 18.20000076 | AM62: 38.40000153 | AN62: 26.11212349 | AO62: 4.996295892 | AP62: 23.25 | AQ62: 30.35849953 | AR62: 0.8601256013 | AS62: 0.2384863943 | AT62: 0.09120324254 | AU62: G | AV62: 0 | AW62: 32.33983161 | AX62: 10.00017193 | AY62: 33 | AZ62: 33 | BA62: 0 | BB62: 0 | BC62: 20 | BD62: 97.33499756 | BE62: 112.3949951 | BF62: 104.1909302 | BG62: 3.172014506 | BH62: 103.6099976 | BI62: 56.07266235 | BJ62: 1.858141303 | BK62: 0.01210920364 | BL62: 0.003297930956 | BM62: N | BN62: 0 | BO62: 104.1909273 | BP62: 50.00003638 | BQ62: 32 | BR62: 32 | BS62: 0 | BT62: 0 | BU62: 20 | BV62: 2.200000048 | BW62: 18.70000076 | BX62: 9.633333206 | BY62: 5.023984224 | BZ62: 9.074999809 | CA62: 3.143609762 | CB62: 3.064417601 | CC62: 0.2384863943 | CD62: 0.08513751626 | CE62: N | CF62: 0 | CG62: 16.07182626 | CH62: 10.00000625 | CI62: 33 | CJ62: 33 | CK62: 0 | CL62: 0 | CM62: 20 | CN62: 1 | CO62: 35.59999847 | CP62: 16.09117699 | CQ62: 8.33300684 | CR62: 9.649999619 | CS62: 2.505162001 | CT62: 6.423208237 | CU62: 0.2349530607 | CV62: 0.0872130096 | CW62: N | CX62: 0 | CY62: 26.7701573 | CZ62: 10.00041626 | DA62: 34 | DB62: 34 | DC62: 0 | DD62: 0 | DE62: 20 | DF62: 1.299999952 | DG62: 69 | DH62: 28.60000229 | DI62: 22.91380546 | DJ62: 8.069999695 | DK62: 1.280155063 | DL62: 22.34104538 | DM62: 0.4463027716 | DN62: 0.08788472414 | DO62: E | DP62: 70.58823529 | DQ62: 0 | DR62: 29.41176471 | DS62: 33 | DT62: 33 | DU62: 24 | DV62: 70.58823529 | DW62: 20 | DX62: 6.919999695 | DY62: 17.06000061 | DZ62: 12.89029388 | EA62: 2.456711898 | EB62: 14.525 | EC62: 2.534185028 | ED62: 5.086563587 | EE62: 0.02349530607 | EF62: 0.006318080425 | EG62: T | EH62: 0 | EI62: 13.12945417 | EJ62: 50.00003917 | EK62: 34 | EL62: 34 | EM62: 0 | EN62: 0 | EO62: 20 | EP62: 19.11000061 | EQ62: 29.96000061 | ER62: 24.45293884 | ES62: 2.687368274 | ET62: 23.63083344 | EU62: 8.59045639 | EV62: 2.846523762 | EW62: 0.02349530607 | EX62: 0.003341346979 | EY62: G | EZ62: 0 | FA62: 24.35812242 | FB62: 49.99996106 | FC62: 34 | FD62: 34 | FE62: 0 | FF62: 0 | FG62: 20 | FH62: 13 | FI62: 22.96999969 | FJ62: 18.67382202 | FK62: 2.454298958 | FL62: 18.81583405 | FM62: 5.80021553 | FN62: 3.219504833 | FO62: 0.02349530607 | FP62: 0.005143029243 | FQ62: G | FR62: 0 | FS62: 18.56662167 | FT62: 49.99989836 | FU62: 34 | FV62: 34 | FW62: 0 | FX62: 0 | FY62: 20 | FZ62: 84 | GA62: 165 | GB62: 134.6764679 | GC62: 19.14968217 | GD62: 144.75 | GE62: 46.02455139 | GF62: 2.926187515 | GG62: 0.2349530607 | GH62: 0.1145749986 | GI62: G | GJ62: 0 | GK62: 120.8094379 | GL62: 74.99920814 | GM62: 34 | GN62: 34 | GO62: 0 | GP62: 0
A63: 21 | B63: 1 | C63: 82.09999847 | D63: 20.52173996 | E63: 23.59075157 | F63: 9.109999657 | G63: 0.8411854506 | H63: 24.39621353 | I63: 0.2856647372 | J63: 0.1101890802 | K63: G | L63: 31.42857143 | M63: 5.418522332 | N63: 50.00000125 | O63: 23 | P63: 34 | Q63: 11 | R63: 31.42857143 | S63: 21 | T63: 16.85796547 | U63: 37.14613724 | V63: 25.8586731 | W63: 4.70978184 | X63: 28.69273186 | Y63: 30.02428246 | Z63: 0.861258626 | AA63: 0.2349530607 | AB63: 0.03845000267 | AC63: N | AD63: 0 | AE63: 25.85864909 | AF63: 50.00020331 | AG63: 34 | AH63: 34 | AI63: 0 | AJ63: 0 | AK63: 21 | AL63: 18.5 | AM63: 40.79999924 | AN63: 28.60302925 | AO63: 5.165055588 | AP63: 31.50833321 | AQ63: 30.30058861 | AR63: 0.9439760447 | AS63: 0.2384863943 | AT63: 0.04105079174 | AU63: N | AV63: 0 | AW63: 35.22227047 | AX63: 10.00014902 | AY63: 33 | AZ63: 33 | BA63: 0 | BB63: 0 | BC63: 21 | BD63: 96.74500122 | BE63: 112.1400024 | BF63: 103.5926514 | BG63: 3.637162215 | BH63: 103.1595825 | BI63: 42.51900024 | BJ63: 2.436384916 | BK63: 0.01210920364 | BL63: 0.00443957448 | BM63: G | BN63: 0 | BO63: 103.5520476 | BP63: 49.9999963 | BQ63: 32 | BR63: 32 | BS63: 0 | BT63: 0 | BU63: 21 | BV63: 1.600000024 | BW63: 25 | BX63: 9.066665649 | BY63: 6.165664213 | BZ63: 3.550000191 | CA63: 2.219990015 | CB63: 4.084102154 | CC63: 0.2384863943 | CD63: 0.03876876831 | CE63: G | CF63: 0 | CG63: 17.20951187 | CH63: 10.00001596 | CI63: 33 | CJ63: 33 | CK63: 0 | CL63: 0 | CM63: 21 | CN63: 0.8999999762 | CO63: 35 | CP63: 18.99705505 | CQ63: 8.245236958 | CR63: 20.79166603 | CS63: 2.654177666 | CT63: 7.157416344 | CU63: 0.2349530607 | CV63: 0.05955995247 | CW63: N | CX63: 0 | CY63: 29.5637151 | CZ63: 10.00007723 | DA63: 34 | DB63: 34 | DC63: 0 | DD63: 0 | DE63: 21 | DF63: 3.299999952 | DG63: 67.30000305 | DH63: 27.41250038 | DI63: 23.4483894 | DJ63: 9.699999809 | DK63: 1.252061248 | DL63: 21.89389801 | DM63: 0.474429369 | DN63: 0.1405172348 | DO63: G | DP63: 73.52941176 | DQ63: 0 | DR63: 26.47058824 | DS63: 33 | DT63: 33 | DU63: 25 | DV63: 73.52941176 | DW63: 21 | DX63: 6.559999847 | DY63: 17.45 | DZ63: 12.72058792 | EA63: 2.866371329 | EB63: 14.72749939 | EC63: 1.783705139 | ED63: 7.131553173 | EE63: 0.02349530607 | EF63: 0.006114721298 | EG63: N | EH63: 0 | EI63: 12.72056587 | EJ63: 50.00030685 | EK63: 34 | EL63: 34 | EM63: 0 | EN63: 0 | EO63: 21 | EP63: 18.38000031 | EQ63: 30.58999939 | ER63: 24.82971039 | ES63: 3.00901508 | ET63: 27.5375 | EU63: 6.80499649 | EV63: 3.648746967 | EW63: 0.02349530607 | EX63: 0.005850604177 | EY63: G | EZ63: 0 | FA63: 24.70821293 | FB63: 49.9997204 | FC63: 34 | FD63: 34 | FE63: 0 | FF63: 0 | FG63: 21 | FH63: 13.13000031 | FI63: 24 | FJ63: 18.77264709 | FK63: 2.859763144 | FL63: 21.28249969 | FM63: 4.239064407 | FN63: 4.428488255 | FO63: 0.02349530607 | FP63: 0.006216412783 | FQ63: G | FR63: 0 | FS63: 18.62523843 | FT63: 50.00000516 | FU63: 34 | FV63: 34 | FW63: 0 | FX63: 0 | FY63: 21 | FZ63: 82 | GA63: 161 | GB63: 141.8235321 | GC63: 15.53582463 | GD63: 141.25 | GE63: 71.4102478 | GF63: 1.986038923 | GG63: 0.2349530607 | GH63: 0.111462906 | GI63: N | GJ63: 0 | GK63: 131.3447805 | GL63: 74.99999408 | GM63: 34 | GN63: 34 | GO63: 0 | GP63: 0
A64: 22 | B64: 1.600000024 | C64: 51.59999847 | D64: 18.22105408 | E64: 15.02714575 | F64: 6.599999905 | G64: 1.654549479 | H64: 11.01269817 | I64: 0.3142995536 | J64: 0.05851638317 | K64: E | L64: 42.85714286 | M64: 2.433081476 | N64: 50.00000343 | O64: 19 | P64: 34 | Q64: 15 | R64: 42.85714286 | S64: 22 | T64: 20.99468613 | U64: 39.62663269 | V64: 28.46656799 | W64: 4.723576383 | X64: 28.75799751 | Y64: 39.12933731 | Z64: 0.7274993658 | AA64: 0.2349530607 | AB64: 0.06170982122 | AC64: G | AD64: 0 | AE64: 28.22453177 | AF64: 49.9991825 | AG64: 34 | AH64: 34 | AI64: 0 | AJ64: 0 | AK64: 22 | AL64: 23.10000038 | AM64: 42.79999924 | AN64: 30.92121506 | AO64: 4.779366914 | AP64: 31.30833244 | AQ64: 44.73630524 | AR64: 0.691188395 | AS64: 0.2384863943 | AT64: 0.07347607613 | AU64: G | AV64: 0 | AW64: 36.97407289 | AX64: 10.00004511 | AY64: 33 | AZ64: 33 | BA64: 0 | BB64: 0 | BC64: 22 | BD64: 96.68499756 | BE64: 109.3349976 | BF64: 102.9466919 | BG64: 2.982632017 | BH64: 101.9558289 | BI64: 61.87671509 | BJ64: 1.663738847 | BK64: 0.01210920364 | BL64: 0.002317914367 | BM64: N | BN64: 0 | BO64: 102.9467101 | BP64: 49.99975654 | BQ64: 32 | BR64: 32 | BS64: 0 | BT64: 0 | BU64: 22 | BV64: 1.899999976 | BW64: 21.89999962 | BX64: 9.633333206 | BY64: 5.729564676 | BZ64: 3.566666603 | CA64: 2.392779112 | CB64: 4.02600193 | CC64: 0.2384863943 | CD64: 0.09090910852 | CE64: T | CF64: 0 | CG64: 15.84461985 | CH64: 10.00026147 | CI64: 33 | CJ64: 33 | CK64: 0 | CL64: 0 | CM64: 22 | CN64: 3.099999905 | CO64: 36.70000076 | CP64: 20.75294113 | CQ64: 9.241186944 | CR64: 28.30000114 | CS64: 4.14845705 | CT64: 5.002568722 | CU64: 0.2349530607 | CV64: 0.06744724512 | CW64: N | CX64: 0 | CY64: 32.59596339 | CZ64: 10.00006711 | DA64: 34 | DB64: 34 | DC64: 0 | DD64: 0 | DE64: 22 | DF64: 0.3000000119 | DG64: 17.70000076 | DH64: 6.449999809 | DI64: 6.013556107 | DJ64: 2.0400002 | DK64: 0.9543192387 | DL64: 6.75874424 | DM64: 0.474429369 | DN64: 0.07476490736 | DO64: E | DP64: 73.52941176 | DQ64: 0 | DR64: 26.47058824 | DS64: 33 | DT64: 33 | DU64: 25 | DV64: 73.52941176 | DW64: 22 | DX64: 9.240000153 | DY64: 17.05 | DZ64: 13.56941223 | EA64: 2.062047994 | EB64: 12.49416656 | EC64: 4.313817215 | ED64: 3.145569563 | EE64: 0.02349530607 | EF64: 0.008914685249 | EG64: G | EH64: 0 | EI64: 13.46472173 | EJ64: 49.99967691 | EK64: 34 | EL64: 34 | EM64: 0 | EN64: 0 | EO64: 22 | EP64: 19.75 | EQ64: 31.07999878 | ER64: 26.05470886 | ES64: 2.296482481 | ET64: 26.35916748 | EU64: 13.00778046 | EV64: 2.003009558 | EW64: 0.02349530607 | EX64: 0.003618133068 | EY64: N | EZ64: 0 | FA64: 26.05466911 | FB64: 50.00069051 | FC64: 34 | FD64: 34 | FE64: 0 | FF64: 0 | FG64: 22 | FH64: 14.5 | FI64: 23.51999969 | FJ64: 19.81264801 | FK64: 2.088031194 | FL64: 18.25833282 | FM64: 9.052839661 | FN64: 2.188556194 | FO64: 0.02349530607 | FP64: 0.008011582494 | FQ64: G | FR64: 0 | FS64: 19.7397194 | FT64: 50.00047984 | FU64: 34 | FV64: 34 | FW64: 0 | FX64: 0 | FY64: 22 | FZ64: 117 | GA64: 180 | GB64: 148.9411774 | GC64: 16.81078458 | GD64: 153.75 | GE64: 79.49972534 | GF64: 1.873480439 | GG64: 0.2349530607 | GH64: 0.04536545277 | GI64: N | GJ64: 0 | GK64: 137.6024786 | GL64: 74.99999404 | GM64: 34 | GN64: 34 | GO64: 0 | GP64: 0
A65: 23 | B65: 1.5 | C65: 106.0999985 | D65: 30.02353096 | E65: 30.42982891 | F65: 11.96000004 | G65: 1.03458035 | H65: 29.02000809 | I65: 0.3322738111 | J65: 0.06634390354 | K65: G | L65: 48.57142857 | M65: 0.9366616169 | N65: 50.00000154 | O65: 17 | P65: 34 | Q65: 17 | R65: 48.57142857 | S65: 23 | T65: 22.16414642 | U65: 47.64097977 | V65: 32.26711273 | W65: 6.736884479 | X65: 28.53335571 | Y65: 24.55513763 | Z65: 1.314067721 | AA65: 0.2349530607 | AB65: 0.07298564911 | AC65: G | AD65: 0 | AE65: 31.83016317 | AF65: 50.00000536 | AG65: 34 | AH65: 34 | AI65: 0 | AJ65: 0 | AK65: 23 | AL65: 24.39999962 | AM65: 52.40000153 | AN65: 35.45454407 | AO65: 7.512742725 | AP65: 31.39999962 | AQ65: 23.95691681 | AR65: 1.479929328 | AS65: 0.2384863943 | AT65: 0.08387562633 | AU65: G | AV65: 0 | AW65: 44.99656388 | AX65: 10.00003586 | AY65: 33 | AZ65: 33 | BA65: 0 | BB65: 0 | BC65: 23 | BD65: 96.08499756 | BE65: 114.0699951 | BF65: 102.4742188 | BG65: 3.891535567 | BH65: 100.58125 | BI65: 36.81582642 | BJ65: 2.783428431 | BK65: 0.01210920364 | BL65: 0.004569975287 | BM65: G | BN65: 0 | BO65: 102.4278322 | BP65: 49.99998957 | BQ65: 32 | BR65: 32 | BS65: 0 | BT65: 0 | BU65: 23 | BV65: 1.100000024 | BW65: 29.70000076 | BX65: 8.415149689 | BY65: 7.063600438 | BZ65: 3.483333588 | CA65: 1.63623476 | CB65: 5.142996311 | CC65: 0.2384863943 | CD65: 0.03458344936 | CE65: E | CF65: 0 | CG65: 19.37645864 | CH65: 10.00016587 | CI65: 33 | CJ65: 33 | CK65: 0 | CL65: 0 | CM65: 23 | CN65: 1.799999952 | CO65: 49 | CP65: 26.2970562 | CQ65: 13.09352159 | CR65: 37.20000076 | CS65: 2.52097106 | CT65: 10.43132019 | CU65: 0.2349530607 | CV65: 0.06989383698 | CW65: N | CX65: 0 | CY65: 43.07700477 | CZ65: 10.00009988 | DA65: 34 | DB65: 34 | DC65: 0 | DD65: 0 | DE65: 23 | DF65: 2.200000048 | DG65: 82.40000153 | DH65: 40.89999771 | DI65: 34.78462262 | DJ65: 58.34000397 | DK65: 0.8936070204 | DL65: 45.76955795 | DM65: 0.5866662264 | DN65: 0.2000000179 | DO65: U | DP65: 82.35294118 | DQ65: 0 | DR65: 18.13114273 | DS65: 33 | DT65: 33 | DU65: 28 | DV65: 82.35294118 | DW65: 23 | DX65: 9.659999847 | DY65: 19.56000061 | DZ65: 14.32029266 | EA65: 2.545222935 | EB65: 17.08500061 | EC65: 3.096508789 | ED65: 4.624657631 | EE65: 0.02349530607 | EF65: 0.004962235689 | EG65: N | EH65: 0 | EI65: 14.32029266 | EJ65: 50.00000003 | EK65: 34 | EL65: 34 | EM65: 0 | EN65: 0 | EO65: 23 | EP65: 22.26999969 | EQ65: 31.52999878 | ER65: 26.62911682 | ES65: 2.448312108 | ET65: 27.67166443 | EU65: 12.32836609 | EV65: 2.15998745 | EW65: 0.02349530607 | EX65: 0.006246763468 | EY65: G | EZ65: 0 | FA65: 26.55716792 | FB65: 49.99972069 | FC65: 34 | FD65: 34 | FE65: 0 | FF65: 0 | FG65: 23 | FH65: 15.98999939 | FI65: 25.55 | FJ65: 20.47558746 | FK65: 2.339976911 | FL65: 19.97333374 | FM65: 7.897168732 | FN65: 2.592775822 | FO65: 0.02349530607 | FP65: 0.002284646034 | FQ65: G | FR65: 0 | FS65: 20.38923577 | FT65: 49.99985537 | FU65: 34 | FV65: 34 | FW65: 0 | FX65: 0 | FY65: 23 | FZ65: 107 | GA65: 191 | GB65: 155.1176453 | GC65: 22.372553 | GD65: 170 | GE65: 46.6853447 | GF65: 3.322619677 | GG65: 0.2349530607 | GH65: 0.06535947323 | GI65: T | GJ65: 0 | GK65: 227.372859 | GL65: 74.99914237 | GM65: 34 | GN65: 34 | GO65: 0 | GP65: 0
A66: 24 | B66: 3.900000095 | C66: 158.3000031 | D66: 41.39411926 | E66: 46.77998443 | F66: 19.34000015 | G66: 0.8716315627 | H66: 47.49038696 | I66: 0.3322738111 | J66: 0.09921008348 | K66: E | L66: 48.57142857 | M66: 1.16608284 | N66: 50.00003116 | O66: 17 | P66: 34 | Q66: 17 | R66: 48.57142857 | S66: 24 | T66: 20.52474976 | U66: 49.47248459 | V66: 34.23028564 | W66: 7.227533719 | X66: 37.41093063 | Y66: 21.68798637 | Z66: 1.578306317 | AA66: 0.2349530607 | AB66: 0.06042093039 | AC66: N | AD66: 0 | AE66: 34.23014745 | AF66: 50.00076283 | AG66: 34 | AH66: 34 | AI66: 0 | AJ66: 0 | AK66: 24 | AL66: 22.60000038 | AM66: 54.5 | AN66: 37.50000763 | AO66: 8.036946336 | AP66: 41.20833206 | AQ66: 21.216465 | AR66: 1.767495513 | AS66: 0.2384863943 | AT66: 0.05195581913 | AU66: N | AV66: 0 | AW66: 47.79975681 | AX66: 10.00002615 | AY66: 33 | AZ66: 33 | BA66: 0 | BB66: 0 | BC66: 24 | BD66: 96.94000244 | BE66: 115.3349976 | BF66: 102.4726562 | BG66: 4.97750359 | BH66: 101.5387512 | BI66: 22.84885864 | BJ66: 4.484804153 | BK66: 0.01210920364 | BL66: 0.01127298474 | BM66: G | BN66: 0 | BO66: 102.3979128 | BP66: 50.00005287 | BQ66: 32 | BR66: 32 | BS66: 0 | BT66: 0 | BU66: 24 | BV66: 1.700000048 | BW66: 22.89999962 | BX66: 9.045454979 | BY66: 7.065633973 | BZ66: 3.466666698 | CA66: 1.645738006 | CB66: 5.496291161 | CC66: 0.2384863943 | CD66: 0.08891743422 | CE66: E | CF66: 0 | CG66: 20.82764955 | CH66: 10.00030982 | CI66: 33 | CJ66: 33 | CK66: 0 | CL66: 0 | CM66: 24 | CN66: 2.599999905 | CO66: 51.79999924 | CP66: 27.72647285 | CQ66: 13.85545168 | CR66: 39.5 | CS66: 2.210169554 | CT66: 12.54495239 | CU66: 0.2349530607 | CV66: 0.1096024141 | CW66: N | CX66: 0 | CY66: 45.48292056 | CZ66: 10.00003558 | DA66: 34 | DB66: 34 | DC66: 0 | DD66: 0 | DE66: 24 | DF66: 0.8999999762 | DG66: 113 | DH66: 50.46249771 | DI66: 49.45780241 | DJ66: 12.10999966 | DK66: 0.6947522759 | DL66: 72.63379669 | DM66: 0.474429369 | DN66: 0.1280220747 | DO66: G | DP66: 73.52941176 | DQ66: 0 | DR66: 26.47058824 | DS66: 33 | DT66: 33 | DU66: 25 | DV66: 73.52941176 | DW66: 24 | DX66: 10.95 | DY66: 18.86000061 | DZ66: 15.06323547 | EA66: 1.812225784 | EB66: 16.88250122 | EC66: 6.790746307 | ED66: 2.218200207 | EE66: 0.02349530607 | EF66: 0.005728012323 | EG66: N | EH66: 0 | EI66: 15.06323547 | EJ66: 50 | EK66: 34 | EL66: 34 | EM66: 0 | EN66: 0 | EO66: 24 | EP66: 21 | EQ66: 33.73999939 | ER66: 27.6817627 | ES66: 2.984783185 | ET66: 30.55499878 | EU66: 8.525678253 | EV66: 3.246869326 | EW66: 0.02349530607 | EX66: 0.007986468077 | EY66: N | EZ66: 0 | FA66: 27.68176255 | FB66: 50.00000188 | FC66: 34 | FD66: 34 | FE66: 0 | FF66: 0 | FG66: 24 | FH66: 15.96999969 | FI66: 24.85 | FJ66: 21.37411804 | FK66: 2.197278299 | FL66: 22.63000031 | FM66: 9.397834015 | FN66: 2.274366379 | FO66: 0.02349530607 | FP66: 0.006614935398 | FQ66: N | FR66: 0 | FS66: 21.3741181 | FT66: 49.99999895 | FU66: 34 | FV66: 34 | FW66: 0 | FX66: 0 | FY66: 24 | FZ66: 118 | GA66: 202 | GB66: 163.2352905 | GC66: 23.28227373 | GD66: 181 | GE66: 47.70950317 | GF66: 3.421441793 | GG66: 0.2349530607 | GH66: 0.08539992571 | GI66: N | GJ66: 0 | GK66: 147.5316401 | GL66: 74.99999372 | GM66: 34 | GN66: 34 | GO66: 0 | GP66: 0
A67: 25 | B67: 1.700000048 | C67: 166.6000061 | D67: 42.01000214 | E67: 46.07041517 | F67: 18.19000053 | G67: 0.9194416404 | H67: 45.69077682 | I67: 0.3063413203 | J67: 0.1012541652 | K67: E | L67: 37.14285714 | M67: 9.613607047 | N67: 50.00003321 | O67: 21 | P67: 34 | Q67: 13 | R67: 37.14285714 | S67: 25 | T67: 21.3685112 | U67: 50.79865646 | V67: 36.77722931 | W67: 7.722825183 | X67: 38.53609467 | Y67: 21.55990601 | Z67: 1.705815792 | AA67: 0.2349530607 | AB67: 0.05734500289 | AC67: N | AD67: 0 | AE67: 36.77722933 | AF67: 49.99999991 | AG67: 34 | AH67: 34 | AI67: 0 | AJ67: 0 | AK67: 25 | AL67: 23.5 | AM67: 56 | AN67: 40.18484497 | AO67: 8.493274047 | AP67: 42.45833206 | AQ67: 21.43227196 | AR67: 1.874969006 | AS67: 0.2384863943 | AT67: 0.07823622227 | AU67: N | AV67: 0 | AW67: 51.06952344 | AX67: 9.999773086 | AY67: 33 | AZ67: 33 | BA67: 0 | BB67: 0 | BC67: 25 | BD67: 96.14000244 | BE67: 116.5800049 | BF67: 102.4537476 | BG67: 5.192500649 | BH67: 97.84333496 | BI67: 20.6868988 | BJ67: 4.952590942 | BK67: 0.01210920364 | BL67: 0.002907371521 | BM67: G | BN67: 0 | BO67: 102.3712051 | BP67: 50.00008852 | BQ67: 32 | BR67: 32 | BS67: 0 | BT67: 0 | BU67: 25 | BV67: 1.399999976 | BW67: 24.70000076 | BX67: 10.0060606 | BY67: 7.578915521 | BZ67: 3.341666698 | CA67: 1.598995686 | CB67: 6.257715702 | CC67: 0.2384863943 | CD67: 0.09056836367 | CE67: E | CF67: 0 | CG67: 23.03979099 | CH67: 10.00001498 | CI67: 33 | CJ67: 33 | CK67: 0 | CL67: 0 | CM67: 25 | CN67: 1.200000048 | CO67: 49.20000076 | CP67: 29.32647705 | CQ67: 14.98506998 | CR67: 45.20000076 | CS67: 2.153086185 | CT67: 13.62067032 | CU67: 0.2349530607 | CV67: 0.1235348582 | CW67: N | CX67: 0 | CY67: 48.53051345 | CZ67: 10.00012121 | DA67: 34 | DB67: 34 | DC67: 0 | DD67: 0 | DE67: 25 | DF67: 1 | DG67: 135.1000061 | DH67: 37.99090958 | DI67: 39.54006664 | DJ67: 14.4100008 | DK67: 0.8109438419 | DL67: 46.84776688 | DM67: 0.3983826041 | DN67: 0.04774880409 | DO67: E | DP67: 64.70588235 | DQ67: 0 | DR67: 35.29411765 | DS67: 33 | DT67: 33 | DU67: 22 | DV67: 64.70588235 | DW67: 25 | DX67: 10.9 | DY67: 19.93999939 | DZ67: 15.42058716 | EA67: 2.146451568 | EB67: 14.66666565 | EC67: 5.227264023 | ED67: 2.950030327 | EE67: 0.02349530607 | EF67: 0.001551556587 | EG67: N | EH67: 0 | EI67: 15.42058716 | EJ67: 50.00000002 | EK67: 34 | EL67: 34 | EM67: 0 | EN67: 0 | EO67: 25 | EP67: 22.71000061 | EQ67: 33.3 | ER67: 27.95706177 | ES67: 3.278925702 | ET67: 23.59250031 | EU67: 7.344477844 | EV67: 3.806541681 | EW67: 0.02349530607 | EX67: 0.009803928435 | EY67: U | EZ67: 0 | FA67: 28.00500031 | FB67: 50 | FC67: 34 | FD67: 34 | FE67: 0 | FF67: 0 | FG67: 25 | FH67: 17.53999939 | FI67: 25.73999939 | FJ67: 21.69264832 | FK67: 2.59031446 | FL67: 18.22333221 | FM67: 7.129019928 | FN67: 3.042865515 | FO67: 0.02349530607 | FP67: 0.006862738729 | FQ67: U | FR67: 0 | FS67: 21.63999939 | FT67: 50 | FU67: 34 | FV67: 34 | FW67: 0 | FX67: 0 | FY67: 25 | FZ67: 110 | GA67: 212 | GB67: 167.9411774 | GC67: 25.93458191 | GD67: 186.5 | GE67: 40.43722916 | GF67: 4.153132439 | GG67: 0.2349530607 | GH67: 0.05712169409 | GI67: N | GJ67: 0 | GK67: 150.4485729 | GL67: 74.99999363 | GM67: 34 | GN67: 34 | GO67: 0 | GP67: 0
A68: 26 | B68: 4.699999809 | C68: 151.8999939 | D68: 37.41154099 | E68: 33.84254528 | F68: 19.41999817 | G68: 1.541978955 | H68: 24.26203156 | I68: 0.2686791122 | J68: 0.02556073666 | K68: G | L68: 22.85714286 | M68: 20.84291348 | N68: 50.00006107 | O68: 26 | P68: 34 | Q68: 8 | R68: 22.85714286 | S68: 26 | T68: 22.45144844 | U68: 59.45425415 | V68: 37.53565216 | W68: 8.525112977 | X68: 31.70215034 | Y68: 20.62619781 | Z68: 1.819804668 | AA68: 0.2349530607 | AB68: 0.06318083405 | AC68: T | AD68: 0 | AE68: 36.79468053 | AF68: 50.00033345 | AG68: 34 | AH68: 34 | AI68: 0 | AJ68: 0 | AK68: 26 | AL68: 24.70000076 | AM68: 65.59999847 | AN68: 40.76060867 | AO68: 9.0051005 | AP68: 34.92499924 | AQ68: 21.84748459 | AR68: 1.86568892 | AS68: 0.2384863943 | AT68: 0.06486734748 | AU68: N | AV68: 0 | AW68: 52.30110723 | AX68: 10.00000408 | AY68: 33 | AZ68: 33 | BA68: 0 | BB68: 0 | BC68: 26 | BD68: 95.73499756 | BE68: 115.1599976 | BF68: 103.2984497 | BG68: 5.14557892 | BH68: 107.0662476 | BI68: 20.88005066 | BJ68: 4.94723177 | BK68: 0.01210920364 | BL68: 0.00371402353 | BM68: N | BN68: 0 | BO68: 103.2984497 | BP68: 50.00000004 | BQ68: 32 | BR68: 32 | BS68: 0 | BT68: 0 | BU68: 26 | BV68: 1.5 | BW68: 25.70000076 | BX68: 14.13636494 | BY68: 8.057869935 | BZ68: 23.68333244 | CA68: 1.956667423 | CB68: 7.224715233 | CC68: 0.2384863943 | CD68: 0.1160141826 | CE68: N | CF68: 0 | CG68: 24.46276486 | CH68: 10.00038313 | CI68: 33 | CJ68: 33 | CK68: 0 | CL68: 0 | CM68: 26 | CN68: 0.8999999762 | CO68: 62.29999924 | CP68: 26.06176186 | CQ68: 16.09492752 | CR68: 6.016666889 | CS68: 1.994521856 | CT68: 13.06667137 | CU68: 0.2349530607 | CV68: 0.07612207532 | CW68: N | CX68: 0 | CY68: 46.68817755 | CZ68: 10.00006964 | DA68: 34 | DB68: 34 | DC68: 0 | DD68: 0 | DE68: 26 | DF68: 2.799999952 | DG68: 121.0999985 | DH68: 33.76874924 | DI68: 31.88438894 | DJ68: 14.63000011 | DK68: 1.227108598 | DL68: 27.51895714 | DM68: 0.3425000012 | DN68: 0.04259198904 | DO68: G | DP68: 50 | DQ68: 0.001835342428 | DR68: 49.99966422 | DS68: 33 | DT68: 33 | DU68: 17 | DV68: 50 | DW68: 26 | DX68: 10.44000015 | DY68: 20.63999939 | DZ68: 15.99058838 | EA68: 2.119359472 | EB68: 16.38999939 | EC68: 5.60814209 | ED68: 2.851316452 | EE68: 0.02349530607 | EF68: 0.004949820042 | EG68: N | EH68: 0 | EI68: 15.99058837 | EJ68: 50.00000008 | EK68: 34 | EL68: 34 | EM68: 0 | EN68: 0 | EO68: 26 | EP68: 22.43000031 | EQ68: 36.01000061 | ER68: 28.29499817 | ES68: 3.207279889 | ET68: 28.08833313 | EU68: 8.002863312 | EV68: 3.535609245 | EW68: 0.02349530607 | EX68: 0.002378815413 | EY68: G | EZ68: 0 | FA68: 28.17724231 | FB68: 49.9998638 | FC68: 34 | FD68: 34 | FE68: 0 | FF68: 0 | FG68: 26 | FH68: 17.43999939 | FI68: 28.11000061 | FJ68: 22.14382629 | FK68: 2.537566266 | FL68: 21.88583374 | FM68: 7.781516266 | FN68: 2.845695496 | FO68: 0.02349530607 | FP68: 0.006992521882 | FQ68: G | FR68: 0 | FS68: 22.04904191 | FT68: 49.99999905 | FU68: 34 | FV68: 34 | FW68: 0 | FX68: 0 | FY68: 26 | FZ68: 123 | GA68: 206 | GB68: 170.1470642 | GC68: 22.59543089 | GD68: 171.4166718 | GE68: 56.35470581 | GF68: 3.019216537 | GG68: 0.2349530607 | GH68: 0.05405786633 | GI68: N | GJ68: 0 | GK68: 154.9066821 | GL68: 74.99999381 | GM68: 34 | GN68: 34 | GO68: 0 | GP68: 0
A69: 27 | B69: 2.400000095 | C69: 125.5 | D69: 41.97812653 | E69: 30.2392448 | F69: 33.17499924 | G69: 1.767266631 | H69: 23.75313759 | I69: 0.2421840727 | J69: 0.06999188662 | K69: G | L69: 5.714285714 | M69: 32.29559645 | N69: 50.00005436 | O69: 32 | P69: 34 | Q69: 2 | R69: 5.714285714 | S69: 27 | T69: 27.93354797 | U69: 50.031353 | V69: 37.80764389 | W69: 6.256271877 | X69: 37.14096832 | Y69: 37.31926346 | Z69: 1.013086557 | AA69: 0.2349530607 | AB69: 0.0777991116 | AC69: N | AD69: 0 | AE69: 37.8076439 | AF69: 49.99999997 | AG69: 34 | AH69: 34 | AI69: 0 | AJ69: 0 | AK69: 27 | AL69: 30.79999924 | AM69: 55.09999847 | AN69: 41.43333054 | AO69: 6.909624889 | AP69: 40.92499924 | AQ69: 37.03118134 | AR69: 1.118876815 | AS69: 0.2384863943 | AT69: 0.07587108016 | AU69: G | AV69: 0 | AW69: 50.36364751 | AX69: 9.999543402 | AY69: 33 | AZ69: 33 | BA69: 0 | BB69: 0 | BC69: 27 | BD69: 96.59500122 | BE69: 112.5849976 | BF69: 104.4732666 | BG69: 3.630528852 | BH69: 105.9224976 | BI69: 42.72617493 | BJ69: 2.445181847 | BK69: 0.01210920364 | BL69: 0.0008709743619 | BM69: N | BN69: 0 | BO69: 104.4732788 | BP69: 49.99986607 | BQ69: 32 | BR69: 32 | BS69: 0 | BT69: 0 | BU69: 27 | BV69: 5.699999809 | BW69: 33.09999847 | BX69: 19.12727547 | BY69: 6.591247952 | BZ69: 17.11666679 | CA69: 6.954818249 | CB69: 2.750219345 | CC69: 0.2384863943 | CD69: 0.03116869181 | CE69: N | CF69: 0 | CG69: 27.57429832 | CH69: 10.00000339 | CI69: 33 | CJ69: 33 | CK69: 0 | CL69: 0 | CM69: 27 | CN69: 7.5 | CO69: 49.20000076 | CP69: 21.87059021 | CQ69: 11.25256895 | CR69: 10.97500038 | CS69: 4.079676151 | CT69: 5.360864162 | CU69: 0.2349530607 | CV69: 0.06325054169 | CW69: G | CX69: 0 | CY69: 36.38319372 | CZ69: 10.00000627 | DA69: 34 | DB69: 34 | DC69: 0 | DD69: 0 | DE69: 27 | DF69: 0.8999999762 | DG69: 104.1999969 | DH69: 23.6684227 | DI69: 26.68709634 | DJ69: 11.22999954 | DK69: 0.8842411637 | DL69: 26.76693153 | DM69: 0.3142995536 | DN69: 0.03811776638 | DO69: G | DP69: 41.17647059 | DQ69: 3.169629019 | DR69: 49.99920056 | DS69: 33 | DT69: 33 | DU69: 14 | DV69: 41.17647059 | DW69: 27 | DX69: 11.55999985 | DY69: 19.91000061 | DZ69: 16.06529541 | EA69: 1.820345024 | EB69: 15.03916626 | EC69: 7.870845795 | ED69: 2.04111433 | EE69: 0.02349530607 | EF69: 0.002977645397 | EG69: N | EH69: 0 | EI69: 16.06530712 | EJ69: 49.99974329 | EK69: 34 | EL69: 34 | EM69: 0 | EN69: 0 | EO69: 27 | EP69: 22.36000061 | EQ69: 33.72000122 | ER69: 27.90176392 | ES69: 2.636321382 | ET69: 27.09333496 | EU69: 11.54021606 | EV69: 2.417785168 | EW69: 0.02349530607 | EX69: 0.002528846264 | EY69: G | EZ69: 0 | FA69: 27.82121197 | FB69: 49.99999904 | FC69: 34 | FD69: 34 | FE69: 0 | FF69: 0 | FG69: 27 | FH69: 16.95 | FI69: 26.82000122 | FJ69: 21.98382568 | FK69: 2.11056513 | FL69: 21.0625 | FM69: 11.17834167 | FN69: 1.966644645 | FO69: 0.02349530607 | FP69: 0.006522774696 | FQ69: G | FR69: 0 | FS69: 21.9183053 | FT69: 50.00001037 | FU69: 34 | FV69: 34 | FW69: 0 | FX69: 0 | FY69: 27 | FZ69: 121 | GA69: 225 | GB69: 174.8235321 | GC69: 26.10058972 | GD69: 199 | GE69: 44.09614563 | GF69: 3.964598894 | GG69: 0.2349530607 | GH69: 0.05190396309 | GI69: N | GJ69: 0 | GK69: 157.2189571 | GL69: 74.99999367 | GM69: 34 | GN69: 34 | GO69: 0 | GP69: 0
A70: 28 | B70: 4.199999809 | C70: 159.1000061 | D70: 50.09677505 | E70: 44.48660179 | F70: 19.69000053 | G70: 1.263707042 | H70: 39.64271164 | I70: 0.2460592687 | J70: 0.03314739466 | K70: G | L70: 8.571428571 | M70: 33.43805755 | N70: 50.00000103 | O70: 31 | P70: 34 | Q70: 3 | R70: 8.571428571 | S70: 28 | T70: 23.78536606 | U70: 57.44005203 | V70: 39.39910126 | W70: 7.246550956 | X70: 37.80815125 | Y70: 29.57631302 | Z70: 1.332116723 | AA70: 0.2349530607 | AB70: 0.04611034691 | AC70: N | AD70: 0 | AE70: 39.39910126 | AF70: 49.99999999 | AG70: 34 | AH70: 34 | AI70: 0 | AJ70: 0 | AK70: 28 | AL70: 21.10000038 | AM70: 52.40000153 | AN70: 36.0727272 | AO70: 6.883189093 | AP70: 34.14166641 | AQ70: 26.77805328 | AR70: 1.347100377 | AS70: 0.2384863943 | AT70: 0.05770362914 | AU70: N | AV70: 0 | AW70: 44.89383199 | AX70: 10.00014527 | AY70: 33 | AZ70: 33 | BA70: 0 | BB70: 0 | BC70: 28 | BD70: 95.8 | BE70: 116.8900024 | BF70: 106.4804688 | BG70: 5.190840651 | BH70: 108.1025024 | BI70: 21.69207916 | BJ70: 4.908725739 | BK70: 0.01210920364 | BL70: 0.001215299964 | BM70: N | BN70: 0 | BO70: 106.4804655 | BP70: 50.00002525 | BQ70: 32 | BR70: 32 | BS70: 0 | BT70: 0 | BU70: 28 | BV70: 2.200000048 | BW70: 29.79999924 | BX70: 18.21515083 | BY70: 7.242802961 | BZ70: 22.89999962 | CA70: 3.527739048 | CB70: 5.163406372 | CC70: 0.2384863943 | CD70: 0.07112296671 | CE70: N | CF70: 0 | CG70: 27.4971687 | CH70: 10.00001844 | CI70: 33 | CJ70: 33 | CK70: 0 | CL70: 0 | CM70: 28 | CN70: 1.200000048 | CO70: 45.70000076 | CP70: 17.90294075 | CQ70: 11.81607696 | CR70: 4.908333778 | CS70: 1.865028977 | CT70: 9.599283218 | CU70: 0.2349530607 | CV70: 0.0409001112 | CW70: G | CX70: 0 | CY70: 35.39869068 | CZ70: 10.0000043 | DA70: 34 | DB70: 34 | DC70: 0 | DD70: 0 | DE70: 28 | DF70: 1.700000048 | DG70: 214.3000031 | DH70: 39.72500229 | DI70: 52.12084769 | DJ70: 22.96000099 | DK70: 0.7622571588 | DL70: 52.11495972 | DM70: 0.2796500921 | DN70: 0.04068344831 | DO70: G | DP70: 26.47058824 | DQ70: 11.92690587 | DR70: 49.99999569 | DS70: 33 | DT70: 33 | DU70: 9 | DV70: 26.47058824 | DW70: 28 | DX70: 14.13000031 | DY70: 19.78000031 | DZ70: 17.01823425 | EA70: 1.500043385 | EB70: 17.42583313 | EC70: 12.97888794 | ED70: 1.311224341 | EE70: 0.02349530607 | EF70: 0.01186676621 | EG70: N | EH70: 0 | EI70: 17.01826369 | EJ70: 49.99921704 | EK70: 34 | EL70: 34 | EM70: 0 | EN70: 0 | EO70: 28 | EP70: 24.38000031 | EQ70: 33.26000061 | ER70: 28.64029236 | ES70: 2.056719231 | ET70: 29.56000061 | EU70: 20.22304077 | EV70: 1.416220903 | EW70: 0.02349530607 | EX70: 0.006863021851 | EY70: N | EZ70: 0 | FA70: 28.64029333 | FB70: 49.99998122 | FC70: 34 | FD70: 34 | FE70: 0 | FF70: 0 | FG70: 28 | FH70: 19.96000061 | FI70: 26.52000122 | FJ70: 22.83147125 | FK70: 1.597185377 | FL70: 21.6 | FM70: 21.40169678 | FN70: 1.066806555 | FO70: 0.02349530607 | FP70: 0.007467141747 | FQ70: G | FR70: 0 | FS70: 22.79595406 | FT70: 49.99912993 | FU70: 34 | FV70: 34 | FW70: 0 | FX70: 0 | FY70: 28 | FZ70: 116 | GA70: 236 | GB70: 186 | GC70: 25.39028726 | GD70: 206 | GE70: 50.22021484 | GF70: 3.703687906 | GG70: 0.2349530607 | GH70: 0.06318080425 | GI70: T | GJ70: 0 | GK70: 167.9615773 | GL70: 74.99994889 | GM70: 34 | GN70: 34 | GO70: 0 | GP70: 0
A71: 29 | B71: 2.400000095 | C71: 198.8000031 | D71: 42.4272728 | E71: 44.02114776 | F71: 18.76666641 | G71: 1.09629178 | H71: 38.70071411 | I71: 0.2384863943 | J71: 0.02203059196 | K71: G | L71: 2.857142857 | M71: 29.24217555 | N71: 50.00000186 | O71: 33 | P71: 34 | Q71: 1 | R71: 2.857142857 | S71: 29 | T71: 31.56179619 | U71: 51.02565384 | V71: 41.28974915 | W71: 4.956653385 | X71: 39.67173767 | Y71: 69.74826813 | Z71: 0.5919824243 | AA71: 0.2349530607 | AB71: 0.06787025928 | AC71: N | AD71: 0 | AE71: 41.2897444 | AF71: 50.00003817 | AG71: 34 | AH71: 34 | AI71: 0 | AJ71: 0 | AK71: 29 | AL71: 26 | AM71: 42 | AN71: 34.06364059 | AO71: 4.147350219 | AP71: 38 | AQ71: 67.75495911 | AR71: 0.5027475357 | AS71: 0.2384863943 | AT71: 0.07575753331 | AU71: U | AV71: 0 | AW71: 40.4 | AX71: 10 | AY71: 33 | AZ71: 33 | BA71: 0 | BB71: 0 | BC71: 29 | BD71: 99.675 | BE71: 116.8199951 | BF71: 106.3070312 | BG71: 4.29802584 | BH71: 106.81875 | BI71: 32.10988464 | BJ71: 3.310725927 | BK71: 0.01210920364 | BL71: 0.003406733274 | BM71: G | BN71: 0 | BO71: 106.251854 | BP71: 49.99999918 | BQ71: 32 | BR71: 32 | BS71: 0 | BT71: 0 | BU71: 29 | BV71: 6 | BW71: 27.5 | BX71: 18.35151672 | BY71: 6.217169326 | BZ71: 25.70833206 | CA71: 7.606740475 | CB71: 2.412533522 | CC71: 0.2384863943 | CD71: 0.07005029917 | CE71: N | CF71: 0 | CG71: 26.31881522 | CH71: 10.00091627 | CI71: 33 | CJ71: 33 | CK71: 0 | CL71: 0 | CM71: 29 | CN71: 1.200000048 | CO71: 31.79999924 | CP71: 16.0735302 | CQ71: 8.590879759 | CR71: 8.850000381 | CS71: 2.665864706 | CT71: 6.029386997 | CU71: 0.2349530607 | CV71: 0.06862741709 | CW71: U | CX71: 0 | CY71: 28.73999932 | CZ71: 10 | DA71: 34 | DB71: 34 | DC71: 0 | DD71: 0 | DE71: 29 | DF71: 0.200000003 | DG71: 126.5 | DH71: 32.52000427 | DI71: 36.97524939 | DJ71: 12.82999992 | DK71: 0.6497062445 | DL71: 50.05339813 | DM71: 0.3063413203 | DN71: 0.04283881187 | DO71: G | DP71: 38.23529412 | DQ71: 3.456675146 | DR71: 49.99999331 | DS71: 33 | DT71: 33 | DU71: 13 | DV71: 38.23529412 | DW71: 29 | DX71: 14.53000031 | DY71: 22.01999969 | DZ71: 17.94294128 | EA71: 1.97503438 | EB71: 18.89916687 | EC71: 8.439929962 | ED71: 2.125958443 | EE71: 0.02349530607 | EF71: 0.007657951117 | EG71: N | EH71: 0 | EI71: 17.9429495 | EJ71: 49.99983403 | EK71: 34 | EL71: 34 | EM71: 0 | EN71: 0 | EO71: 29 | EP71: 25.75 | EQ71: 33.72999878 | ER71: 29.43853149 | ES71: 2.098116439 | ET71: 29.075 | EU71: 20.19168854 | EV71: 1.457952976 | EW71: 0.02349530607 | EX71: 0.004322701693 | EY71: N | EZ71: 0 | FA71: 29.43853246 | FB71: 49.99998172 | FC71: 34 | FD71: 34 | FE71: 0 | FF71: 0 | FG71: 29 | FH71: 20.28000031 | FI71: 27.87999878 | FJ71: 23.69411621 | FK71: 1.925668813 | FL71: 23.44666595 | FM71: 15.48701019 | FN71: 1.529934883 | FO71: 0.02349530607 | FP71: 0.004867824912 | FQ71: G | FR71: 0 | FS71: 23.64315547 | FT71: 49.99965142 | FU71: 34 | FV71: 34 | FW71: 0 | FX71: 0 | FY71: 29 | FZ71: 135 | GA71: 224 | GB71: 192.5 | GC71: 19.65652014 | GD71: 186.9166718 | GE71: 92.95883942 | GF71: 2.070808887 | GG71: 0.2349530607 | GH71: 0.05243486166 | GI71: N | GJ71: 0 | GK71: 179.2418822 | GL71: 74.9999942 | GM71: 34 | GN71: 34 | GO71: 0 | GP71: 0
A72: 30 | B72: 2.599999905 | C72: 179.3000031 | D72: 56.63225174 | E72: 42.67608999 | F72: 20.27000046 | G72: 1.720047951 | H72: 32.9248085 | I72: 0.2460592687 | J72: 0.03889489174 | K72: E | L72: 8.571428571 | M72: 34.17928881 | N72: 50.00022821 | O72: 31 | P72: 34 | Q72: 3 | R72: 8.571428571 | S72: 30 | T72: 31.74681473 | U72: 56.03004837 | V72: 43.03416443 | W72: 6.183542238 | X72: 37.81762314 | Y72: 49.6799202 | Z72: 0.8662285209 | AA72: 0.2349530607 | AB72: 0.04047423601 | AC72: G | AD72: 0 | AE72: 42.7458955 | AF72: 49.99916296 | AG72: 34 | AH72: 34 | AI72: 0 | AJ72: 0 | AK72: 30 | AL72: 26.70000076 | AM72: 46.20000076 | AN72: 35.61212158 | AO72: 4.969516911 | AP72: 31.57500076 | AQ72: 52.64633942 | AR72: 0.6764405966 | AS72: 0.2384863943 | AT72: 0.03976494074 | AU72: G | AV72: 0 | AW72: 42.02902374 | AX72: 10.00029117 | AY72: 33 | AZ72: 33 | BA72: 0 | BB72: 0 | BC72: 30 | BD72: 99.39500122 | BE72: 116.85 | BF72: 107.7118774 | BG72: 4.071077034 | BH72: 106.6679199 | BI72: 36.07819519 | BJ72: 2.98551178 | BK72: 0.01210920364 | BL72: 0.00165964812 | BM72: N | BN72: 0 | BO72: 107.7118807 | BP72: 49.99996812 | BQ72: 32 | BR72: 32 | BS72: 0 | BT72: 0 | BU72: 30 | BV72: 6.300000191 | BW72: 30.29999924 | BX72: 21.13030243 | BY72: 6.844682743 | BZ72: 20.29999924 | CA72: 6.80770731 | CB72: 3.103879452 | CC72: 0.2384863943 | CD72: 0.1030937433 | CE72: N | CF72: 0 | CG72: 29.90210931 | CH72: 10.00001797 | CI72: 33 | CJ72: 33 | CK72: 0 | CL72: 0 | CM72: 30 | CN72: 0.200000003 | CO72: 35.90000153 | CP72: 15.05882359 | CQ72: 10.30572324 | CR72: 9.125 | CS72: 1.614573836 | CT72: 9.326809883 | CU72: 0.2349530607 | CV72: 0.06250011921 | CW72: G | CX72: 0 | CY72: 30.82338338 | CZ72: 10.00000239 | DA72: 34 | DB72: 34 | DC72: 0 | DD72: 0 | DE72: 30 | DF72: 1.299999952 | DG72: 151.3999939 | DH72: 43.70833206 | DI72: 41.21246072 | DJ72: 16.30999947 | DK72: 0.9463364482 | DL72: 46.18688583 | DM72: 0.2796500921 | DN72: 0.05585318804 | DO72: E | DP72: 26.47058824 | DQ72: 16.8565712 | DR72: 50.0001059 | DS72: 33 | DT72: 33 | DU72: 9 | DV72: 26.47058824 | DW72: 30 | DX72: 14.68999939 | DY72: 21.53999939 | DZ72: 18.22911835 | EA72: 1.705808791 | EB72: 19.82749939 | EC72: 11.50505371 | ED72: 1.584444404 | EE72: 0.02349530607 | EF72: 0.004480189085 | EG72: N | EH72: 0 | EI72: 18.22911846 | EJ72: 49.99999744 | EK72: 34 | EL72: 34 | EM72: 0 | EN72: 0 | EO72: 30 | EP72: 25.15 | EQ72: 33.5 | ER72: 29.47528992 | ES72: 2.0358265 | ET72: 30.02083435 | EU72: 21.50068817 | EV72: 1.370899796 | EW72: 0.02349530607 | EX72: 0.004012160003 | EY72: N | EZ72: 0 | FA72: 29.47529117 | FB72: 49.99997545 | FC72: 34 | FD72: 34 | FE72: 0 | FF72: 0 | FG72: 30 | FH72: 19.91000061 | FI72: 27.51000061 | FJ72: 23.85235443 | FK72: 1.762723522 | FL72: 24.34333344 | FM72: 18.67525024 | FN72: 1.277217388 | FO72: 0.02349530607 | FP72: 0.004962302744 | FQ72: N | FR72: 0 | FS72: 23.85232001 | FT72: 50.00077905 | FU72: 34 | FV72: 34 | FW72: 0 | FX72: 0 | FY72: 30 | FZ72: 152 | GA72: 257 | GB72: 204.5294189 | GC72: 26.07592252 | GD72: 213.25 | GE72: 62.23449707 | GF72: 3.286431551 | GG72: 0.2349530607 | GH72: 0.02941176295 | GI72: N | GJ72: 0 | GK72: 186.9414815 | GL72: 74.99999386 | GM72: 34 | GN72: 34 | GO72: 0 | GP72: 0
A73: 31 | B73: 6.599999905 | C73: 115.6999969 | D73: 36.62352371 | E73: 27.96408939 | F73: 15.69166565 | G73: 2.086522579 | H73: 17.55242157 | I73: 0.2349530607 | J73: 0.07861989737 | K73: E | L73: 0 | M73: 25.38549007 | N73: 50.00000291 | O73: 34 | P73: 34 | Q73: 0 | R73: 0 | S73: 31 | T73: 34.68674088 | U73: 59.85489273 | V73: 45.14640427 | W73: 5.434172741 | X73: 45.17346954 | Y73: 73.13993835 | Z73: 0.6172606349 | AA73: 0.2349530607 | AB73: 0.09155756235 | AC73: N | AD73: 0 | AE73: 45.14640382 | AF73: 50.00000325 | AG73: 34 | AH73: 34 | AI73: 0 | AJ73: 0 | AK73: 31 | AL73: 29.5 | AM73: 48.70000076 | AN73: 40.20000076 | AO73: 4.236891333 | AP73: 40.70000076 | AQ73: 90.91842651 | AR73: 0.4421546161 | AS73: 0.2384863943 | AT73: 0.02606040239 | AU73: N | AV73: 0 | AW73: 45.62973137 | AX73: 10.00026556 | AY73: 33 | AZ73: 33 | BA73: 0 | BB73: 0 | BC73: 31 | BD73: 96.59500122 | BE73: 112.1699951 | BF73: 105.0073486 | BG73: 3.486735642 | BH73: 103.0845825 | BI73: 46.61364136 | BJ73: 2.252717018 | BK73: 0.01210920364 | BL73: 0.001735469699 | BM73: N | BN73: 0 | BO73: 105.0073504 | BP73: 49.99997974 | BQ73: 32 | BR73: 32 | BS73: 0 | BT73: 0 | BU73: 31 | BV73: 14.30000019 | BW73: 36.40000153 | BX73: 29.4272747 | BY73: 4.437501289 | BZ73: 30.87500191 | CA73: 37.94342804 | CB73: 0.7755565643 | CC73: 0.2384863943 | CD73: 0.06726568937 | CE73: N | CF73: 0 | CG73: 35.11412238 | CH73: 10.00015441 | CI73: 33 | CJ73: 33 | CK73: 0 | CL73: 0 | CM73: 31 | CN73: 2.700000048 | CO73: 42.5 | CP73: 11.70588303 | CQ73: 7.527563182 | CR73: 6.016666412 | CS73: 3.16970253 | CT73: 3.693054199 | CU73: 0.2349530607 | CV73: 0.04864493012 | CW73: G | CX73: 0 | CY73: 20.52198819 | CZ73: 10.00054264 | DA73: 34 | DB73: 34 | DC73: 0 | DD73: 0 | DE73: 31 | DF73: 0.5 | DG73: 92 | DH73: 23.21739197 | DI73: 22.09260904 | DJ73: 9.649999619 | DK73: 0.9055666327 | DL73: 25.63852501 | DM73: 0.2856647372 | DN73: 0.05634570122 | DO73: G | DP73: 29.41176471 | DQ73: 7.302815807 | DR73: 49.99997367 | DS73: 33 | DT73: 33 | DU73: 10 | DV73: 29.41176471 | DW73: 31 | DX73: 15.66999969 | DY73: 22.06000061 | DZ73: 18.83529358 | EA73: 1.624746543 | EB73: 19.39750061 | EC73: 13.71392517 | ED73: 1.373442888 | EE73: 0.02349530607 | EF73: 0.002889829874 | EG73: N | EH73: 0 | EI73: 18.83529893 | EJ73: 49.99986864 | EK73: 34 | EL73: 34 | EM73: 0 | EN73: 0 | EO73: 31 | EP73: 26.62000122 | EQ73: 34.57000122 | ER73: 30.06794434 | ES73: 1.7784309 | ET73: 29.93250122 | EU73: 29.4764801 | EV73: 1.020065665 | EW73: 0.02349530607 | EX73: 0.001439976692 | EY73: N | EZ73: 0 | FA73: 30.06794763 | FB73: 49.99992606 | FC73: 34 | FD73: 34 | FE73: 0 | FF73: 0 | FG73: 31 | FH73: 21.4 | FI73: 28.32999878 | FJ73: 24.45088501 | FK73: 1.619003359 | FL73: 24.2875 | FM73: 23.44606628 | FN73: 1.042856574 | FO73: 0.02349530607 | FP73: 0.002898836136 | FQ73: N | FR73: 0 | FS73: 24.45088936 | FT73: 49.99989272 | FU73: 34 | FV73: 34 | FW73: 0 | FX73: 0 | FY73: 31 | FZ73: 164 | GA73: 260 | GB73: 212.4117584 | GC73: 22.09088367 | GD73: 204 | GE73: 93.37658691 | GF73: 2.274785995 | GG73: 0.2349530607 | GH73: 0.0276247859 | GI73: N | GJ73: 0 | GK73: 197.5116879 | GL73: 74.99999417 | GM73: 34 | GN73: 34 | GO73: 0 | GP73: 0
A74: 32 | B74: 1.700000048 | C74: 131.8999939 | D74: 44.26969528 | E74: 34.05964903 | F74: 12.54999924 | G74: 1.21287322 | H74: 36.49985504 | I74: 0.2384863943 | J74: 0.06060612202 | K74: T | L74: 2.857142857 | M74: 42.46730271 | N74: 50.00001151 | O74: 33 | P74: 34 | Q74: 1 | R74: 2.857142857 | S74: 32 | T74: 36.36001968 | U74: 65.20774078 | V74: 46.43487549 | W74: 6.603133481 | X74: 43.57194901 | Y74: 54.0637207 | Z74: 0.8588916063 | AA74: 0.2349530607 | AB74: 0.08789222687 | AC74: G | AD74: 0 | AE74: 46.14895688 | AF74: 49.99960549 | AG74: 34 | AH74: 34 | AI74: 0 | AJ74: 0 | AK74: 32 | AL74: 34.90000153 | AM74: 64 | AN74: 46.79393005 | AO74: 6.581410799 | AP74: 47.02500153 | AQ74: 53.84968948 | AR74: 0.8689730763 | AS74: 0.2384863943 | AT74: 0.02727150917 | AU74: G | AV74: 0 | AW74: 55.12942364 | AX74: 10.00006249 | AY74: 33 | AZ74: 33 | BA74: 0 | BB74: 0 | BC74: 32 | BD74: 86.84000244 | BE74: 111.7599976 | BF74: 100.6136047 | BG74: 6.804540577 | BH74: 105.5300049 | BI74: 11.03274078 | BJ74: 9.119547844 | BK74: 0.01210920364 | BL74: 0.003324839473 | BM74: N | BN74: 0 | BO74: 100.6136038 | BP74: 50.00000534 | BQ74: 32 | BR74: 32 | BS74: 0 | BT74: 0 | BU74: 32 | BV74: 14 | BW74: 60.29999924 | BX74: 42.29091263 | BY74: 8.774442702 | BZ74: 41.00833511 | CA74: 18.05517578 | CB74: 2.342315197 | CC74: 0.2384863943 | CD74: 0.06558582187 | CE74: N | CF74: 0 | CG74: 53.53575778 | CH74: 10.00011126 | CI74: 33 | CJ74: 33 | CK74: 0 | CL74: 0 | CM74: 32 | CN74: 0.1000000015 | CO74: 48.70000076 | CP74: 6.165623188 | CQ74: 9.621166704 | CR74: 4.150000095 | CS74: 0.6993499398 | CT74: 8.816220284 | CU74: 0.2421840727 | CV74: 0.07176464796 | CW74: G | CX74: 5.714285714 | CY74: 15.0187677 | CZ74: 10.00002487 | DA74: 34 | DB74: 34 | DC74: 2 | DD74: 5.714285714 | DE74: 32 | DF74: 0.1000000015 | DG74: 78.69999695 | DH74: 22.21578979 | DI74: 25.97009553 | DJ74: 7.959999561 | DK74: 0.5370250344 | DL74: 41.36825562 | DM74: 0.3142995536 | DN74: 0.06842023134 | DO74: G | DP74: 41.17647059 | DQ74: 0.9842096545 | DR74: 50.00000405 | DS74: 33 | DT74: 33 | DU74: 14 | DV74: 41.17647059 | DW74: 32 | DX74: 15.86000061 | DY74: 21.65 | DZ74: 18.96853027 | EA74: 1.567799314 | EB74: 20.20249939 | EC74: 14.93653412 | ED74: 1.269941926 | EE74: 0.02349530607 | EF74: 0.004654091597 | EG74: G | EH74: 0 | EI74: 18.92621617 | EJ74: 50.00000444 | EK74: 34 | EL74: 34 | EM74: 0 | EN74: 0 | EO74: 32 | EP74: 26.4 | EQ74: 33.62000122 | ER74: 30.07293701 | ES74: 1.871956677 | ET74: 29.40833435 | EU74: 26.5131073 | EV74: 1.134266734 | EW74: 0.02349530607 | EX74: 0.004282712936 | EY74: G | EZ74: 0 | FA74: 30.03514644 | FB74: 49.99975711 | FC74: 34 | FD74: 34 | FE74: 0 | FF74: 0 | FG74: 32 | FH74: 21.41999969 | FI74: 27.07999878 | FJ74: 24.52029266 | FK74: 1.591272776 | FL74: 24.72166595 | FM74: 24.23444672 | FN74: 1.011795044 | FO74: 0.02349530607 | FP74: 0.007638353109 | FQ74: N | FR74: 0 | FS74: 24.52029266 | FT74: 50.00000019 | FU74: 34 | FV74: 34 | FW74: 0 | FX74: 0 | FY74: 32 | FZ74: 175 | GA74: 277 | GB74: 221.3823547 | GC74: 25.17094995 | GD74: 217.5 | GE74: 80.47753906 | GF74: 2.750858784 | GG74: 0.2349530607 | GH74: 0.02943938971 | GI74: G | GJ74: 0 | GK74: 204.275796 | GL74: 74.9999987 | GM74: 34 | GN74: 34 | GO74: 0 | GP74: 0
A75: 33 | B75: 2.700000048 | C75: 119.6999969 | D75: 35.12187195 | E75: 24.46258054 | F75: 31.95000076 | G75: 1.886449456 | H75: 18.61797714 | I75: 0.2421840727 | J75: 0.08845821023 | K75: G | L75: 5.714285714 | M75: 27.44490114 | N75: 50.00002722 | O75: 32 | P75: 34 | Q75: 2 | R75: 5.714285714 | S75: 33 | T75: 30.63402939 | U75: 62.57438278 | V75: 48.53070831 | W75: 6.17768621 | X75: 49.26590347 | Y75: 58.53642273 | Z75: 0.8290685415 | AA75: 0.2349530607 | AB75: 0.0480158329 | AC75: N | AD75: 0 | AE75: 48.53070805 | AF75: 50.00000169 | AG75: 34 | AH75: 34 | AI75: 0 | AJ75: 0 | AK75: 33 | AL75: 32.90000153 | AM75: 66.80000305 | AN75: 51.50606537 | AO75: 6.562532261 | AP75: 52.67500305 | AQ75: 58.81895828 | AR75: 0.8756711483 | AS75: 0.2384863943 | AT75: 0.05747081339 | AU75: N | AV75: 0 | AW75: 59.91615671 | AX75: 10.00035341 | AY75: 33 | AZ75: 33 | BA75: 0 | BB75: 0 | BC75: 33 | BD75: 66.96500244 | BE75: 113.4849976 | BF75: 92.08484497 | BG75: 11.29744207 | BH75: 94.10166626 | BI75: 3.24544754 | BJ75: 28.37354279 | BK75: 0.01210920364 | BL75: 0.005803571641 | BM75: T | BN75: 0 | BO75: 92.08867069 | BP75: 50.0000022 | BQ75: 32 | BR75: 32 | BS75: 0 | BT75: 0 | BU75: 33 | BV75: 12.10000038 | BW75: 60.59999847 | BX75: 47.45151138 | BY75: 9.312361134 | BZ75: 48.47499847 | CA75: 17.02220345 | CB75: 2.787624598 | CC75: 0.2384863943 | CD75: 0.1208061278 | CE75: N | CF75: 0 | CG75: 59.38570811 | CH75: 10.00013995 | CI75: 33 | CJ75: 33 | CK75: 0 | CL75: 0 | CM75: 33 | CN75: 0.200000003 | CO75: 36.09999847 | CP75: 7.386955738 | CQ75: 10.28716333 | CR75: 3.789999962 | CS75: 0.7720273137 | CT75: 9.568257332 | CU75: 0.2856647372 | CV75: 0.08989471197 | CW75: G | CX75: 31.42857143 | CY75: 14.81709848 | CZ75: 10.00000509 | DA75: 34 | DB75: 34 | DC75: 11 | DD75: 31.42857143 | DE75: 33 | DF75: 0.200000003 | DG75: 56.70000076 | DH75: 13.69090939 | DI75: 21.07825603 | DJ75: 5.849999905 | DK75: 0.5031796098 | DL75: 27.20879173 | DM75: 0.3983826041 | DN75: 0.113473177 | DO75: G | DP75: 64.70588235 | DQ75: 0 | DR75: 35.29411765 | DS75: 33 | DT75: 33 | DU75: 22 | DV75: 64.70588235 | DW75: 33 | DX75: 16.43000031 | DY75: 22.43000031 | DZ75: 19.52734985 | EA75: 1.39434632 | EB75: 18.93000031 | EC75: 20.45836487 | ED75: 0.9544922113 | EE75: 0.02349530607 | EF75: 0.006597709656 | EG75: G | EH75: 0 | EI75: 19.49554315 | EJ75: 49.99998831 | EK75: 34 | EL75: 34 | EM75: 0 | EN75: 0 | EO75: 33 | EP75: 27.58999939 | EQ75: 33.66000061 | ER75: 30.84646301 | ES75: 1.318407927 | ET75: 30.11916504 | EU75: 56.3791748 | EV75: 0.5471251011 | EW75: 0.02349530607 | EX75: 0.006231218576 | EY75: G | EZ75: 0 | FA75: 30.82823207 | FB75: 49.99981741 | FC75: 34 | FD75: 34 | FE75: 0 | FF75: 0 | FG75: 33 | FH75: 23.48000031 | FI75: 28.02000122 | FJ75: 25.18529358 | FK75: 1.225039859 | FL75: 24.61500092 | FM75: 44.42386169 | FN75: 0.5669316649 | FO75: 0.02349530607 | FP75: 0.00871475935 | FQ75: G | FR75: 0 | FS75: 25.16639876 | FT75: 49.99999701 | FU75: 34 | FV75: 34 | FW75: 0 | FX75: 0 | FY75: 33 | FZ75: 151 | GA75: 279 | GB75: 228.6764679 | GC75: 25.90509671 | GD75: 247 | GE75: 73.62983704 | GF75: 3.10575819 | GG75: 0.2349530607 | GH75: 0.09803922474 | GI75: T | GJ75: 0 | GK75: 206.4256795 | GL75: 74.99995163 | GM75: 34 | GN75: 34 | GO75: 0 | GP75: 0
A76: 34 | B76: 1 | C76: 141.1999969 | D76: 43.84848022 | E76: 36.51293549 | F76: 36.04999924 | G76: 1.312502265 | H76: 33.40830994 | I76: 0.2384863943 | J76: 0.07606440783 | K76: G | L76: 2.857142857 | M76: 32.17020533 | N76: 50.00044413 | O76: 33 | P76: 34 | Q76: 1 | R76: 2.857142857 | S76: 34 | T76: 34.10517502 | U76: 63.59309769 | V76: 47.70488739 | W76: 6.839124815 | X76: 41.47715759 | Y76: 50.65795135 | Z76: 0.9417058229 | AA76: 0.2349530607 | AB76: 0.05519944429 | AC76: G | AD76: 0 | AE76: 47.39142152 | AF76: 49.99960657 | AG76: 34 | AH76: 34 | AI76: 0 | AJ76: 0 | AK76: 34 | AL76: 36.40000153 | AM76: 68 | AN76: 49.92727661 | AO76: 6.741859614 | AP76: 49.56666565 | AQ76: 57.95696259 | AR76: 0.861454308 | AS76: 0.2384863943 | AT76: 0.0470649004 | AU76: G | AV76: 0 | AW76: 58.49475583 | AX76: 10.00002362 | AY76: 33 | AZ76: 33 | BA76: 0 | BB76: 0 | BC76: 34 | BD76: 61.48499756 | BE76: 110.15 | BF76: 85.99498901 | BG76: 14.35017694 | BH76: 81.76208496 | BI76: 1.836225128 | BJ76: 46.8324852 | BK76: 0.01210920364 | BL76: 0.005401831865 | BM76: G | BN76: 0 | BO76: 85.21571738 | BP76: 49.99999826 | BQ76: 32 | BR76: 32 | BS76: 0 | BT76: 0 | BU76: 34 | BV76: 24.89999962 | BW76: 59.20000076 | BX76: 43.93636322 | BY76: 8.357586878 | BZ76: 44.90833282 | CA76: 24.76314545 | CB76: 1.774264216 | CC76: 0.2384863943 | CD76: 0.1286158562 | CE76: N | CF76: 0 | CG76: 54.6469796 | CH76: 10.00013055 | CI76: 33 | CJ76: 33 | CK76: 0 | CL76: 0 | CM76: 34 | CN76: 0.3000000119 | CO76: 41.40000153 | CP76: 8.855556488 | CQ76: 11.36101234 | CR76: 4.410000324 | CS76: 0.6460742354 | CT76: 13.70671654 | CU76: 0.2636566162 | CV76: 0.05663114786 | CW76: G | CX76: 20 | CY76: 20.00943835 | CZ76: 10.00017849 | DA76: 34 | DB76: 34 | DC76: 7 | DD76: 20 | DE76: 34 | DF76: 1.200000048 | DG76: 69.90000153 | DH76: 30.05714226 | DI76: 26.72108108 | DJ76: 8.070000648 | DK76: 0.9454964995 | DL76: 31.78979683 | DM76: 0.5063166618 | DN76: 0.1621125638 | DO76: N | DP76: 76.47058824 | DQ76: 0 | DR76: 20.46289828 | DS76: 33 | DT76: 33 | DU76: 26 | DV76: 76.47058824 | DW76: 34 | DX76: 16.6 | DY76: 22.13000031 | DZ76: 19.77705841 | EA76: 1.23931936 | EB76: 18.90416718 | EC76: 26.02147827 | ED76: 0.7600282431 | EE76: 0.02349530607 | EF76: 0.004519122839 | EG76: N | EH76: 0 | EI76: 19.77705797 | EJ76: 50.00001403 | EK76: 34 | EL76: 34 | EM76: 0 | EN76: 0 | EO76: 34 | EP76: 28.31000061 | EQ76: 34.02000122 | ER76: 30.70764465 | ES76: 1.501577082 | ET76: 28.78583374 | EU76: 43.31038513 | EV76: 0.7090134025 | EW76: 0.02349530607 | EX76: 0.009404833615 | EY76: N | EZ76: 0 | FA76: 30.70764562 | FB76: 49.99997445 | FC76: 34 | FD76: 34 | FE76: 0 | FF76: 0 | FG76: 34 | FH76: 22.98000031 | FI76: 27.67999878 | FJ76: 25.24293671 | FK76: 1.194420176 | FL76: 24.93833313 | FM76: 46.13247375 | FN76: 0.5471836925 | FO76: 0.02349530607 | FP76: 0.002737993002 | FQ76: N | FR76: 0 | FS76: 25.24293714 | FT76: 49.99998557 | FU76: 34 | FV76: 34 | FW76: 0 | FX76: 0 | FY76: 34 | FZ76: 161 | GA76: 280 | GB76: 225.7647095 | GC76: 27.73146001 | GD76: 230.4166718 | GE76: 65.50566101 | GF76: 3.44649148 | GG76: 0.2349530607 | GH76: 0.05088016391 | GI76: N | GJ76: 0 | GK76: 207.0601293 | GL76: 74.99999391 | GM76: 34 | GN76: 34 | GO76: 0 | GP76: 0
A77: 35 | B77: 5.900000095 | C77: 176 | D77: 57.57878876 | E77: 41.45082065 | F77: 20.07500076 | G77: 1.692625046 | H77: 34.01745224 | I77: 0.2384863943 | J77: 0.06362318993 | K77: N | L77: 2.857142857 | M77: 56.05047154 | N77: 50.00000316 | O77: 33 | P77: 34 | Q77: 1 | R77: 2.857142857 | S77: 35 | T77: 33.85527039 | U77: 55.26110458 | V77: 45.25244522 | W77: 6.197543845 | X77: 53.47728729 | Y77: 53.5549736 | Z77: 0.8449718356 | AA77: 0.2349530607 | AB77: 0.05968779325 | AC77: G | AD77: 0 | AE77: 44.97114194 | AF77: 49.99973402 | AG77: 34 | AH77: 34 | AI77: 0 | AJ77: 0 | AK77: 35 | AL77: 32.09999847 | AM77: 57.20000076 | AN77: 46.30908585 | AO77: 6.264451371 | AP77: 46.7416687 | AQ77: 54.33802032 | AR77: 0.8522409201 | AS77: 0.2384863943 | AT77: 0.0354244113 | AU77: N | AV77: 0 | AW77: 54.33747592 | AX77: 9.999516434 | AY77: 33 | AZ77: 33 | BA77: 0 | BB77: 0 | BC77: 35 | BD77: 56.88499756 | BE77: 114.0650024 | BF77: 86.82296753 | BG77: 17.77610536 | BH77: 109.3 | BI77: 1.171102524 | BJ77: 74.13780212 | BK77: 0.01210920364 | BL77: 0.004457595199 | BM77: N | BN77: 0 | BO77: 86.82296745 | BP77: 50.00000019 | BQ77: 32 | BR77: 32 | BS77: 0 | BT77: 0 | BU77: 35 | BV77: 13.80000019 | BW77: 51.79999924 | BX77: 38.3636322 | BY77: 9.803022923 | BZ77: 42.29999924 | CA77: 11.75773621 | CB77: 3.262841702 | CC77: 0.2384863943 | CD77: 0.1567802429 | CE77: N | CF77: 0 | CG77: 50.92670529 | CH77: 10.00001125 | CI77: 33 | CJ77: 33 | CK77: 0 | CL77: 0 | CM77: 35 | CN77: 0.1000000015 | CO77: 39 | CP77: 11.15555573 | CQ77: 12.27236765 | CR77: 3.99000001 | CS77: 0.5171927214 | CT77: 21.56943703 | CU77: 0.2636566162 | CV77: 0.09623849392 | CW77: E | CX77: 20 | CY77: 23.19727214 | CZ77: 10.00004828 | DA77: 34 | DB77: 34 | DC77: 7 | DD77: 20 | DE77: 35 | DF77: 2.900000095 | DG77: 107.0999985 | DH77: 38.61817932 | DI77: 32.44034113 | DJ77: 34.15999985 | DK77: 1.509180546 | DL77: 25.58884048 | DM77: 0.3983826041 | DN77: 0.08525818586 | DO77: E | DP77: 64.70588235 | DQ77: 0 | DR77: 35.29411765 | DS77: 33 | DT77: 33 | DU77: 22 | DV77: 64.70588235 | DW77: 35 | DX77: 17.83999939 | DY77: 23.03000031 | DZ77: 20.30147095 | EA77: 1.036521285 | EB77: 20.86750031 | EC77: 39.51672974 | ED77: 0.5137436986 | EE77: 0.02349530607 | EF77: 0.002909272909 | EG77: N | EH77: 0 | EI77: 20.30147013 | EJ77: 50.00003131 | EK77: 34 | EL77: 34 | EM77: 0 | EN77: 0 | EO77: 35 | EP77: 27.15 | EQ77: 33.72999878 | ER77: 30.65470276 | ES77: 1.64030354 | ET77: 29.89166565 | EU77: 36.03164978 | EV77: 0.8507715464 | EW77: 0.02349530607 | EX77: 0.005937981606 | EY77: N | EZ77: 0 | FA77: 30.65470446 | FB77: 49.99995865 | FC77: 34 | FD77: 34 | FE77: 0 | FF77: 0 | FG77: 35 | FH77: 22.76000061 | FI77: 28.4 | FJ77: 25.48117523 | FK77: 1.213659051 | FL77: 25.11000061 | FM77: 45.40020752 | FN77: 0.5612568259 | FO77: 0.02349530607 | FP77: 0.003959357738 | FQ77: N | FR77: 0 | FS77: 25.48117552 | FT77: 49.99999065 | FU77: 34 | FV77: 34 | FW77: 0 | FX77: 0 | FY77: 35 | FZ77: 168 | GA77: 260 | GB77: 215.7352905 | GC77: 25.77091175 | GD77: 221.6666718 | GE77: 70.61291504 | GF77: 3.055181742 | GG77: 0.2349530607 | GH77: 0.08172059059 | GI77: N | GJ77: 0 | GK77: 198.3530796 | GL77: 74.99999395 | GM77: 34 | GN77: 34 | GO77: 0 | GP77: 0
A78: 36 | B78: 1.799999952 | C78: 213.8000031 | D78: 48.03636169 | E78: 50.9214411 | F78: 19.46666527 | G78: 1.352400064 | H78: 35.51934433 | I78: 0.2384863943 | J78: 0.06434345245 | K78: E | L78: 0 | M78: 33.29626588 | N78: 50.00000291 | O78: 34 | P78: 34 | Q78: 0 | R78: 0 | S78: 36 | T78: 35.08701706 | U78: 64.07794189 | V78: 47.70378494 | W78: 7.264376625 | X78: 47.16656876 | Y78: 46.10939789 | Z78: 1.034578323 | AA78: 0.2349530607 | AB78: 0.08304303885 | AC78: G | AD78: 0 | AE78: 47.35945835 | AF78: 49.99950096 | AG78: 34 | AH78: 34 | AI78: 0 | AJ78: 0 | AK78: 36 | AL78: 29.20000076 | AM78: 62.59999847 | AN78: 46.24545288 | AO78: 7.717111267 | AP78: 43.11666489 | AQ78: 36.54652405 | AR78: 1.265385866 | AS78: 0.2384863943 | AT78: 0.04691269994 | AU78: G | AV78: 0 | AW78: 56.27954458 | AX78: 10.00061952 | AY78: 33 | AZ78: 33 | BA78: 0 | BB78: 0 | BC78: 36 | BD78: 55.725 | BE78: 113.2800049 | BF78: 86.75501099 | BG78: 17.83317495 | BH78: 108.4837524 | BI78: 1.13007431 | BJ78: 76.76929474 | BK78: 0.01210920364 | BL78: 0.005109740049 | BM78: N | BN78: 0 | BO78: 86.75500469 | BP78: 50.00001409 | BQ78: 32 | BR78: 32 | BS78: 0 | BT78: 0 | BU78: 36 | BV78: 8.5 | BW78: 61 | BX78: 39.59394073 | BY78: 13.69123629 | BZ78: 47.875 | CA78: 5.915791988 | CB78: 6.692923069 | CC78: 0.2384863943 | CD78: 0.08417508751 | CE78: T | CF78: 0 | CG78: 52.69901898 | CH78: 10.00000521 | CI78: 33 | CJ78: 33 | CK78: 0 | CL78: 0 | CM78: 36 | CN78: 0.3000000119 | CO78: 41.29999924 | CP78: 10.03076839 | CQ78: 12.49859978 | CR78: 4.400000095 | CS78: 0.5794591308 | CT78: 17.31057167 | CU78: 0.2686791122 | CV78: 0.04944986105 | CW78: E | CX78: 22.85714286 | CY78: 20.49261729 | CZ78: 10.00098082 | DA78: 34 | DB78: 34 | DC78: 8 | DD78: 22.85714286 | DE78: 36 | DF78: 0.1000000015 | DG78: 125.3000031 | DH78: 38.40714264 | DI78: 45.68476394 | DJ78: 12.62000084 | DK78: 0.4260824323 | DL78: 90.14016724 | DM78: 0.340793103 | DN78: 0.1116371155 | DO78: E | DP78: 55.88235294 | DQ78: 0 | DR78: 44.11764706 | DS78: 33 | DT78: 33 | DU78: 19 | DV78: 55.88235294 | DW78: 36 | DX78: 17.9 | DY78: 22.15 | DZ78: 20.38235168 | EA78: 1.141360395 | EB78: 19.67083282 | EC78: 32.60156555 | ED78: 0.6251955032 | EE78: 0.02349530607 | EF78: 0.006194347143 | EG78: G | EH78: 0 | EI78: 20.36151662 | EJ78: 49.99998241 | EK78: 34 | EL78: 34 | EM78: 0 | EN78: 0 | EO78: 36 | EP78: 28.46000061 | EQ78: 34.75 | ER78: 30.97058105 | ES78: 1.71137712 | ET78: 28.98416748 | EU78: 34.18677368 | EV78: 0.9059228897 | EW78: 0.02349530607 | EX78: 0.007007591426 | EY78: N | EZ78: 0 | FA78: 30.97058229 | FB78: 49.99997117 | FC78: 34 | FD78: 34 | FE78: 0 | FF78: 0 | FG78: 36 | FH78: 23.18999939 | FI78: 28.07000122 | FJ78: 25.675 | FK78: 1.315037075 | FL78: 25.22333374 | FM78: 39.28851624 | FN78: 0.6534988284 | FO78: 0.02349530607 | FP78: 0.004315716028 | FQ78: N | FR78: 0 | FS78: 25.67499934 | FT78: 50.00001991 | FU78: 34 | FV78: 34 | FW78: 0 | FX78: 0 | FY78: 36 | FZ78: 177 | GA78: 277 | GB78: 226.4117584 | GC78: 26.22988906 | GD78: 218.6666718 | GE78: 77.059021 | GF78: 2.938160419 | GG78: 0.2349530607 | GH78: 0.0491682291 | GI78: G | GJ78: 0 | GK78: 208.5230536 | GL78: 74.99999875 | GM78: 34 | GN78: 34 | GO78: 0 | GP78: 0
A79: 37 | B79: 1.600000024 | C79: 103.3000031 | D79: 27.9636364 | E79: 24.12290131 | F79: 10.07500076 | G79: 1.48751533 | H79: 18.79888916 | I79: 0.2384863943 | J79: 0.0405139327 | K79: G | L79: 2.857142857 | M79: 21.28398001 | N79: 50.00015861 | O79: 33 | P79: 34 | Q79: 1 | R79: 2.857142857 | S79: 37 | T79: 14.08298492 | U79: 37.3648262 | V79: 23.42539787 | W79: 4.770562888 | X79: 23.78375244 | Y79: 25.25608063 | Z79: 0.9275151491 | AA79: 0.2349530607 | AB79: 0.04840362072 | AC79: G | AD79: 0 | AE79: 23.11696071 | AF79: 50.00000777 | AG79: 34 | AH79: 34 | AI79: 0 | AJ79: 0 | AK79: 37 | AL79: 11.80000019 | AM79: 31.79999924 | AN79: 22.0363636 | AO79: 5.202512596 | AP79: 23.46666718 | AQ79: 17.07025909 | AR79: 1.29092145 | AS79: 0.2384863943 | AT79: 0.0408757031 | AU79: N | AV79: 0 | AW79: 28.70359958 | AX79: 10.00017603 | AY79: 33 | AZ79: 33 | BA79: 0 | BB79: 0 | BC79: 37 | BD79: 28.18999939 | BE79: 60.27999878 | BF79: 44.40390625 | BG79: 8.66446333 | BH79: 36.2125 | BI79: 1.339530849 | BJ79: 33.14884949 | BK79: 0.01210920364 | BL79: 0.003586629033 | BM79: G | BN79: 0 | BO79: 43.85285568 | BP79: 49.99910422 | BQ79: 32 | BR79: 32 | BS79: 0 | BT79: 0 | BU79: 37 | BV79: 8.800000191 | BW79: 31.60000038 | BX79: 19.91818047 | BY79: 5.762728328 | BZ79: 22.10000038 | CA79: 10.09898663 | CB79: 1.972294927 | CC79: 0.2384863943 | CD79: 0.0612328127 | CE79: N | CF79: 0 | CG79: 27.30339202 | CH79: 10.00006687 | CI79: 33 | CJ79: 33 | CK79: 0 | CL79: 0 | CM79: 37 | CN79: 0.1000000015 | CO79: 11.60000038 | CP79: 3.328571081 | CQ79: 3.631135155 | CR79: 1.250000119 | CS79: 0.7574938536 | CT79: 4.394188881 | CU79: 0.2989585102 | CV79: 0.06912058592 | CW79: G | CX79: 35.29411765 | CY79: 6.465717564 | CZ79: 10.00053127 | DA79: 33 | DB79: 33 | DC79: 12 | DD79: 35.29411765 | DE79: 37 | DF79: 0.200000003 | DG79: 19 | DH79: 7.983333588 | DI79: 8.079706801 | DJ79: 2.079999924 | DK79: 0.7723478079 | DL79: 10.33644867 | DM79: 0.5431278348 | DN79: 0.1749637127 | DO79: G | DP79: 79.41176471 | DQ79: 0 | DR79: 20.58823529 | DS79: 33 | DT79: 33 | DU79: 27 | DV79: 79.41176471 | DW79: 37 | DX79: 16.54415227 | DY79: 24.95868595 | DZ79: 20.56259279 | EA79: 2.31840215 | EB79: 20.05020737 | EC79: 15.62483972 | ED79: 1.316019416 | EE79: 0.04462800554 | EF79: 0.01436550398 | EG79: T | EH79: 0 | EI79: 20.41431917 | EJ79: 49.99997645 | EK79: 34 | EL79: 34 | EM79: 0 | EN79: 0 | EO79: 37 | EP79: 25.24360246 | EQ79: 39.73635667 | ER79: 30.70003611 | ES79: 3.296503611 | ET79: 28.86679029 | EU79: 17.69191771 | EV79: 1.735257626 | EW79: 0.04462800554 | EX79: 0.0123259806 | EY79: G | EZ79: 0 | FA79: 30.59023916 | FB79: 49.9999833 | FC79: 34 | FD79: 34 | FE79: 0 | FF79: 0 | FG79: 37 | FH79: 21.40672725 | FI79: 32.1955667 | FJ79: 25.63355123 | FK79: 2.709222728 | FL79: 24.10393639 | FM79: 18.1926171 | FN79: 1.409008503 | FO79: 0.04462800554 | FP79: 0.02003551936 | FQ79: N | FR79: 0 | FS79: 25.63355118 | FT79: 50.00000075 | FU79: 34 | FV79: 34 | FW79: 0 | FX79: 0 | FY79: 37 | FZ79: 72 | GA79: 154 | GB79: 112 | GC79: 20.3156901 | GD79: 106.1666641 | GE79: 30.20833397 | GF79: 3.70758605 | GG79: 0.2349530607 | GH79: 0.02575588226 | GI79: N | GJ79: 0 | GK79: 98.29728694 | GL79: 74.99998173 | GM79: 34 | GN79: 34 | GO79: 0 | GP79: 0
B80: =B42+1 -> 3 | C80: Componente hídrica: | G80: =$G$4 -> Precipitação (P) | L80: P.003 : -22,625 S; -52,875 W | T80: =T42+1 -> 3 | U80: Componente hídrica: | Y80: =$Y$4 -> Evapotranspiração de referência (ETo) | AD80: P.003 : -22,625 S; -52,875 W | AK80: Ponto: | AL80: =AL42+1 -> 3 | AM80: Componente hídrica: | AQ80: =$AQ$4 -> Evapotranspiração da cultura (ETc) | AV80: P.003 : -22,625 S; -52,875 W | BC80: Ponto: | BD80: =BD42+1 -> 3 | BE80: Componente hídrica: | BI80: =$BI$4 -> Armazenamento da água no solo (S) | BN80: P.003 : -22,625 S; -52,875 W | BU80: Ponto: | BV80: =BV42+1 -> 3 | BW80: Componente hídrica: | CA80: =$CA$42 -> Evapotranspiração real (ETr) | CF80: P.003 : -22,625 S; -52,875 W | CM80: Ponto: | CN80: =CN42+1 -> 3 | CO80: Componente hídrica: | CS80: =$CS$4 -> Deficiência hídrica (Def) | CX80: P.003 : -22,625 S; -52,875 W | DE80: Ponto: | DF80: =DF42+1 -> 3 | DG80: Componente hídrica: | DK80: =$DK$4 -> Excedente hídrico (Exc) | DP80: P.003 : -22,625 S; -52,875 W | DW80: Ponto: | DX80: =DX42+1 -> 3 | DY80: Componente hídrica: | EC80: =$EC$4 -> Temperatura mínima (Tmin) | EH80: P.003 : -22,625 S; -52,875 W | EO80: Ponto: | EP80: =EP42+1 -> 3 | EQ80: Componente hídrica: | EU80: =$EU$4 -> Temperatura máxima (Tmax) | EZ80: P.003 : -22,625 S; -52,875 W | FG80: Ponto: | FH80: =FH42+1 -> 3 | FI80: Componente hídrica: | FM80: =$FM$4 -> Temperatura média (Tmed) | FR80: P.003 : -22,625 S; -52,875 W | FY80: Ponto: | FZ80: =FZ42+1 -> 3 | GA80: Componente hídrica: | GE80: =$G$4 -> Precipitação (P) | GJ80: P.003 : -22,625 S; -52,875 W
A81: 1 | B81: 8.199999809 | C81: 178.6999969 | D81: 59.90588379 | E81: 40.68281493 | F81: 50.82499695 | G81: 2.298321009 | H81: 26.06506348 | I81: 0.2349530607 | J81: 0.04096764326 | K81: G | L81: 0 | M81: 51.47768117 | N81: 49.99959741 | O81: 34 | P81: 34 | Q81: 0 | R81: 0 | S81: 1 | T81: 29.65030098 | U81: 65.03768921 | V81: 45.39827728 | W81: 7.025036317 | X81: 50.29294586 | Y81: 40.48839569 | Z81: 1.121266365 | AA81: 0.2349530607 | AB81: 0.07117557526 | AC81: N | AD81: 0 | AE81: 45.3982786 | AF81: 49.99999255 | AG81: 34 | AH81: 34 | AI81: 0 | AJ81: 0 | AK81: 1 | AL81: 29.79999924 | AM81: 62.59999847 | AN81: 44.57941437 | AO81: 6.982826693 | AP81: 43.46666718 | AQ81: 39.76190186 | AR81: 1.121158957 | AS81: 0.2349530607 | AT81: 0.09019611776 | AU81: T | AV81: 0 | AW81: 54.67805504 | AX81: 9.99997811 | AY81: 34 | AZ81: 34 | BA81: 0 | BB81: 0 | BC81: 1 | BD81: 181.9349976 | BE81: 261.4149902 | BF81: 237.9063721 | BG81: 26.15028083 | BH81: 254.7916504 | BI81: 3.940647125 | BJ81: 60.37241364 | BK81: 0.01192431971 | BL81: 0.00937473774 | BM81: G | BN81: 0 | BO81: 236.9009698 | BP81: 49.9999427 | BQ81: 33 | BR81: 33 | BS81: 0 | BT81: 0 | BU81: 1 | BV81: 2.799999952 | BW81: 46.20000076 | BX81: 18.75881958 | BY81: 13.45867189 | BZ81: 6.416666985 | CA81: 1.873596072 | CB81: 10.01220036 | CC81: 0.2349530607 | CD81: 0.08221763372 | CE81: G | CF81: 0 | CG81: 37.05052672 | CH81: 10.00007663 | CI81: 34 | CJ81: 34 | CK81: 0 | CL81: 0 | CM81: 1 | CN81: 0.200000003 | CO81: 41.70000076 | CP81: 25.82058907 | CQ81: 12.4478741 | CR81: 38.2416687 | CS81: 1.652048826 | CT81: 15.62943459 | CU81: 0.2349530607 | CV81: 0.1167557985 | CW81: T | CX81: 0 | CY81: 37.89424719 | CZ81: 10.00000513 | DA81: 34 | DB81: 34 | DC81: 0 | DD81: 0 | DE81: 1 | DF81: 0.1000000015 | DG81: 97.19999695 | DH81: 37.98845673 | DI81: 29.55794408 | DJ81: 9.81000042 | DK81: 1.115515709 | DL81: 34.05461502 | DM81: 0.2686791122 | DN81: 0.0710092783 | DO81: G | DP81: 22.85714286 | DQ81: 17.73540126 | DR81: 50.00000083 | DS81: 34 | DT81: 34 | DU81: 8 | DV81: 22.85714286 | DW81: 1 | DX81: 18.08000031 | DY81: 23.81999969 | DZ81: 20.8067627 | EA81: 1.270189012 | EB81: 20.47166748 | EC81: 27.60875244 | ED81: 0.7536292076 | EE81: 0.02349530607 | EF81: 0.0009798169136 | EG81: N | EH81: 0 | EI81: 20.8067621 | EJ81: 50.00001863 | EK81: 34 | EL81: 34 | EM81: 0 | EN81: 0 | EO81: 1 | EP81: 26.93999939 | EQ81: 33.82000122 | ER81: 30.77117615 | ES81: 1.51560723 | ET81: 30.95333252 | EU81: 41.5628479 | EV81: 0.7403529286 | EW81: 0.02349530607 | EX81: 0.008047032356 | EY81: N | EZ81: 0 | FA81: 30.77117647 | FB81: 49.9999914 | FC81: 34 | FD81: 34 | FE81: 0 | FF81: 0 | FG81: 1 | FH81: 23.48000031 | FI81: 28.82999878 | FJ81: 25.78970642 | FK81: 1.243018099 | FL81: 26.60083313 | FM81: 44.19882202 | FN81: 0.5834930539 | FO81: 0.02349530607 | FP81: 0.005464214087 | FQ81: N | FR81: 0 | FS81: 25.78970519 | FT81: 50.00003953 | FU81: 34 | FV81: 34 | FW81: 0 | FX81: 0 | FY81: 1 | FZ81: 151 | GA81: 280 | GB81: 218.3529358 | GC81: 30.19119171 | GD81: 226.25 | GE81: 49.74027634 | GF81: 4.389861584 | GG81: 0.2349530607 | GH81: 0.07002800703 | GI81: T | GJ81: 0 | GK81: 200.2627346 | GL81: 74.99995348 | GM81: 34 | GN81: 34 | GO81: 0 | GP81: 0
A82: 2 | B82: 4.800000191 | C82: 161.5 | D82: 73.8181839 | E82: 44.306851 | F82: 70.09166718 | G82: 2.024741888 | H82: 36.45807266 | I82: 0.2384863943 | J82: 0.08805426955 | K82: N | L82: 2.857142857 | M82: 72.18455572 | N82: 50.0000096 | O82: 33 | P82: 34 | Q82: 1 | R82: 2.857142857 | S82: 2 | T82: 32.27572632 | U82: 58.01514816 | V82: 44.45232391 | W82: 6.886332379 | X82: 38.71058273 | Y82: 43.35608673 | Z82: 1.025284529 | AA82: 0.2349530607 | AB82: 0.04329910874 | AC82: G | AD82: 0 | AE82: 44.11105365 | AF82: 49.99988638 | AG82: 34 | AH82: 34 | AI82: 0 | AJ82: 0 | AK82: 2 | AL82: 25.20000076 | AM82: 55.09999847 | AN82: 36.67353058 | AO82: 6.831669427 | AP82: 37.65833282 | AQ82: 30.97300911 | AR82: 1.184048057 | AS82: 0.2349530607 | AT82: 0.03558650613 | AU82: N | AV82: 0 | AW82: 45.42862106 | AX82: 10.0001186 | AY82: 34 | AZ82: 34 | BA82: 0 | BB82: 0 | BC82: 2 | BD82: 177.6 | BE82: 262.1649902 | BF82: 242.7524414 | BG82: 24.59912028 | BH82: 255.1179199 | BI82: 4.558692551 | BJ82: 53.25045395 | BK82: 0.01192431971 | BL82: 0.01090219617 | BM82: G | BN82: 0 | BO82: 241.8661215 | BP82: 49.99905301 | BQ82: 33 | BR82: 33 | BS82: 0 | BT82: 0 | BU82: 2 | BV82: 3.900000095 | BW82: 46.59999847 | BX82: 15.46470547 | BY82: 11.40276193 | BZ82: 7.458333015 | CA82: 2.045372725 | CB82: 7.560825348 | CC82: 0.2349530607 | CD82: 0.05589300394 | CE82: E | CF82: 0 | CG82: 35.6081055 | CH82: 10.00044928 | CI82: 34 | CJ82: 34 | CK82: 0 | CL82: 0 | CM82: 2 | CN82: 0.3000000119 | CO82: 39.20000076 | CP82: 21.20882225 | CQ82: 9.752586217 | CR82: 22.99166679 | CS82: 2.26156044 | CT82: 9.377959251 | CU82: 0.2349530607 | CV82: 0.1288515329 | CW82: T | CX82: 0 | CY82: 31.25956877 | CZ82: 10.00000632 | DA82: 34 | DB82: 34 | DC82: 0 | DD82: 0 | DE82: 2 | DF82: 1.299999952 | DG82: 162.3000031 | DH82: 57.81785965 | DI82: 45.39647122 | DJ82: 17.39999962 | DK82: 1.21684742 | DL82: 47.51446915 | DM82: 0.2589056492 | DN82: 0.06536448002 | DO82: G | DP82: 17.14285714 | DQ82: 32.52671573 | DR82: 50.0000092 | DS82: 34 | DT82: 34 | DU82: 6 | DV82: 17.14285714 | DW82: 2 | DX82: 18.36999969 | DY82: 22.58000031 | DZ82: 20.77941132 | EA82: 1.025900803 | EB82: 21.52750092 | EC82: 41.48323669 | ED82: 0.500911057 | EE82: 0.02349530607 | EF82: 0.003376871347 | EG82: T | EH82: 0 | EI82: 20.94808559 | EJ82: 50.00010627 | EK82: 34 | EL82: 34 | EM82: 0 | EN82: 0 | EO82: 2 | EP82: 28.46000061 | EQ82: 33.98999939 | ER82: 30.85117493 | ES82: 1.345589391 | ET82: 31.68583374 | EU82: 54.73639526 | EV82: 0.5636318326 | EW82: 0.02349530607 | EX82: 0.00685364902 | EY82: G | EZ82: 0 | FA82: 30.83239049 | FB82: 49.99995737 | FC82: 34 | FD82: 34 | FE82: 0 | FF82: 0 | FG82: 2 | FH82: 24.03999939 | FI82: 27.76000061 | FJ82: 25.81647339 | FK82: 0.9658403965 | FL82: 25.58999939 | FM82: 73.74555664 | FN82: 0.3500749767 | FO82: 0.02349530607 | FP82: 0.0027146101 | FQ82: N | FR82: 0 | FS82: 25.81647286 | FT82: 50.00002186 | FU82: 34 | FV82: 34 | FW82: 0 | FX82: 0 | FY82: 2 | FZ82: 161 | GA82: 278 | GB82: 213.7647095 | GC82: 32.30353969 | GD82: 209.75 | GE82: 45.23661041 | GF82: 4.72548008 | GG82: 0.2349530607 | GH82: 0.05038267374 | GI82: N | GJ82: 0 | GK82: 191.9763095 | GL82: 74.99999365 | GM82: 34 | GN82: 34 | GO82: 0 | GP82: 0
A83: 3 | B83: 1.799999952 | C83: 200.1999969 | D83: 51.70881653 | E83: 41.28474212 | F83: 18.33333206 | G83: 1.50153017 | H83: 34.43741608 | I83: 0.2349530607 | J83: 0.03033554554 | K83: G | L83: 0 | M83: 40.79103286 | N83: 50.0000019 | O83: 34 | P83: 34 | Q83: 0 | R83: 0 | S83: 3 | T83: 31.32831764 | U83: 59.30810928 | V83: 43.37508011 | W83: 6.417307768 | X83: 47.6498642 | Y83: 47.41741943 | Z83: 0.9147499204 | AA83: 0.2349530607 | AB83: 0.0270241797 | AC83: N | AD83: 0 | AE83: 43.37508664 | AF83: 49.99995938 | AG83: 34 | AH83: 34 | AI83: 0 | AJ83: 0 | AK83: 3 | AL83: 20 | AM83: 59 | AN83: 28.76363945 | AO83: 7.715439801 | AP83: 29.75 | AQ83: 18.13891029 | AR83: 1.585742474 | AS83: 0.2384863943 | AT83: 0.09790045023 | AU83: G | AV83: 0 | AW83: 37.68693097 | AX83: 10.00000221 | AY83: 33 | AZ83: 33 | BA83: 0 | BB83: 0 | BC83: 3 | BD83: 187.9599976 | BE83: 261.7600098 | BF83: 244.5912354 | BG83: 20.11765879 | BH83: 255.6100098 | BI83: 6.988852692 | BJ83: 34.99733734 | BK83: 0.01210920364 | BL83: 0.009292000532 | BM83: N | BN83: 0 | BO83: 244.591235 | BP83: 50.00000064 | BQ83: 32 | BR83: 32 | BS83: 0 | BT83: 0 | BU83: 3 | BV83: 9.399999619 | BW83: 47.70000076 | BX83: 18.93030357 | BY83: 8.091217705 | BZ83: 18.97500038 | CA83: 7.736940861 | CB83: 2.446742773 | CC83: 0.2384863943 | CD83: 0.1027097106 | CE83: G | CF83: 0 | CG83: 28.00689854 | CH83: 10.00000459 | CI83: 33 | CJ83: 33 | CK83: 0 | CL83: 0 | CM83: 3 | CN83: 0.6000000238 | CO83: 27.39999962 | CP83: 10.06470585 | CQ83: 5.971339757 | CR83: 7.300000191 | CS83: 2.260710478 | CT83: 4.452010155 | CU83: 0.2349530607 | CV83: 0.05115902424 | CW83: G | CX83: 0 | CY83: 19.02392187 | CZ83: 10.00007811 | DA83: 34 | DB83: 34 | DC83: 0 | DD83: 0 | DE83: 3 | DF83: 3.700000048 | DG83: 191.3000031 | DH83: 42.84814835 | DI83: 40.76887234 | DJ83: 22.46000099 | DK83: 1.417460442 | DL83: 30.22881508 | DM83: 0.2636566162 | DN83: 0.02227288485 | DO83: G | DP83: 17.64705882 | DQ83: 25.60706045 | DR83: 50.00024128 | DS83: 33 | DT83: 33 | DU83: 6 | DV83: 17.64705882 | DW83: 3 | DX83: 18.66999969 | DY83: 23.18000031 | DZ83: 20.88823395 | EA83: 0.9327134072 | EB83: 21.30083313 | EC83: 51.79676514 | ED83: 0.4032729566 | EE83: 0.02349530607 | EF83: 0.003883242607 | EG83: N | EH83: 0 | EI83: 20.88823359 | EJ83: 50.00001538 | EK83: 34 | EL83: 34 | EM83: 0 | EN83: 0 | EO83: 3 | EP83: 27.28999939 | EQ83: 33.62999878 | ER83: 30.61470642 | ES83: 1.485903921 | ET83: 32.04499817 | EU83: 43.39564514 | EV83: 0.7054787874 | EW83: 0.02349530607 | EX83: 0.006379717588 | EY83: G | EZ83: 0 | FA83: 30.59119826 | FB83: 49.99989438 | FC83: 34 | FD83: 34 | FE83: 0 | FF83: 0 | FG83: 3 | FH83: 23.66999969 | FI83: 28.36000061 | FJ83: 25.74971008 | FK83: 1.03508881 | FL83: 26.40583496 | FM83: 63.59746704 | FN83: 0.4048857689 | FO83: 0.02349530607 | FP83: 0.007127916813 | FQ83: N | FR83: 0 | FS83: 25.74970926 | FT83: 50.00003169 | FU83: 34 | FV83: 34 | FW83: 0 | FX83: 0 | FY83: 3 | FZ83: 154 | GA83: 272 | GB83: 207.8823547 | GC83: 27.88587692 | GD83: 203.1666718 | GE83: 55.81944275 | GF83: 3.724192619 | GG83: 0.2349530607 | GH83: 0.0394873172 | GI83: N | GJ83: 0 | GK83: 189.073622 | GL83: 74.99999379 | GM83: 34 | GN83: 34 | GO83: 0 | GP83: 0
A84: 4 | B84: 3.099999905 | C84: 155.6999969 | D84: 50.97271729 | E84: 32.89217633 | F84: 41.25 | G84: 2.280411005 | H84: 22.35242653 | I84: 0.2384863943 | J84: 0.07300546765 | K84: G | L84: 2.857142857 | M84: 42.6206017 | N84: 49.99998832 | O84: 33 | P84: 34 | Q84: 1 | R84: 2.857142857 | S84: 4 | T84: 31.86869049 | U84: 65.91817474 | V84: 43.76677704 | W84: 7.160791547 | X84: 40.38106155 | Y84: 40.62324524 | Z84: 1.077382565 | AA84: 0.2349530607 | AB84: 0.06636025757 | AC84: G | AD84: 0 | AE84: 43.40817737 | AF84: 49.99999908 | AG84: 34 | AH84: 34 | AI84: 0 | AJ84: 0 | AK84: 4 | AL84: 34.90000153 | AM84: 72.5 | AN84: 48.14545441 | AO84: 8.010309253 | AP84: 44.30000305 | AQ84: 39.29029465 | AR84: 1.225377798 | AS84: 0.2384863943 | AT84: 0.06211984158 | AU84: G | AV84: 0 | AW84: 58.21434573 | AX84: 9.999096875 | AY84: 33 | AZ84: 33 | BA84: 0 | BB84: 0 | BC84: 4 | BD84: 188.625 | BE84: 258.2699951 | BF84: 239.9379639 | BG84: 17.97013201 | BH84: 252.4662354 | BI84: 8.560229492 | BJ84: 28.02938461 | BK84: 0.01210920364 | BL84: 0.007925054431 | BM84: G | BN84: 0 | BO84: 239.4709709 | BP84: 49.99999898 | BQ84: 32 | BR84: 32 | BS84: 0 | BT84: 0 | BU84: 4 | BV84: 13.19999981 | BW84: 46.70000076 | BX84: 36.6363678 | BY84: 7.682765588 | BZ84: 38.32500076 | CA84: 17.61330605 | CB84: 2.080039263 | CC84: 0.2384863943 | CD84: 0.1627035439 | CE84: N | CF84: 0 | CG84: 46.48219421 | CH84: 10.00007734 | CI84: 33 | CJ84: 33 | CK84: 0 | CL84: 0 | CM84: 4 | CN84: 1 | CO84: 59.29999924 | CP84: 11.94242477 | CQ84: 13.01590695 | CR84: 5.858333111 | CS84: 1.229132652 | CT84: 9.716139793 | CU84: 0.2384863943 | CV84: 0.05896747112 | CW84: E | CX84: 0 | CY84: 27.49841006 | CZ84: 10.00003282 | DA84: 34 | DB84: 34 | DC84: 0 | DD84: 0 | DE84: 4 | DF84: 0.3000000119 | DG84: 118.8000031 | DH84: 29.42222023 | DI84: 24.22864465 | DJ84: 12.15000057 | DK84: 1.735578418 | DL84: 16.95240021 | DM84: 0.2636566162 | DN84: 0.05075323582 | DO84: E | DP84: 17.64705882 | DQ84: 14.68138759 | DR84: 50.00006865 | DS84: 33 | DT84: 33 | DU84: 6 | DV84: 17.64705882 | DW84: 4 | DX84: 18.86000061 | DY84: 26.01000061 | DZ84: 20.91147003 | EA84: 1.322078493 | EB84: 20.64750061 | EC84: 27.41787109 | ED84: 0.7626948953 | EE84: 0.02349530607 | EF84: 0.006585454941 | EG84: N | EH84: 0 | EI84: 20.91146959 | EJ84: 50.00001323 | EK84: 34 | EL84: 34 | EM84: 0 | EN84: 0 | EO84: 4 | EP84: 26.96000061 | EQ84: 35.47999878 | ER84: 30.85088501 | ES84: 1.894346238 | ET84: 31.92999878 | EU84: 27.4099762 | EV84: 1.125534892 | EW84: 0.02349530607 | EX84: 0.003720289469 | EY84: N | EZ84: 0 | FA84: 30.85088593 | FB84: 49.99998054 | FC84: 34 | FD84: 34 | FE84: 0 | FF84: 0 | FG84: 4 | FH84: 22.88000031 | FI84: 30.76000061 | FJ84: 25.87853394 | FK84: 1.515158041 | FL84: 24.85 | FM84: 30.92882996 | FN84: 0.8367123604 | FO84: 0.02349530607 | FP84: 0.006977105886 | FQ84: N | FR84: 0 | FS84: 25.87853283 | FT84: 50.00002916 | FU84: 34 | FV84: 34 | FW84: 0 | FX84: 0 | FY84: 4 | FZ84: 156 | GA84: 272 | GB84: 211.3235321 | GC84: 27.65777825 | GD84: 204.3333282 | GE84: 60.21411896 | GF84: 3.509534597 | GG84: 0.2349530607 | GH84: 0.03982251883 | GI84: N | GJ84: 0 | GK84: 192.6686495 | GL84: 74.99999382 | GM84: 34 | GN84: 34 | GO84: 0 | GP84: 0
A85: 5 | B85: 7.099999905 | C85: 136.8999939 | D85: 57.10303497 | E85: 33.57537652 | F85: 61.18333435 | G85: 2.541018248 | H85: 22.47250175 | I85: 0.2384863943 | J85: 0.05212727189 | K85: G | L85: 2.857142857 | M85: 48.60455846 | N85: 50.00000221 | O85: 33 | P85: 34 | Q85: 1 | R85: 2.857142857 | S85: 5 | T85: 31.39660835 | U85: 56.35074997 | V85: 41.58398819 | W85: 5.721189885 | X85: 41.79416656 | Y85: 55.69833755 | Z85: 0.7465929985 | AA85: 0.2349530607 | AB85: 0.06233209372 | AC85: G | AD85: 0 | AE85: 41.33541818 | AF85: 49.99980488 | AG85: 34 | AH85: 34 | AI85: 0 | AJ85: 0 | AK85: 5 | AL85: 34.5 | AM85: 62 | AN85: 45.77575302 | AO85: 6.390081779 | AP85: 45.95833206 | AQ85: 54.13874054 | AR85: 0.8455267549 | AS85: 0.2384863943 | AT85: 0.05873459578 | AU85: G | AV85: 0 | AW85: 53.90777429 | AX85: 9.999907869 | AY85: 33 | AZ85: 33 | BA85: 0 | BB85: 0 | BC85: 5 | BD85: 183.8400024 | BE85: 257.2899902 | BF85: 237.6083984 | BG85: 15.81395559 | BH85: 251.169165 | BI85: 10.80091324 | BJ85: 21.99891663 | BK85: 0.01210920364 | BL85: 0.006624427438 | BM85: N | BN85: 0 | BO85: 237.6083961 | BP85: 50.00000594 | BQ85: 32 | BR85: 32 | BS85: 0 | BT85: 0 | BU85: 5 | BV85: 11.89999962 | BW85: 44.90000153 | BX85: 33.61212158 | BY85: 8.654866573 | BZ85: 36.65000153 | CA85: 10.88646221 | CB85: 3.087515593 | CC85: 0.2384863943 | CD85: 0.1178115904 | CE85: N | CF85: 0 | CG85: 44.70375135 | CH85: 10.00005685 | CI85: 33 | CJ85: 33 | CK85: 0 | CL85: 0 | CM85: 5 | CN85: 0.3000000119 | CO85: 47.20000076 | CP85: 11.81470585 | CQ85: 13.33596439 | CR85: 4.208333492 | CS85: 0.9072446227 | CT85: 13.02262402 | CU85: 0.2349530607 | CV85: 0.07779937983 | CW85: G | CX85: 0 | CY85: 27.86289674 | CZ85: 10.00000345 | DA85: 34 | DB85: 34 | DC85: 0 | DD85: 0 | DE85: 5 | DF85: 0.400000006 | DG85: 88.09999847 | DH85: 21.58518219 | DI85: 17.69195091 | DJ85: 26.70999908 | DK85: 1.472152591 | DL85: 14.66232681 | DM85: 0.2636566162 | DN85: 0.135699749 | DO85: N | DP85: 17.64705882 | DQ85: 16.7751304 | DR85: 49.99993571 | DS85: 33 | DT85: 33 | DU85: 6 | DV85: 17.64705882 | DW85: 5 | DX85: 17.53999939 | DY85: 21.86000061 | DZ85: 20.53293915 | EA85: 0.8823677928 | EB85: 20.78000031 | EC85: 53.73475952 | ED85: 0.3821165264 | EE85: 0.02349530607 | EF85: 0.01019347012 | EG85: G | EH85: 0 | EI85: 20.5202044 | EJ85: 49.99997503 | EK85: 34 | EL85: 34 | EM85: 0 | EN85: 0 | EO85: 5 | EP85: 26.95 | EQ85: 34.78999939 | ER85: 30.48500061 | ES85: 1.530625271 | ET85: 30.21666565 | EU85: 41.18986206 | EV85: 0.7401093245 | EW85: 0.02349530607 | EX85: 0.002680122852 | EY85: N | EZ85: 0 | FA85: 30.485001 | FB85: 49.99998976 | FC85: 34 | FD85: 34 | FE85: 0 | FF85: 0 | FG85: 5 | FH85: 22.26000061 | FI85: 28.27999878 | FJ85: 25.50823517 | FK85: 1.064889926 | FL85: 25.77166748 | FM85: 58.41116943 | FN85: 0.4367013276 | FO85: 0.02349530607 | FP85: 0.004102088884 | FQ85: N | FR85: 0 | FS85: 25.50823432 | FT85: 50.00003164 | FU85: 34 | FV85: 34 | FW85: 0 | FX85: 0 | FY85: 5 | FZ85: 159 | GA85: 257 | GB85: 203.3529358 | GC85: 25.8033156 | GD85: 199.8333282 | GE85: 63.58802032 | GF85: 3.197975636 | GG85: 0.2349530607 | GH85: 0.04326997697 | GI85: G | GJ85: 0 | GK85: 185.6214962 | GL85: 74.99999896 | GM85: 34 | GN85: 34 | GO85: 0 | GP85: 0
A86: 6 | B86: 5.599999905 | C86: 169.8000031 | D86: 47.66176605 | E86: 34.30254794 | F86: 46.65000153 | G86: 1.934149742 | H86: 24.64223099 | I86: 0.2349530607 | J86: 0.1130584776 | K86: G | L86: 0 | M86: 39.74682668 | N86: 49.99998232 | O86: 34 | P86: 34 | Q86: 0 | R86: 0 | S86: 6 | T86: 28.73493767 | U86: 49.122612 | V86: 41.12991333 | W86: 5.432849342 | X86: 47.42363739 | Y86: 55.7491188 | Z86: 0.7377679348 | AA86: 0.2349530607 | AB86: 0.05766093731 | AC86: N | AD86: 0 | AE86: 41.1299091 | AF86: 50.00003107 | AG86: 34 | AH86: 34 | AI86: 0 | AJ86: 0 | AK86: 6 | AL86: 31.60000038 | AM86: 54 | AN86: 45.07575989 | AO86: 6.001355972 | AP86: 52.13333511 | AQ86: 55.15378952 | AR86: 0.817274034 | AS86: 0.2384863943 | AT86: 0.05331504345 | AU86: N | AV86: 0 | AW86: 52.76679537 | AX86: 10.00003408 | AY86: 33 | AZ86: 33 | BA86: 0 | BB86: 0 | BC86: 6 | BD86: 187.5849976 | BE86: 255.3850098 | BF86: 237.3664307 | BG86: 14.33913392 | BH86: 238.4350098 | BI86: 13.29780426 | BJ86: 17.85004616 | BK86: 0.01210920364 | BL86: 0.004726800323 | BM86: N | BN86: 0 | BO86: 237.3664278 | BP86: 50.00000799 | BQ86: 32 | BR86: 32 | BS86: 0 | BT86: 0 | BU86: 6 | BV86: 11.10000038 | BW86: 45 | BX86: 31.80000114 | BY86: 8.889460429 | BZ86: 36.52500153 | CA86: 9.699360847 | CB86: 3.278566599 | CC86: 0.2384863943 | CD86: 0.09257996082 | CE86: N | CF86: 0 | CG86: 43.19229097 | CH86: 10.0000239 | CI86: 33 | CJ86: 33 | CK86: 0 | CL86: 0 | CM86: 6 | CN86: 0.8000000119 | CO86: 42.90000153 | CP86: 12.97646904 | CQ86: 11.54973562 | CR86: 4.308333397 | CS86: 1.279891014 | CT86: 10.13873005 | CU86: 0.2349530607 | CV86: 0.02987843752 | CW86: G | CX86: 0 | CY86: 28.11256054 | CZ86: 10.00080196 | DA86: 34 | DB86: 34 | DC86: 0 | DD86: 0 | DE86: 6 | DF86: 1.299999952 | DG86: 67.80000305 | DH86: 19.96896744 | DI86: 13.7552874 | DJ86: 21.25 | DK86: 2.096161604 | DL86: 9.526444435 | DM86: 0.2544026077 | DN86: 0.1573662162 | DO86: N | DP86: 11.76470588 | DQ86: 17.65953837 | DR86: 49.99999691 | DS86: 33 | DT86: 33 | DU86: 4 | DV86: 11.76470588 | DW86: 6 | DX86: 18.13000031 | DY86: 22.58000031 | DZ86: 20.72735138 | EA86: 1.191717109 | EB86: 21.46750031 | EC86: 30.43809204 | ED86: 0.6809675097 | EE86: 0.02349530607 | EF86: 0.008060996979 | EG86: T | EH86: 0 | EI86: 20.85505636 | EJ86: 50.00004718 | EK86: 34 | EL86: 34 | EM86: 0 | EN86: 0 | EO86: 6 | EP86: 27.52000122 | EQ86: 34.73999939 | ER86: 30.91441345 | ES86: 1.599367684 | ET86: 31.73166809 | EU86: 38.23981323 | EV86: 0.8084352612 | EW86: 0.02349530607 | EX86: 0.002573376894 | EY86: N | EZ86: 0 | FA86: 30.91441399 | FB86: 49.9999865 | FC86: 34 | FD86: 34 | FE86: 0 | FF86: 0 | FG86: 6 | FH86: 23.08999939 | FI86: 28.65 | FJ86: 25.82441406 | FK86: 1.274700653 | FL86: 25.40666656 | FM86: 41.97394409 | FN86: 0.6152486801 | FO86: 0.02349530607 | FP86: 0.0035633564 | FQ86: N | FR86: 0 | FS86: 25.82441284 | FT86: 50.00003834 | FU86: 34 | FV86: 34 | FW86: 0 | FX86: 0 | FY86: 6 | FZ86: 137 | GA86: 232 | GB86: 199.4705811 | GC86: 23.12841244 | GD86: 208.25 | GE86: 70.71195221 | GF86: 2.820889235 | GG86: 0.2349530607 | GH86: 0.09704968333 | GI86: N | GJ86: 0 | GK86: 183.8707083 | GL86: 74.99999399 | GM86: 34 | GN86: 34 | GO86: 0 | GP86: 0
